{"text_format":"1","workbook":"xlsx","n_sheets":3,"sheets":[" ","Validation","Source"],"not_rendered":{"charts":0,"images":1,"macros":1,"external_links":0,"defined_names":30,"comments":1,"pivot_tables":0},"unopened":[],"bounds":{"document_bytes":16777216,"sheet_cells":100000,"rows_first":2000,"rows_last":500,"rows_between":2000,"halvings":0,"cell_chars":16384,"cell_head_chars":4096},"cells_cut":0,"cells_raw":0,"read":"whole","date_system":"1900"}

{"sheet":" ","index":0,"n_rows":62,"n_cols":46,"rows_kept":62,"cut":false,"hidden":false,"merged":[[0,35,0,44],[28,14,28,17],[10,14,10,17],[11,14,11,17],[12,14,12,17],[5,15,5,17],[25,14,25,17],[21,14,23,17],[24,14,24,17],[0,26,0,29],[54,10,54,11],[55,10,55,11],[61,10,61,11],[56,10,56,11],[57,10,57,11],[58,10,58,11],[59,10,59,11],[60,10,60,11],[49,10,49,11],[50,10,50,11],[51,10,51,11],[52,10,52,11],[53,10,53,11],[44,10,44,11],[45,10,45,11],[46,10,46,11],[47,10,47,11],[48,10,48,11],[41,10,41,11],[31,10,31,11],[25,10,25,11],[36,10,36,11],[29,10,29,11],[30,10,30,11],[32,10,32,11],[33,10,33,11],[34,10,34,11],[16,10,16,11],[17,10,17,11],[10,10,10,11],[21,10,21,11],[11,10,11,11],[12,10,12,11],[13,10,13,11],[14,10,14,11],[15,10,15,11],[18,10,18,11],[20,10,20,11],[19,10,19,11],[22,10,22,11],[40,14,40,17],[42,14,42,17],[56,14,56,17],[37,10,37,11],[35,10,35,11],[28,10,28,11],[26,10,26,11],[27,10,27,11],[23,10,23,11],[43,10,43,11],[42,10,42,11],[24,10,24,11],[38,10,38,11],[39,10,39,11],[40,10,40,11],[57,14,57,17],[46,14,48,17],[26,14,27,17],[0,14,1,18],[3,15,3,17],[9,15,9,17],[19,14,20,17],[13,14,13,17],[14,14,14,17],[15,14,16,17],[17,14,18,17],[29,14,32,17]]}
[null,null,null,null,null,null,null,null,null,null,"Weekly Timesheet",null,null,null,"By signing this timesheet I certify that I have carefully reviewed this timesheet and that the hours reported on this timesheet, including all dates, start and stop times, activity type, tasks, work locations and comments, are accurate. ",null,null,null,null,null,null,null,null,null,null,null,{"$f":"IF(+PassFail=\"F\",(PassFail&_&User_Name&_&WeekEnding&_&\"TH\"&_&Total_hours&_&\"NH\"&_&Normal_Hrs&_&\"C19H\"&_&COVID19Hrs&_&\"OH\"&_&OtherHrs&_&\"C\"&_&J9&_&+L6&_&L10&_&P8&_&Validation!M10&_&Validation!M17&_),(User_Name&_&WeekEnding&_&\"TH\"&_&Total_hours&_&\"NH\"&_&Normal_Hrs&_&\"C19H\"&_&COVID19Hrs&_&\"OH\"&_&OtherHrs&_&\"C\"&_&J9&_&+L6&_&L10&_&P8&_&Validation!M10&_&Validation!M17&_))","v":"F___TH_0_NH_0_C19H_0_OH_0_C_0_Fail_Pass_Fail_0_0_"},null,null,null,null,null,null,null,null,"Timesheet successfully saved",null,null,null,null,null,null,null,null,null,"Click Here to Return to Timesheet"]
[null,null,null,null,null,null,null,null,null,null,"Week Start Date",{"$f":"+L3-6","v":-6}]
[null,"©  2020 IEM. All Rights Reserved. (5/07/2020)",null,null,null,null,null,null,null,null,"Week End Date"]
[null,"User Name",null,null,null,null,null,null,null,null,"Total Hours",{"$f":"ROUND(SUM(E12:E2000),2)","v":0}]
[null,"Employee Name",{"$f":"IFERROR(VLOOKUP($C$4,Source!$B$2:$W993,15,FALSE),\"\")","v":""},null,null,null,null,null,null,{"$f":"IF(VLOOKUP(WeekEnding,Validation!$B$2:$C$1992,2,FALSE)=\"No\",1,2)","v":{"$error":"#N/A"}},"Expected Total Hours",{"$f":"IFERROR(INDEX(Source!$V$2:$W$1992,MATCH(User_Name,Source!$B$2:$B$1992,0),+J5),\"\")","v":""}]
[null,"Assigned Location",{"$f":"IFERROR(VLOOKUP($C$4,Source!$B$2:$W993,9,FALSE),\"\")","v":""},null,null,null,null,null,null,null,"Expected Total Hours = Total Hours",{"$f":"IFERROR(IF(L5=Total_hours,\"Pass\",IF(L5-Total_hours<0.25,\"Pass\",\"Fail\")),\"Fail\")","v":"Fail"},null,null,"Type Signature"]
[null,"Employee e-mail",{"$f":"IFERROR(VLOOKUP($C$4,Source!$B$2:$W993,5,FALSE),\"\")","v":""},null,null,null,null,null,null,null,"Total Normal Hours",{"$f":"ROUND(SUMIF(F12:F2000,Validation!H3,' '!E12:E2000),2)","v":0}]
[null,"Manager",{"$f":"IFERROR(VLOOKUP($C$4,Source!$B$2:$W993,13,FALSE),\"\")","v":""},null,null,null,null,null,null,{"$f":"IF(OR(L6=\"Fail\",L10=\"Fail\",P8=\"Fail\"),\"F\",\"\")","v":"F"},"Total COVID-19 Hours",{"$f":"ROUND(SUMIF(F12:F2001,Validation!H5,' '!E12:E2001),2)","v":0},null,null,"Signed Timesheet",{"$f":"IF(P6=\"\",\"Fail\",\"Pass\")","v":"Fail"}]
[null,null,null,null,null,null,null,null,null,{"$f":"51-Comment","v":0},"Total Other Hours",{"$f":"ROUND(SUMIF(F12:F2002,Validation!H6,' '!E12:E2002),2)","v":0}]
[null,null,null,null,null,null,null,null,null,{"$f":"COUNTIF(K12:K62,\"\")","v":51},"Activity Hours Equal Total Hours",{"$f":"IF(SUM(L7:L9)=Total_hours,\"Pass\",\"Fail\")","v":"Pass"},null,null,"Date Signed",{"$f":"TODAY()","v":"2020-05-07"}]
[null,"Date","Start Time","End Time","Total Time","Activity Type","Task",null,null,"Work Location","Comments",null,"Disaster Related",null,"Instructions"]
[null,null,null,null,{"$f":"(+D12-C12)*24","v":0},null,null,null,null,null,{"$f":"IF(OR(F12=\"COVID-19\",F12=\"Other\"),\"Comment Explaining COVID-19 or Other Activity is Required\",\"\")","v":""},null,null,null,"Note:  If you get a Macro Disabled Notice - Enable Macros "]
[null,null,null,null,0,null,null,null,null,null,{"$f":"IF(OR(F13=\"COVID-19\",F13=\"Other\"),\"Comment Explaining COVID-19 or Other Activity is Required\",\"\")","v":""},null,null,null,"1. Select Week ends date from the drop down menu."]
[null,null,null,null,0,null,null,null,null,null,{"$f":"IF(OR(F14=\"COVID-19\",F14=\"Other\"),\"Comment Explaining COVID-19 or Other Activity is Required\",\"\")","v":""},null,null,null,"2. Type User Name or select from dropdown menu"]
[null,null,null,null,0,null,null,null,null,null,{"$f":"IF(OR(F15=\"COVID-19\",F15=\"Other\"),\"Comment Explaining COVID-19 or Other Activity is Required\",\"\")","v":""},null,null,null,"3. For each day worked, enter DATE worked"]
[null,null,null,null,0,null,null,null,null,null,{"$f":"IF(OR(F16=\"COVID-19\",F16=\"Other\"),\"Comment Explaining COVID-19 or Other Activity is Required\",\"\")","v":""},null,null,null,"4. Enter START TIME and END TIME \nFormat: Hour:Minute AM or PM\nNote if you enter a day prior to the start or after the end dates you will get an error message."]
[null,null,null,null,0,null,null,null,null,null,""]
[null,null,null,null,0,null,null,null,null,null,"",null,null,null,"5. Enter ACTIVITY TYPE and TASK worked and the WORK LOCATION on for said date and time period"]
[null,null,null,null,0,null,null,null,null,null,""]
[null,null,null,null,0,null,null,null,null,null,"",null,null,null,"6. Enter COMMENTS describing the nature of the activity for all COVID-19 and OTHER Activity Types."]
[null,null,null,null,0,null,null,null,null,null,""]
[null,null,null,null,0,null,null,null,null,null,{"$f":"IF(OR(F22=\"COVID-19\",F22=\"Other\"),\"Comment Explaining COVID-19 or Other Activity is Required\",\"\")","v":""},null,null,null,"7. Review timesheet to make sure:\n a.  There are no errors (e.g., # Value or amounts > 8 hours (check AM & PM designations); \n b. cells J6 and J10 are green and read Pass"]
[null,null,null,null,0,null,null,null,null,null,{"$f":"IF(OR(F23=\"COVID-19\",F23=\"Other\"),\"Comment Explaining COVID-19 or Other Activity is Required\",\"\")","v":""}]
[null,null,null,null,0,null,null,null,null,null,""]
[null,null,null,null,0,null,null,null,null,null,"",null,null,null,"8. Press CTRL+s to Save TIMESHEET to your desktop (note this is small \"s\" not capital \"S\") \n"]
[null,null,null,null,0,null,null,null,null,null,"",null,null,null,{"$f":"User_Name&_&WeekEnding&_&\"Daily Save\"","v":"__Daily Save"}]
[null,null,null,null,0,null,null,null,null,null,{"$f":"IF(OR(F27=\"COVID-19\",F27=\"Other\"),\"Comment Explaining COVID-19 or Other Activity is Required\",\"\")","v":""},null,null,null,"                                           At the End of the Week:\n9. Sign the TIMESHEET (after reviewing the certification) by typing your name in cell N6."]
[null,null,null,null,0,null,null,null,null,null,""]
[null,null,null,null,0,null,null,null,null,null,"",null,null,null,"10. Press CTR +e to Execute and Submit TIMESHEET (note this is small \"e\" not capital \"E\")"]
[null,null,null,null,0,null,null,null,null,null,{"$f":"IF(OR(F30=\"COVID-19\",F30=\"Other\"),\"Comment Explaining COVID-19 or Other Activity is Required\",\"\")","v":""},null,null,null,{"$f":"IF(+PassFail=\"F\",(PassFail&_&User_Name&_&WeekEnding&_&\"TH\"&_&Total_hours&_&\"NH\"&_&Normal_Hrs&_&\"C19H\"&_&COVID19Hrs&_&\"OH\"&_&OtherHrs&_&\"C\"&_&J9&_&+L6&_&L10&_&P8&_&Validation!M10&_&Validation!M17&_),(User_Name&_&WeekEnding&_&\"TH\"&_&Total_hours&_&\"NH\"&_&Normal_Hrs&_&\"C19H\"&_&COVID19Hrs&_&\"OH\"&_&OtherHrs&_&\"C\"&_&J9&_&+L6&_&L10&_&P8&_&Validation!M10&_&Validation!M17&_))","v":"F___TH_0_NH_0_C19H_0_OH_0_C_0_Fail_Pass_Fail_0_0_"}]
[null,null,null,null,0,null,null,null,null,null,{"$f":"IF(OR(F31=\"COVID-19\",F31=\"Other\"),\"Comment Explaining COVID-19 or Other Activity is Required\",\"\")","v":""}]
[null,null,null,null,0,null,null,null,null,null,""]
[null,null,null,null,0,null,null,null,null,null,""]
[null,null,null,null,0,null,null,null,null,null,""]
[null,null,null,null,0,null,null,null,null,null,""]
[null,null,null,null,0,null,null,null,null,null,""]
[null,null,null,null,0,null,null,null,null,null,""]
[null,null,null,null,0,null,null,null,null,null,{"$f":"IF(OR(F38=\"COVID-19\",F38=\"Other\"),\"Comment Explaining COVID-19 or Other Activity is Required\",\"\")","v":""}]
[null,null,null,null,0,null,null,null,null,null,{"$f":"IF(OR(F39=\"COVID-19\",F39=\"Other\"),\"Comment Explaining COVID-19 or Other Activity is Required\",\"\")","v":""}]
[null,null,null,null,0,null,null,null,null,null,""]
[null,null,null,null,0,null,null,null,null,null,""]
[null,null,null,null,0,null,null,null,null,null,""]
[null,null,null,null,0,null,null,null,null,null,""]
[null,null,null,null,0,null,null,null,null,null,""]
[null,null,null,null,0,null,null,null,null,null,""]
[null,null,null,null,0,null,null,null,null,null,{"$f":"IF(OR(F46=\"COVID-19\",F46=\"Other\"),\"Comment Explaining COVID-19 or Other Activity is Required\",\"\")","v":""}]
[null,null,null,null,0,null,null,null,null,null,{"$f":"IF(OR(F47=\"COVID-19\",F47=\"Other\"),\"Comment Explaining COVID-19 or Other Activity is Required\",\"\")","v":""}]
[null,null,null,null,0,null,null,null,null,null,""]
[null,null,null,null,0,null,null,null,null,null,""]
[null,null,null,null,0,null,null,null,null,null,""]
[null,null,null,null,0,null,null,null,null,null,""]
[null,null,null,null,0,null,null,null,null,null,""]
[null,null,null,null,0,null,null,null,null,null,""]
[null,null,null,null,0,null,null,null,null,null,""]
[null,null,null,null,0,null,null,null,null,null,{"$f":"IF(OR(F55=\"COVID-19\",F55=\"Other\"),\"Comment Explaining COVID-19 or Other Activity is Required\",\"\")","v":""}]
[null,null,null,null,0,null,null,null,null,null,{"$f":"IF(OR(F56=\"COVID-19\",F56=\"Other\"),\"Comment Explaining COVID-19 or Other Activity is Required\",\"\")","v":""}]
[null,null,null,null,0,null,null,null,null,null,""]
[null,null,null,null,0,null,null,null,null,null,""]
[null,null,null,null,0,null,null,null,null,null,""]
[null,null,null,null,0,null,null,null,null,null,""]
[null,null,null,null,0,null,null,null,null,null,""]
[null,null,null,null,{"$f":"(+D62-C62)*24","v":0},null,null,null,null,null,{"$f":"IF(OR(F62=\"COVID-19\",F62=\"Other\"),\"Comment Explaining COVID-19 or Other Activity is Required\",\"\")","v":""}]

{"sheet":"Validation","index":1,"n_rows":878,"n_cols":15,"rows_kept":878,"cut":false,"hidden":true,"merged":[[0,1,0,5]]}
[null,"NOTE ROW 3 IS TEST ROW & HIDDEN",null,null,null,null,14,15,16,17,18,null,{"$f":"+' '!$L$4","v":0},{"$f":"+M1=M2","v":true},"_"]
[null,"Week Ending","Holiday Week","Normal Week Expected Total Hours","Holiday Week Expected Total Hours","Column1",null,"Activity Type",null,"Activity Name","Work Location","_",{"$f":"ROUND(SUM(M4:M20),2)","v":0}]
[null,null,null,38,30.4,null,null,"Normal Assigned Duties","a","COVID-19","Onsite","a"]
[null,null,null,20,16,null,null,"Normal Assigned Duties","a","COVID-19","Onsite","a",{"$f":"ROUND(SUMIF(' '!$G$12:$G$62,Validation!J4,' '!$E$12:$E$62),2)","v":0}]
[null,"2020-03-07","No",40,32,null,null,"COVID-19","b","Curriculum work","Work from home","b",{"$f":"ROUND(SUMIF(' '!$G$12:$G$62,Validation!J5,' '!$E$12:$E$62),2)","v":0}]
[null,{"$f":"+B5+7","v":"2020-03-14"},"No",32.5,26,null,null,"Other","c","Drivers: wash bus","Transportation","c",{"$f":"ROUND(SUMIF(' '!$G$12:$G$62,Validation!J6,' '!$E$12:$E$62),2)","v":0}]
[null,{"$f":"+B6+7","v":"2020-03-21"},"No",40,32,null,null,null,"d","Email","Leave Submitted","d",{"$f":"ROUND(SUMIF(' '!$G$12:$G$62,Validation!J7,' '!$E$12:$E$62),2)","v":0}]
[null,"2020-03-28","No",20,16,null,null,null,"e","Food Service",null,"e",{"$f":"ROUND(SUMIF(' '!$G$12:$G$62,Validation!J8,' '!$E$12:$E$62),2)","v":0}]
[null,"2020-04-04","No",38,30.4,null,null,null,"f","Grading",null,"f",{"$f":"ROUND(SUMIF(' '!$G$12:$G$62,Validation!J9,' '!$E$12:$E$62),2)","v":0}]
[null,"2020-04-11","Yes",40,32,null,null,null,"g","Leave submitted",null,"g",{"$f":"ROUND(SUMIF(' '!$G$12:$G$62,Validation!J10,' '!$E$12:$E$62),2)","v":0}]
[null,"2020-04-18","No",40,32,null,null,null,"h","Lunch/Break",null,"h",{"$f":"ROUND(SUMIF(' '!$G$12:$G$62,Validation!J11,' '!$E$12:$E$62),2)","v":0}]
[null,"2020-04-25","No",40,32,null,null,null,"i","Meeting Other",null,"i",{"$f":"ROUND(SUMIF(' '!$G$12:$G$62,Validation!J12,' '!$E$12:$E$62),2)","v":0}]
[null,"2020-05-02","No",40,32,null,null,null,"j","Other",null,"j",{"$f":"ROUND(SUMIF(' '!$G$12:$G$62,Validation!J13,' '!$E$12:$E$62),2)","v":0}]
[null,"2020-05-09","No",30,24,null,null,null,"k","Phone Call(s)",null,"k",{"$f":"ROUND(SUMIF(' '!$G$12:$G$62,Validation!J14,' '!$E$12:$E$62),2)","v":0}]
[null,"2020-05-16","No",38,30.4,null,null,null,"l","Pick up materials at school",null,"l",{"$f":"ROUND(SUMIF(' '!$G$12:$G$62,Validation!J15,' '!$E$12:$E$62),2)","v":0}]
[null,"2020-05-23","No",35,28,null,null,null,"m","Planning",null,"m",{"$f":"ROUND(SUMIF(' '!$G$12:$G$62,Validation!J16,' '!$E$12:$E$62),2)","v":0}]
[null,"2020-05-30","Yes",40,32,null,null,null,"n","Professional Development",null,"n",{"$f":"ROUND(SUMIF(' '!$G$12:$G$62,Validation!J17,' '!$E$12:$E$62),2)","v":0}]
[null,"2020-06-06","No",25,20,null,null,null,"o","Scanning",null,"o",{"$f":"ROUND(SUMIF(' '!$G$12:$G$62,Validation!J18,' '!$E$12:$E$62),2)","v":0}]
[null,"2020-06-13","No",37,29.6,null,null,null,"p","Skyward",null,"p",{"$f":"ROUND(SUMIF(' '!$G$12:$G$62,Validation!J19,' '!$E$12:$E$62),2)","v":0}]
[null,"2020-06-20","No",40,32,null,null,null,"q","Tech Services",null,"q",{"$f":"ROUND(SUMIF(' '!$G$12:$G$62,Validation!J20,' '!$E$12:$E$62),2)","v":0}]
[null,"2020-06-27","No",38,30.4]
[null,"2020-07-04","Yes",35,28]
[null,"2020-07-11","No",38,30.4]
[null,"2020-07-18","No",40,32]
[null,"2020-07-25","No",38,30.4]
[null,"2020-08-01","No",40,32]
[null,"2020-08-08","No",40,32]
[null,"2020-08-15","No",38,30.4]
[null,"2020-08-22","No",40,32]
[null,"2020-08-29","No",38,30.4]
[null,"2020-09-05","No",38,30.4]
[null,"2020-09-12","No",38,30.4]
[null,"2020-09-19","No",38,30.4]
[null,"2020-09-26","No",38,30.4]
[null,"2020-10-03","No",38,30.4]
[null,"2020-10-10","No",37,29.6]
[null,"2020-10-17","No",25,20]
[null,"2020-10-24","No",38,30.4]
[null,"2020-10-31","No",38,30.4]
[null,"2020-11-07","No",30,24]
[null,"2020-11-14","No",38,30.4]
[null,"2020-11-21","No",38,30.4]
[null,"2020-11-28","No",40,32]
[null,"2020-12-05","No",38,30.4]
[null,"2020-12-12","No",25,20]
[null,"2020-12-19","No",40,32]
[null,"2020-12-26","No",38,30.4]
[null,null,null,38,30.4]
[null,null,null,38,30.4]
[null,null,null,38,30.4]
[null,null,null,26.25,21]
[null,null,null,26.25,21]
[null,null,null,40,32]
[null,null,null,38,30.4]
[null,null,null,35,28]
[null,null,null,38,30.4]
[null,null,null,35,28]
[null,null,null,40,32]
[null,null,null,38,30.4]
[null,null,null,35,28]
[null,null,null,40,32]
[null,null,null,38,30.4]
[null,null,null,38,30.4]
[null,null,null,38,30.4]
[null,null,null,35,28]
[null,null,null,40,32]
[null,null,null,35,28]
[null,null,null,40,32]
[null,null,null,38,30.4]
[null,null,null,38,30.4]
[null,null,null,20,16]
[null,null,null,{"$f":"7*5","v":35},{"$f":"7*4","v":28}]
[null,null,null,35,28]
[null,null,null,21.25,17]
[null,null,null,38,30.4]
[null,null,null,35,28]
[null,null,null,35,28]
[null,null,null,38,30.4]
[null,null,null,35,28]
[null,null,null,38,30.4]
[null,null,null,35,28]
[null,null,null,40,32]
[null,null,null,38,30.4]
[null,null,null,40,32]
[null,null,null,35,28]
[null,null,null,35,28]
[null,null,null,38,30.4]
[null,null,null,38,30.4]
[null,null,null,28.75,23]
[null,null,null,38,30.4]
[null,null,null,38,30.4]
[null,null,null,40,32]
[null,null,null,40,32]
[null,null,null,25,20]
[null,null,null,35,28]
[null,null,null,38,30.4]
[null,null,null,35,28]
[null,null,null,35,28]
[null,null,null,40,32]
[null,null,null,35,28]
[null,null,null,35,28]
[null,null,null,38,30.4]
[null,null,null,20,16]
[null,null,null,35,28]
[null,null,null,38,30.4]
[null,null,null,38,30.4]
[null,null,null,38,30.4]
[null,null,null,35,28]
[null,null,null,35,28]
[null,null,null,38,30.4]
[null,null,null,35,28]
[null,null,null,38,30.4]
[null,null,null,20,16]
[null,null,null,35,28]
[null,null,null,20,16]
[null,null,null,38,30.4]
[null,null,null,25,20]
[null,null,null,38,30.4]
[null,null,null,38,30.4]
[null,null,null,40,32]
[null,null,null,40,32]
[null,null,null,40,32]
[null,null,null,20,16]
[null,null,null,40,32]
[null,null,null,40,32]
[null,null,null,40,32]
[null,null,null,38,30.4]
[null,null,null,38,30.4]
[null,null,null,40,32]
[null,null,null,40,32]
[null,null,null,40,32]
[null,null,null,40,32]
[null,null,null,40,32]
[null,null,null,40,32]
[null,null,null,35,28]
[null,null,null,0]
[null,null,null,35,28]
[null,null,null,35,28]
[null,null,null,40,32]
[null,null,null,40,32]
[null,null,null,38,30.4]
[null,null,null,37.5,30]
[null,null,null,40,32]
[null,null,null,38,30.4]
[null,null,null,40,32]
[null,null,null,38,30.4]
[null,null,null,38,30.4]
[null,null,null,38,30.4]
[null,null,null,40,32]
[null,null,null,38,30.4]
[null,null,null,38,30.4]
[null,null,null,38,30.4]
[null,null,null,40,32]
[null,null,null,35,28]
[null,null,null,38,30.4]
[null,null,null,37,29.6]
[null,null,null,40,32]
[null,null,null,38,30.4]
[null,null,null,38,30.4]
[null,null,null,35,28]
[null,null,null,38,30.4]
[null,null,null,35,28]
[null,null,null,38,30.4]
[null,null,null,40,32]
[null,null,null,40,32]
[null,null,null,38,30.4]
[null,null,null,38,30.4]
[null,null,null,38,30.4]
[null,null,null,38,30.4]
[null,null,null,38,30.4]
[null,null,null,25,20]
[null,null,null,38,30.4]
[null,null,null,35,28]
[null,null,null,23.75,19]
[null,null,null,40,32]
[null,null,null,38,30.4]
[null,null,null,38,30.4]
[null,null,null,38,30.4]
[null,null,null,38,30.4]
[null,null,null,38,30.4]
[null,null,null,38,30.4]
[null,null,null,38,30.4]
[null,null,null,35,28]
[null,null,null,35,28]
[null,null,null,35,28]
[null,null,null,40,32]
[null,null,null,40,32]
[null,null,null,38,30.4]
[null,null,null,25,20]
[null,null,null,40,32]
[null,null,null,35,28]
[null,null,null,38,30.4]
[null,null,null,38,30.4]
[null,null,null,35,28]
[null,null,null,25,20]
[null,null,null,38,30.4]
[null,null,null,35,28]
[null,null,null,40,32]
[null,null,null,20,16]
[null,null,null,20,16]
[null,null,null,40,32]
[null,null,null,40,32]
[null,null,null,38,30.4]
[null,null,null,35,28]
[null,null,null,40,32]
[null,null,null,38,30.4]
[null,null,null,28.75,23]
[null,null,null,40,32]
[null,null,null,40,32]
[null,null,null,35,28]
[null,null,null,38,30.4]
[null,null,null,40,32]
[null,null,null,38,30.4]
[null,null,null,40,32]
[null,null,null,38,30.4]
[null,null,null,35,28]
[null,null,null,40,32]
[null,null,null,38,30.4]
[null,null,null,38,30.4]
[null,null,null,40,32]
[null,null,null,27.5,22]
[null,null,null,38,30.4]
[null,null,null,38,30.4]
[null,null,null,35,28]
[null,null,null,40,32]
[null,null,null,40,32]
[null,null,null,40,32]
[null,null,null,38,30.4]
[null,null,null,35,28]
[null,null,null,40,32]
[null,null,null,20,16]
[null,null,null,35,28]
[null,null,null,38,30.4]
[null,null,null,38,30.4]
[null,null,null,35,28]
[null,null,null,40,32]
[null,null,null,38,30.4]
[null,null,null,38,30.4]
[null,null,null,38,30.4]
[null,null,null,40,32]
[null,null,null,38,30.4]
[null,null,null,38,30.4]
[null,null,null,25,20]
[null,null,null,35,28]
[null,null,null,35,28]
[null,null,null,40,32]
[null,null,null,20,16]
[null,null,null,40,32]
[null,null,null,26.25,21]
[null,null,null,23.75,19]
[null,null,null,38,30.4]
[null,null,null,38,30.4]
[null,null,null,20,16]
[null,null,null,20,16]
[null,null,null,40,32]
[null,null,null,38,30.4]
[null,null,null,20,16]
[null,null,null,38,30.4]
[null,null,null,40,32]
[null,null,null,40,32]
[null,null,null,38,30.4]
[null,null,null,35,28]
[null,null,null,38,30.4]
[null,null,null,27.5,22]
[null,null,null,35,28]
[null,null,null,38,30.4]
[null,null,null,38,30.4]
[null,null,null,38,30.4]
[null,null,null,38,30.4]
[null,null,null,35,28]
[null,null,null,30,24]
[null,null,null,23.75,19]
[null,null,null,38,30.4]
[null,null,null,38,30.4]
[null,null,null,38,30.4]
[null,null,null,35,28]
[null,null,null,40,32]
[null,null,null,40,32]
[null,null,null,30,24]
[null,null,null,40,32]
[null,null,null,20,16]
[null,null,null,38,30.4]
[null,null,null,38,30.4]
[null,null,null,35,28]
[null,null,null,38,30.4]
[null,null,null,38,30.4]
[null,null,null,35,28]
[null,null,null,40,32]
[null,null,null,38,30.4]
[null,null,null,38,30.4]
[null,null,null,38,30.4]
[null,null,null,38,30.4]
[null,null,null,38,30.4]
[null,null,null,38,30.4]
[null,null,null,35,28]
[null,null,null,20,16]
[null,null,null,20,16]
[null,null,null,40,32]
[null,null,null,38,30.4]
[null,null,null,38,30.4]
[null,null,null,38,30.4]
[null,null,null,38,30.4]
[null,null,null,40,32]
[null,null,null,38,30.4]
[null,null,null,21,16.8]
[null,null,null,35,28]
[null,null,null,38,30.4]
[null,null,null,40,32]
[null,null,null,0]
[null,null,null,38,30.4]
[null,null,null,38,30.4]
[null,null,null,38,30.4]
[null,null,null,40,32]
[null,null,null,26.25,21]
[null,null,null,40,32]
[null,null,null,38,30.4]
[null,null,null,38,30.4]
[null,null,null,35,28]
[null,null,null,38,30.4]
[null,null,null,35,28]
[null,null,null,38,30.4]
[null,null,null,30,24]
[null,null,null,40,32]
[null,null,null,20,16]
[null,null,null,35,28]
[null,null,null,0]
[null,null,null,35,28]
[null,null,null,40,32]
[null,null,null,40,32]
[null,null,null,38,30.4]
[null,null,null,38,30.4]
[null,null,null,38,30.4]
[null,null,null,40,32]
[null,null,null,26.25,21]
[null,null,null,38,30.4]
[null,null,null,38,30.4]
[null,null,null,35,28]
[null,null,null,38,30.4]
[null,null,null,38,30.4]
[null,null,null,38,30.4]
[null,null,null,40,32]
[null,null,null,38,30.4]
[null,null,null,40,32]
[null,null,null,40,32]
[null,null,null,40,32]
[null,null,null,35,28]
[null,null,null,40,32]
[null,null,null,38,30.4]
[null,null,null,40,32]
[null,null,null,40,32]
[null,null,null,38,30.4]
[null,null,null,40,32]
[null,null,null,38,30.4]
[null,null,null,40,32]
[null,null,null,40,32]
[null,null,null,38,30.4]
[null,null,null,38,30.4]
[null,null,null,40,32]
[null,null,null,40,32]
[null,null,null,38,30.4]
[null,null,null,38,30.4]
[null,null,null,40,32]
[null,null,null,40,32]
[null,null,null,38,30.4]
[null,null,null,38,30.4]
[null,null,null,38,30.4]
[null,null,null,40,32]
[null,null,null,38,30.4]
[null,null,null,38,30.4]
[null,null,null,40,32]
[null,null,null,38,30.4]
[null,null,null,26.25,21]
[null,null,null,40,32]
[null,null,null,38,30.4]
[null,null,null,40,32]
[null,null,null,40,32]
[null,null,null,38,30.4]
[null,null,null,38,30.4]
[null,null,null,20,16]
[null,null,null,38,30.4]
[null,null,null,38,30.4]
[null,null,null,38,30.4]
[null,null,null,40,32]
[null,null,null,38,30.4]
[null,null,null,38,30.4]
[null,null,null,38,30.4]
[null,null,null,38,30.4]
[null,null,null,40,32]
[null,null,null,38,30.4]
[null,null,null,38,30.4]
[null,null,null,20,16]
[null,null,null,40,32]
[null,null,null,38,30.4]
[null,null,null,40,32]
[null,null,null,40,32]
[null,null,null,40,32]
[null,null,null,20,16]
[null,null,null,40,32]
[null,null,null,38,30.4]
[null,null,null,38,30.4]
[null,null,null,38,30.4]
[null,null,null,20,16]
[null,null,null,40,32]
[null,null,null,35,28]
[null,null,null,40,32]
[null,null,null,35,28]
[null,null,null,40,32]
[null,null,null,14,11.2]
[null,null,null,40,32]
[null,null,null,38,30.4]
[null,null,null,38,30.4]
[null,null,null,38,30.4]
[null,null,null,35,28]
[null,null,null,38,30.4]
[null,null,null,20,16]
[null,null,null,35,28]
[null,null,null,35,28]
[null,null,null,38,30.4]
[null,null,null,38,30.4]
[null,null,null,38,30.4]
[null,null,null,38,30.4]
[null,null,null,40,32]
[null,null,null,35,28]
[null,null,null,40,32]
[null,null,null,22.5,18]
[null,null,null,40,32]
[null,null,null,26.25,21]
[null,null,null,26.25,21]
[null,null,null,0]
[null,null,null,40,32]
[null,null,null,40,32]
[null,null,null,22.5,18]
[null,null,null,38,30.4]
[null,null,null,38,30.4]
[null,null,null,35,28]
[null,null,null,40,32]
[null,null,null,20,16]
[null,null,null,38,30.4]
[null,null,null,38,30.4]
[null,null,null,38,30.4]
[null,null,null,38,30.4]
[null,null,null,38,30.4]
[null,null,null,38,30.4]
[null,null,null,38,30.4]
[null,null,null,38,30.4]
[null,null,null,38,30.4]
[null,null,null,40,32]
[null,null,null,35,28]
[null,null,null,38,30.4]
[null,null,null,38,30.4]
[null,null,null,21.25,17]
[null,null,null,35,28]
[null,null,null,38,30.4]
[null,null,null,38,30.4]
[null,null,null,38,30.4]
[null,null,null,38,30.4]
[null,null,null,35,28]
[null,null,null,38,30.4]
[null,null,null,38,30.4]
[null,null,null,35,28]
[null,null,null,38,30.4]
[null,null,null,38,30.4]
[null,null,null,40,32]
[null,null,null,40,32]
[null,null,null,38,30.4]
[null,null,null,40,32]
[null,null,null,38,30.4]
[null,null,null,35,28]
[null,null,null,25,20]
[null,null,null,38,30.4]
[null,null,null,38,30.4]
[null,null,null,38,30.4]
[null,null,null,38,30.4]
[null,null,null,38,30.4]
[null,null,null,38,30.4]
[null,null,null,38,30.4]
[null,null,null,38,30.4]
[null,null,null,40,32]
[null,null,null,40,32]
[null,null,null,38,30.4]
[null,null,null,40,32]
[null,null,null,35,28]
[null,null,null,35,28]
[null,null,null,40,32]
[null,null,null,38,30.4]
[null,null,null,38,30.4]
[null,null,null,40,32]
[null,null,null,40,32]
[null,null,null,38,30.4]
[null,null,null,38,30.4]
[null,null,null,38,30.4]
[null,null,null,35,28]
[null,null,null,20,16]
[null,null,null,38,30.4]
[null,null,null,40,32]
[null,null,null,40,32]
[null,null,null,40,32]
[null,null,null,40,32]
[null,null,null,38,30.4]
[null,null,null,40,32]
[null,null,null,40,32]
[null,null,null,38,30.4]
[null,null,null,35,28]
[null,null,null,38,30.4]
[null,null,null,37,29.6]
[null,null,null,35,28]
[null,null,null,40,32]
[null,null,null,40,32]
[null,null,null,40,32]
[null,null,null,38,30.4]
[null,null,null,38,30.4]
[null,null,null,38,30.4]
[null,null,null,35,28]
[null,null,null,35,28]
[null,null,null,40,32]
[null,null,null,38,30.4]
[null,null,null,40,32]
[null,null,null,38,30.4]
[null,null,null,40,32]
[null,null,null,40,32]
[null,null,null,38,30.4]
[null,null,null,38,30.4]
[null,null,null,38,30.4]
[null,null,null,40,32]
[null,null,null,38,30.4]
[null,null,null,35,28]
[null,null,null,38,30.4]
[null,null,null,35,28]
[null,null,null,40,32]
[null,null,null,38,30.4]
[null,null,null,40,32]
[null,null,null,38,30.4]
[null,null,null,38,30.4]
[null,null,null,35,28]
[null,null,null,38,30.4]
[null,null,null,35,28]
[null,null,null,38,30.4]
[null,null,null,38,30.4]
[null,null,null,38,30.4]
[null,null,null,20,16]
[null,null,null,35,28]
[null,null,null,38,30.4]
[null,null,null,30,24]
[null,null,null,25,20]
[null,null,null,40,32]
[null,null,null,38,30.4]
[null,null,null,38,30.4]
[null,null,null,30,24]
[null,null,null,20,16]
[null,null,null,20,16]
[null,null,null,20,16]
[null,null,null,38,30.4]
[null,null,null,38,30.4]
[null,null,null,38,30.4]
[null,null,null,38,30.4]
[null,null,null,40,32]
[null,null,null,40,32]
[null,null,null,40,32]
[null,null,null,38,30.4]
[null,null,null,35,28]
[null,null,null,40,32]
[null,null,null,40,32]
[null,null,null,35,28]
[null,null,null,38,30.4]
[null,null,null,38,30.4]
[null,null,null,26.25,21]
[null,null,null,40,32]
[null,null,null,35,28]
[null,null,null,38,30.4]
[null,null,null,40,32]
[null,null,null,38,30.4]
[null,null,null,38,30.4]
[null,null,null,38,30.4]
[null,null,null,40,32]
[null,null,null,38,30.4]
[null,null,null,38,30.4]
[null,null,null,35,28]
[null,null,null,38,30.4]
[null,null,null,40,32]
[null,null,null,38,30.4]
[null,null,null,40,32]
[null,null,null,38,30.4]
[null,null,null,40,32]
[null,null,null,38,30.4]
[null,null,null,40,32]
[null,null,null,38,30.4]
[null,null,null,38,30.4]
[null,null,null,38,30.4]
[null,null,null,35,28]
[null,null,null,38,30.4]
[null,null,null,38,30.4]
[null,null,null,38,30.4]
[null,null,null,26.25,21]
[null,null,null,38,30.4]
[null,null,null,35,28]
[null,null,null,38,30.4]
[null,null,null,35,28]
[null,null,null,40,32]
[null,null,null,38,30.4]
[null,null,null,20,16]
[null,null,null,35,28]
[null,null,null,40,32]
[null,null,null,40,32]
[null,null,null,35,28]
[null,null,null,40,32]
[null,null,null,35,28]
[null,null,null,40,32]
[null,null,null,28.75,23]
[null,null,null,30,24]
[null,null,null,26.25,21]
[null,null,null,35,28]
[null,null,null,25,20]
[null,null,null,38,30.4]
[null,null,null,40,32]
[null,null,null,38,30.4]
[null,null,null,38,30.4]
[null,null,null,38,30.4]
[null,null,null,35,28]
[null,null,null,35,28]
[null,null,null,0,0]
[null,null,null,38,30.4]
[null,null,null,38,30.4]
[null,null,null,38,30.4]
[null,null,null,38,30.4]
[null,null,null,38,30.4]
[null,null,null,38,30.4]
[null,null,null,35,28]
[null,null,null,38,30.4]
[null,null,null,35,28]
[null,null,null,38,30.4]
[null,null,null,0,0]
[null,null,null,37,29.6]
[null,null,null,40,32]
[null,null,null,38,30.4]
[null,null,null,35,28]
[null,null,null,40,32]
[null,null,null,38,30.4]
[null,null,null,35,28]
[null,null,null,35,28]
[null,null,null,38,30.4]
[null,null,null,38,30.4]
[null,null,null,35,28]
[null,null,null,38,30.4]
[null,null,null,38,30.4]
[null,null,null,24,19.2]
[null,null,null,40,32]
[null,null,null,38,30.4]
[null,null,null,38,30.4]
[null,null,null,40,32]
[null,null,null,38,30.4]
[null,null,null,38,30.4]
[null,null,null,28.75,23]
[null,null,null,38,30.4]
[null,null,null,38,30.4]
[null,null,null,38,30.4]
[null,null,null,38,30.4]
[null,null,null,38,30.4]
[null,null,null,35,28]
[null,null,null,38,30.4]
[null,null,null,38,30.4]
[null,null,null,38,30.4]
[null,null,null,38,30.4]
[null,null,null,38,30.4]
[null,null,null,38,30.4]
[null,null,null,35,28]
[null,null,null,38,30.4]
[null,null,null,35,28]
[null,null,null,27.5,22]
[null,null,null,0,0]
[null,null,null,40,32]
[null,null,null,35,28]
[null,null,null,20,16]
[null,null,null,38,30.4]
[null,null,null,38,30.4]
[null,null,null,38,30.4]
[null,null,null,35,28]
[null,null,null,35,28]
[null,null,null,38,30.4]
[null,null,null,40,32]
[null,null,null,35,28]
[null,null,null,38,30.4]
[null,null,null,0]
[null,null,null,40,32]
[null,null,null,40,32]
[null,null,null,40,32]
[null,null,null,35,28]
[null,null,null,40,32]
[null,null,null,40,32]
[null,null,null,40,32]
[null,null,null,35,28]
[null,null,null,22.5,18]
[null,null,null,38,30.4]
[null,null,null,40,32]
[null,null,null,40,32]
[null,null,null,38,30.4]
[null,null,null,38,30.4]
[null,null,null,38,30.4]
[null,null,null,38,30.4]
[null,null,null,40,32]
[null,null,null,38,30.4]
[null,null,null,35,28]
[null,null,null,20,16]
[null,null,null,35,28]
[null,null,null,35,28]
[null,null,null,30,24]
[null,null,null,35,28]
[null,null,null,20,16]
[null,null,null,38,30.4]
[null,null,null,38,30.4]
[null,null,null,30,24]
[null,null,null,35,28]
[null,null,null,38,30.4]
[null,null,null,35,28]
[null,null,null,38,30.4]
[null,null,null,40,32]
[null,null,null,40,32]
[null,null,null,38,30.4]
[null,null,null,40,32]
[null,null,null,40,32]
[null,null,null,40,32]
[null,null,null,40,32]
[null,null,null,35,28]
[null,null,null,38,30.4]
[null,null,null,38,30.4]
[null,null,null,35,28]
[null,null,null,38,30.4]
[null,null,null,35,28]
[null,null,null,38,30.4]
[null,null,null,35,28]
[null,null,null,40,32]
[null,null,null,35,28]
[null,null,null,38,30.4]
[null,null,null,35,28]
[null,null,null,35,28]
[null,null,null,35,28]
[null,null,null,38,30.4]
[null,null,null,38,30.4]
[null,null,null,38,30.4]
[null,null,null,38,30.4]
[null,null,null,38,30.4]
[null,null,null,38,30.4]
[null,null,null,40,32]
[null,null,null,38,30.4]
[null,null,null,38,30.4]
[null,null,null,40,32]
[null,null,null,38,30.4]
[null,null,null,38,30.4]
[null,null,null,38,30.4]
[null,null,null,40,32]
[null,null,null,38,30.4]
[null,null,null,35,28]
[null,null,null,38,30.4]
[null,null,null,38,30.4]
[null,null,null,40,32]
[null,null,null,38,30.4]
[null,null,null,20,16]
[null,null,null,38,30.4]
[null,null,null,38,30.4]
[null,null,null,22.5,18]
[null,null,null,35,28]
[null,null,null,38,30.4]
[null,null,null,38,30.4]
[null,null,null,35,28]
[null,null,null,35,28]
[null,null,null,35,28]
[null,null,null,38,30.4]
[null,null,null,38,30.4]
[null,null,null,38,30.4]
[null,null,null,38,30.4]
[null,null,null,40,32]
[null,null,null,38,30.4]
[null,null,null,26.25,21]
[null,null,null,30,24]
[null,null,null,38,30.4]
[null,null,null,20,16]
[null,null,null,35,28]
[null,null,null,38,30.4]
[null,null,null,35,28]
[null,null,null,35,28]
[null,null,null,38,30.4]
[null,null,null,38,30.4]
[null,null,null,20,16]
[null,null,null,38,30.4]
[null,null,null,38,30.4]
[null,null,null,38,30.4]
[null,null,null,38,30.4]
[null,null,null,35,28]
[null,null,null,20,16]
[null,null,null,40,32]
[null,null,null,40,32]
[null,null,null,38,30.4]
[null,null,null,40,32]
[null,null,null,40,32]
[null,null,null,35,28]
[null,null,null,40,32]
[null,null,null,40,32]
[null,null,null,40,32]
[null,null,null,37,29.6]
[null,null,null,35,28]
[null,null,null,38,30.4]
[null,null,null,38,30.4]
[null,null,null,40,32]
[null,null,null,35,28]
[null,null,null,38,30.4]
[null,null,null,38,30.4]
[null,null,null,38,30.4]
[null,null,null,35,28]
[null,null,null,38,30.4]
[null,null,null,40,32]
[null,null,null,40,32]
[null,null,null,20,16]
[null,null,null,40,32]
[null,null,null,40,32]
[null,null,null,40,32]
[null,null,null,40,32]
[null,null,null,40,32]
[null,null,null,38,30.4]
[null,null,null,38,30.4]
[null,null,null,38,30.4]
[null,null,null,40,32]
[null,null,null,37.5,30]
[null,null,null,35,28]
[null,null,null,35,28]
[null,null,null,38,30.4]
[null,null,null,35,28]
[null,null,null,35,28]
[null,null,null,40,32]
[null,null,null,40,32]
[null,null,null,38,30.4]
[null,null,null,38,30.4]
[null,null,null,35,28]
[null,null,null,38,30.4]
[null,null,null,35,28]
[null,null,null,35,28]
[null,null,null,38,30.4]
[null,null,null,35,28]
[null,null,null,25,20]
[null,null,null,35,28]
[null,null,null,23.75,19]
[null,null,null,20,16]
[null,null,null,38,30.4]
[null,null,null,38,30.4]
[null,null,null,38,30.4]
[null,null,null,35,28]
[null,null,null,0]
[null,null,null,38,30.4]
[null,null,null,40,32]
[null,null,null,38,30.4]
[null,null,null,38,30.4]
[null,null,null,35,28]
[null,null,null,38,30.4]
[null,null,null,38,30.4]
[null,null,null,40,32]
[null,null,null,38,30.4]
[null,null,null,38,30.4]
[null,null,null,40,32]
[null,null,null,40,32]
[null,null,null,38,30.4]
[null,null,null,35,28]
[null,null,null,38,30.4]
[null,null,null,38,30.4]
[null,null,null,40,32]
[null,null,null,35,28]
[null,null,null,38,30.4]
[null,null,null,40,32]
[null,null,null,40,32]
[null,null,null,35,28]
[null,null,null,40,32]
[null,null,null,20,16]
[null,null,null,25,20]
[null,null,null,38,30.4]
[null,null,null,30,24]
[null,null,null,38,30.4]
[null,null,null,20,16]
[null,null,null,40,32]
[null,null,null,38,30.4]
[null,null,null,38,30.4]
[null,null,null,38,30.4]

{"sheet":"Source","index":2,"n_rows":879,"n_cols":23,"rows_kept":879,"cut":false,"hidden":false,"merged":[]}
["Nalphakey","User Name","First Name","Middle Name","Last Name","E-mail Address","Emp Type Code","Employee Type Description","Building Code","Building Code Desc","Position Plan","Position Assignment Desc","Position Description","Position Supervisor Name","Position Supervisor Namekey","Full Name","Full Name","Position Hours Per Day","Position Start Date","Position End Date","Position Group Desc","Expected Regular","Expected Holiday"]
["MCFARANN000","A00474","ANNE","G","MCFARLAND","Anne.Mcfarland@SUMTER.K12.FL.US","256","Ins 198 Days","0171","SOUTH SUMTER HI","19-20 Active Plan","TEACHER  LANG AR-SH","CLASS SIZE TEACHER","MCKINNEY CHRISTINA JOHNSON","MCKINCHR001","MCFARLAND, ANNE G","ANNE G MCFARLAND","7:36","08/02/2019","06/02/2020","INSTRUCTIONAL",{"$f":"+R2*24*5","v":38},{"$f":"+R2*24*4","v":30.4}]
["JACKSANN000","A01220","ANNETTE","LEVERN","JACKSON","annette.jackson@sumter.k12.fl.us","358","Non 186 Days","9004","TRANSPORTATION","19-20 Active Plan","BUS DRIVER","BUS DRIVER","FOOTE MICHAEL T","FOOTEMIC000","JACKSON, ANNETTE LEVERN","ANNETTE LEVERN JACKSON","4:00","08/12/2019","05/29/2020","CLASSIFIED",20,16]
["WELLSALI000","A01574","ALICE","A","WELLS","alice.wells@sumter.k12.fl.us","357","Non 188 Days","0031","BUSHNELL ELEMEN","19-20 Active Plan","FOOD SER WORKER","FOOD SERVICE","GOODWIN KELLY MARGARET","GOODWKEL000","WELLS, ALICE A","ALICE A WELLS","8:00","08/09/2019","06/01/2020","CLASSIFIED",40,32]
["HARRIARV000","A01628","ARVIS","D","HARRISON","arvis.harrison@sumter.k12.fl.us","358","Non 186 Days","9004","TRANSPORTATION","19-20 Active Plan","BUS DRIVER","BUS DRIVER","FOOTE MICHAEL T","FOOTEMIC000","HARRISON, ARVIS D","ARVIS D HARRISON","6:30","08/12/2019","05/29/2020","CLASSIFIED",32.5,26]
["JONESANI000","A01991","ANITA","G","JONES","Anita.Jones@SUMTER.K12.FL.US","372","Non 220A Days","9006","TECHNOLOGY DEPT","19-20 Active Plan","TECH  IT","TECHNICIAN TECH SUPPORT","TRICK DAVID E","TRICKDAV000","JONES, ANITA G","ANITA G JONES","8:00","07/12/2019","06/12/2020","CLASSIFIED",40,32]
["WILLIAND000","A02330","ANDREA","TAMARA","WILLIAMS","andrea.williams@sumter.k12.fl.us","358","Non 186 Days","9004","TRANSPORTATION","19-20 Active Plan","BUS DRIVER","BUS DRIVER","FOOTE MICHAEL T","FOOTEMIC000","WILLIAMS, ANDREA TAMARA","ANDREA TAMARA WILLIAMS","4:00","08/12/2019","05/29/2020","CLASSIFIED",20,16]
["BROOKANI000","A02353","ANITA","VONSHEA","BROOKS","Anita.Brooks@Sumter.k12.fl.us","256","Ins 198 Days","0102","WILDWOOD ELEMEN","19-20 Active Plan","TEACHER  THIRD","GENERAL FUND TEACHER","TEMPLE JOHN P","TEMPLJOH000","BROOKS, ANITA VONSHEA","ANITA VONSHEA BROOKS","7:36","08/02/2019","06/02/2020","INSTRUCTIONAL",38,30.4]
["NOWICAMY000","A02542","AMY","RENEE","NOWICKI","Amy.Nowicki@SUMTER.K12.FL.US","451","Con 250 Days","0031","BUSHNELL ELEMEN","19-20 Active Plan","SEC  SCH","SECRETARY SCHOOL","GOODWIN KELLY MARGARET","GOODWKEL000","NOWICKI, AMY RENEE","AMY RENEE NOWICKI","8:00","07/01/2019","06/30/2020","CONFIDENTIAL/CLASSIFIED",40,32]
["GARCIANA000","A02583","ANA BELIA","FAVELA","GARCIA","anabelia.garcia@sumter.k12.fl.us","357","Non 188 Days","0042","SOUTH SUMTER MI","19-20 Active Plan","FOOD SER WORKER","FOOD SERVICE","SUBER WILLIAM ERIC","SUBERWIL000","GARCIA, ANA BELIA FAVELA","ANA BELIA FAVELA GARCIA","8:00","10/01/2019","06/01/2020","CLASSIFIED",40,32]
["PERSIANG000","A02643","ANGILA","K","PERSICO","Angila.Persico@SUMTER.K12.FL.US","253","Ins 218 Days","0161","WILDWOOD M/H","19-20 Active Plan","STAFFING SPEC","STAFFING SPECIALIST","GRAYBEAL JERRY DUANE","GRAYBJER000","PERSICO, ANGILA K","ANGILA K PERSICO","8:00","07/19/2019","06/16/2020","INSTRUCTIONAL",40,32]
["RESENANT000","A02726","ANTONIA",null,"RESENDIZ","antonia.resendiz@sumter.k12.fl.us","351","Non 250 Days","0042","SOUTH SUMTER MI","19-20 Active Plan","CUSTODIAN","CUSTODIAN","CAMP JOEL S","CAMP JOE000","RESENDIZ, ANTONIA","ANTONIA RESENDIZ","8:00","07/01/2019","06/30/2020","CLASSIFIED",40,32]
["TONERANN000","A02747","ANNA",null,"TONER","Anna.Toner@sumter.k12.fl.us","351","Non 250 Days","0171","SOUTH SUMTER HI","19-20 Active Plan","CUSTODIAN","CUSTODIAN","MCKINNEY CHRISTINA JOHNSON","MCKINCHR001","TONER, ANNA","ANNA TONER","6:00","07/01/2019","06/30/2020","CLASSIFIED",30,24]
["ASHLEALL000","A03232","ALLEN","J","ASHLEY","Allen.Ashley@SUMTER.K12.FL.US","256","Ins 198 Days","0181","LAKE PANASOFFKE","19-20 Active Plan","TEACHER COMBIN-ELEMENTARY","CLASS SIZE TEACHER","WADE NICOLE LYNN","WADE NIC000","ASHLEY, ALLEN J","ALLEN J ASHLEY","7:36","08/02/2019","06/02/2020","INSTRUCTIONAL",38,30.4]
["AKINSAMA000","A03274","AMANDA","W","AKINS","Amanda.Akins@SUMTER.K12.FL.US","370","Non 186 Days","0031","BUSHNELL ELEMEN","19-20 Active Plan","PARAPROFESSIONAL  TTL I-E","TITLE I PARA","GOODWIN KELLY MARGARET","GOODWKEL000","AKINS, AMANDA W","AMANDA W AKINS","7:00","10/14/2019","05/29/2020","CLASSIFIED",35,28]
["NORRIAPR000","A03292","APRIL","MAY","NORRIS","APRIL.NORRIS@SUMTER.K12.FL.US","351","Non 250 Days","9001","COUNTY OFFICE","19-20 Active Plan","ACCOUNT CLERK","TECHNICIAN PAYROLL","SMITH DEBORAH WALTERS","SMITHDEB000","NORRIS, APRIL MAY","APRIL MAY NORRIS","8:00","07/01/2019","06/30/2020","CLASSIFIED",40,32]
["BROWNANN000","A03339","ANNETTE","C","BROWN","annette.brown@sumter.k12.fl.us","358","Non 186 Days","9004","TRANSPORTATION","19-20 Active Plan","BUS DRIVER","BUS DRIVER","FOOTE MICHAEL T","FOOTEMIC000","BROWN, ANNETTE C","ANNETTE C BROWN","5:00","01/08/2020","05/29/2020","CLASSIFIED",25,20]
["FUSSEALI000","A03487","ALICIA","DAWN LISCOME","FUSSELL","alicia.fussell@sumter.k12.fl.us","370","Non 186 Days","0171","SOUTH SUMTER HI","19-20 Active Plan","LAB ASSISTANT","VIRTUAL LAB ASSISTANT","MCKINNEY CHRISTINA JOHNSON","MCKINCHR001","FUSSELL, ALICIA DAWN LISCOME","ALICIA DAWN LISCOME FUSSELL","7:24","08/12/2019","05/29/2020","CLASSIFIED",37,29.6]
["HAMILANG000","A03493","ANGELA","MICHELLE","HAMILTON","Angela.Hamilton@SUMTER.K12.FL.US","372","Non 220A Days","9006","TECHNOLOGY DEPT","19-20 Active Plan","TECH  IT","TECHNICIAN TECH SUPPORT","TRICK DAVID E","TRICKDAV000","HAMILTON, ANGELA MICHELLE","ANGELA MICHELLE HAMILTON","8:00","07/12/2019","06/12/2020","CLASSIFIED",40,32]
["RIVERALI000","A03562","ALIMAYU","B","RIVERS","Alimayu.Rivers@SUMTER.K12.FL.US","256","Ins 198 Days","0161","WILDWOOD M/H","19-20 Active Plan","TEACHER  VE","ESE TEACHER","GRAYBEAL JERRY DUANE","GRAYBJER000","RIVERS, ALIMAYU B","ALIMAYU B RIVERS","7:36","08/02/2019","06/02/2020","INSTRUCTIONAL",38,30.4]
["PLUNKANT000","A03647","ANTONIA","OMBAO","PLUNKETT","Antonia.Plunkett@SUMTER.K12.FL.US","370","Non 186 Days","0051","WEBSTER ELEMENT","19-20 Active Plan","PARAPROFESSIONAL  TTL I-E","TITLE I PARA","SHEA MELYNDA BROOKE","SHEA MEL000","PLUNKETT, ANTONIA OMBAO","ANTONIA OMBAO PLUNKETT","7:00","08/12/2019","05/29/2020","CLASSIFIED",35,28]
["FUSSEAMY000","A03699","AMY","KATHRYN","FUSSELL","Amy.Fussell@Sumter.k12.fl.us","256","Ins 198 Days","0171","SOUTH SUMTER HI","19-20 Active Plan","LIB/MED SPEC-SH","MEDIA SPECIALIST","MCKINNEY CHRISTINA JOHNSON","MCKINCHR001","FUSSELL, AMY KATHRYN","AMY KATHRYN FUSSELL","7:36","08/02/2019","06/02/2020","INSTRUCTIONAL",38,30.4]
["UGUR AYS000","A03730","AYSEGUL",null,"UGUR","Aysegul.Ugur@SUMTER.K12.FL.US","762","212 A Intern","0161","WILDWOOD M/H","19-20 Active Plan","ADMIN ASST  SCH","INTERN","GRAYBEAL JERRY DUANE","GRAYBJER000","UGUR, AYSEGUL","AYSEGUL UGUR","8:00","07/25/2019","06/12/2020","INTERN",40,32]
["BRYANANT000","A03740","ANTHONY",null,"BRYANT","Anthony.Bryant@SUMTER.K12.FL.US","256","Ins 198 Days","0171","SOUTH SUMTER HI","19-20 Active Plan","TEACHER  MATH-SH","CLASS SIZE TEACHER","MCKINNEY CHRISTINA JOHNSON","MCKINCHR001","BRYANT, ANTHONY","ANTHONY BRYANT","7:36","08/02/2019","06/02/2020","INSTRUCTIONAL",38,30.4]
["WINTEALI000","A03770","ALISCHA","KAYE","WINTER","alischa.winter@sumter.k12.fl.us","371","Non 196 Days","0051","WEBSTER ELEMENT","19-20 Active Plan","PARAPROFESSIONAL  PK","TITLE I/ PRE K LEAD","SHEA MELYNDA BROOKE","SHEA MEL000","WINTER, ALISCHA KAYE","ALISCHA KAYE WINTER","8:00","08/02/2019","06/02/2020","CLASSIFIED",40,32]
["VAUGHASH000","A03836","ASHLEY","HIAL","VAUGHAN","Ashley.Vaughan@SUMTER.K12.FL.US","651","CNU 250 Days","9001","COUNTY OFFICE","19-20 Active Plan","ADMIN ASST  FISCAL","FINANCE ASSISTANT","SMITH DEBORAH WALTERS","SMITHDEB000","VAUGHAN, ASHLEY HIAL","ASHLEY HIAL VAUGHAN","8:00","07/01/2019","06/30/2020","NON-INSTRUCT NO BARGAINING UNI",40,32]
["NAVE ALL000","A03869","ALLISON","CAMPBELL","NAVE","Allison.Nave@SUMTER.K12.FL.US","275","Ins 202 Days","0051","WEBSTER ELEMENT","19-20 Active Plan","COUNSELOR-E","COUNSELOR","SHEA MELYNDA BROOKE","SHEA MEL000","NAVE, ALLISON CAMPBELL","ALLISON CAMPBELL NAVE","7:36","08/06/2019","06/04/2020","INSTRUCTIONAL",38,30.4]
["FIELDANG000","A03901","ANGELINE","ELETHER","FIELD","Angel.Field@Sumter.k12.fl.us","451","Con 250 Days","0042","SOUTH SUMTER MI","19-20 Active Plan","SEC  SCH","SECRETARY SCHOOL","CAMP JOEL S","CAMP JOE000","FIELD, ANGELINE ELETHER","ANGELINE ELETHER FIELD","8:00","07/01/2019","06/30/2020","CONFIDENTIAL/CLASSIFIED",40,32]
["FORT ASH000","A03986","ASHLEY","NICOLE","FORT","Ashley.Fort@Sumter.k12.fl.us","275","Ins 202 Days","0031","BUSHNELL ELEMEN","19-20 Active Plan","COUNSELOR-E","COUNSELOR","GOODWIN KELLY MARGARET","GOODWKEL000","FORT, ASHLEY NICOLE","ASHLEY NICOLE FORT","7:36","07/31/2019","06/04/2020","INSTRUCTIONAL",38,30.4]
["NELSOANA000","A04023","ANA","CRISTINA","NELSON","Ana.Nelson@SUMTER.K12.FL.US","256","Ins 198 Days","3001","SUMTER PREP","19-20 Active Plan","TEACHER  LANG AR-SH","SAI TEACHER","PRESLEY JAMES CHESTER","PRESLJAM000","NELSON, ANA CRISTINA","ANA CRISTINA NELSON","7:36","10/21/2019","06/02/2020","INSTRUCTIONAL",38,30.4]
["BELLAASH000","A04105","ASHLEY","SADE","BELLAMY","Ashley.Bellamy@Sumter.k12.fl.us","256","Ins 198 Days","0181","LAKE PANASOFFKE","19-20 Active Plan","TEACHER  COMBIN-E","GENERAL FUND TEACHER","WADE NICOLE LYNN","WADE NIC000","BELLAMY, ASHLEY SADE","ASHLEY SADE BELLAMY","7:36","08/02/2019","06/02/2020","INSTRUCTIONAL",38,30.4]
["SOVERANG000","A04109","ANGELA","MARCELLA","SOVERCOOL","Angela.Sovercool@Sumter.k12.fl.us","256","Ins 198 Days","0031","BUSHNELL ELEMEN","19-20 Active Plan","TEACHER  FIRST","GENERAL FUND TEACHER","GOODWIN KELLY MARGARET","GOODWKEL000","SOVERCOOL, ANGELA MARCELLA","ANGELA MARCELLA SOVERCOOL","7:36","08/02/2019","06/02/2020","INSTRUCTIONAL",38,30.4]
["DAVINASH000","A04111","ASHLEY","SOPOTNICK","DAVIN","Ashley.Davin@Sumter.k12.fl.us","256","Ins 198 Days","0181","LAKE PANASOFFKE","19-20 Active Plan","TEACHER  COMBIN-E","GENERAL FUND TEACHER","WADE NICOLE LYNN","WADE NIC000","DAVIN, ASHLEY SOPOTNICK","ASHLEY SOPOTNICK DAVIN","7:36","08/02/2019","06/02/2020","INSTRUCTIONAL",38,30.4]
["PATRIALI000","A04115","ALISON","LYNN","PATRICK","Alison.Patrick@Sumter.k12.fl.us","256","Ins 198 Days","0161","WILDWOOD M/H","19-20 Active Plan","TEACHER  MATH-M/J","GENERAL FUND TEACHER","GRAYBEAL JERRY DUANE","GRAYBJER000","PATRICK, ALISON LYNN","ALISON LYNN PATRICK","7:36","08/02/2019","06/02/2020","INSTRUCTIONAL",38,30.4]
["CARNEAPR000","A04158","APRIL","D","CARNEGLIA","april.carneglia@sumter.k12.fl.us","370","Non 186 Days","0042","SOUTH SUMTER MI","19-20 Active Plan","LAB ASSISTANT","GENERAL FUND PARA","CAMP JOEL S","CAMP JOE000","CARNEGLIA, APRIL D","APRIL D CARNEGLIA","7:24","08/12/2019","05/29/2020","CLASSIFIED",37,29.6]
["REID AMY000","A04204","AMY","LYNN","REID","amy.reid@sumter.k12.fl.us","357","Non 188 Days","0042","SOUTH SUMTER MI","19-20 Active Plan","FOOD SER WORKER","FOOD SERVICE","SUBER WILLIAM ERIC","SUBERWIL000","REID, AMY LYNN","AMY LYNN REID","5:00","08/09/2019","06/01/2020","CLASSIFIED",25,20]
["PARKEAMA000","A04252","AMANDA","REID","PARKER","Amanda.Parker@Sumter.k12.fl.us","256","Ins 198 Days","0051","WEBSTER ELEMENT","19-20 Active Plan","TEACHER  MATH-E","TITLE I TEACHER","SHEA MELYNDA BROOKE","SHEA MEL000","PARKER, AMANDA REID","AMANDA REID PARKER","7:36","08/02/2019","06/02/2020","INSTRUCTIONAL",38,30.4]
["FIGUEAMA000","A04269","AMANDA","NICHOLE","FIGUEROA","amanda.figueroa@sumter.k12.fl.us","256","Ins 198 Days","0042","SOUTH SUMTER MI","19-20 Active Plan","TEACHER  MATH-M/J","GENERAL FUND TEACHER","CAMP JOEL S","CAMP JOE000","FIGUEROA, AMANDA NICHOLE","AMANDA NICHOLE FIGUEROA","7:36","08/02/2019","06/02/2020","INSTRUCTIONAL",38,30.4]
["GUARIAMY000","A04282","AMY","LEE","GUARINO","amy.blackwelder@sumter.k12.fl.us","351","Non 250 Days","0102","WILDWOOD ELEMEN","19-20 Active Plan","CUSTODIAN","CUSTODIAN","TEMPLE JOHN P","TEMPLJOH000","GUARINO, AMY LEE","AMY LEE GUARINO","6:00","03/17/2020","06/30/2020","CLASSIFIED",30,24]
["BELL AUT000","A04290","AUTUMN","NICHOLE","BELL","Autumn.Bell@Sumter.k12.fl.us","256","Ins 198 Days","0042","SOUTH SUMTER MI","19-20 Active Plan","TEACHER  LANG AR-M/J","GENERAL FUND TEACHER","CAMP JOEL S","CAMP JOE000","BELL, AUTUMN NICHOLE","AUTUMN NICHOLE BELL","7:36","08/02/2019","06/02/2020","INSTRUCTIONAL",38,30.4]
["LYDENAMA000","A04345","AMANDA","COLE","LYDEN","AMANDA.LYDEN@SUMTER.K12.FL.US","256","Ins 198 Days","0171","SOUTH SUMTER HI","19-20 Active Plan","TEACHER  HEALTH SCI ED","GENERAL FUND TEACHER","MCKINNEY CHRISTINA JOHNSON","MCKINCHR001","LYDEN, AMANDA COLE","AMANDA COLE LYDEN","7:36","08/02/2019","06/02/2020","INSTRUCTIONAL",38,30.4]
["ZAPATAUG000","A04365","AUGUSTINE",null,"ZAPATA","augustine.zapata@sumter.k12.fl.us","351","Non 250 Days","0171","SOUTH SUMTER HI","19-20 Active Plan","CUSTODIAN","CUSTODIAN","MCKINNEY CHRISTINA JOHNSON","MCKINCHR001","ZAPATA, AUGUSTINE","AUGUSTINE ZAPATA","8:00","07/01/2019","06/30/2020","CLASSIFIED",40,32]
["LIPHAAMA000","A04432","AMANDA","JEAN","LIPHAM","Amanda.Lipham@Sumter.k12.fl.us","256","Ins 198 Days","0102","WILDWOOD ELEMEN","19-20 Active Plan","TEACHER  VE","ESE TEACHER","TEMPLE JOHN P","TEMPLJOH000","LIPHAM, AMANDA JEAN","AMANDA JEAN LIPHAM","7:36","08/02/2019","06/02/2020","INSTRUCTIONAL",38,30.4]
["HILL ANN000","A04440","ANNA","LOUISE","HILL","anna.hill@sumter.k12.fl.us","358","Non 186 Days","9004","TRANSPORTATION","19-20 Active Plan","BUS DRIVER","BUS DRIVER","FOOTE MICHAEL T","FOOTEMIC000","HILL, ANNA LOUISE","ANNA LOUISE HILL","5:00","10/01/2019","05/29/2020","CLASSIFIED",25,20]
["DORSEASH000","A04488","ASHLEY","ANN","DORSEY","Ashley.Dorsey@sumter.k12.fl.us","762","212 A Intern","0102","WILDWOOD ELEMEN","19-20 Active Plan","ADMIN ASST  SCH","INTERN","TEMPLE JOHN P","TEMPLJOH000","DORSEY, ASHLEY ANN","ASHLEY ANN DORSEY","8:00","07/25/2019","06/12/2020","INTERN",40,32]
["BURNSAMY000","A04495","AMY","LARAE","BURNS","Amy.Burns@sumter.k12.fl.us","256","Ins 198 Days","0171","SOUTH SUMTER HI","19-20 Active Plan","TEACHER  CTE OR/EXP","GENERAL FUND TEACHER","MCKINNEY CHRISTINA JOHNSON","MCKINCHR001","BURNS, AMY LARAE","AMY LARAE BURNS","7:36","08/02/2019","06/02/2020","INSTRUCTIONAL",38,30.4]
["SANCHANG000","A04587","ANGELA","DANIELLE","SANCHEZ","angela.sanchez@sumter.k12.fl.us","256","Ins 198 Days","0102","WILDWOOD ELEMEN","19-20 Active Plan","TEACHER  FIFTH","GENERAL FUND TEACHER","TEMPLE JOHN P","TEMPLJOH000","SANCHEZ, ANGELA DANIELLE","ANGELA DANIELLE SANCHEZ","7:36","08/02/2019","06/02/2020","INSTRUCTIONAL",38,30.4]
["STRAIAMY000","A04663","AMY","LYNN","STRAIT","Amy.Strait@sumter.k12.fl.us","256","Ins 198 Days","0102","WILDWOOD ELEMEN","19-20 Active Plan","TEACHER  SECOND","CLASS SIZE TEACHER","TEMPLE JOHN P","TEMPLJOH000","STRAIT, AMY LYNN","AMY LYNN STRAIT","7:36","08/02/2019","06/02/2020","INSTRUCTIONAL",38,30.4]
["LEGGEAMA001","A04675","AMANDA","MAY","LEGGETT","Amanda.Leggett@sumter.k12.fl.us","256","Ins 198 Days","0171","SOUTH SUMTER HI","19-20 Active Plan","TEACHER  SCIENCE-SH","CLASS SIZE TEACHER","MCKINNEY CHRISTINA JOHNSON","MCKINCHR001","LEGGETT, AMANDA MAY","AMANDA MAY LEGGETT","7:36","08/02/2019","06/02/2020","INSTRUCTIONAL",38,30.4]
["ROESCANN000","A04681","ANNETTE","M","ROESCH","annette.roesch@sumter.k12.fl.us","358","Non 186 Days","9004","TRANSPORTATION","19-20 Active Plan","BUS DRIVER","BUS DRIVER","FOOTE MICHAEL T","FOOTEMIC000","ROESCH, ANNETTE M","ANNETTE M ROESCH","5:15","08/12/2019","05/29/2020","CLASSIFIED",26.25,21]
["DUNCAALN000","A04706","ALNETRICE","NICHOLES","DUNCAN","alnetrice.duncan@sumter.k12.fl.us","358","Non 186 Days","9004","TRANSPORTATION","19-20 Active Plan","BUS DRIVER","BUS DRIVER","FOOTE MICHAEL T","FOOTEMIC000","DUNCAN, ALNETRICE NICHOLES","ALNETRICE NICHOLES DUNCAN","5:15","08/12/2019","05/29/2020","CLASSIFIED",26.25,21]
["FIELDAUS000","A04774","AUSTIN","JOSEPH","FIELD","austin.field@sumter.k12.fl.us","351","Non 250 Days","9005","MAINTENANCE CEN","19-20 Active Plan","MAIN WK","MAINTENANCE WORKER","SUBER WILLIAM ERIC","SUBERWIL000","FIELD, AUSTIN JOSEPH","AUSTIN JOSEPH FIELD","8:00","12/06/2019","06/30/2020","CLASSIFIED",40,32]
["UNDERAND000","A04788","ANDREW","JOHN","UNDERHILL","Andrew.Underhill@sumter.k12.fl.us","256","Ins 198 Days","0161","WILDWOOD M/H","19-20 Active Plan","TEACHER READ-M/J","READING TEACHER","GRAYBEAL JERRY DUANE","GRAYBJER000","UNDERHILL, ANDREW JOHN","ANDREW JOHN UNDERHILL","7:36","08/02/2019","06/02/2020","INSTRUCTIONAL",38,30.4]
["ORTEGALA000","A04791","ALANA","LIANNE","ORTEGA","Alana.Ortega@sumter.k12.fl.us","355","Non 200 Days","0051","WEBSTER ELEMENT","19-20 Active Plan","CLERK  SCH","CLERK SCHOOL","SHEA MELYNDA BROOKE","SHEA MEL000","ORTEGA, ALANA LIANNE","ALANA LIANNE ORTEGA","7:00","08/01/2019","06/04/2020","CLASSIFIED",35,28]
["TAYLOAMA000","A04812","AMANDA","NICOLE","TAYLOR","Amanda.Taylor@sumter.k12.fl.us","256","Ins 198 Days","0181","LAKE PANASOFFKE","19-20 Active Plan","TEACHER  SECOND","GENERAL FUND TEACHER","WADE NICOLE LYNN","WADE NIC000","TAYLOR, AMANDA NICOLE","AMANDA NICOLE TAYLOR","7:36","08/02/2019","06/02/2020","INSTRUCTIONAL",38,30.4]
["MCCRAALI000","A04851","ALICIA","LETRICE","MCCRAY","Alicia.McCray@sumter.k12.fl.us","370","Non 186 Days","0102","WILDWOOD ELEMEN","19-20 Active Plan","PARAPROFESSIONAL  OTH BAS","SAI PARA - ISS","TEMPLE JOHN P","TEMPLJOH000","MCCRAY, ALICIA LETRICE","ALICIA LETRICE MCCRAY","7:00","08/12/2019","05/29/2020","CLASSIFIED",35,28]
["ANDRAALI000","A04904","ALICIA",null,"ANDRADE","alicia.andrade@sumter.k12.fl.us","351","Non 250 Days","0042","SOUTH SUMTER MI","19-20 Active Plan","CUSTODIAN","CUSTODIAN","CAMP JOEL S","CAMP JOE000","ANDRADE, ALICIA","ALICIA ANDRADE","8:00","07/01/2019","06/30/2020","CLASSIFIED",40,32]
["HOGANAMA000","A04942","AMANDA","ANNE","HOGANS","Amanda.Hogans@sumter.k12.fl.us","256","Ins 198 Days","0181","LAKE PANASOFFKE","19-20 Active Plan","TEACHER  FIRST","GENERAL FUND TEACHER","WADE NICOLE LYNN","WADE NIC000","HOGANS, AMANDA ANNE","AMANDA ANNE HOGANS","7:36","08/02/2019","06/02/2020","INSTRUCTIONAL",38,30.4]
["ZACHAANG000","A05027","ANGELA",null,"ZACHARIAS","angela.zacharias@sumter.k12.fl.us","370","Non 186 Days","0161","WILDWOOD M/H","19-20 Active Plan","PARAPROFESSIONAL ESE AGES 6-","ESE PARA","GRAYBEAL JERRY DUANE","GRAYBJER000","ZACHARIAS, ANGELA","ANGELA ZACHARIAS","7:00","08/12/2019","05/29/2020","CLASSIFIED",35,28]
["WOYTHAMA000","A05077","AMANDA","LYNN","WOYTHALER","amanda.woythaler@sumter.k12.fl.us","152","Adm- 221 Days","0042","SOUTH SUMTER MI","19-20 Active Plan","ASST PRIN-M/J","PRINCIPAL ASSISTANT","CAMP JOEL S","CAMP JOE000","WOYTHALER, AMANDA LYNN","AMANDA LYNN WOYTHALER","8:00","07/12/2019","06/12/2020","ADMINISTRATION",40,32]
["QUINTASH000","A05083","ASHLEY","MARIE","QUINTERO","ashley.quintero@sumter.k12.fl.us","256","Ins 198 Days","0102","WILDWOOD ELEMEN","19-20 Active Plan","TEACHER  FIRST","GENERAL FUND TEACHER","TEMPLE JOHN P","TEMPLJOH000","QUINTERO, ASHLEY MARIE","ASHLEY MARIE QUINTERO","7:36","08/02/2019","06/02/2020","INSTRUCTIONAL",38,30.4]
["DARBYAID000","A05096","AIDA","P","DARBY","aida.darby@sumter.k12.fl.us","256","Ins 198 Days","0102","WILDWOOD ELEMEN","19-20 Active Plan","TEACHER  FIRST","GENERAL FUND TEACHER","TEMPLE JOHN P","TEMPLJOH000","DARBY, AIDA P","AIDA P DARBY","7:36","08/02/2019","06/02/2020","INSTRUCTIONAL",38,30.4]
["DAY  ALL000","A05128","ALLISON","ROSE","DAY","allison.day@sumter.k12.fl.us","256","Ins 198 Days","0031","BUSHNELL ELEMEN","19-20 Active Plan","TEACHER  KG","GENERAL FUND TEACHER","GOODWIN KELLY MARGARET","GOODWKEL000","DAY, ALLISON ROSE","ALLISON ROSE DAY","7:36","08/02/2019","06/02/2020","INSTRUCTIONAL",38,30.4]
["BOYATAUT000","A05163","AUTUMN","LYNNE","BOYATT","autumn.boyatt@sumter.k12.fl.us","370","Non 186 Days","0171","SOUTH SUMTER HI","19-20 Active Plan","PARAPROFESSIONAL ESE AGES 6-","ESE PARA","MCKINNEY CHRISTINA JOHNSON","MCKINCHR001","BOYATT, AUTUMN LYNNE","AUTUMN LYNNE BOYATT","7:00","08/12/2019","05/29/2020","CLASSIFIED",35,28]
["BEANEANN000","A05165","ANNA","LYNN","BEANE","anna.beane@sumter.k12.fl.us","371","Non 196 Days","0031","BUSHNELL ELEMEN","19-20 Active Plan","PARAPROFESSIONAL  PK","TITLE I/ PRE K LEAD","GOODWIN KELLY MARGARET","GOODWKEL000","BEANE, ANNA LYNN","ANNA LYNN BEANE","8:00","08/08/2019","06/02/2020","CLASSIFIED",40,32]
["DIAZ ANA000","A05168","ANA","A","DIAZ","ana.diaz@sumter.k12.fl.us","370","Non 186 Days","0102","WILDWOOD ELEMEN","19-20 Active Plan","PARAPROFESSIONAL  ELEM","GENERAL FUND PARA - ESOL","TEMPLE JOHN P","TEMPLJOH000","DIAZ, ANA A","ANA A DIAZ","7:00","08/12/2019","05/29/2020","CLASSIFIED",{"$f":"+R66*24*5","v":35},{"$f":"+R66*24*4","v":28}]
["HISEYALL000","A05239","ALLAN","R","HISEY","allan.hisey@sumter.k12.fl.us","151","Adm 250 Days","0161","WILDWOOD M/H","19-20 Active Plan","ASST PRIN-SH","PRINCIPAL ASSISTANT","GRAYBEAL JERRY DUANE","GRAYBJER000","HISEY, ALLAN R","ALLAN R HISEY","8:00","07/01/2019","06/30/2020","ADMINISTRATION",40,32]
["SQUIRAUT000","A05259","AUTUMN","CHRISTINA","SQUIRE","autumn.squire@sumter.k12.fl.us","256","Ins 198 Days","0042","SOUTH SUMTER MI","19-20 Active Plan","TEACHER  LANG AR-M/J","GENERAL FUND TEACHER","CAMP JOEL S","CAMP JOE000","SQUIRE, AUTUMN CHRISTINA","AUTUMN CHRISTINA SQUIRE","7:36","08/02/2019","06/02/2020","INSTRUCTIONAL",38,30.4]
["SMITHAMA000","A05271","AMANDA","MARIE","SMITH","amanda.smith@sumter.k12.fl.us","256","Ins 198 Days","0102","WILDWOOD ELEMEN","19-20 Active Plan","TEACHER  KG","GENERAL FUND TEACHER","TEMPLE JOHN P","TEMPLJOH000","SMITH, AMANDA MARIE","AMANDA MARIE SMITH","7:36","08/02/2019","06/02/2020","INSTRUCTIONAL",38,30.4]
["MCLELAVA000","A05334","AVA","L","MCLELLAN","ava.mclellan@sumter.k12.fl.us","370","Non 186 Days","9004","TRANSPORTATION","19-20 Active Plan","BUS AIDE  EX ST ED","ESE BUS AIDE","FOOTE MICHAEL T","FOOTEMIC000","MCLELLAN, AVA L","AVA L MCLELLAN","4:00","09/30/2019","05/29/2020","CLASSIFIED",20,16]
["VERA ASH000","A05340","ASHLEY","LYANN","VERA","ASHLEY.VERA@SUMTER.K12.FL.US","370","Non 186 Days","0031","BUSHNELL ELEMEN","19-20 Active Plan","PARAPROFESSIONAL  ELEM","GENERAL FUND PARA","GOODWIN KELLY MARGARET","GOODWKEL000","VERA, ASHLEY LYANN","ASHLEY LYANN VERA","7:00","08/12/2019","05/29/2020","CLASSIFIED",35,28]
["GAINEART000","A05350","ARTIE","DARNELL","GAINES","artie.gaines@sumter.k12.fl.us","351","Non 250 Days","0171","SOUTH SUMTER HI","19-20 Active Plan","CUSTODIAN","CUSTODIAN","MCKINNEY CHRISTINA JOHNSON","MCKINCHR001","GAINES, ARTIE DARNELL","ARTIE DARNELL GAINES","7:00","07/01/2019","06/30/2020","CLASSIFIED",35,28]
["TOSCAANN000","A05364","ANNEMARIE",null,"TOSCANO","annemarie.toscano@sumter.k12.fl.us","358","Non 186 Days","9004","TRANSPORTATION","19-20 Active Plan","BUS DRIVER","BUS DRIVER","FOOTE MICHAEL T","FOOTEMIC000","TOSCANO, ANNEMARIE","ANNEMARIE TOSCANO","4:15","08/12/2019","05/29/2020","CLASSIFIED",21.25,17]
["TESTOANN000","A05419","ANNA","LOUISE","TESTON","anna.teston@sumter.k12.fl.us","256","Ins 198 Days","0042","SOUTH SUMTER MI","19-20 Active Plan","TEACHER  SCIENCE-M/J","GENERAL FUND TEACHER","CAMP JOEL S","CAMP JOE000","TESTON, ANNA LOUISE","ANNA LOUISE TESTON","7:36","08/02/2019","06/02/2020","INSTRUCTIONAL",38,30.4]
["MCKELALE000","A05438","ALECIA","RENEE","MCKELLER","alecia.mckeller@sumter.k12.fl.us","370","Non 186 Days","0181","LAKE PANASOFFKE","19-20 Active Plan","PARAPROFESSIONAL ESE AGES 6-","ESE PARA","WADE NICOLE LYNN","WADE NIC000","MCKELLER, ALECIA RENEE","ALECIA RENEE MCKELLER","7:00","08/12/2019","05/29/2020","CLASSIFIED",35,28]
["NORRIANG000","A05440","ANGELA","BETH","NORRIS","angela.norris@sumter.k12.fl.us","370","Non 186 Days","0181","LAKE PANASOFFKE","19-20 Active Plan","PARAPROFESSIONAL  TTL I-E","TITLE I PARA","WADE NICOLE LYNN","WADE NIC000","NORRIS, ANGELA BETH","ANGELA BETH NORRIS","7:00","08/12/2019","05/29/2020","CLASSIFIED",35,28]
["FREEMAUD000","A05451","AUDRA","LYNN","FREEMAN","audra.freeman@sumter.k12.fl.us","256","Ins 198 Days","0031","BUSHNELL ELEMEN","19-20 Active Plan","TEACHER  VE","ESE TEACHER","GOODWIN KELLY MARGARET","GOODWKEL000","FREEMAN, AUDRA LYNN","AUDRA LYNN FREEMAN","7:36","08/23/2019","06/02/2020","INSTRUCTIONAL",38,30.4]
["BOONEAUD000","A05454","AUDREY","ELAINE","BOONE","audrey.boone@sumter.k12.fl.us","370","Non 186 Days","0161","WILDWOOD M/H","19-20 Active Plan","PARAPROFESSIONAL ESE AGES 6-","ESE PARA","GRAYBEAL JERRY DUANE","GRAYBJER000","BOONE, AUDREY ELAINE","AUDREY ELAINE BOONE","7:00","08/20/2019","05/29/2020","CLASSIFIED",35,28]
["GRABOALI000","A05483","ALICIA","MARIE","GRABOWSKI","alicia.grabowski@sumter.k12.fl.us","256","Ins 198 Days","0051","WEBSTER ELEMENT","19-20 Active Plan","TEACHER  SECOND","CLASS SIZE TEACHER","SHEA MELYNDA BROOKE","SHEA MEL000","GRABOWSKI, ALICIA MARIE","ALICIA MARIE GRABOWSKI","7:36","11/19/2019","06/02/2020","INSTRUCTIONAL",38,30.4]
["NORTHBAR000","B00139","BARBARA ROSE","ARTIG","NORTHCUTT","Barbara.Northcutt@sumter.k12.fl.us","370","Non 186 Days","0031","BUSHNELL ELEMEN","19-20 Active Plan","PARAPROFESSIONAL  PK","IDEA/ PRE K PARA","GOODWIN KELLY MARGARET","GOODWKEL000","NORTHCUTT, BARBARA ROSE ARTIG","BARBARA ROSE ARTIG NORTHCUTT","7:00","08/12/2019","05/29/2020","CLASSIFIED",35,28]
["WARD BAR000","B02304","BARBARELLE","P","WARD","Barbarelle.Ward@SUMTER.K12.FL.US","371","Non 196 Days","0051","WEBSTER ELEMENT","19-20 Active Plan","PARAPROFESSIONAL  PK","TITLE I/ PRE K LEAD","SHEA MELYNDA BROOKE","SHEA MEL000","WARD, BARBARELLE P","BARBARELLE P WARD","8:00","08/02/2019","06/02/2020","CLASSIFIED",40,32]
["WADDEBRA000","B02486","BRANDI","JO","WADDELL","brandi.waddell@sumter.k12.fl.us","256","Ins 198 Days","0031","BUSHNELL ELEMEN","19-20 Active Plan","LIB/MED SPEC-E","MEDIA SPECIALIST","GOODWIN KELLY MARGARET","GOODWKEL000","WADDELL, BRANDI JO","BRANDI JO WADDELL","7:36","08/02/2019","06/02/2020","INSTRUCTIONAL",38,30.4]
["PRY  BUF000","B02520","BUFFY","MARIE","PRY","Buffy.Pry@sumter.k12.fl.us","351","Non 250 Days","9001","COUNTY OFFICE","19-20 Active Plan","HEAD CUSTODIAN","CUSTODIAN","MOFFITT DEBORAH DEON","MOFFIDEB000","PRY, BUFFY MARIE","BUFFY MARIE PRY","8:00","07/01/2019","06/30/2020","CLASSIFIED",40,32]
["WEBB BEV000","B03764","BEVERLEY","KAY","WEBB","beverley.webb@sumter.k12.fl.us","357","Non 188 Days","0181","LAKE PANASOFFKE","19-20 Active Plan","FOOD SER WORKER","FOOD SERVICE","SUBER WILLIAM ERIC","SUBERWIL000","WEBB, BEVERLEY KAY","BEVERLEY KAY WEBB","7:00","08/09/2019","06/01/2020","CLASSIFIED",35,28]
["ZELENBRI000","B03765","BRIAN","K","ZELENAK","Brian.Zelenak@sumter.k12.fl.us","370","Non 186 Days","0102","WILDWOOD ELEMEN","19-20 Active Plan","PARAPROFESSIONAL ESE AGES 6-","ESE PARA","TEMPLE JOHN P","TEMPLJOH000","ZELENAK, BRIAN K","BRIAN K ZELENAK","7:00","08/12/2019","05/29/2020","CLASSIFIED",35,28]
["WEAVEBEC000","B03993","BECKIE","RENAE","WEAVER","Beckie.Weaver@Sumter.k12.fl.us","256","Ins 198 Days","0171","SOUTH SUMTER HI","19-20 Active Plan","TEACHER  LANG AR-SH","SAI TEACHER 40060","MCKINNEY CHRISTINA JOHNSON","MCKINCHR001","WEAVER, BECKIE RENAE","BECKIE RENAE WEAVER","7:36","08/02/2019","06/02/2020","INSTRUCTIONAL",38,30.4]
["SANDEBRI000","B04018","BRITTNY","CHANTE","SANDERS","Brittny.Sanders@sumter.k12.fl.us","256","Ins 198 Days","0181","LAKE PANASOFFKE","19-20 Active Plan","TEACHER  KG","GENERAL FUND TEACHER","WADE NICOLE LYNN","WADE NIC000","SANDERS, BRITTNY CHANTE","BRITTNY CHANTE SANDERS","7:36","08/02/2019","06/02/2020","INSTRUCTIONAL",38,30.4]
["PEGG BET000","B04172","BETTY","ANN","PEGG","betty.pegg@sumter.k12.fl.us","358","Non 186 Days","9004","TRANSPORTATION","19-20 Active Plan","BUS DRIVER","BUS DRIVER","FOOTE MICHAEL T","FOOTEMIC000","PEGG, BETTY ANN","BETTY ANN PEGG","5:45","08/12/2019","05/29/2020","CLASSIFIED",28.75,23]
["COLLEBEC000","B04283","BECKY","RAE","COLLET","Becky.Collet@sumter.k12.fl.us","256","Ins 198 Days","0051","WEBSTER ELEMENT","19-20 Active Plan","TEACHER  FOURTH","GENERAL FUND TEACHER","SHEA MELYNDA BROOKE","SHEA MEL000","COLLET, BECKY RAE","BECKY RAE COLLET","7:36","08/02/2019","06/02/2020","INSTRUCTIONAL",38,30.4]
["WALLABRI000","B04414","BRITTANY","ANN","WALLACE","Brittany.Wallace@sumter.k12.fl.us","256","Ins 198 Days","0031","BUSHNELL ELEMEN","19-20 Active Plan","TEACHER  SECOND","GENERAL FUND TEACHER","GOODWIN KELLY MARGARET","GOODWKEL000","WALLACE, BRITTANY ANN","BRITTANY ANN WALLACE","7:36","08/02/2019","06/02/2020","INSTRUCTIONAL",38,30.4]
["SKIPPBET001","B04753","BETHANY","JANE","SKIPPER","Bethany.Skipper@sumter.k12.fl.us","151","Adm 250 Days","9001","COUNTY OFFICE","19-20 Active Plan","COOR, INSTRUCTIONAL TECHNOLOGY","COORDINATOR IT","HUFF RICHARD BRYAN","HUFF RIC000","SKIPPER, BETHANY JANE","BETHANY JANE SKIPPER","8:00","07/01/2019","06/30/2020","ADMINISTRATION",40,32]
["ISHEEBRI001","B04795","BRIE","NICOLE","ISHEE","Brie.Ishee@sumter.k12.fl.us","762","212 A Intern","0042","SOUTH SUMTER MI","19-20 Active Plan","ADMIN ASST  SCH","INTERN","CAMP JOEL S","CAMP JOE000","ISHEE, BRIE NICOLE","BRIE NICOLE ISHEE","8:00","07/25/2019","06/12/2020","INTERN",40,32]
["DOYLEBAN000","B04849","BANG","ON","DOYLE","bang.doyle@sumter.k12.fl.us","351","Non 250 Days","0042","SOUTH SUMTER MI","19-20 Active Plan","CUSTODIAN","CUSTODIAN","CAMP JOEL S","CAMP JOE000","DOYLE, BANG ON","BANG ON DOYLE","5:00","07/01/2019","06/30/2020","CLASSIFIED",25,20]
["HARRIBRY001","B04895","BRYAN","LADELL","HARRISON","Bryan.Harrison@sumter.k12.fl.us","370","Non 186 Days","9008","ESE DEPARTMENT","19-20 Active Plan","PARAPROFESSIONAL  ESE AGES 6-","IDEA PARA","DUSTIN KATHERINE M","DUSTIKAT000","HARRISON, BRYAN LADELL","BRYAN LADELL HARRISON","7:00","08/12/2019","05/29/2020","CLASSIFIED",35,28]
["BYERSBRI000","B04928","BRITTANY","NICOLE","BYERS","Brittany.Byers@sumter.k12.fl.us","256","Ins 198 Days","0051","WEBSTER ELEMENT","19-20 Active Plan","TEACHER  FIRST","CLASS SIZE TEACHER","SHEA MELYNDA BROOKE","SHEA MEL000","BYERS, BRITTANY NICOLE","BRITTANY NICOLE BYERS","7:36","08/02/2019","06/02/2020","INSTRUCTIONAL",38,30.4]
["HERNABEA000","B04956","BEATRIZ",null,"HERNANDEZ-DE ANDRADE","beatriz.hernandezdeandrade@sumter.k12.fl.us","351","Non 250 Days","0161","WILDWOOD M/H","19-20 Active Plan","CUSTODIAN","CUSTODIAN","GRAYBEAL JERRY DUANE","GRAYBJER000","HERNANDEZ-DE ANDRADE, BEATRIZ","BEATRIZ HERNANDEZ-DE ANDRADE","7:00","07/01/2019","06/30/2020","CLASSIFIED",35,28]
["BRYANBET000","B04958","BETHANY","DEE ANNE","BRYANT","Bethany.Bryant@sumter.k12.fl.us","370","Non 186 Days","0161","WILDWOOD M/H","19-20 Active Plan","PARAPROFESSIONAL  SH","GENERAL FUND PARA","GRAYBEAL JERRY DUANE","GRAYBJER000","BRYANT, BETHANY DEE ANNE","BETHANY DEE ANNE BRYANT","7:00","08/12/2019","05/29/2020","CLASSIFIED",35,28]
["HARDMBET000","B04962","BETH","ANN","HARDMAN","beth.hardman@sumter.k12.fl.us","357","Non 188 Days","0161","WILDWOOD M/H","19-20 Active Plan","FOOD SER WORKER","FOOD SERVICE","SUBER WILLIAM ERIC","SUBERWIL000","HARDMAN, BETH ANN","BETH ANN HARDMAN","8:00","08/09/2019","06/01/2020","CLASSIFIED",40,32]
["GILBEBRA000","B04975","BRANDI","LYNN MORGAN","GILBERT","Brandi.Gilbert@sumter.k12.fl.us","372","Non 220A Days","0031","BUSHNELL ELEMEN","19-20 Active Plan","DATA ENT OP  ATT/SW","DATA ENTRY CLERK","GOODWIN KELLY MARGARET","GOODWKEL000","GILBERT, BRANDI LYNN MORGAN","BRANDI LYNN MORGAN GILBERT","7:00","07/12/2019","06/12/2020","CLASSIFIED",35,28]
["VALDEBRA001","B05019","BRANDY","NICOLE RESENDIZ","VALDEZ","brandy.valdez@sumter.k12.fl.us","370","Non 186 Days","3001","SUMTER PREP","19-20 Active Plan","PARAPROFESSIONAL ESE AGES 6-","ESE PARA","PRESLEY JAMES CHESTER","PRESLJAM000","VALDEZ, BRANDY NICOLE RESENDIZ","BRANDY NICOLE RESENDIZ VALDEZ","7:00","08/12/2019","05/29/2020","CLASSIFIED",35,28]
["WINE BRI000","B05029","BRIANA","E","WINE","briana.wine@sumter.k12.fl.us","256","Ins 198 Days","0042","SOUTH SUMTER MI","19-20 Active Plan","TEACHER READ-M/J","SAI TEACHER","CAMP JOEL S","CAMP JOE000","WINE, BRIANA E","BRIANA E WINE","7:36","08/02/2019","06/02/2020","INSTRUCTIONAL",38,30.4]
["SNOW BET000","B05042","BETTIE","DEN","SNOW","bettie.snow@sumter.k12.fl.us","370","Non 186 Days","9004","TRANSPORTATION","19-20 Active Plan","BUS AIDE  EX ST ED","ESE BUS AIDE","FOOTE MICHAEL T","FOOTEMIC000","SNOW, BETTIE DEN","BETTIE DEN SNOW","4:00","08/12/2019","05/29/2020","CLASSIFIED",20,16]
["MULLIBON000","B05046","BONITA","KAY","MULLIN","bonita.mullin@sumter.k12.fl.us","370","Non 186 Days","0102","WILDWOOD ELEMEN","19-20 Active Plan","PARAPROFESSIONAL  ESE AGES 6-","IDEA PARA","TEMPLE JOHN P","TEMPLJOH000","MULLIN, BONITA KAY","BONITA KAY MULLIN","7:00","08/12/2019","05/29/2020","CLASSIFIED",35,28]
["BROWNBRI001","B05080","BRITTANY","JADE","BROWN","brittany.brown@sumter.k12.fl.us","256","Ins 198 Days","0102","WILDWOOD ELEMEN","19-20 Active Plan","TEACHER  THIRD","GENERAL FUND TEACHER","TEMPLE JOHN P","TEMPLJOH000","BROWN, BRITTANY JADE","BRITTANY JADE BROWN","7:36","08/02/2019","06/02/2020","INSTRUCTIONAL",38,30.4]
["PARKSBRA001","B05100","BRANDIE","SHENEE","PARKS","brandie.parks@sumter.k12.fl.us","256","Ins 198 Days","0042","SOUTH SUMTER MI","19-20 Active Plan","TEACHER  LANG AR-M/J","CLASS SIZE TEACHER","CAMP JOEL S","CAMP JOE000","PARKS, BRANDIE SHENEE","BRANDIE SHENEE PARKS","7:36","08/02/2019","06/02/2020","INSTRUCTIONAL",38,30.4]
["FAIRCBEL000","B05106","BELINDA","FAYE","FAIRCHILD","belinda.fairchild@sumter.k12.fl.us","668","NURSES","0031","BUSHNELL ELEMEN","19-20 Active Plan","NURSE  RN","NURSE","GOODSON EILEEN H","GOODSEIL000","FAIRCHILD, BELINDA FAYE","BELINDA FAYE FAIRCHILD","7:36","08/05/2019","06/02/2020","NON-INSTRUCT NO BARGAINING UNI",38,30.4]
["BRAY BEN001","B05159","BENJAMIN","AUGUST","BRAY","Benjamin.Bray@Sumter.k12.fl.us","370","Non 186 Days","0042","SOUTH SUMTER MI","19-20 Active Plan","PARAPROFESSIONAL ESE AGES 6-","ESE PARA","CAMP JOEL S","CAMP JOE000","BRAY, BENJAMIN AUGUST","BENJAMIN AUGUST BRAY","7:00","08/12/2019","05/29/2020","CLASSIFIED",35,28]
["STARKBEC000","B05166","BECKY","JO","STARK","becky.stark@sumter.k12.fl.us","370","Non 186 Days","0102","WILDWOOD ELEMEN","19-20 Active Plan","PARAPROFESSIONAL  PK","IDEA/ PRE K PARA","TEMPLE JOHN P","TEMPLJOH000","STARK, BECKY JO","BECKY JO STARK","7:00","08/12/2019","05/29/2020","CLASSIFIED",35,28]
["CELLABRO000","B05303","BROOKE","PATRICIA MOCCIO","CELLA","brooke.cella@sumter.k12.fl.us","256","Ins 198 Days","0042","SOUTH SUMTER MI","19-20 Active Plan","TEACHER  LANG AR-M/J","CLASS SIZE TEACHER","CAMP JOEL S","CAMP JOE000","CELLA, BROOKE PATRICIA MOCCIO","BROOKE PATRICIA MOCCIO CELLA","7:36","10/14/2019","06/02/2020","INSTRUCTIONAL",38,30.4]
["SERRABRE000","B05308","BRENDA","ORTIZ","SERRATO","brenda.serrato@sumter.k12.fl.us","370","Non 186 Days","0031","BUSHNELL ELEMEN","19-20 Active Plan","PARAPROFESSIONAL  ELEM","GENERAL FUND PARA - ESOL","GOODWIN KELLY MARGARET","GOODWKEL000","SERRATO, BRENDA ORTIZ","BRENDA ORTIZ SERRATO","7:00","08/12/2019","05/29/2020","CLASSIFIED",35,28]
["FARROBIL000","B05427","BILLY",null,"FARROW","billy.farrow@sumter.k12.fl.us","256","Ins 198 Days","0161","WILDWOOD M/H","19-20 Active Plan","TEACHER  VE","ESE TEACHER","GRAYBEAL JERRY DUANE","GRAYBJER000","FARROW, BILLY","BILLY FARROW","7:36","08/02/2019","06/02/2020","INSTRUCTIONAL",38,30.4]
["BELLOBRI000","B05443","BRITTANY","LAGAIL","BELLOWS","brittany.bellows@sumter.k12.fl.us","370","Non 186 Days","0051","WEBSTER ELEMENT","19-20 Active Plan","FOOD SER AIDE","FOOD SERVICE","SUBER WILLIAM ERIC","SUBERWIL000","BELLOWS, BRITTANY LAGAIL","BRITTANY LAGAIL BELLOWS","4:00","08/13/2019","05/29/2020","CLASSIFIED",20,16]
["FUSSEBRI001","B05457","BRITTANY","ELIZABETH","FUSSELL","brittany.fussell@sumter.k12.fl.us","370","Non 186 Days","0031","BUSHNELL ELEMEN","19-20 Active Plan","PARAPROFESSIONAL  PK","IDEA/ PRE K PARA","GOODWIN KELLY MARGARET","GOODWKEL000","FUSSELL, BRITTANY ELIZABETH","BRITTANY ELIZABETH FUSSELL","7:00","08/26/2019","05/29/2020","CLASSIFIED",35,28]
["SCHWEBAR000","B05458","BARBARA","E","SCHWENKE","barbara.schwenke@sumter.k12.fl.us","351","Non 250 Days","0181","LAKE PANASOFFKE","19-20 Active Plan","CUSTODIAN","CUSTODIAN","WADE NICOLE LYNN","WADE NIC000","SCHWENKE, BARBARA E","BARBARA E SCHWENKE","4:00","08/26/2019","06/30/2020","CLASSIFIED",20,16]
["COCKABRA001","B05501","BRANDON","DAVID","COCKAYNE","brandon.cockayne@sumter.k12.fl.us","256","Ins 198 Days","0051","WEBSTER ELEMENT","19-20 Active Plan","TEACHER  FOURTH","CLASS SIZE TEACHER","SHEA MELYNDA BROOKE","SHEA MEL000","COCKAYNE, BRANDON DAVID","BRANDON DAVID COCKAYNE","7:36","01/13/2020","06/02/2020","INSTRUCTIONAL",38,30.4]
["BATSOCHA000","C00143","CHANDRA","JOHNSON","BATSON","chandra.batson@sumter.k12.fl.us","358","Non 186 Days","9004","TRANSPORTATION","19-20 Active Plan","BUS DRIVER","BUS DRIVER","FOOTE MICHAEL T","FOOTEMIC000","BATSON, CHANDRA JOHNSON","CHANDRA JOHNSON BATSON","5:00","08/12/2019","05/29/2020","CLASSIFIED",25,20]
["ARQUECHR000","C00251","CHRISTINE","J","ARQUETTE","Christine.Arquette@SUMTER.K12.FL.US","256","Ins 198 Days","0161","WILDWOOD M/H","19-20 Active Plan","TEACHER  SOC ST-M/J","GENERAL FUND TEACHER","GRAYBEAL JERRY DUANE","GRAYBJER000","ARQUETTE, CHRISTINE J","CHRISTINE J ARQUETTE","7:36","08/02/2019","06/02/2020","INSTRUCTIONAL",38,30.4]
["RANDOCYN000","C00510","CYNTHIA","L","RANDOLPH","Cynthia.Randolph@SUMTER.K12.FL.US","256","Ins 198 Days","0181","LAKE PANASOFFKE","19-20 Active Plan","TEACHER  THIRD","GENERAL FUND TEACHER","WADE NICOLE LYNN","WADE NIC000","RANDOLPH, CYNTHIA L","CYNTHIA L RANDOLPH","7:36","08/02/2019","06/02/2020","INSTRUCTIONAL",38,30.4]
["MCKINCHR001","C00762","CHRISTINA","JOHNSON","MCKINNEY","Christina.Mckinney@SUMTER.K12.FL.US","151","Adm 250 Days","0171","SOUTH SUMTER HI","19-20 Active Plan","PRINCIPAL-SH","PRINCIPAL","SHIRLEY RICHARD ALLEN, JR","SHIRLRIC001","MCKINNEY, CHRISTINA JOHNSON","CHRISTINA JOHNSON MCKINNEY","8:00","07/01/2019","06/30/2020","ADMINISTRATION",40,32]
["COLE CHE000","C00831","CHERYL","A","COLE","Cheryl.Cole@SUMTER.K12.FL.US","351","Non 250 Days","9100","SUMTER PROFESSI","19-20 Active Plan","SEC  STAFF SER","TECHNICIAN PROFESSIONAL LEARNI","WILLIAMS DANA PITTS","WILLIDAN000","COLE, CHERYL A","CHERYL A COLE","8:00","07/01/2019","06/30/2020","CLASSIFIED",40,32]
["MCKINCHR000","C00856","CHRIS","D","MCKINNEY","Chris.Mckinney@SUMTER.K12.FL.US","262","Ins 212A Days","9100","SUMTER PROFESSI","19-20 Active Plan","TSA IT","TSA, INSTRUCTIONAL TECHNOLOGY","WILLIAMS DANA PITTS","WILLIDAN000","MCKINNEY, CHRIS D","CHRIS D MCKINNEY","8:00","07/25/2019","06/12/2020","INSTRUCTIONAL",40,32]
["HICKMCYN000","C00996","CYNTHIA","M","HICKMAN","cynthia.hickman@sumter.k12.fl.us","370","Non 186 Days","9004","TRANSPORTATION","19-20 Active Plan","BUS AIDE  EX ST ED","ESE BUS AIDE","FOOTE MICHAEL T","FOOTEMIC000","HICKMAN, CYNTHIA M","CYNTHIA M HICKMAN","4:00","08/12/2019","05/29/2020","CLASSIFIED",20,16]
["NASH CYN000","C01050","CYNTHIA","EVELYN","NASH","cynthia.nash@sumter.k12.fl.us","253","Ins 218 Days","0051","WEBSTER ELEMENT","19-20 Active Plan","STAFFING SPEC","STAFFING SPECIALIST","SHEA MELYNDA BROOKE","SHEA MEL000","NASH, CYNTHIA EVELYN","CYNTHIA EVELYN NASH","8:00","07/19/2019","06/16/2020","INSTRUCTIONAL",40,32]
["JONESCAR000","C01150","CARLESA","DECARL","JONES","carlesa.jones@sumter.k12.fl.us","357","Non 188 Days","0042","SOUTH SUMTER MI","19-20 Active Plan","FOOD SER WORKER","FOOD SERVICE","SUBER WILLIAM ERIC","SUBERWIL000","JONES, CARLESA DECARL","CARLESA DECARL JONES","8:00","10/01/2019","06/01/2020","CLASSIFIED",40,32]
["FOSTECYN000","C01212","CYNTHIA","L","FOSTER","Cynthia.Foster@SUMTER.K12.FL.US","371","Non 196 Days","0102","WILDWOOD ELEMEN","19-20 Active Plan","PARAPROFESSIONAL  PK","TITLE I/ PRE K LEAD","TEMPLE JOHN P","TEMPLJOH000","FOSTER, CYNTHIA L","CYNTHIA L FOSTER","8:00","08/02/2019","06/02/2020","CLASSIFIED",40,32]
["MCKINCHE000","C01217","CHERYL","D","MCKINNEY","Cheryl.Mckinney@SUMTER.K12.FL.US","256","Ins 198 Days","0102","WILDWOOD ELEMEN","19-20 Active Plan","TEACHER  FIRST","GENERAL FUND TEACHER","TEMPLE JOHN P","TEMPLJOH000","MCKINNEY, CHERYL D","CHERYL D MCKINNEY","7:36","08/02/2019","06/02/2020","INSTRUCTIONAL",38,30.4]
["GARRECHR000","C01285","CHRISTINA","NELSON","GARREPY","Christina.Garrepy@SUMTER.K12.FL.US","256","Ins 198 Days","0051","WEBSTER ELEMENT","19-20 Active Plan","TEACHER  THIRD","GENERAL FUND TEACHER","SHEA MELYNDA BROOKE","SHEA MEL000","GARREPY, CHRISTINA NELSON","CHRISTINA NELSON GARREPY","7:36","08/02/2019","06/02/2020","INSTRUCTIONAL",38,30.4]
["RIVERCHE000","C01303","CHERYL","LARVENE","RIVERS","Cheryl.Rivers@sumter.k12.fl.us","357","Non 188 Days","0161","WILDWOOD M/H","19-20 Active Plan","FOOD SER WORKER","FOOD SERVICE","SUBER WILLIAM ERIC","SUBERWIL000","RIVERS, CHERYL LARVENE","CHERYL LARVENE RIVERS","8:00","08/09/2019","06/01/2020","CLASSIFIED",40,32]
["LEON CAR000","C01485","CARMELITA","JOLINDA","LEON","carmelita.leon@sumter.k12.fl.us","357","Non 188 Days","0161","WILDWOOD M/H","19-20 Active Plan","FOOD SER WORKER","FOOD SERVICE","SUBER WILLIAM ERIC","SUBERWIL000","LEON, CARMELITA JOLINDA","CARMELITA JOLINDA LEON","8:00","08/09/2019","06/01/2020","CLASSIFIED",40,32]
["GRAHACAR000","C01497","CAROL","ANN","GRAHAM","carol.graham@sumter.k12.fl.us","359","Non 191 Days","0161","WILDWOOD M/H","19-20 Active Plan","MANAGER  FOOD SER","FOOD SERVICE","SUBER WILLIAM ERIC","SUBERWIL000","GRAHAM, CAROL ANN","CAROL ANN GRAHAM","8:00","08/07/2019","06/02/2020","CLASSIFIED",{"$f":"+R130*24*5","v":40},{"$f":"+R130*24*4","v":32}]
["FERRICAR000","C01897","CARMEN","E","FERRIS","Carmen.Ferris@Sumter.k12.fl.us","351","Non 250 Days","9001","COUNTY OFFICE","19-20 Active Plan","SEC  INS/CUR","SECRETARY TITLE I/ELEM ED","CHRISTIAN HELEN ANN","CHRISHEL000","FERRIS, CARMEN E","CARMEN E FERRIS","8:00","07/01/2019","06/30/2020","CLASSIFIED",40,32]
["STREECAN000","C01899","CANDACE","ALINE","STREET","Candace.Street@SUMTER.K12.FL.US","372","Non 220A Days","9006","TECHNOLOGY DEPT","19-20 Active Plan","TECH  IT","TECHNICIAN TECH SUPPORT","TRICK DAVID E","TRICKDAV000","STREET, CANDACE ALINE","CANDACE ALINE STREET","8:00","07/12/2019","06/12/2020","CLASSIFIED",40,32]
["BAILECAR000","C02061","CARLA","ANDRES","BAILEY","Carla.Bailey@SUMTER.K12.FL.US","357","Non 188 Days","0102","WILDWOOD ELEMEN","19-20 Active Plan","FOOD SER WORKER","FOOD SERVICE","SUBER WILLIAM ERIC","SUBERWIL000","BAILEY, CARLA ANDRES","CARLA ANDRES BAILEY","8:00","08/09/2019","06/01/2020","CLASSIFIED",40,32]
["WILLICAR000","C02144","CARSHOMA","D","WILLIAMS","Carshoma.Williams@SUMTER.K12.FL.US","370","Non 186 Days","3001","SUMTER PREP","19-20 Active Plan","PARAPROFESSIONAL  OTH BAS","IDEA/ GF PARA","PRESLEY JAMES CHESTER","PRESLJAM000","WILLIAMS, CARSHOMA D","CARSHOMA D WILLIAMS","7:00","08/12/2019","05/29/2020","CLASSIFIED",35,28]
["STRONCAN001","C02317","CANDY","SUE","STRONG","candy.strong@SUMTER.K12.FL.US","ADULT","ADULT ED","0191","ADULT EDUCATION",null,null,null,"FERGUSON CASEY LOREN","FERGUCAS000","STRONG, CANDY SUE","CANDY SUE STRONG",null,null,null,null,0,0]
["HALBYCAT000","C02345","CATHERINE","ANNIE","HALBY","catherine.halby@sumter.k12.fl.us","370","Non 186 Days","9004","TRANSPORTATION","19-20 Active Plan","BUS AIDE  EX ST ED","ESE BUS AIDE","FOOTE MICHAEL T","FOOTEMIC000","HALBY, CATHERINE ANNIE","CATHERINE ANNIE HALBY","7:00","08/12/2019","05/29/2020","CLASSIFIED",35,28]
["COBB CON000","C02348","CONNIE","LYNN","COBB","Connie.Cobb@SUMTER.K12.FL.US","370","Non 186 Days","0031","BUSHNELL ELEMEN","19-20 Active Plan","PARAPROFESSIONAL  ELEM","GENERAL FUND PARA","GOODWIN KELLY MARGARET","GOODWKEL000","COBB, CONNIE LYNN","CONNIE LYNN COBB","7:00","08/12/2019","05/29/2020","CLASSIFIED",35,28]
["ARFT CHE000","C02745","CHERYL","JEAN","ARFT","Cheryl.Arft@sumter.k12.fl.us","357","Non 188 Days","0031","BUSHNELL ELEMEN","19-20 Active Plan","FOOD SER WORKER","FOOD SERVICE","SUBER WILLIAM ERIC","SUBERWIL000","ARFT, CHERYL JEAN","CHERYL JEAN ARFT","8:00","08/09/2019","06/01/2020","CLASSIFIED",40,32]
["FARMECYN000","C02889","CYNTHIA","J","FARMER","Cynthia.Farmer@sumter.k12.fl.us","358","Non 186 Days","9004","TRANSPORTATION","19-20 Active Plan","BUS DRIVER TRAINER/SAFETY SPEC","BUS DRIVER TRAINER","FOOTE MICHAEL T","FOOTEMIC000","FARMER, CYNTHIA J","CYNTHIA J FARMER","8:00","08/12/2019","05/29/2020","CLASSIFIED",40,32]
["JAMESCON000","C03040","CONNIE","BETH","JAMES","Connie.James@SUMTER.K12.FL.US","256","Ins 198 Days","0181","LAKE PANASOFFKE","19-20 Active Plan","TEACHER  FIRST","CLASS SIZE TEACHER","WADE NICOLE LYNN","WADE NIC000","JAMES, CONNIE BETH","CONNIE BETH JAMES","7:36","08/02/2019","06/02/2020","INSTRUCTIONAL",38,30.4]
["PENINCLA000","C03051","CLAUDIA","G","PENINGER","claudia.peninger@sumter.k12.fl.us","358","Non 186 Days","9004","TRANSPORTATION","19-20 Active Plan","BUS DRIVER","BUS DRIVER","FOOTE MICHAEL T","FOOTEMIC000","PENINGER, CLAUDIA G","CLAUDIA G PENINGER","7:30","08/12/2019","05/29/2020","CLASSIFIED",37.5,30]
["DIETSCEL000","C03095","CELIA","LOUISE","DIETSCHER","CELIA.DIETSCHER@sumter.k12.fl.us","357","Non 188 Days","0042","SOUTH SUMTER MI","19-20 Active Plan","FOOD SER WORKER","FOOD SERVICE","SUBER WILLIAM ERIC","SUBERWIL000","DIETSCHER, CELIA LOUISE","CELIA LOUISE DIETSCHER","8:00","10/01/2019","06/01/2020","CLASSIFIED",40,32]
["STALLCHR000","C03214","CHRISTINE","TURNER","STALLINGS","Christine.Stallings@SUMTER.K12.FL.US","256","Ins 198 Days","0102","WILDWOOD ELEMEN","19-20 Active Plan","TEACHER  FIRST","GENERAL FUND TEACHER","TEMPLE JOHN P","TEMPLJOH000","STALLINGS, CHRISTINE TURNER","CHRISTINE TURNER STALLINGS","7:36","08/02/2019","06/02/2020","INSTRUCTIONAL",38,30.4]
["STEWACRY000","C03216","CRYSTAL","NIELSEN KNIGHT","STEWART","Crystal.Stewart@SUMTER.K12.FL.US","351","Non 250 Days","9001","COUNTY OFFICE","19-20 Active Plan","ACCOUNT CLERK","TECHNICIAN ACCOUNTS PAYABLE","SMITH DEBORAH WALTERS","SMITHDEB000","STEWART, CRYSTAL NIELSEN KNIGHT","CRYSTAL NIELSEN KNIGHT STEWART","8:00","07/01/2019","06/30/2020","CLASSIFIED",40,32]
["LOWERCOR000","C03217","CORY","J","LOWERY","Cory.Lowery@SUMTER.K12.FL.US","256","Ins 198 Days","0042","SOUTH SUMTER MI","19-20 Active Plan","TEACHER  MUSIC-M/J","GENERAL FUND TEACHER","CAMP JOEL S","CAMP JOE000","LOWERY, CORY J","CORY J LOWERY","7:36","08/02/2019","06/02/2020","INSTRUCTIONAL",38,30.4]
["JOHNSCAR001","C03294","CAROL","LEE","JOHNSON","Carol.Johnson@SUMTER.K12.FL.US","256","Ins 198 Days","0031","BUSHNELL ELEMEN","19-20 Active Plan","TEACHER  FIRST","GENERAL FUND TEACHER","GOODWIN KELLY MARGARET","GOODWKEL000","JOHNSON, CAROL LEE","CAROL LEE JOHNSON","7:36","08/02/2019","06/02/2020","INSTRUCTIONAL",38,30.4]
["VAN HCAR000","C03306","CARRIE","MAUREEN","VAN HOOIJDONK","Carrie.Vanhooijdonk@sumter.k12.fl.us","256","Ins 198 Days","0031","BUSHNELL ELEMEN","19-20 Active Plan","TEACHER  VE","ESE TEACHER","GOODWIN KELLY MARGARET","GOODWKEL000","VAN HOOIJDONK, CARRIE MAUREEN","CARRIE MAUREEN VAN HOOIJDONK","7:36","08/02/2019","06/02/2020","INSTRUCTIONAL",38,30.4]
["HABHACOL000","C03314","COLLEEN","RENEE","HABHAB-STRICKLAND","Colleen.Habhab-strickland@SUMTER.K12.FL.US","151","Adm 250 Days","9001","COUNTY OFFICE","19-20 Active Plan","COOR, INS/CURRICULUM","COORDINATOR CURRICULUM","SHIRLEY RICHARD ALLEN, JR","SHIRLRIC001","HABHAB-STRICKLAND, COLLEEN RENEE","COLLEEN RENEE HABHAB-STRICKLAND","8:00","07/01/2019","06/30/2020","ADMINISTRATION",40,32]
["NOE  C  000","C03479","C","ANDREW","NOE","Christopher.Noe@sumter.k12.fl.us","256","Ins 198 Days","0171","SOUTH SUMTER HI","19-20 Active Plan","TEACHER  SCIENCE-SH","GENERAL FUND TEACHER","MCKINNEY CHRISTINA JOHNSON","MCKINCHR001","NOE, C ANDREW","C ANDREW NOE","7:36","08/02/2019","06/02/2020","INSTRUCTIONAL",38,30.4]
["BRANNCHR000","C03518","CHRISTINA","COSBY","BRANNEN","Christina.Brannen@SUMTER.K12.FL.US","256","Ins 198 Days","0051","WEBSTER ELEMENT","19-20 Active Plan","TEACHER  REM/CE-E","TITLE I/ IDEA TEACHER","SHEA MELYNDA BROOKE","SHEA MEL000","BRANNEN, CHRISTINA COSBY","CHRISTINA COSBY BRANNEN","7:36","08/02/2019","06/02/2020","INSTRUCTIONAL",38,30.4]
["CONNECIN000","C03604","CINDY","DIANE","CONNER","Cindy.Conner@SUMTER.K12.FL.US","256","Ins 198 Days","0051","WEBSTER ELEMENT","19-20 Active Plan","TEACHER  VE","ESE TEACHER","SHEA MELYNDA BROOKE","SHEA MEL000","CONNER, CINDY DIANE","CINDY DIANE CONNER","7:36","08/02/2019","06/02/2020","INSTRUCTIONAL",38,30.4]
["NORMACAR000","C03688","CARRIE","DIANE","NORMAN-TADLOCK","Carrie.Norman-tadlock@SUMTER.K12.FL.US","151","Adm 250 Days","0171","SOUTH SUMTER HI","19-20 Active Plan","ASST PRIN-SH","PRINCIPAL ASSISTANT","MCKINNEY CHRISTINA JOHNSON","MCKINCHR001","NORMAN-TADLOCK, CARRIE DIANE","CARRIE DIANE NORMAN-TADLOCK","8:00","07/01/2019","06/30/2020","ADMINISTRATION",40,32]
["HUGGICAR000","C03718","CAROL","J","HUGGINS","Carol.Huggins@SUMTER.K12.FL.US","370","Non 186 Days","0051","WEBSTER ELEMENT","19-20 Active Plan","PARAPROFESSIONAL  ELEM","GENERAL FUND PARA","SHEA MELYNDA BROOKE","SHEA MEL000","HUGGINS, CAROL J","CAROL J HUGGINS","7:00","08/12/2019","05/29/2020","CLASSIFIED",35,28]
["LAINGCHA000","C03741","CHATTER","CHEA","LAING","Chatter.Laing@Sumter.k12.fl.us","256","Ins 198 Days","0102","WILDWOOD ELEMEN","19-20 Active Plan","TEACHER  VE","ESE TEACHER","TEMPLE JOHN P","TEMPLJOH000","LAING, CHATTER CHEA","CHATTER CHEA LAING","7:36","08/02/2019","06/02/2020","INSTRUCTIONAL",38,30.4]
["MOFFICHE000","C03777","CHERYL","ANN","MOFFITT","cheryl.moffitt@sumter.k12.fl.us","370","Non 186 Days","0102","WILDWOOD ELEMEN","19-20 Active Plan","LAB ASSISTANT","TITLE I LAB ASSISTANT","TEMPLE JOHN P","TEMPLJOH000","MOFFITT, CHERYL ANN","CHERYL ANN MOFFITT","7:24","08/12/2019","05/29/2020","CLASSIFIED",37,29.6]
["JOHNSCAR002","C03783","CARRIE","LEE","JOHNSON","Carrie.L.Johnson@sumter.k12.fl.us","358","Non 186 Days","9004","TRANSPORTATION","19-20 Active Plan","ROUTE COOR","TECHNICIAN ROUTE COORDINATOR","FOOTE MICHAEL T","FOOTEMIC000","JOHNSON, CARRIE LEE","CARRIE LEE JOHNSON","8:00","08/12/2019","05/29/2020","CLASSIFIED",40,32]
["ROMANCAR000","C03878","CARLOS","E","ROMAN-CEREZO","Carlos.Roman@SUMTER.K12.FL.US","256","Ins 198 Days","0051","WEBSTER ELEMENT","19-20 Active Plan","TEACHER  MUSIC-E","GENERAL FUND TEACHER","SHEA MELYNDA BROOKE","SHEA MEL000","ROMAN-CEREZO, CARLOS E","CARLOS E ROMAN-CEREZO","7:36","08/02/2019","06/02/2020","INSTRUCTIONAL",38,30.4]
["RUIZ CIN000","C03897","CINTHIA","ENID","RUIZ","Cinthia.Ruiz@Sumter.k12.fl.us","256","Ins 198 Days","0031","BUSHNELL ELEMEN","19-20 Active Plan","TEACHER  SECOND","GENERAL FUND TEACHER","GOODWIN KELLY MARGARET","GOODWKEL000","RUIZ, CINTHIA ENID","CINTHIA ENID RUIZ","7:36","08/02/2019","06/02/2020","INSTRUCTIONAL",38,30.4]
["OROZCCAT000","C03978","CATHERINE","ANNE","OROZCO","Catherine.Orozco@sumter.k12.fl.us","372","Non 220A Days","0102","WILDWOOD ELEMEN","19-20 Active Plan","DATA ENT OP  ATT/SW","DATA ENTRY CLERK","TEMPLE JOHN P","TEMPLJOH000","OROZCO, CATHERINE ANNE","CATHERINE ANNE OROZCO","7:00","07/12/2019","06/12/2020","CLASSIFIED",35,28]
["WHITECON000","C03985","CONNIE","JUNE","WHITE","Connie.White@sumter.k12.fl.us","256","Ins 198 Days","0181","LAKE PANASOFFKE","19-20 Active Plan","TEACHER  THIRD","CLASS SIZE TEACHER","WADE NICOLE LYNN","WADE NIC000","WHITE, CONNIE JUNE","CONNIE JUNE WHITE","7:36","08/02/2019","06/02/2020","INSTRUCTIONAL",38,30.4]
["FOSTECHR000","C03991","CHRISTA","ANN","FOSTER","christa.foster@sumter.k12.fl.us","357","Non 188 Days","0171","SOUTH SUMTER HI","19-20 Active Plan","FOOD SER WORKER","FOOD SERVICE","SUBER WILLIAM ERIC","SUBERWIL000","FOSTER, CHRISTA ANN","CHRISTA ANN FOSTER","7:00","08/09/2019","06/01/2020","CLASSIFIED",35,28]
["SMITHCHR000","C04011","CHRISTINA","LOUISE","SMITH","Christina.Smith@Sumter.k12.fl.us","256","Ins 198 Days","0051","WEBSTER ELEMENT","19-20 Active Plan","TEACHER  SECOND","GENERAL FUND TEACHER","SHEA MELYNDA BROOKE","SHEA MEL000","SMITH, CHRISTINA LOUISE","CHRISTINA LOUISE SMITH","7:36","08/02/2019","06/02/2020","INSTRUCTIONAL",38,30.4]
["EPPERCHR000","C04030","CHRISTOPHER","DAVID","EPPERSON","Christopher.Epperson@sumter.k12.fl.us","152","Adm- 221 Days","0171","SOUTH SUMTER HI","19-20 Active Plan","ASST PRIN-SH","PRINCIPAL ASSISTANT","MCKINNEY CHRISTINA JOHNSON","MCKINCHR001","EPPERSON, CHRISTOPHER DAVID","CHRISTOPHER DAVID EPPERSON","8:00","07/12/2019","06/12/2020","ADMINISTRATION",40,32]
["MARTICAS000","C04071","CASEY","DOUGLAS","MARTIN","Casey.Martin@sumter.k12.fl.us","351","Non 250 Days","0171","SOUTH SUMTER HI","19-20 Active Plan","HEAD CUSTODIAN","CUSTODIAN","MCKINNEY CHRISTINA JOHNSON","MCKINCHR001","MARTIN, CASEY DOUGLAS","CASEY DOUGLAS MARTIN","8:00","07/01/2019","06/30/2020","CLASSIFIED",40,32]
["WORRECOR000","C04247","CORTNY","MERISSA","WORRELL","Cortny.Worrell@Sumter.k12.fl.us","256","Ins 198 Days","0042","SOUTH SUMTER MI","19-20 Active Plan","TEACHER  SOC ST-M/J","CLASS SIZE TEACHER","CAMP JOEL S","CAMP JOE000","WORRELL, CORTNY MERISSA","CORTNY MERISSA WORRELL","7:36","08/02/2019","06/02/2020","INSTRUCTIONAL",38,30.4]
["BREENCAT000","C04326","CATHERINE","MARY","BREEN","CATHERINE.BREEN@SUMTER.K12.FL.US","256","Ins 198 Days","0171","SOUTH SUMTER HI","19-20 Active Plan","TEACHER  MATH-SH","CLASS SIZE TEACHER","MCKINNEY CHRISTINA JOHNSON","MCKINCHR001","BREEN, CATHERINE MARY","CATHERINE MARY BREEN","7:36","08/02/2019","06/02/2020","INSTRUCTIONAL",38,30.4]
["SIMMOCYN000","C04327","CYNTHIA","MARIE","SIMMONS","CYNTHIA.SIMMONS@SUMTER.K12.FL.US","256","Ins 198 Days","0042","SOUTH SUMTER MI","19-20 Active Plan","TEACHER  SCIENCE-M/J","CLASS SIZE TEACHER","CAMP JOEL S","CAMP JOE000","SIMMONS, CYNTHIA MARIE","CYNTHIA MARIE SIMMONS","7:36","12/02/2019","06/02/2020","INSTRUCTIONAL",38,30.4]
["SASLOCLA000","C04429","CLARISSA","LYN","SASLOVSKY","Clarissa.Saslovsky@Sumter.k12.fl.us","265","Ins 212B Days","0161","WILDWOOD M/H","19-20 Active Plan","COUNSELOR-SH","COUNSELOR","GRAYBEAL JERRY DUANE","GRAYBJER000","SASLOVSKY, CLARISSA LYN","CLARISSA LYN SASLOVSKY","7:36","07/30/2019","06/17/2020","INSTRUCTIONAL",38,30.4]
["BREENCHA000","C04444","CHARLES","D","BREEN","Charles.Breen@Sumter.k12.fl.us","256","Ins 198 Days","0171","SOUTH SUMTER HI","19-20 Active Plan","TEACHER  MATH-SH","GENERAL FUND TEACHER","MCKINNEY CHRISTINA JOHNSON","MCKINCHR001","BREEN, CHARLES D","CHARLES D BREEN","7:36","08/02/2019","06/02/2020","INSTRUCTIONAL",38,30.4]
["MILLECAR000","C04530","CARLTON","STEVEN","MILLETT","carlton.millett@sumter.k12.fl.us","358","Non 186 Days","9004","TRANSPORTATION","19-20 Active Plan","BUS DRIVER","BUS DRIVER","FOOTE MICHAEL T","FOOTEMIC000","MILLETT, CARLTON STEVEN","CARLTON STEVEN MILLETT","5:00","11/04/2019","05/29/2020","CLASSIFIED",25,20]
["MORELCAL000","C04534","CALEB","VON","MORELAND","Caleb.Moreland@sumter.k12.fl.us","256","Ins 198 Days","0051","WEBSTER ELEMENT","19-20 Active Plan","TEACHER  PE-E","GENERAL FUND TEACHER","SHEA MELYNDA BROOKE","SHEA MEL000","MORELAND, CALEB VON","CALEB VON MORELAND","7:36","08/02/2019","06/02/2020","INSTRUCTIONAL",38,30.4]
["BONNECRY000","C04590","CRYSTAL","ANN","BONNER","crystal.bonner@sumter.k12.fl.us","370","Non 186 Days","0042","SOUTH SUMTER MI","19-20 Active Plan","PARAPROFESSIONAL ESE AGES 6-","ESE PARA","CAMP JOEL S","CAMP JOE000","BONNER, CRYSTAL ANN","CRYSTAL ANN BONNER","7:00","08/12/2019","05/29/2020","CLASSIFIED",35,28]
["LAROWCAR000","C04616","CAROLYN","SUZANNE","LAROWE","carolyn.larowe@sumter.k12.fl.us","370","Non 186 Days","9004","TRANSPORTATION","19-20 Active Plan","BUS AIDE  EX ST ED","ESE BUS AIDE","FOOTE MICHAEL T","FOOTEMIC000","LAROWE, CAROLYN SUZANNE","CAROLYN SUZANNE LAROWE","4:45","08/27/2019","05/29/2020","CLASSIFIED",23.75,19]
["FERGUCAS000","C04633","CASEY","LOREN","FERGUSON","Casey.Ferguson@sumter.k12.fl.us","151","Adm 250 Days","0191","ADULT EDUCATION","19-20 Active Plan","PRINCIPAL-ADULT ED","PRINCIPAL","SHIRLEY RICHARD ALLEN, JR","SHIRLRIC001","FERGUSON, CASEY LOREN","CASEY LOREN FERGUSON","8:00","07/01/2019","06/30/2020","ADMINISTRATION",40,32]
["MORELCOU000","C04637","COURTNEY","CAY","MORELAND","courtney.moreland@sumter.k12.fl.us","256","Ins 198 Days","0051","WEBSTER ELEMENT","19-20 Active Plan","TEACHER  KG","GENERAL FUND TEACHER","SHEA MELYNDA BROOKE","SHEA MEL000","MORELAND, COURTNEY CAY","COURTNEY CAY MORELAND","7:36","08/02/2019","06/02/2020","INSTRUCTIONAL",38,30.4]
["MCCRACAR000","C04642","CARISSA","RESHAWN","MCCRAY","Carissa.McCray@sumter.k12.fl.us","256","Ins 198 Days","0161","WILDWOOD M/H","19-20 Active Plan","TEACHER  LANG AR-SH","CLASS SIZE TEACHER","GRAYBEAL JERRY DUANE","GRAYBJER000","MCCRAY, CARISSA RESHAWN","CARISSA RESHAWN MCCRAY","7:36","08/02/2019","06/02/2020","INSTRUCTIONAL",38,30.4]
["LIPHACHE000","C04650","CHELSEA","JANELLE","LIPHAM","Chelsea.Lipham@sumter.k12.fl.us","256","Ins 198 Days","0161","WILDWOOD M/H","19-20 Active Plan","LEARN RES SPEC","TITLE I LEARNING RESOURCE","GRAYBEAL JERRY DUANE","GRAYBJER000","LIPHAM, CHELSEA JANELLE","CHELSEA JANELLE LIPHAM","7:36","08/02/2019","06/02/2020","INSTRUCTIONAL",38,30.4]
["CAMARCAR000","C04654","CARLOS","ALBERTO","CAMARA","Carlos.Camara@sumter.k12.fl.us","256","Ins 198 Days","0031","BUSHNELL ELEMEN","19-20 Active Plan","TEACHER  VE","ESE TEACHER","GOODWIN KELLY MARGARET","GOODWKEL000","CAMARA, CARLOS ALBERTO","CARLOS ALBERTO CAMARA","7:36","08/02/2019","06/02/2020","INSTRUCTIONAL",38,30.4]
["HUMPHCRY000","C04656","CRYSTAL","MARIE","HUMPHREY","Crystal.Humphrey@sumter.k12.fl.us","256","Ins 198 Days","9008","ESE DEPARTMENT","19-20 Active Plan","SCH PSYCHOLOGIST","PSYCHOLOGIST","DUSTIN KATHERINE M","DUSTIKAT000","HUMPHREY, CRYSTAL MARIE","CRYSTAL MARIE HUMPHREY","7:36","08/02/2019","06/02/2020","INSTRUCTIONAL",38,30.4]
["JOHNSCAR000","C04745","CARRIE","LYNN","JOHNSON","Carrie.Johnson@sumter.k12.fl.us","256","Ins 198 Days","0042","SOUTH SUMTER MI","19-20 Active Plan","TEACHER  LANG AR-M/J","GENERAL FUND TEACHER","CAMP JOEL S","CAMP JOE000","JOHNSON, CARRIE LYNN","CARRIE LYNN JOHNSON","7:36","08/02/2019","06/02/2020","INSTRUCTIONAL",38,30.4]
["GAUNTCHR000","C04793","CHRISTOPHER","J","GAUNTLETT","Christopher.Gauntlett@sumter.k12.fl.us","256","Ins 198 Days","0171","SOUTH SUMTER HI","19-20 Active Plan","TEACHER LEADERSHIP SKILLS DEVE","GENERAL FUND TEACHER","MCKINNEY CHRISTINA JOHNSON","MCKINCHR001","GAUNTLETT, CHRISTOPHER J","CHRISTOPHER J GAUNTLETT","7:36","08/02/2019","06/02/2020","INSTRUCTIONAL",38,30.4]
["DORN CHA000","C04828","CHARLES","EDWARD","DORN","Charles.Dorn@sumter.k12.fl.us","370","Non 186 Days","3001","SUMTER PREP","19-20 Active Plan","PARAPROFESSIONAL  ESE AGES 6-","IDEA PARA","PRESLEY JAMES CHESTER","PRESLJAM000","DORN, CHARLES EDWARD","CHARLES EDWARD DORN","7:00","08/12/2019","05/29/2020","CLASSIFIED",35,28]
["SANCHCLA000","C04855","CLAUDIA","M HERNANDEZ","SANCHEZ","claudia.sanchez@sumter.k12.fl.us","357","Non 188 Days","0051","WEBSTER ELEMENT","19-20 Active Plan","FOOD SER WORKER","FOOD SERVICE","SUBER WILLIAM ERIC","SUBERWIL000","SANCHEZ, CLAUDIA M HERNANDEZ","CLAUDIA M HERNANDEZ SANCHEZ","7:00","08/09/2019","06/01/2020","CLASSIFIED",35,28]
["MOBLECYN000","C04887","CYNTHIA","LORRAINE","MOBLEY","Cynthia.Mobley@sumter.k12.fl.us","370","Non 186 Days","0161","WILDWOOD M/H","19-20 Active Plan","PARAPROFESSIONAL ESE AGES 6-","ESE PARA","GRAYBEAL JERRY DUANE","GRAYBJER000","MOBLEY, CYNTHIA LORRAINE","CYNTHIA LORRAINE MOBLEY","7:00","08/12/2019","05/29/2020","CLASSIFIED",35,28]
["COOPECHA000","C04890","CHARLES","WARREN","COOPER","Charles.Cooper@sumter.k12.fl.us","351","Non 250 Days","0102","WILDWOOD ELEMEN","19-20 Active Plan","HEAD CUSTODIAN","CUSTODIAN","TEMPLE JOHN P","TEMPLJOH000","COOPER, CHARLES WARREN","CHARLES WARREN COOPER","8:00","07/01/2019","06/30/2020","CLASSIFIED",40,32]
["MONTGCHR000","C04931","CHRISTINA","ANN","MONTGOMERY","Christina.Montgomery@sumter.k12.fl.us","371","Non 196 Days","0181","LAKE PANASOFFKE","19-20 Active Plan","PARAPROFESSIONAL  PK","TITLE I/ PRE K LEAD","WADE NICOLE LYNN","WADE NIC000","MONTGOMERY, CHRISTINA ANN","CHRISTINA ANN MONTGOMERY","8:00","08/02/2019","06/02/2020","CLASSIFIED",40,32]
["CRUZ CEC000","C04940","CECILIA","DAYANA","CRUZ","Cecilia.Cruz@sumter.k12.fl.us","256","Ins 198 Days","0031","BUSHNELL ELEMEN","19-20 Active Plan","TEACHER  SECOND","GENERAL FUND TEACHER","GOODWIN KELLY MARGARET","GOODWKEL000","CRUZ, CECILIA DAYANA","CECILIA DAYANA CRUZ","7:36","08/02/2019","06/02/2020","INSTRUCTIONAL",38,30.4]
["COLTOCAR000","C04960","CARL","ANDRE","COLTON","carl.colton@sumter.k12.fl.us","358","Non 186 Days","9004","TRANSPORTATION","19-20 Active Plan","BUS DRIVER","BUS DRIVER","FOOTE MICHAEL T","FOOTEMIC000","COLTON, CARL ANDRE","CARL ANDRE COLTON","5:00","08/12/2019","05/29/2020","CLASSIFIED",25,20]
["JERICCRI000","C05048","CRISTY","LEE","JERICHO","cristy.jericho@sumter.k12.fl.us","357","Non 188 Days","0051","WEBSTER ELEMENT","19-20 Active Plan","FOOD SER WORKER","FOOD SERVICE","SUBER WILLIAM ERIC","SUBERWIL000","JERICHO, CRISTY LEE","CRISTY LEE JERICHO","8:00","08/09/2019","06/01/2020","CLASSIFIED",40,32]
["INAMDCAR000","C05121","CAROL","A","INAMDAR","carol.inamdar@sumter.k12.fl.us","370","Non 186 Days","0102","WILDWOOD ELEMEN","19-20 Active Plan","PARAPROFESSIONAL ESE AGES 6-","ESE PARA","TEMPLE JOHN P","TEMPLJOH000","INAMDAR, CAROL A","CAROL A INAMDAR","7:00","08/12/2019","05/29/2020","CLASSIFIED",35,28]
["CASTLCHR000","C05230","CHRISTOPHER","EUGENE","CASTLE","christopher.castle@sumter.k12.fl.us","256","Ins 198 Days","0031","BUSHNELL ELEMEN","19-20 Active Plan","TEACHER  FIRST","GENERAL FUND TEACHER","GOODWIN KELLY MARGARET","GOODWKEL000","CASTLE JR, CHRISTOPHER EUGENE","CHRISTOPHER EUGENE CASTLE JR","7:36","08/02/2019","06/02/2020","INSTRUCTIONAL",38,30.4]
["BARNECHE000","C05252","CHEYENNE","KAID","BARNES","cheyenne.barnes@sumter.k12.fl.us","256","Ins 198 Days","0181","LAKE PANASOFFKE","19-20 Active Plan","TEACHER  SECOND","GENERAL FUND TEACHER","WADE NICOLE LYNN","WADE NIC000","BARNES, CHEYENNE KAID","CHEYENNE KAID BARNES","7:36","08/02/2019","06/02/2020","INSTRUCTIONAL",38,30.4]
["KELLECHR000","C05280","CHRISTIE","NICOLE","KELLEY","christie.kelley@sumter.k12.fl.us","370","Non 186 Days","0031","BUSHNELL ELEMEN","19-20 Active Plan","PARAPROFESSIONAL  ELEM","SAI PARA","GOODWIN KELLY MARGARET","GOODWKEL000","KELLEY, CHRISTIE NICOLE","CHRISTIE NICOLE KELLEY","7:00","08/12/2019","05/29/2020","CLASSIFIED",35,28]
["LYSIACAT000","C05287","CATHI","MARIE","LYSIAK","cathi.lysiak@sumter.k12.fl.us","357","Non 188 Days","0031","BUSHNELL ELEMEN","19-20 Active Plan","FOOD SER WORKER","FOOD SERVICE","SUBER WILLIAM ERIC","SUBERWIL000","LYSIAK, CATHI MARIE","CATHI MARIE LYSIAK","5:00","08/09/2019","06/01/2020","CLASSIFIED",{"$f":"+R194*24*5","v":25},{"$f":"+R194*24*4","v":20}]
["EDWARCHA000","C05315","CHANCE",null,"EDWARDS","chance.edwards@sumter.k12.fl.us","256","Ins 198 Days","3001","SUMTER PREP","19-20 Active Plan","TEACHER  VE","ESE TEACHER","PRESLEY JAMES CHESTER","PRESLJAM000","EDWARDS, CHANCE","CHANCE EDWARDS","7:36","10/31/2019","06/02/2020","INSTRUCTIONAL",38,30.4]
["MORGACHA000","C05360","CHAD","JOSEPH","MORGAN","chad.morgan@sumter.k12.fl.us","370","Non 186 Days","0031","BUSHNELL ELEMEN","19-20 Active Plan","PARAPROFESSIONAL ESE AGES 6-","ESE PARA","GOODWIN KELLY MARGARET","GOODWKEL000","MORGAN, CHAD JOSEPH","CHAD JOSEPH MORGAN","7:00","08/12/2019","05/29/2020","CLASSIFIED",35,28]
["FORT CAS000","C05366","CASEY","ALLEN","FORT","casey.fort@sumter.k12.fl.us","351","Non 250 Days","9005","MAINTENANCE CEN","19-20 Active Plan","MAIN WK","MAINTENANCE WORKER","SUBER WILLIAM ERIC","SUBERWIL000","FORT, CASEY ALLEN","CASEY ALLEN FORT","8:00","12/02/2019","06/30/2020","CLASSIFIED",40,32]
["MUELLCAR000","C05426","CARRIE","A","MUELLER","carrie.mueller@sumter.k12.fl.us","370","Non 186 Days","0102","WILDWOOD ELEMEN","19-20 Active Plan","FOOD SER AIDE","FOOD SERVICE","SUBER WILLIAM ERIC","SUBERWIL000","MUELLER, CARRIE A","CARRIE A MUELLER","4:00","08/12/2019","05/29/2020","CLASSIFIED",20,16]
["GIBSOCHE000","C05468","CHET","WARREN","GIBSON","chet.gibson@sumter.k12.fl.us","358","Non 186 Days","9004","TRANSPORTATION","19-20 Active Plan","BUS DRIVER","BUS DRIVER","FOOTE MICHAEL T","FOOTEMIC000","GIBSON, CHET WARREN","CHET WARREN GIBSON","4:00","03/16/2020","05/29/2020","CLASSIFIED",20,16]
["COSTACHR000","C05499","CHRISTOPHER","A","COSTANZA JR","christopher.costanza@sumter.k12.fl.us","372","Non 220A Days","9006","TECHNOLOGY DEPT","19-20 Active Plan","TECH  IT","TECHNICIAN TECH SUPPORT","TRICK DAVID E","TRICKDAV000","COSTANZA JR, CHRISTOPHER A","CHRISTOPHER A COSTANZA JR","8:00","01/07/2020","06/12/2020","CLASSIFIED",40,32]
["KEELEDAV000","D00089","DAVID","CHARLES","KEELER","David.Keeler@SUMTER.K12.FL.US","651","CNU 250 Days","9004","TRANSPORTATION","19-20 Active Plan","MANAGER  TRANS","TRANSPORTATION SERVICE MANAGER","FOOTE MICHAEL T","FOOTEMIC000","KEELER, DAVID CHARLES","DAVID CHARLES KEELER","8:00","07/01/2019","06/30/2020","NON-INSTRUCT NO BARGAINING UNI",40,32]
["PAOLIDAR000","D00305","DARIA",null,"PAOLILLO","Daria.Paolillo@SUMTER.K12.FL.US","256","Ins 198 Days","0031","BUSHNELL ELEMEN","19-20 Active Plan","TEACHER  FOURTH","CLASS SIZE TEACHER","GOODWIN KELLY MARGARET","GOODWKEL000","PAOLILLO, DARIA","DARIA PAOLILLO","7:36","08/02/2019","06/02/2020","INSTRUCTIONAL",38,30.4]
["DAVESDEB000","D00309","DEBORAH","ANN","DAVES","Deborah.Daves@SUMTER.K12.FL.US","355","Non 200 Days","0181","LAKE PANASOFFKE","19-20 Active Plan","CLERK  SCH","CLERK SCHOOL","WADE NICOLE LYNN","WADE NIC000","DAVES, DEBORAH ANN","DEBORAH ANN DAVES","7:00","08/01/2019","06/04/2020","CLASSIFIED",35,28]
["SMITHDEB000","D00320","DEBORAH","WALTERS","SMITH","Deborah.Smith@SUMTER.K12.FL.US","151","Adm 250 Days","9001","COUNTY OFFICE","19-20 Active Plan","EXEC DIR  ADMIN","SR DIRECTOR FINANCE","WHITMAN LISA LYNN","WHITMLIS000","SMITH, DEBORAH WALTERS","DEBORAH WALTERS SMITH","8:00","07/01/2019","06/30/2020","ADMINISTRATION",40,32]
["FRAZIDES000","D00371","DESIREE","ALDERMAN","FRAZIER","Desiree.Frazier@SUMTER.K12.FL.US","256","Ins 198 Days","0042","SOUTH SUMTER MI","19-20 Active Plan","TEACHER READ-M/J","TITLE I TEACHER","CAMP JOEL S","CAMP JOE000","FRAZIER, DESIREE ALDERMAN","DESIREE ALDERMAN FRAZIER","7:36","08/02/2019","06/02/2020","INSTRUCTIONAL",38,30.4]
["MILLEDEN000","D00655","DENISE","BLEASE","MILLETT","denise.millett@sumter.k12.fl.us","358","Non 186 Days","9004","TRANSPORTATION","19-20 Active Plan","BUS DRIVER","BUS DRIVER","FOOTE MICHAEL T","FOOTEMIC000","MILLETT, DENISE BLEASE","DENISE BLEASE MILLETT","5:45","08/12/2019","05/29/2020","CLASSIFIED",28.75,23]
["MOTESDEB000","D00798","DEBORAH","LYNN","MOTES","deborah.motes@sumter.k12.fl.us","357","Non 188 Days","0031","BUSHNELL ELEMEN","19-20 Active Plan","FOOD SER WORKER","FOOD SERVICE","SUBER WILLIAM ERIC","SUBERWIL000","MOTES, DEBORAH LYNN","DEBORAH LYNN MOTES","8:00","08/09/2019","06/01/2020","CLASSIFIED",40,32]
["STORYDEB000","D01318","DEBORAH","SUE","STORY","Deborah.Story@SUMTER.K12.FL.US","351","Non 250 Days","9008","ESE DEPARTMENT","19-20 Active Plan","SEC  INS/CUR","SECRETARY ESE","DUSTIN KATHERINE M","DUSTIKAT000","STORY, DEBORAH SUE","DEBORAH SUE STORY","8:00","07/01/2019","06/30/2020","CLASSIFIED",40,32]
["GOEPFDAW000","D01355","DAWN","MELANIE","GOEPFERT","dawn.goepfert@sumter.k12.fl.us","370","Non 186 Days","0051","WEBSTER ELEMENT","19-20 Active Plan","PARAPROFESSIONAL  ELEM","GENERAL FUND PARA","SHEA MELYNDA BROOKE","SHEA MEL000","GOEPFERT, DAWN MELANIE","DAWN MELANIE GOEPFERT","7:00","08/12/2019","05/29/2020","CLASSIFIED",35,28]
["NORTODOU000","D01683","DOUGLAS","HUGH","NORTON","douglas.norton@sumter.k12.fl.us","256","Ins 198 Days","0042","SOUTH SUMTER MI","19-20 Active Plan","TEACHER  LANG AR-M/J","CLASS SIZE TEACHER","CAMP JOEL S","CAMP JOE000","NORTON, DOUGLAS HUGH","DOUGLAS HUGH NORTON","7:36","08/02/2019","06/02/2020","INSTRUCTIONAL",38,30.4]
["MOFFIDEB000","D01723","DEBORAH","DEON","MOFFITT","Deborah.Moffitt@SUMTER.K12.FL.US","151","Adm 250 Days","9001","COUNTY OFFICE","19-20 Active Plan","EXEC DIR  ADMIN","SR DIRECTOR INS/CURRICULUM","WHITMAN LISA LYNN","WHITMLIS000","MOFFITT, DEBORAH DEON","DEBORAH DEON MOFFITT","8:00","07/01/2019","06/30/2020","ADMINISTRATION",40,32]
["PALMED  000","D01738","D","PATRICE","PALMER","D.Palmer@SUMTER.K12.FL.US","256","Ins 198 Days","0161","WILDWOOD M/H","19-20 Active Plan","TEACHER  MATH-M/J","GENERAL FUND TEACHER","GRAYBEAL JERRY DUANE","GRAYBJER000","PALMER, D PATRICE","D PATRICE PALMER","7:36","08/02/2019","06/02/2020","INSTRUCTIONAL",38,30.4]
["BOYATDEB000","D01910","DEBORAH","LYNNE","BOYATT","Deborah.Boyatt@SUMTER.K12.FL.US","451","Con 250 Days","0171","SOUTH SUMTER HI","19-20 Active Plan","SEC  SCH","SECRETARY SCHOOL","MCKINNEY CHRISTINA JOHNSON","MCKINCHR001","BOYATT, DEBORAH LYNNE","DEBORAH LYNNE BOYATT","8:00","07/01/2019","06/30/2020","CONFIDENTIAL/CLASSIFIED",40,32]
["KADURDIE000","D02062","DIETER","M","KADUR","Dieter.Kadur@SUMTER.K12.FL.US","256","Ins 198 Days","0042","SOUTH SUMTER MI","19-20 Active Plan","LEARN RES SPEC","TITLE I LEARNING RESOURCE","CAMP JOEL S","CAMP JOE000","KADUR, DIETER M","DIETER M KADUR","7:36","08/02/2019","06/02/2020","INSTRUCTIONAL",38,30.4]
["ENGLIDAN000","D02261","DANETTE","BELLAMY","ENGLISH","Danette.English@SUMTER.K12.FL.US","370","Non 186 Days","0051","WEBSTER ELEMENT","19-20 Active Plan","PARAPROFESSIONAL  ELEM","TITLE I/ SAI PARA - ISS","SHEA MELYNDA BROOKE","SHEA MEL000","ENGLISH, DANETTE BELLAMY","DANETTE BELLAMY ENGLISH","7:00","08/12/2019","05/29/2020","CLASSIFIED",35,28]
["BEDGODEB000","D02466","DEBBIE","MARIE","BEDGOOD","debbie.bedgood@sumter.k12.fl.us","371","Non 196 Days","0031","BUSHNELL ELEMEN","19-20 Active Plan","PARAPROFESSIONAL  PK","TITLE I/ PRE K LEAD","GOODWIN KELLY MARGARET","GOODWKEL000","BEDGOOD, DEBBIE MARIE","DEBBIE MARIE BEDGOOD","8:00","08/02/2019","06/02/2020","CLASSIFIED",40,32]
["SHIRLDES000","D02566","DESA-RAE","BELLE","SHIRLEY","Desa-Rae.Shirley@SUMTER.K12.FL.US","256","Ins 198 Days","0042","SOUTH SUMTER MI","19-20 Active Plan","TEACHER  MATH-M/J","CLASS SIZE TEACHER","CAMP JOEL S","CAMP JOE000","SHIRLEY, DESA-RAE BELLE","DESA-RAE BELLE SHIRLEY","7:36","08/02/2019","06/02/2020","INSTRUCTIONAL",38,30.4]
["HILEMDEB000","D02676","DEBBIE","J","HILEMAN","Debbie.Hileman@SUMTER.K12.FL.US","256","Ins 198 Days","0171","SOUTH SUMTER HI","19-20 Active Plan","TEACHER  FAM & CONS SCI","GENERAL FUND TEACHER","MCKINNEY CHRISTINA JOHNSON","MCKINCHR001","HILEMAN, DEBBIE J","DEBBIE J HILEMAN","7:36","08/02/2019","06/02/2020","INSTRUCTIONAL",38,30.4]
["AUSLEDAW000","D02778","DAWN","A","AUSLEY","Dawn.Ausley@SUMTER.K12.FL.US","451","Con 250 Days","3001","SUMTER PREP","19-20 Active Plan","SEC  SCH","SECRETARY SCHOOL","PRESLEY JAMES CHESTER","PRESLJAM000","AUSLEY, DAWN A","DAWN A AUSLEY","8:00","07/01/2019","06/30/2020","CONFIDENTIAL/CLASSIFIED",40,32]
["GOSSEDOR000","D02951","DOROTHY","ANN","GOSSETT","dorothy.gossett@sumter.k12.fl.us","358","Non 186 Days","9004","TRANSPORTATION","19-20 Active Plan","BUS DRIVER","BUS DRIVER","FOOTE MICHAEL T","FOOTEMIC000","GOSSETT, DOROTHY ANN","DOROTHY ANN GOSSETT","5:30","03/16/2020","05/29/2020","CLASSIFIED",27.5,22]
["LASHLDEB000","D02979","DEBRA","KAY","LASHLEY","Debra.Lashley@SUMTER.K12.FL.US","275","Ins 202 Days","0042","SOUTH SUMTER MI","19-20 Active Plan","COUNSELOR-M/J","COUNSELOR","CAMP JOEL S","CAMP JOE000","LASHLEY, DEBRA KAY","DEBRA KAY LASHLEY","7:36","07/31/2019","06/04/2020","INSTRUCTIONAL",38,30.4]
["GOFF DIA000","D03070","DIANA","L","GOFF","Diana.Goff@SUMTER.K12.FL.US","256","Ins 198 Days","0051","WEBSTER ELEMENT","19-20 Active Plan","TEACHER  SECOND","GENERAL FUND TEACHER","SHEA MELYNDA BROOKE","SHEA MEL000","GOFF, DIANA L","DIANA L GOFF","7:36","08/02/2019","06/02/2020","INSTRUCTIONAL",38,30.4]
["HOWARDEL000","D03118","DELENE","RENEE","HOWARD","Delene.Howard@SUMTER.K12.FL.US","370","Non 186 Days","0051","WEBSTER ELEMENT","19-20 Active Plan","PARAPROFESSIONAL ESE AGES 6-","ESE PARA","SHEA MELYNDA BROOKE","SHEA MEL000","HOWARD, DELENE RENEE","DELENE RENEE HOWARD","7:00","08/12/2019","05/29/2020","CLASSIFIED",35,28]
["SMITHDEV000","D03175","DEVIN","R","SMITH","Devin.smith@sumter.k12.fl.us","351","Non 250 Days","9005","MAINTENANCE CEN","19-20 Active Plan","MAIN WK","MAINTENANCE WORKER","SUBER WILLIAM ERIC","SUBERWIL000","SMITH, DEVIN R","DEVIN R SMITH","8:00","03/02/2020","06/30/2020","CLASSIFIED",40,32]
["RAGARDEE000","D03279","DEE","ANDREA","RAGAR","Dee.Ragar@SUMTER.K12.FL.US","262","Ins 212A Days","0161","WILDWOOD M/H","19-20 Active Plan","SPEC  INS/CUR","SPECIALIST INS/CURRICULUM","GRAYBEAL JERRY DUANE","GRAYBJER000","RAGAR, DEE ANDREA","DEE ANDREA RAGAR","8:00","07/25/2019","06/12/2020","INSTRUCTIONAL",40,32]
["WILLIDAN000","D03368","DANA","PITTS","WILLIAMS","Dana.Williams@SUMTER.K12.FL.US","151","Adm 250 Days","9100","SUMTER PROFESSI","19-20 Active Plan","DIR STAFF","DIRECTOR PROFESSIONAL LEARNING","WHITMAN LISA LYNN","WHITMLIS000","WILLIAMS, DANA PITTS","DANA PITTS WILLIAMS","8:00","07/01/2019","06/30/2020","ADMINISTRATION",40,32]
["CHRISDAV000","D03399","DAVID","L","CHRISTENSEN","DAVID.CHRISTENSEN@SUMTER.K12.FL.US","256","Ins 198 Days","0031","BUSHNELL ELEMEN","19-20 Active Plan","TEACHER  MUSIC-E","GENERAL FUND TEACHER","GOODWIN KELLY MARGARET","GOODWKEL000","CHRISTENSEN, DAVID L","DAVID L CHRISTENSEN","7:36","08/02/2019","06/02/2020","INSTRUCTIONAL",38,30.4]
["JACKSDAN000","D03419","DANEENE","ANNE","JACKSON","Daneene.Jackson@sumter.k12.fl.us","370","Non 186 Days","0102","WILDWOOD ELEMEN","19-20 Active Plan","PARAPROFESSIONAL ESE AGES 6-","ESE PARA","TEMPLE JOHN P","TEMPLJOH000","JACKSON, DANEENE ANNE","DANEENE ANNE JACKSON","7:00","08/12/2019","05/29/2020","CLASSIFIED",35,28]
["FOSTEDAV000","D03496","DAVID","GRANT","FOSTER","David.Foster@sumter.k12.fl.us","351","Non 250 Days","0181","LAKE PANASOFFKE","19-20 Active Plan","CUSTODIAN","FOOD SERVICE/CUSTODIAN","WADE NICOLE LYNN","WADE NIC000","FOSTER, DAVID GRANT","DAVID GRANT FOSTER","8:00","07/01/2019","06/30/2020","CLASSIFIED",40,32]
["STIMPDEN000","D03540","DENISE","LEONA","STIMPSON","denise.stimpson@sumter.k12.fl.us","358","Non 186 Days","9004","TRANSPORTATION","19-20 Active Plan","BUS DRIVER","BUS DRIVER","FOOTE MICHAEL T","FOOTEMIC000","STIMPSON, DENISE LEONA","DENISE LEONA STIMPSON","4:00","08/12/2019","05/29/2020","CLASSIFIED",20,16]
["VARNUDOT000","D03599","DOTTIE","FERN","VARNUM","dottie.varnum@sumter.k12.fl.us","370","Non 186 Days","0042","SOUTH SUMTER MI","19-20 Active Plan","PARAPROFESSIONAL  M/J","GENERAL FUND PARA","CAMP JOEL S","CAMP JOE000","VARNUM, DOTTIE FERN","DOTTIE FERN VARNUM","7:00","08/12/2019","05/29/2020","CLASSIFIED",35,28]
["MOSESDAW000","D03631","DAWN","ANGEL","MOSES","DAWN.MOSES@SUMTER.K12.FL.US","256","Ins 198 Days","0042","SOUTH SUMTER MI","19-20 Active Plan","TEACHER  SCIENCE-M/J","CLASS SIZE TEACHER","CAMP JOEL S","CAMP JOE000","MOSES, DAWN ANGEL","DAWN ANGEL MOSES","7:36","08/02/2019","06/02/2020","INSTRUCTIONAL",38,30.4]
["GRAHADJU000","D03729","DJUAN","ULRICI","GRAHAM","Djuan.Graham@SUMTER.K12.FL.US","256","Ins 198 Days","0161","WILDWOOD M/H","19-20 Active Plan","TEACHER  MATH-SH","GENERAL FUND TEACHER","GRAYBEAL JERRY DUANE","GRAYBJER000","GRAHAM, DJUAN ULRICI","DJUAN ULRICI GRAHAM","7:36","08/02/2019","06/02/2020","INSTRUCTIONAL",38,30.4]
["BADALDEA000","D03934","DEANNA","LYNN","BADAL","Deanna.Badal@Sumter.k12.fl.us","370","Non 186 Days","0031","BUSHNELL ELEMEN","19-20 Active Plan","PARAPROFESSIONAL  ELEM","GENERAL FUND PARA","GOODWIN KELLY MARGARET","GOODWKEL000","BADAL, DEANNA LYNN","DEANNA LYNN BADAL","7:00","08/12/2019","05/29/2020","CLASSIFIED",35,28]
["TRICKDAV000","d03953","DAVID","E","TRICK","David.Trick@sumter.k12.fl.us","151","Adm 250 Days","9006","TECHNOLOGY DEPT","19-20 Active Plan","COOR, INSTRUCTIONAL TECHNOLOGY","COORDINATOR IT","SMITH DEBORAH WALTERS","SMITHDEB000","TRICK, DAVID E","DAVID E TRICK","8:00","07/01/2019","06/30/2020","ADMINISTRATION",40,32]
["SQUIRDEA000","D04014","DEANNA","MARIE","SQUIRE","Deanna.Squire@Sumter.k12.fl.us","256","Ins 198 Days","0161","WILDWOOD M/H","19-20 Active Plan","TEACHER  SCIENCE-SH","GENERAL FUND TEACHER","GRAYBEAL JERRY DUANE","GRAYBJER000","SQUIRE, DEANNA MARIE","DEANNA MARIE SQUIRE","7:36","08/02/2019","06/02/2020","INSTRUCTIONAL",38,30.4]
["STEWADAN000","D04021","DANIELLE","NICOLE","STEWART","Danielle.Stewart@SUMTER.K12.FL.US","256","Ins 198 Days","0171","SOUTH SUMTER HI","19-20 Active Plan","TEACHER  SOC ST-SH","CLASS SIZE TEACHER","MCKINNEY CHRISTINA JOHNSON","MCKINCHR001","STEWART, DANIELLE NICOLE","DANIELLE NICOLE STEWART","7:36","08/02/2019","06/02/2020","INSTRUCTIONAL",38,30.4]
["STRICDEA000","D04022","DEANNA","LYN","STRICKLAND","Deanna.Strickland@Sumter.k12.fl.us","256","Ins 198 Days","0042","SOUTH SUMTER MI","19-20 Active Plan","LEARN RES SPEC","TITLE I LEARNING RESOURCE","CAMP JOEL S","CAMP JOE000","STRICKLAND, DEANNA LYN","DEANNA LYN STRICKLAND","7:36","08/02/2019","06/02/2020","INSTRUCTIONAL",38,30.4]
["DAVISDEL001","D04062","DELANIA","RAE","DAVIS","delania.davis@sumter.k12.fl.us","357","Non 188 Days","0102","WILDWOOD ELEMEN","19-20 Active Plan","FOOD SER WORKER","FOOD SERVICE","SUBER WILLIAM ERIC","SUBERWIL000","DAVIS, DELANIA RAE","DELANIA RAE DAVIS","8:00","08/09/2019","06/01/2020","CLASSIFIED",40,32]
["SMITHDEB001","D04135","DEBORAH","ANN","SMITH","Deborah.A.Smith@sumter.k12.fl.us","256","Ins 198 Days","0161","WILDWOOD M/H","19-20 Active Plan","ATHLETIC TR","GENERAL FUND TEACHER","GRAYBEAL JERRY DUANE","GRAYBJER000","SMITH, DEBORAH ANN","DEBORAH ANN SMITH","7:36","08/02/2019","06/02/2020","INSTRUCTIONAL",38,30.4]
["ELLISDOR000","D04238","DORAELIA","ZAMORA","ELLIS","Doraelia.Ellis@Sumter.k12.fl.us","256","Ins 198 Days","0161","WILDWOOD M/H","19-20 Active Plan","TEACHER READ-SH","CLASS SIZE TEACHER","GRAYBEAL JERRY DUANE","GRAYBJER000","ELLIS, DORAELIA ZAMORA","DORAELIA ZAMORA ELLIS","7:36","08/02/2019","06/02/2020","INSTRUCTIONAL",38,30.4]
["MCCULDEN000","D04267","DENNIS","JAMES","MCCULLOUGH","dennis.mccullough@sumter.k12.fl.us","358","Non 186 Days","9004","TRANSPORTATION","19-20 Active Plan","BUS DRIVER","BUS DRIVER","FOOTE MICHAEL T","FOOTEMIC000","MCCULLOUGH, DENNIS JAMES","DENNIS JAMES MCCULLOUGH","5:00","08/12/2019","05/29/2020","CLASSIFIED",25,20]
["HARRIDON000","D04350","DONYE","SIMONE","HARRIS","donye.harris@sumter.k12.fl.us","370","Non 186 Days","3001","SUMTER PREP","19-20 Active Plan","PARAPROFESSIONAL ESE AGES 6-","ESE PARA","PRESLEY JAMES CHESTER","PRESLJAM000","HARRIS, DONYE SIMONE","DONYE SIMONE HARRIS","7:00","08/12/2019","05/29/2020","CLASSIFIED",35,28]
["BROWNDAW000","D04362","DAWN",null,"BROWN","Dawn.Brown@sumter.k12.fl.us","370","Non 186 Days","3001","SUMTER PREP","19-20 Active Plan","PARAPROFESSIONAL  ESE AGES 6-","IDEA PARA","PRESLEY JAMES CHESTER","PRESLJAM000","BROWN, DAWN","DAWN BROWN","7:00","08/12/2019","05/29/2020","CLASSIFIED",35,28]
["SCOTTDEA002","D04411","DEANNA","RENEE","SCOTT","Deanna.Scott@sumter.k12.fl.us","256","Ins 198 Days","0051","WEBSTER ELEMENT","19-20 Active Plan","TEACHER  VE","ESE TEACHER","SHEA MELYNDA BROOKE","SHEA MEL000","SCOTT, DEANNA RENEE","DEANNA RENEE SCOTT","7:36","08/02/2019","06/02/2020","INSTRUCTIONAL",38,30.4]
["URIBEDEN000","D04413","DENIA","VALESKA","URIBE","Denia.Uribe@sumter.k12.fl.us","359","Non 191 Days","0051","WEBSTER ELEMENT","19-20 Active Plan","RECRUITER  MIG ED","RECRUITER","SHEA MELYNDA BROOKE","SHEA MEL000","URIBE, DENIA VALESKA","DENIA VALESKA URIBE","8:00","08/07/2019","06/02/2020","CLASSIFIED",40,32]
["GUTH DEB000","D04573","DEBRA","KAY","GUTH","debra.guth@sumter.k12.fl.us","370","Non 186 Days","9004","TRANSPORTATION","19-20 Active Plan","BUS AIDE  EX ST ED","ESE BUS AIDE","FOOTE MICHAEL T","FOOTEMIC000","GUTH, DEBRA KAY","DEBRA KAY GUTH","4:00","08/12/2019","05/29/2020","CLASSIFIED",20,16]
["COSIEDAN000","D04610","DANIEL","JAMES","COSIER","DANIEL.COSIER@sumter.k12.fl.us","351","Non 250 Days","9006","TECHNOLOGY DEPT","19-20 Active Plan","COMPU NET SPEC  IT","TECHNICIAN COMPUTER NETWORK","TRICK DAVID E","TRICKDAV000","COSIER, DANIEL JAMES","DANIEL JAMES COSIER","8:00","01/06/2020","06/30/2020","CLASSIFIED",40,32]
["BRONSDEE000","D04679","DEENA","FAYE","BRONSON","deena.bronson@sumter.k12.fl.us","358","Non 186 Days","9004","TRANSPORTATION","19-20 Active Plan","BUS DRIVER","BUS DRIVER","FOOTE MICHAEL T","FOOTEMIC000","BRONSON, DEENA FAYE","DEENA FAYE BRONSON","5:15","08/12/2019","05/29/2020","CLASSIFIED",26.25,21]
["BLACKDON000","D04704","DONNA","MORRISON","BLACK","donna.black@sumter.k12.fl.us","358","Non 186 Days","9004","TRANSPORTATION","19-20 Active Plan","BUS DRIVER","BUS DRIVER","FOOTE MICHAEL T","FOOTEMIC000","BLACK, DONNA MORRISON","DONNA MORRISON BLACK","4:45","08/12/2019","05/29/2020","CLASSIFIED",23.75,19]
["WILLIDES000","D04737","DESERAE","MICHELLE","WILLIAMS","Deserae.Williams@sumter.k12.fl.us","256","Ins 198 Days","0181","LAKE PANASOFFKE","19-20 Active Plan","TEACHER  VE","ESE TEACHER","WADE NICOLE LYNN","WADE NIC000","WILLIAMS, DESERAE MICHELLE","DESERAE MICHELLE WILLIAMS","7:36","08/02/2019","06/02/2020","INSTRUCTIONAL",38,30.4]
["DOYLEDEB000","D04939","DEBORAH","ANNE","DOYLE","Deborah.Doyle@sumter.k12.fl.us","256","Ins 198 Days","0042","SOUTH SUMTER MI","19-20 Active Plan","TEACHER  MATH-M/J","CLASS SIZE TEACHER","CAMP JOEL S","CAMP JOE000","DOYLE, DEBORAH ANNE","DEBORAH ANNE DOYLE","7:36","08/02/2019","06/02/2020","INSTRUCTIONAL",38,30.4]
["KLINEDOM000","D04983","DOMINICA","DONNA ANN","KLINE","dominica.kline@sumter.k12.fl.us","351","Non 250 Days","0102","WILDWOOD ELEMEN","19-20 Active Plan","CUSTODIAN","CUSTODIAN","TEMPLE JOHN P","TEMPLJOH000","KLINE, DOMINICA DONNA ANN","DOMINICA DONNA ANN KLINE","4:00","07/01/2019","06/30/2020","CLASSIFIED",20,16]
["LOVE DOR000","D05000","DORTHIA","L","LOVE","dorthia.love@sumter.k12.fl.us","351","Non 250 Days","9001","COUNTY OFFICE","19-20 Active Plan","CUSTODIAN","CUSTODIAN","MOFFITT DEBORAH DEON","MOFFIDEB000","LOVE, DORTHIA L","DORTHIA L LOVE","4:00","07/01/2019","06/30/2020","CLASSIFIED",20,16]
["BROWNDAN000","D05007","DANIEL","MORRIS","BROWN","daniel.brown@sumter.k12.fl.us","351","Non 250 Days","0161","WILDWOOD M/H","19-20 Active Plan","CUSTODIAN","CUSTODIAN","GRAYBEAL JERRY DUANE","GRAYBJER000","BROWN, DANIEL MORRIS","DANIEL MORRIS BROWN","8:00","07/01/2019","06/30/2020","CLASSIFIED",40,32]
["NOBLEDAR000","D05078","DARYL","JAMES","NOBLES","daryl.nobles@sumter.k12.fl.us","256","Ins 198 Days","0171","SOUTH SUMTER HI","19-20 Active Plan","TEACHER  MATH-SH","CLASS SIZE TEACHER","MCKINNEY CHRISTINA JOHNSON","MCKINCHR001","NOBLES, DARYL JAMES","DARYL JAMES NOBLES","7:36","08/02/2019","06/02/2020","INSTRUCTIONAL",38,30.4]
["HORWADEB000","D05127","DEBRA","J","HORWATICH","debra.horwatich@sumter.k12.fl.us","358","Non 186 Days","9004","TRANSPORTATION","19-20 Active Plan","BUS DRIVER","BUS DRIVER","FOOTE MICHAEL T","FOOTEMIC000","HORWATICH, DEBRA J","DEBRA J HORWATICH","4:00","10/29/2019","05/29/2020","CLASSIFIED",20,16]
["SEGREDAV000","D05156","DAVID","M","SEGREST","david.segrest@sumter.k12.fl.us","256","Ins 198 Days","0171","SOUTH SUMTER HI","19-20 Active Plan","TEACHER  PUB SER ED","GENERAL FUND TEACHER","MCKINNEY CHRISTINA JOHNSON","MCKINCHR001","SEGREST, DAVID M","DAVID M SEGREST","7:36","08/02/2019","06/02/2020","INSTRUCTIONAL",{"$f":"+R258*24*5","v":38},{"$f":"+R258*24*4","v":30.4}]
["DOLANDAN000","D05234","DANIELLE","M","DOLAN","danielle.dolan@sumter.k12.fl.us","762","212 A Intern","0171","SOUTH SUMTER HI","19-20 Active Plan","ADMIN ASST  SCH","INTERN","MCKINNEY CHRISTINA JOHNSON","MCKINCHR001","DOLAN, DANIELLE M","DANIELLE M DOLAN","8:00","07/25/2019","06/12/2020","INTERN",40,32]
["COOK DON000","D05235","DONNA","JOAN","COOK","donna.cook@sumter.k12.fl.us","762","212 A Intern","0031","BUSHNELL ELEMEN","19-20 Active Plan","ADMIN ASST  SCH","INTERN","GOODWIN KELLY MARGARET","GOODWKEL000","COOK, DONNA JOAN","DONNA JOAN COOK","8:00","07/25/2019","06/12/2020","INTERN",40,32]
["JACKSDEI000","D05245","DEIDRA","LYNN","JACKSON","deidra.jackson@sumter.k12.fl.us","256","Ins 198 Days","0031","BUSHNELL ELEMEN","19-20 Active Plan","TEACHER  FIRST","GENERAL FUND TEACHER","GOODWIN KELLY MARGARET","GOODWKEL000","JACKSON, DEIDRA LYNN","DEIDRA LYNN JACKSON","7:36","08/02/2019","06/02/2020","INSTRUCTIONAL",38,30.4]
["LYDA DEL000","D05286","DELICE","LYNN","LYDA","delice.lyda@sumter.k12.fl.us","357","Non 188 Days","0051","WEBSTER ELEMENT","19-20 Active Plan","FOOD SER WORKER","FOOD SERVICE","SUBER WILLIAM ERIC","SUBERWIL000","LYDA, DELICE LYNN","DELICE LYNN LYDA","7:00","01/08/2020","06/01/2020","CLASSIFIED",35,28]
["GIGLODEA000","D05293","DEANNA","RENEE","GIGLOTTI","deanna.giglotti@sumter.k12.fl.us","256","Ins 198 Days","0042","SOUTH SUMTER MI","19-20 Active Plan","TEACHER  LANG AR-M/J","GENERAL FUND TEACHER","CAMP JOEL S","CAMP JOE000","GIGLOTTI, DEANNA RENEE","DEANNA RENEE GIGLOTTI","7:36","08/02/2019","06/02/2020","INSTRUCTIONAL",38,30.4]
["MCCOLDIA000","D05296","DIANNA","MARY","MCCOLLUM","dianna.mccollum@sumter.k12.fl.us","358","Non 186 Days","9004","TRANSPORTATION","19-20 Active Plan","BUS DRIVER","BUS DRIVER","FOOTE MICHAEL T","FOOTEMIC000","MCCOLLUM, DIANNA MARY","DIANNA MARY MCCOLLUM","5:30","08/12/2019","05/29/2020","CLASSIFIED",27.5,22]
["CUMMIDEI000","D05352","DEIDRA","MICHELL","CUMMINGS","deidra.cummings@sumter.k12.fl.us","370","Non 186 Days","0031","BUSHNELL ELEMEN","19-20 Active Plan","PARAPROFESSIONAL  PK","IDEA/ PRE K PARA","GOODWIN KELLY MARGARET","GOODWKEL000","CUMMINGS, DEIDRA MICHELL","DEIDRA MICHELL CUMMINGS","7:00","08/12/2019","05/29/2020","CLASSIFIED",35,28]
["BURRODIA000","D05393","DIANA","LYNN","BURROUGHS","diana.burroughs@sumter.k12.fl.us","256","Ins 198 Days","0051","WEBSTER ELEMENT","19-20 Active Plan","TEACHER  KG","GENERAL FUND TEACHER","SHEA MELYNDA BROOKE","SHEA MEL000","BURROUGHS, DIANA LYNN","DIANA LYNN BURROUGHS","7:36","08/02/2019","06/02/2020","INSTRUCTIONAL",38,30.4]
["FORESDES000","D05394","DESTINEE","ANN","FORESTER","destinee.forester@sumter.k12.fl.us","256","Ins 198 Days","0102","WILDWOOD ELEMEN","19-20 Active Plan","TEACHER  FOURTH","GENERAL FUND TEACHER","TEMPLE JOHN P","TEMPLJOH000","FORESTER, DESTINEE ANN","DESTINEE ANN FORESTER","7:36","08/02/2019","06/02/2020","INSTRUCTIONAL",38,30.4]
["COMBSDAW000","D05413","DAWN","JANE","COMBS","dawn.combs@sumter.k12.fl.us","256","Ins 198 Days","0051","WEBSTER ELEMENT","19-20 Active Plan","TEACHER  FIFTH","GENERAL FUND TEACHER","SHEA MELYNDA BROOKE","SHEA MEL000","COMBS, DAWN JANE","DAWN JANE COMBS","7:36","08/02/2019","06/02/2020","INSTRUCTIONAL",38,30.4]
["REAVEDAR000","D05429","DARRYL","FRANKLIN","REAVES","darryl.reaves@sumter.k12.fl.us","256","Ins 198 Days","0161","WILDWOOD M/H","19-20 Active Plan","TEACHER  MATH-M/J","GENERAL FUND TEACHER","GRAYBEAL JERRY DUANE","GRAYBJER000","REAVES, DARRYL FRANKLIN","DARRYL FRANKLIN REAVES","7:36","08/02/2019","06/02/2020","INSTRUCTIONAL",38,30.4]
["FINLEDES000","D05452","DESIREE","DIANE","FINLEY","desiree.finley@sumter.k12.fl.us","370","Non 186 Days","0031","BUSHNELL ELEMEN","19-20 Active Plan","PARAPROFESSIONAL  PK","IDEA/ PRE K PARA","GOODWIN KELLY MARGARET","GOODWKEL000","FINLEY, DESIREE DIANE","DESIREE DIANE FINLEY","7:00","10/09/2019","05/29/2020","CLASSIFIED",35,28]
["ROUSEDON000","D05467","DONNA","JEAN","ROUSE","donna.rouse@sumter.k12.fl.us","357","Non 188 Days","0181","LAKE PANASOFFKE","19-20 Active Plan","FOOD SER WORKER","FOOD SERVICE","SUBER WILLIAM ERIC","SUBERWIL000","ROUSE, DONNA JEAN","DONNA JEAN ROUSE","6:00","12/05/2019","06/01/2020","CLASSIFIED",30,24]
["HILL ERI000","E00182","ERICKA","FAISON","HILL","ericka.hill@sumter.k12.fl.us","358","Non 186 Days","9004","TRANSPORTATION","19-20 Active Plan","BUS DRIVER","BUS DRIVER","FOOTE MICHAEL T","FOOTEMIC000","HILL, ERICKA FAISON","ERICKA FAISON HILL","4:45","08/12/2019","05/29/2020","CLASSIFIED",23.75,19]
["LEWISERI000","E00219","ERIN","MICHELLE","LEWIS","Erin.Lewis@SUMTER.K12.FL.US","256","Ins 198 Days","0042","SOUTH SUMTER MI","19-20 Active Plan","TEACHER  SOC ST-M/J","GENERAL FUND TEACHER","CAMP JOEL S","CAMP JOE000","LEWIS, ERIN MICHELLE","ERIN MICHELLE LEWIS","7:36","08/02/2019","06/02/2020","INSTRUCTIONAL",38,30.4]
["KEELEEMI000","E00240","EMILY","MALEC","KEELER","Emily.Keeler@Sumter.k12.fl.us","256","Ins 198 Days","0161","WILDWOOD M/H","19-20 Active Plan","TEACHER  SCIENCE-SH","CLASS SIZE TEACHER","GRAYBEAL JERRY DUANE","GRAYBJER000","KEELER, EMILY MALEC","EMILY MALEC KEELER","7:36","08/02/2019","06/02/2020","INSTRUCTIONAL",38,30.4]
["SMITHEDI000","E00776","EDITH","Y","SMITH","Edith.Smith@SUMTER.K12.FL.US","256","Ins 198 Days","0102","WILDWOOD ELEMEN","19-20 Active Plan","TEACHER  SECOND","CLASS SIZE TEACHER","TEMPLE JOHN P","TEMPLJOH000","SMITH, EDITH Y","EDITH Y SMITH","7:36","08/02/2019","06/02/2020","INSTRUCTIONAL",38,30.4]
["FORD ELA000","E00778","ELAINE","B","FORD","Elaine.Ford@SUMTER.K12.FL.US","370","Non 186 Days","0051","WEBSTER ELEMENT","19-20 Active Plan","PARAPROFESSIONAL  PK","IDEA/ PRE K PARA","SHEA MELYNDA BROOKE","SHEA MEL000","FORD, ELAINE B","ELAINE B FORD","7:00","03/05/2020","05/29/2020","CLASSIFIED",35,28]
["GOODSEIL000","E01059","EILEEN","H","GOODSON","Eileen.Goodson@SUMTER.K12.FL.US","151","Adm 250 Days","9001","COUNTY OFFICE","19-20 Active Plan","COOR, PPS","COORDINATOR PUPIL PERSONNEL SE","MOFFITT DEBORAH DEON","MOFFIDEB000","GOODSON, EILEEN H","EILEEN H GOODSON","8:00","07/01/2019","06/30/2020","ADMINISTRATION",40,32]
["HAMPTEVE000","E01707","EVELYN","GYPZENE","HAMPTON","evelyn.hampton@sumter.k12.fl.us","359","Non 191 Days","0171","SOUTH SUMTER HI","19-20 Active Plan","MANAGER  FOOD SER","FOOD SERVICE","SUBER WILLIAM ERIC","SUBERWIL000","HAMPTON, EVELYN GYPZENE","EVELYN GYPZENE HAMPTON","8:00","08/07/2019","06/02/2020","CLASSIFIED",40,32]
["HARVEEAR000","E01815","EARNEST","S","HARVEY","earnest.harvey@sumter.k12.fl.us","357","Non 188 Days","0031","BUSHNELL ELEMEN","19-20 Active Plan","FOOD SER WORKER","FOOD SERVICE","SUBER WILLIAM ERIC","SUBERWIL000","HARVEY, EARNEST S","EARNEST S HARVEY","6:00","08/09/2019","06/01/2020","CLASSIFIED",30,24]
["WEBEREVE000","E01880","EVELYN","CORINNE","WEBER","Evelyn.Weber@SUMTER.K12.FL.US","152","Adm- 221 Days","0171","SOUTH SUMTER HI","19-20 Active Plan","ASST PRIN-SH","PRINCIPAL ASSISTANT","MCKINNEY CHRISTINA JOHNSON","MCKINCHR001","WEBER, EVELYN CORINNE","EVELYN CORINNE WEBER","8:00","07/12/2019","03/31/2020","ADMINISTRATION",40,32]
["KIRKLEAR000","E02278","EARLINE","EVERLENA","KIRKLAND","earline.kirkland@sumter.k12.fl.us","358","Non 186 Days","9004","TRANSPORTATION","19-20 Active Plan","BUS DRIVER","BUS DRIVER","FOOTE MICHAEL T","FOOTEMIC000","KIRKLAND, EARLINE EVERLENA","EARLINE EVERLENA KIRKLAND","4:00","08/12/2019","05/29/2020","CLASSIFIED",20,16]
["CILENEUN000","E02600","EUNICE","ELIZABETH","CILENTI","Eunice.Cilenti@SUMTER.K12.FL.US","256","Ins 198 Days","0171","SOUTH SUMTER HI","19-20 Active Plan","TEACHER  VE","ESE TEACHER","MCKINNEY CHRISTINA JOHNSON","MCKINCHR001","CILENTI, EUNICE ELIZABETH","EUNICE ELIZABETH CILENTI","7:36","08/02/2019","06/02/2020","INSTRUCTIONAL",38,30.4]
["CAMP ELI000","E02921","ELIZABETH","BALDWIN","CAMP","Elizabeth.Camp@sumter.k12.fl.us","256","Ins 198 Days","0102","WILDWOOD ELEMEN","19-20 Active Plan","TEACHER  FIFTH","CLASS SIZE TEACHER","TEMPLE JOHN P","TEMPLJOH000","CAMP, ELIZABETH BALDWIN","ELIZABETH BALDWIN CAMP","7:36","08/02/2019","06/02/2020","INSTRUCTIONAL",38,30.4]
["TAYLOEAR000","E03482","EARTHA","ELIZABETH","TAYLOR","Eartha.Taylor@SUMTER.K12.FL.US","370","Non 186 Days","0102","WILDWOOD ELEMEN","19-20 Active Plan","PARAPROFESSIONAL ESE AGES 6-","ESE PARA","TEMPLE JOHN P","TEMPLJOH000","TAYLOR, EARTHA ELIZABETH","EARTHA ELIZABETH TAYLOR","7:00","08/12/2019","05/29/2020","CLASSIFIED",35,28]
["WOODYELI000","E03671","ELIZABETH","ANNE","WOODY","Elizabeth.Woody@SUMTER.K12.FL.US","256","Ins 198 Days","0102","WILDWOOD ELEMEN","19-20 Active Plan","TEACHER  FIRST","CLASS SIZE TEACHER","TEMPLE JOHN P","TEMPLJOH000","WOODY, ELIZABETH ANNE","ELIZABETH ANNE WOODY","7:36","08/02/2019","06/02/2020","INSTRUCTIONAL",38,30.4]
["BADGEEIL000","E04107","EILEEN","NELIA","BADGER","Eileen.Badger@Sumter.k12.fl.us","256","Ins 198 Days","0102","WILDWOOD ELEMEN","19-20 Active Plan","LIB/MED SPEC-E","MEDIA SPECIALIST","TEMPLE JOHN P","TEMPLJOH000","BADGER, EILEEN NELIA","EILEEN NELIA BADGER","7:36","08/02/2019","06/02/2020","INSTRUCTIONAL",38,30.4]
["KRECHELI000","E04175","ELIZABETH","MAE","KRECH","elizabeth.krech@sumter.k12.fl.us","370","Non 186 Days","0051","WEBSTER ELEMENT","19-20 Active Plan","PARAPROFESSIONAL  ELEM","GENERAL FUND PARA","SHEA MELYNDA BROOKE","SHEA MEL000","KRECH, ELIZABETH MAE","ELIZABETH MAE KRECH","7:00","08/12/2019","05/29/2020","CLASSIFIED",35,28]
["COOMEELL000","E04475","ELLEN","DAWN","COOMER","Ellen.Coomer@sumter.k12.fl.us","751","Intern-250","9001","COUNTY OFFICE","19-20 Active Plan","ADMIN ASST PPS","INTERN","GOODSON EILEEN H","GOODSEIL000","COOMER, ELLEN DAWN","ELLEN DAWN COOMER","8:00","07/01/2019","06/30/2020","INTERN",40,32]
["MELINELL000","E04566","ELLEN","E","MELINO","Ellen.Melino@sumter.k12.fl.us","256","Ins 198 Days","0102","WILDWOOD ELEMEN","19-20 Active Plan","TEACHER  VE","ESE TEACHER","TEMPLE JOHN P","TEMPLJOH000","MELINO, ELLEN E","ELLEN E MELINO","7:36","08/02/2019","06/02/2020","INSTRUCTIONAL",38,30.4]
["TUCKEERI000","E04817","ERIN","FAITH","TUCKER","Erin.Tucker@sumter.k12.fl.us","256","Ins 198 Days","0171","SOUTH SUMTER HI","19-20 Active Plan","TEACHER  SCIENCE-SH","CLASS SIZE TEACHER","MCKINNEY CHRISTINA JOHNSON","MCKINCHR001","TUCKER, ERIN FAITH","ERIN FAITH TUCKER","7:36","08/02/2019","06/02/2020","INSTRUCTIONAL",38,30.4]
["COFIEELI000","E04822","ELIZABETH","MARIE","COFIELD","elizabeth.cofield@sumter.k12.fl.us","256","Ins 198 Days","0171","SOUTH SUMTER HI","19-20 Active Plan","TEACHER  SCIENCE-SH","CLASS SIZE TEACHER","MCKINNEY CHRISTINA JOHNSON","MCKINCHR001","COFIELD, ELIZABETH MARIE","ELIZABETH MARIE COFIELD","7:36","08/02/2019","06/02/2020","INSTRUCTIONAL",38,30.4]
["LOWE E  000","E04870","E","KOTENIA","LOWE","E.Lowe@Sumter.k12.fl.us","256","Ins 198 Days","0102","WILDWOOD ELEMEN","19-20 Active Plan","TEACHER  FOURTH","CLASS SIZE TEACHER","TEMPLE JOHN P","TEMPLJOH000","LOWE, E KOTENIA","E KOTENIA LOWE","7:36","08/02/2019","06/02/2020","INSTRUCTIONAL",38,30.4]
["CAMPBELI000","E04909","ELIZABETH","MOREEN","CAMPBELL","Elizabeth.Campbell@sumter.k12.fl.us","256","Ins 198 Days","0042","SOUTH SUMTER MI","19-20 Active Plan","TEACHER  VE","ESE TEACHER","CAMP JOEL S","CAMP JOE000","CAMPBELL, ELIZABETH MOREEN","ELIZABETH MOREEN CAMPBELL","7:36","08/02/2019","06/02/2020","INSTRUCTIONAL",38,30.4]
["FAULKELL000","E04950","ELLEN","KIMMEL","FAULKNER","Ellen.Faulkner@sumter.k12.fl.us","275","Ins 202 Days","0161","WILDWOOD M/H","19-20 Active Plan","COUNSELOR-SH","COUNSELOR","GRAYBEAL JERRY DUANE","GRAYBJER000","FAULKNER, ELLEN KIMMEL","ELLEN KIMMEL FAULKNER","7:36","07/31/2019","06/04/2020","INSTRUCTIONAL",38,30.4]
["WILSOEMI000","E04989","EMILY","ARLENE","WILSON","emily.wilson@sumter.k12.fl.us","370","Non 186 Days","0171","SOUTH SUMTER HI","19-20 Active Plan","PARAPROFESSIONAL  SH","GENERAL FUND PARA","MCKINNEY CHRISTINA JOHNSON","MCKINCHR001","WILSON, EMILY ARLENE","EMILY ARLENE WILSON","7:00","08/12/2019","05/29/2020","CLASSIFIED",35,28]
["KARDIELA000","E05049","ELAINE","CHRISTINA","KARDIASMENOS","elaine.kardiasmenos@sumter.k12.fl.us","358","Non 186 Days","9004","TRANSPORTATION","19-20 Active Plan","BUS DRIVER","BUS DRIVER","FOOTE MICHAEL T","FOOTEMIC000","KARDIASMENOS, ELAINE CHRISTINA","ELAINE CHRISTINA KARDIASMENOS","4:00","08/12/2019","04/01/2020","CLASSIFIED",20,16]
["UPSHAEMI000","E05190","EMILY","JEAN","UPSHAW","emily.upshaw@sumter.k12.fl.us","351","Non 250 Days","0051","WEBSTER ELEMENT","19-20 Active Plan","CUSTODIAN","CUSTODIAN","SHEA MELYNDA BROOKE","SHEA MEL000","UPSHAW, EMILY JEAN","EMILY JEAN UPSHAW","4:00","07/01/2019","06/30/2020","CLASSIFIED",20,16]
["HENRYERN000","E05250","ERNEST","LEE","HENRY","ernest.henry@sumter.k12.fl.us","351","Non 250 Days","0171","SOUTH SUMTER HI","19-20 Active Plan","CUSTODIAN","CUSTODIAN","MCKINNEY CHRISTINA JOHNSON","MCKINCHR001","HENRY JR, ERNEST LEE","ERNEST LEE HENRY JR","8:00","07/01/2019","06/30/2020","CLASSIFIED",40,32]
["CRANDELI000","E05269","ELIOT","JAY","CRANDALL","eliot.crandall@sumter.k12.fl.us","256","Ins 198 Days","0031","BUSHNELL ELEMEN","19-20 Active Plan","TEACHER  FOURTH","GENERAL FUND TEACHER","GOODWIN KELLY MARGARET","GOODWKEL000","CRANDALL, ELIOT JAY","ELIOT JAY CRANDALL","7:36","08/02/2019","06/02/2020","INSTRUCTIONAL",38,30.4]
["WELCHEVE000","E05407","EVELYN","FAYE","WELCH","evelyn.welch@sumter.k12.fl.us","256","Ins 198 Days","0161","WILDWOOD M/H","19-20 Active Plan","TEACHER  VE","ESE TEACHER","GRAYBEAL JERRY DUANE","GRAYBJER000","WELCH, EVELYN FAYE","EVELYN FAYE WELCH","7:36","08/02/2019","06/02/2020","INSTRUCTIONAL",38,30.4]
["BROWNEMI001","E05417","EMILIANA","JOI","BROWN","emiliana.brown@sumter.k12.fl.us","256","Ins 198 Days","0102","WILDWOOD ELEMEN","19-20 Active Plan","TEACHER  MUSIC-E","GENERAL FUND TEACHER","TEMPLE JOHN P","TEMPLJOH000","BROWN, EMILIANA JOI","EMILIANA JOI BROWN","7:36","08/02/2019","06/02/2020","INSTRUCTIONAL",38,30.4]
["GRIFFEMI000","E05498","EMILY","GRACE","GRIFFIN","emily.griffin@sumter.k12.fl.us","256","Ins 198 Days","0051","WEBSTER ELEMENT","19-20 Active Plan","TEACHER  SECOND","CLASS SIZE TEACHER","SHEA MELYNDA BROOKE","SHEA MEL000","GRIFFIN, EMILY GRACE","EMILY GRACE GRIFFIN","7:36","02/19/2020","06/02/2020","INSTRUCTIONAL",38,30.4]
["CAPPSEVA000","E05508","EVAN","MARC","CAPPS","evan.capps@sumter.k12.fl.us","351","Non 250 Days","9005","MAINTENANCE CEN","19-20 Active Plan","MAIN WK","MAINTENANCE WORKER","SUBER WILLIAM ERIC","SUBERWIL000","CAPPS, EVAN MARC","EVAN MARC CAPPS","8:00","01/22/2020","06/30/2020","CLASSIFIED",40,32]
["LAWREFRA000","F03299","FRANKLYN","TY","LAWRENCE","Franklyn.Lawrence@SUMTER.K12.FL.US","256","Ins 198 Days","0171","SOUTH SUMTER HI","19-20 Active Plan","TEACHER  OTHER","VIRTUAL TEACHER","MCKINNEY CHRISTINA JOHNSON","MCKINCHR001","LAWRENCE, FRANKLYN TY","FRANKLYN TY LAWRENCE","7:36","08/02/2019","06/02/2020","INSTRUCTIONAL",38,30.4]
["HOOTEFRE000","F03904","FREDDIE","FARMER","HOOTEN","fred.hooten@sumter.k12.fl.us","351","Non 250 Days","9005","MAINTENANCE CEN","19-20 Active Plan","COURIER","COURIER","SUBER WILLIAM ERIC","SUBERWIL000","HOOTEN III, FREDDIE FARMER","FREDDIE FARMER HOOTEN III","4:12","07/01/2019","06/30/2020","CLASSIFIED",21,16.8]
["UPSHAFRA000","F04292","FRANCES","LAVERNE","UPSHAW","Frances.Upshaw@sumter.k12.fl.us","370","Non 186 Days","0051","WEBSTER ELEMENT","19-20 Active Plan","PARAPROFESSIONAL ESE AGES 6-","ESE PARA","SHEA MELYNDA BROOKE","SHEA MEL000","UPSHAW, FRANCES LAVERNE","FRANCES LAVERNE UPSHAW","7:00","08/12/2019","05/29/2020","CLASSIFIED",35,28]
["BAKERFRA000","F04651","FRANCES","SUZANN","BAKER","Frances.Baker@sumter.k12.fl.us","256","Ins 198 Days","0031","BUSHNELL ELEMEN","19-20 Active Plan","TEACHER  FOURTH","CLASS SIZE TEACHER","GOODWIN KELLY MARGARET","GOODWKEL000","BAKER, FRANCES SUZANN","FRANCES SUZANN BAKER","7:36","08/02/2019","06/02/2020","INSTRUCTIONAL",38,30.4]
["MALDOFRA000","F04868","FRANCISCO",null,"MALDONADO-MEDINA","Francisco.maldonado@sumter.k12.fl.us","351","Non 250 Days","9005","MAINTENANCE CEN","19-20 Active Plan","AC MECHANIC","MAINTENANCE WORKER","SUBER WILLIAM ERIC","SUBERWIL000","MALDONADO-MEDINA, FRANCISCO","FRANCISCO MALDONADO-MEDINA","8:00","07/01/2019","06/30/2020","CLASSIFIED",40,32]
["COOK FRA000","F05301","FRANKIE","A","COOK","frankie.cook@sumter.k12.fl.us","ADULT","ADULT ED","0191","ADULT EDUCATION",null,null,null,"FERGUSON CASEY LOREN","FERGUCAS000","COOK, FRANKIE A","FRANKIE A COOK",null,"08/02/2019","06/02/2020","INSTRUCTIONAL",0,0]
["WILLIGAI000","G00452","GAIL","LYNN","WILLIAMS","Gail.Williams@SUMTER.K12.FL.US","256","Ins 198 Days","0042","SOUTH SUMTER MI","19-20 Active Plan","TEACHER  MATH-M/J","GENERAL FUND TEACHER","CAMP JOEL S","CAMP JOE000","WILLIAMS, GAIL LYNN","GAIL LYNN WILLIAMS","7:36","08/02/2019","06/02/2020","INSTRUCTIONAL",38,30.4]
["GRANTGAY000","G01637","GAYLYN","W","GRANT","Gaylyn.Grant@SUMTER.K12.FL.US","256","Ins 198 Days","0042","SOUTH SUMTER MI","19-20 Active Plan","RDG COACH - M/J","READING TEACHER","CAMP JOEL S","CAMP JOE000","GRANT, GAYLYN W","GAYLYN W GRANT","7:36","08/02/2019","06/02/2020","INSTRUCTIONAL",38,30.4]
["THORNGER000","G01730","GERI","LASHAY","THORNTON","Geri.Thornton@sumter.k12.fl.us","256","Ins 198 Days","0042","SOUTH SUMTER MI","19-20 Active Plan","TEACHER  CTE OR/EXP","GENERAL FUND TEACHER","CAMP JOEL S","CAMP JOE000","THORNTON, GERI LASHAY","GERI LASHAY THORNTON","7:36","08/02/2019","06/02/2020","INSTRUCTIONAL",38,30.4]
["BLOUNGEN000","G02112","GENA","LYNNE","BLOUNT","gena.blount@sumter.k12.fl.us","357","Non 188 Days","0171","SOUTH SUMTER HI","19-20 Active Plan","FOOD SER WORKER","FOOD SERVICE","SUBER WILLIAM ERIC",null,"BLOUNT, GENA LYNNE","GENA LYNNE BLOUNT","7:00","08/09/2019","06/01/2020",null,35,28]
["OWENSGRA000","G02277","GRACIE","LOUISE","OWENS","Gracie.Owens@SUMTER.K12.FL.US","358","Non 186 Days","0102","WILDWOOD ELEMEN","19-20 Active Plan","BUS DRIVER","BUS DRIVER","FOOTE MICHAEL T","FOOTEMIC000","OWENS, GRACIE LOUISE","GRACIE LOUISE OWENS","8:00","08/12/2019","05/29/2020","CLASSIFIED",40,32]
["GLOMBGEO000","G02534","GEORGIA","HALCOMB","GLOMB","georgia.glomb@sumter.k12.fl.us","358","Non 186 Days","9004","TRANSPORTATION","19-20 Active Plan","BUS DRIVER","BUS DRIVER","FOOTE MICHAEL T","FOOTEMIC000","GLOMB, GEORGIA HALCOMB","GEORGIA HALCOMB GLOMB","5:15","08/12/2019","05/29/2020","CLASSIFIED",26.25,21]
["JOINEGRE000","G03115","GREGORY","L","JOINER","Gregory.Joiner@SUMTER.K12.FL.US","351","Non 250 Days","9001","COUNTY OFFICE","19-20 Active Plan","COMPU NET SPEC  IT","TECHNICIAN COMPUTER NETWORK","SKIPPER BETHANY JANE","SKIPPBET001","JOINER, GREGORY L","GREGORY L JOINER","8:00","07/01/2019","06/30/2020","CLASSIFIED",40,32]
["ASHLEGRA000","G03199","GRACE","MARIE","ASHLEY","Grace.Ashley@SUMTER.K12.FL.US","256","Ins 198 Days","0181","LAKE PANASOFFKE","19-20 Active Plan","TEACHER  FIFTH","GENERAL FUND TEACHER","WADE NICOLE LYNN","WADE NIC000","ASHLEY, GRACE MARIE","GRACE MARIE ASHLEY","7:36","08/02/2019","06/02/2020","INSTRUCTIONAL",38,30.4]
["VELEZGIS000","G03704","GISELA","I","VELEZ-MARTY","Gisela.Velez-Marty@SUMTER.K12.FL.US","256","Ins 198 Days","0042","SOUTH SUMTER MI","19-20 Active Plan","TEACHER  VE","ESE TEACHER","CAMP JOEL S","CAMP JOE000","VELEZ-MARTY, GISELA I","GISELA I VELEZ-MARTY","7:36","08/02/2019","06/02/2020","INSTRUCTIONAL",38,30.4]
["MAGGIGAI000","G03938","GAIL","FRANCIS","MAGGIO","Gail.Maggio@sumter.k12.fl.us","372","Non 220A Days","0042","SOUTH SUMTER MI","19-20 Active Plan","DATA ENT OP  ATT/SW","DATA ENTRY CLERK","CAMP JOEL S","CAMP JOE000","MAGGIO, GAIL FRANCIS","GAIL FRANCIS MAGGIO","7:00","07/15/2019","06/12/2020","CLASSIFIED",35,28]
["MORGAGIN000","G04266","GINA","MONIQUE","MORGAN","gina.morgan@sumter.k12.fl.us","256","Ins 198 Days","0042","SOUTH SUMTER MI","19-20 Active Plan","TEACHER  LANG AR-M/J","CLASS SIZE TEACHER","CAMP JOEL S","CAMP JOE000","MORGAN, GINA MONIQUE","GINA MONIQUE MORGAN","7:36","08/02/2019","06/02/2020","INSTRUCTIONAL",38,30.4]
["MASSEGWE000","G04407","GWENDOLYN",null,"MASSEY","gwendolyn.massey@sumter.k12.fl.us","357","Non 188 Days","0161","WILDWOOD M/H","19-20 Active Plan","FOOD SER WORKER","FOOD SERVICE","SUBER WILLIAM ERIC","SUBERWIL000","MASSEY, GWENDOLYN","GWENDOLYN MASSEY","7:00","08/09/2019","06/01/2020","CLASSIFIED",35,28]
["KIRBYGRE000","G04424","GRETA","MELOVA","KIRBY","greta.kirby@sumter.k12.fl.us","256","Ins 198 Days","0181","LAKE PANASOFFKE","19-20 Active Plan","TEACHER  FIRST","GENERAL FUND TEACHER","WADE NICOLE LYNN","WADE NIC000","KIRBY, GRETA MELOVA","GRETA MELOVA KIRBY","7:36","08/02/2019","06/02/2020","INSTRUCTIONAL",{"$f":"+R322*24*5","v":38},{"$f":"+R322*24*4","v":30.4}]
["PARKEGLO000","G04532","GLORIA","ETTA","PARKER","gloria.parker@sumter.k12.fl.us","370","Non 186 Days","9004","TRANSPORTATION","19-20 Active Plan","BUS AIDE  EX ST ED","ESE BUS AIDE","FOOTE MICHAEL T","FOOTEMIC000","PARKER, GLORIA ETTA","GLORIA ETTA PARKER","6:00","08/12/2019","05/29/2020","CLASSIFIED",30,24]
["SURUJGAI000","G04758","GAITRIE",null,"SURUJPAUL","gaitrie.surujpaul@sumter.k12.fl.us","351","Non 250 Days","0171","SOUTH SUMTER HI","19-20 Active Plan","CUSTODIAN","CUSTODIAN","MCKINNEY CHRISTINA JOHNSON","MCKINCHR001","SURUJPAUL, GAITRIE","GAITRIE SURUJPAUL","8:00","07/01/2019","06/30/2020","CLASSIFIED",40,32]
["WEISSGEF000","G04837","GEFFREY","WILLIAM","WEISS","geffrey.weiss@sumter.k12.fl.us","358","Non 186 Days","9004","TRANSPORTATION","19-20 Active Plan","BUS DRIVER","BUS DRIVER","FOOTE MICHAEL T","FOOTEMIC000","WEISS, GEFFREY WILLIAM","GEFFREY WILLIAM WEISS","4:00","08/12/2019","05/29/2020","CLASSIFIED",20,16]
["LACAYGIN000","G04872","GINA","MARIE","LACAYO","Gina.Lacayo@sumter.k12.fl.us","370","Non 186 Days","0102","WILDWOOD ELEMEN","19-20 Active Plan","PARAPROFESSIONAL  PK","IDEA/ PRE K PARA","TEMPLE JOHN P","TEMPLJOH000","LACAYO, GINA MARIE","GINA MARIE LACAYO","7:00","08/12/2019","05/29/2020","CLASSIFIED",35,28]
["FRASEGUY000","G05243","GUY","CHRISTOPHER","FRASER","guy.fraser@sumter.k12.fl.us","ADULT","ADULT ED","0191","ADULT EDUCATION",null,null,null,"FERGUSON CASEY LOREN","FERGUCAS000","FRASER, GUY CHRISTOPHER","GUY CHRISTOPHER FRASER",null,null,null,null,0,0]
["COLLIGRA000","G05434","GRACE","RENEE","COLLINS","grace.collins@sumter.k12.fl.us","370","Non 186 Days","0181","LAKE PANASOFFKE","19-20 Active Plan","PARAPROFESSIONAL  ELEM","GENERAL FUND PARA","WADE NICOLE LYNN","WADE NIC000","COLLINS, GRACE RENEE","GRACE RENEE COLLINS","7:00","08/12/2019","05/29/2020","CLASSIFIED",35,28]
["CHRISHEL000","H01228","HELEN","ANN","CHRISTIAN","Helen.Christian@SUMTER.K12.FL.US","151","Adm 250 Days","9001","COUNTY OFFICE","19-20 Active Plan","DIR  ELEM ED","DIRECTOR ELEMENTARY EDUCATION","MOFFITT DEBORAH DEON","MOFFIDEB000","CHRISTIAN, HELEN ANN","HELEN ANN CHRISTIAN","8:00","07/01/2019","06/30/2020","ADMINISTRATION",40,32]
["PENINHOL000","H04068","HOLLY","ANN","PENINGER","Holly.Peninger@SUMTER.K12.FL.US","451","Con 250 Days","0161","WILDWOOD M/H","19-20 Active Plan","SEC  SCH","SECRETARY SCHOOL","GRAYBEAL JERRY DUANE","GRAYBJER000","PENINGER, HOLLY ANN","HOLLY ANN PENINGER","8:00","07/01/2019","06/30/2020","CONFIDENTIAL/CLASSIFIED",40,32]
["COSIEHAN000","H04118","HANNAH","ELIZABETH","COSIER","Hannah.Cosier@Sumter.k12.fl.us","256","Ins 198 Days","0171","SOUTH SUMTER HI","19-20 Active Plan","TEACHER  SOC ST-SH","GENERAL FUND TEACHER","MCKINNEY CHRISTINA JOHNSON","MCKINCHR001","COSIER, HANNAH ELIZABETH","HANNAH ELIZABETH COSIER","7:36","08/02/2019","06/02/2020","INSTRUCTIONAL",38,30.4]
["DAVISHEA000","H04503","HEATHER","CHRISTINE","DAVIS","Heather.Davis@sumter.k12.fl.us","256","Ins 198 Days","0102","WILDWOOD ELEMEN","19-20 Active Plan","TEACHER  FOURTH","GENERAL FUND TEACHER","TEMPLE JOHN P","TEMPLJOH000","DAVIS, HEATHER CHRISTINE","HEATHER CHRISTINE DAVIS","7:36","08/02/2019","06/02/2020","INSTRUCTIONAL",38,30.4]
["VICKEHEL000","H04761","HELENA","COLLINS","VICKERS","Helena.Vickers@sumter.k12.fl.us","256","Ins 198 Days","3001","SUMTER PREP","19-20 Active Plan","TEACHER  VE","ESE TEACHER","PRESLEY JAMES CHESTER","PRESLJAM000","VICKERS, HELENA COLLINS","HELENA COLLINS VICKERS","7:36","08/02/2019","06/02/2020","INSTRUCTIONAL",38,30.4]
["POPE HAR000","H05006","HARRY","LEWIS","POPE","harry.pope@sumter.k12.fl.us","351","Non 250 Days","9004","TRANSPORTATION","19-20 Active Plan","MECHANIC","MECHANIC","FOOTE MICHAEL T","FOOTEMIC000","POPE, HARRY LEWIS","HARRY LEWIS POPE","8:00","07/01/2019","06/30/2020","CLASSIFIED",40,32]
["WILLIHEU000","H05173","HEUBERT","LEON","WILLIAMS","heubert.williams@sumter.k12.fl.us","358","Non 186 Days","9004","TRANSPORTATION","19-20 Active Plan","BUS DRIVER","BUS DRIVER","FOOTE MICHAEL T","FOOTEMIC000","WILLIAMS, HEUBERT LEON","HEUBERT LEON WILLIAMS","5:15","08/12/2019","05/29/2020","CLASSIFIED",26.25,21]
["GOMEZHAN000","H05225","HANNAH","KIMBERLY","GOMEZ","hannah.gomez@sumter.k12.fl.us","256","Ins 198 Days","0051","WEBSTER ELEMENT","19-20 Active Plan","TEACHER  KG","GENERAL FUND TEACHER","SHEA MELYNDA BROOKE","SHEA MEL000","GOMEZ, HANNAH KIMBERLY","HANNAH KIMBERLY GOMEZ","7:36","08/02/2019","06/02/2020","INSTRUCTIONAL",38,30.4]
["PADGEHAN000","H05396","HANNA","ELISABETH","PADGETT","hanna.padgett@sumter.k12.fl.us","256","Ins 198 Days","0031","BUSHNELL ELEMEN","19-20 Active Plan","TEACHER  KG","CLASS SIZE TEACHER","GOODWIN KELLY MARGARET","GOODWKEL000","PADGETT, HANNA ELISABETH","HANNA ELISABETH PADGETT","7:36","09/09/2019","06/02/2020","INSTRUCTIONAL",38,30.4]
["HILL HEA000","H05482","HEATHER","LOUISE","HILL","heather.hill@sumter.k12.fl.us","357","Non 188 Days","0042","SOUTH SUMTER MI","19-20 Active Plan","FOOD SER WORKER","FOOD SERVICE","SUBER WILLIAM ERIC","SUBERWIL000","HILL, HEATHER LOUISE","HEATHER LOUISE HILL","7:00","11/12/2019","06/01/2020","CLASSIFIED",35,28]
["OXENDINA000","I03018","INARA","J","OXENDINE","Inara.Oxendine@SUMTER.K12.FL.US","256","Ins 198 Days","0042","SOUTH SUMTER MI","19-20 Active Plan","TEACHER  LANG AR-M/J","GENERAL FUND TEACHER","CAMP JOEL S","CAMP JOE000","OXENDINE, INARA J","INARA J OXENDINE","7:36","08/02/2019","06/02/2020","INSTRUCTIONAL",38,30.4]
["LLANTIGD000","I04253","IGDALIA",null,"LLANTIN","Igdalia.Llantin@Sumter.k12.fl.us","256","Ins 198 Days","0031","BUSHNELL ELEMEN","19-20 Active Plan","TEACHER  THIRD","CLASS SIZE TEACHER","GOODWIN KELLY MARGARET","GOODWKEL000","LLANTIN, IGDALIA","IGDALIA LLANTIN","7:36","08/02/2019","06/02/2020","INSTRUCTIONAL",38,30.4]
["MIRANILL000","I04797","ILLIANA",null,"MIRANDA","Illiana.Miranda@sumter.k12.fl.us","256","Ins 198 Days","0161","WILDWOOD M/H","19-20 Active Plan","TEACHER READ-M/J","READING TEACHER","GRAYBEAL JERRY DUANE","GRAYBJER000","MIRANDA, ILLIANA","ILLIANA MIRANDA","7:36","08/02/2019","06/02/2020","INSTRUCTIONAL",38,30.4]
["WOODAJES000","J00260","JESSIE","E","WOODARD","Jessie.Woodard@SUMTER.K12.FL.US","351","Non 250 Days","9006","TECHNOLOGY DEPT","19-20 Active Plan","PRINTER","TECHNICIAN MEDIA","TRICK DAVID E","TRICKDAV000","WOODARD, JESSIE E","JESSIE E WOODARD","8:00","07/01/2019","06/30/2020","CLASSIFIED",40,32]
["EDWARJAM000","J00672","JAMES","T","EDWARDS","James.Edwards@SUMTER.K12.FL.US","251","Ins 250 Days","0171","SOUTH SUMTER HI","19-20 Active Plan","TEACHER  AGRI/NRE","GENERAL FUND/ SAI TEACHER","MCKINNEY CHRISTINA JOHNSON","MCKINCHR001","EDWARDS, JAMES T","JAMES T EDWARDS","7:36","07/01/2019","06/30/2020","INSTRUCTIONAL",38,30.4]
["MAYS JAN000","J00779","JANET","LANESE","MAYS","Janet.Mays@sumter.k12.fl.us","357","Non 188 Days","0102","WILDWOOD ELEMEN","19-20 Active Plan","FOOD SER WORKER","FOOD SERVICE","SUBER WILLIAM ERIC","SUBERWIL000","MAYS, JANET LANESE","JANET LANESE MAYS","8:00","08/09/2019","06/01/2020","CLASSIFIED",40,32]
["SPIEGJUD000","J00781","JUDY","ANN","SPIEGEL","judy.spiegel@sumter.k12.fl.us","357","Non 188 Days","0171","SOUTH SUMTER HI","19-20 Active Plan","FOOD SER WORKER","FOOD SERVICE","SUBER WILLIAM ERIC","SUBERWIL000","SPIEGEL, JUDY ANN","JUDY ANN SPIEGEL","8:00","08/09/2019","06/01/2020","CLASSIFIED",40,32]
["CAMP JOE000","J00908","JOEL","S","CAMP","Joel.Camp@SUMTER.K12.FL.US","151","Adm 250 Days","0042","SOUTH SUMTER MI","19-20 Active Plan","PRINCIPAL-M/J","PRINCIPAL","SHIRLEY RICHARD ALLEN, JR","SHIRLRIC001","CAMP, JOEL S","JOEL S CAMP","8:00","07/01/2019","06/30/2020","ADMINISTRATION",40,32]
["SIZEMJEA000","J00956","JEANIE","MARIE","SIZEMORE","Jeanie.Sizemore@sumter.k12.fl.us","370","Non 186 Days","0051","WEBSTER ELEMENT","19-20 Active Plan","PARAPROFESSIONAL  PK","IDEA/ PRE K PARA","SHEA MELYNDA BROOKE","SHEA MEL000","SIZEMORE, JEANIE MARIE","JEANIE MARIE SIZEMORE","7:00","08/12/2019","05/29/2020","CLASSIFIED",35,28]
["SIMMOJAN000","J01051","JANA","WALLACE","SIMMONS","Jana.Simmons@SUMTER.K12.FL.US","359","Non 191 Days","0051","WEBSTER ELEMENT","19-20 Active Plan","MANAGER  FOOD SER","FOOD SERVICE","SUBER WILLIAM ERIC","SUBERWIL000","SIMMONS, JANA WALLACE","JANA WALLACE SIMMONS","8:00","08/07/2019","06/02/2020","CLASSIFIED",40,32]
["HOOTEJEN000","J01119","JENNIFER","RENEE","HOOTEN","Jennifer.Hooten@Sumter.k12.fl.us","256","Ins 198 Days","0171","SOUTH SUMTER HI","19-20 Active Plan","TEACHER  SOC ST-SH","CLASS SIZE TEACHER","MCKINNEY CHRISTINA JOHNSON","MCKINCHR001","HOOTEN, JENNIFER RENEE","JENNIFER RENEE HOOTEN","7:36","08/02/2019","06/02/2020","INSTRUCTIONAL",38,30.4]
["BROWNJOA000","J01248","JOAN","ELIZABETH","BROWN","Joan.Brown@SUMTER.K12.FL.US","351","Non 250 Days","9006","TECHNOLOGY DEPT","19-20 Active Plan","COMPU NET SPEC  IT","TECHNICIAN COMPUTER NETWORK","TRICK DAVID E","TRICKDAV000","BROWN, JOAN ELIZABETH","JOAN ELIZABETH BROWN","8:00","07/01/2019","06/30/2020","CLASSIFIED",40,32]
["FARMEJAM000","J01317","JAMES","HART","FARMER","james.farmer@sumter.k12.fl.us","351","Non 250 Days","9006","TECHNOLOGY DEPT","19-20 Active Plan","MAIN WK","MAINTENANCE WORKER","SUBER WILLIAM ERIC","SUBERWIL000","FARMER, JAMES HART","JAMES HART FARMER","8:00","07/01/2019","06/30/2020","CLASSIFIED",40,32]
["PORVAJIL000","J01388","JILL","ORINDA","PORVAZNIK","Jill.Porvaznik@sumter.k12.fl.us","256","Ins 198 Days","0171","SOUTH SUMTER HI","19-20 Active Plan","TEACHER  LANG AR-SH","GENERAL FUND TEACHER","MCKINNEY CHRISTINA JOHNSON","MCKINCHR001","PORVAZNIK, JILL ORINDA","JILL ORINDA PORVAZNIK","7:36","08/02/2019","06/02/2020","INSTRUCTIONAL",38,30.4]
["PETERJOA000","J01585","JOANNIE","MELINDA","PETERS","Joannie.Peters@SUMTER.K12.FL.US","359","Non 191 Days","0181","LAKE PANASOFFKE","19-20 Active Plan","MANAGER  FOOD SER","FOOD SERVICE","SUBER WILLIAM ERIC","SUBERWIL000","PETERS, JOANNIE MELINDA","JOANNIE MELINDA PETERS","8:00","08/07/2019","06/02/2020","CLASSIFIED",40,32]
["LOVETJEN000","J01706","JENNIFER","ELIZABETH","LOVETT","Jennifer.Lovett@SUMTER.K12.FL.US","256","Ins 198 Days","0051","WEBSTER ELEMENT","19-20 Active Plan","TEACHER  FIRST","GENERAL FUND TEACHER","SHEA MELYNDA BROOKE","SHEA MEL000","LOVETT, JENNIFER ELIZABETH","JENNIFER ELIZABETH LOVETT","7:36","08/02/2019","06/02/2020","INSTRUCTIONAL",38,30.4]
["CRAFTJAN000","J01758","JAN","M","CRAFTON","Jan.Crafton@SUMTER.K12.FL.US","451","Con 250 Days","0191","ADULT EDUCATION","19-20 Active Plan","SEC  SCH","SECRETARY SCHOOL","FERGUSON CASEY LOREN","FERGUCAS000","CRAFTON, JAN M","JAN M CRAFTON","8:00","07/01/2019","06/30/2020","CONFIDENTIAL/CLASSIFIED",40,32]
["PRESLJAM000","J01849","JAMES","CHESTER","PRESLEY","James.Presley@sumter.k12.fl.us","151","Adm 250 Days","3001","SUMTER PREP","19-20 Active Plan","PRINCIPAL-OTHER SCH","PRINCIPAL","SHIRLEY RICHARD ALLEN, JR","SHIRLRIC001","PRESLEY, JAMES CHESTER","JAMES CHESTER PRESLEY","8:00","07/01/2019","06/30/2020","ADMINISTRATION",40,32]
["BOONEJAC000","J01882","JACQUELINE","ELAINE","BOONE","Jacqueline.Boone@Sumter.k12.fl.us","256","Ins 198 Days","0161","WILDWOOD M/H","19-20 Active Plan","TEACHER READ-SH","GENERAL FUND TEACHER","GRAYBEAL JERRY DUANE","GRAYBJER000","BOONE, JACQUELINE ELAINE","JACQUELINE ELAINE BOONE","7:36","08/02/2019","06/02/2020","INSTRUCTIONAL",38,30.4]
["LIVELJEA000","J02038","JEANNE LYNN","HARRIS","LIVELY","Jeanne.Harris-Lively@sumter.k12.fl.us","253","Ins 218 Days","9001","COUNTY OFFICE","19-20 Active Plan","PARENT ED SPEC","TITLE I/ IDEA SPECIALIST","CHRISTIAN HELEN ANN","CHRISHEL000","LIVELY, JEANNE LYNN HARRIS","JEANNE LYNN HARRIS LIVELY","7:36","07/19/2019","06/16/2020","INSTRUCTIONAL",38,30.4]
["THOMAJAN000","J02174","JANICE","YVONNE","THOMAS","JANICE.THOMAS@SUMTER.K12.FL.US","372","Non 220A Days","9006","TECHNOLOGY DEPT","19-20 Active Plan","TECH  IT","TECHNICIAN TECH SUPPORT","TRICK DAVID E","TRICKDAV000","THOMAS, JANICE YVONNE","JANICE YVONNE THOMAS","8:00","07/12/2019","06/12/2020","CLASSIFIED",40,32]
["CONNEJAN001","J02619","JANET","H","CONNELLY","Janet.Connelly@SUMTER.K12.FL.US","676","NURSE COOR","9001","COUNTY OFFICE","19-20 Active Plan","NURSE  RN","NURSE","GOODSON EILEEN H","GOODSEIL000","CONNELLY, JANET H","JANET H CONNELLY","8:00","07/31/2019","06/05/2020","NON-INSTRUCT NO BARGAINING UNI",40,32]
["PAUL JEN000","J02736","JENNIFER","ANN","PAUL","Jennifer.Paul@SUMTER.K12.FL.US","256","Ins 198 Days","0181","LAKE PANASOFFKE","19-20 Active Plan","TEACHER  KG","GENERAL FUND TEACHER","WADE NICOLE LYNN","WADE NIC000","PAUL, JENNIFER ANN","JENNIFER ANN PAUL","7:36","08/02/2019","06/02/2020","INSTRUCTIONAL",38,30.4]
["BORUMJON000","J02862","JONATHAN","ANDREW","BORUM","Jonathan.Borum@SUMTER.K12.FL.US","256","Ins 198 Days","0171","SOUTH SUMTER HI","19-20 Active Plan","TEACHER  VE","ESE TEACHER","MCKINNEY CHRISTINA JOHNSON","MCKINCHR001","BORUM, JONATHAN ANDREW","JONATHAN ANDREW BORUM","7:36","08/02/2019","06/02/2020","INSTRUCTIONAL",38,30.4]
["CHRISJES000","J02968","JESSICA",null,"CHRISTIAN","Jessica.Christian@SUMTER.K12.FL.US","151","Adm 250 Days","9001","COUNTY OFFICE","19-20 Active Plan","SPEC INSTRUC STAFF TRAINING","SPECIALIST STAFF TRAINING","CHRISTIAN HELEN ANN","CHRISHEL000","CHRISTIAN, JESSICA","JESSICA CHRISTIAN","8:00","07/01/2019","06/30/2020","ADMINISTRATION",40,32]
["TEMPLJOH000","J02985","JOHN","P","TEMPLE","John.Temple@sumter.k12.fl.us","151","Adm 250 Days","0102","WILDWOOD ELEMEN","19-20 Active Plan","PRINCIPAL-E","PRINCIPAL","CHRISTIAN HELEN ANN","CHRISHEL000","TEMPLE, JOHN P","JOHN P TEMPLE","8:00","07/01/2019","06/30/2020","ADMINISTRATION",40,32]
["PIWOWJEN000","J03025","JENNIFER","LYNN","PIWOWAR","Jennifer.Piwowar@SUMTER.K12.FL.US","256","Ins 198 Days","0051","WEBSTER ELEMENT","19-20 Active Plan","TEACHER  FOURTH","CLASS SIZE TEACHER","SHEA MELYNDA BROOKE","SHEA MEL000","PIWOWAR, JENNIFER LYNN","JENNIFER LYNN PIWOWAR","7:36","08/02/2019","06/02/2020","INSTRUCTIONAL",38,30.4]
["KINLEJOH000","J03282","JOHN","FREDRICK","KINLEY","John.Kinley@SUMTER.K12.FL.US","256","Ins 198 Days","0042","SOUTH SUMTER MI","19-20 Active Plan","TEACHER  PE-M/J","GENERAL FUND TEACHER","CAMP JOEL S","CAMP JOE000","KINLEY, JOHN FREDRICK","JOHN FREDRICK KINLEY","7:36","08/02/2019","06/02/2020","INSTRUCTIONAL",38,30.4]
["AMMONJEN000","J03312","JENNIFER","KELLY HORTON","AMMONS","Jennifer.Ammons@SUMTER.K12.FL.US","256","Ins 198 Days","0171","SOUTH SUMTER HI","19-20 Active Plan","TEACHER READ-SH","READING TEACHER","MCKINNEY CHRISTINA JOHNSON","MCKINCHR001","AMMONS, JENNIFER KELLY HORTON","JENNIFER KELLY HORTON AMMONS","7:36","08/02/2019","06/02/2020","INSTRUCTIONAL",38,30.4]
["PITTMJOE000","J03329","JOE","DOLPHAS","PITTMAN","joe.pittman@sumter.k12.fl.us","351","Non 250 Days","9005","MAINTENANCE CEN","19-20 Active Plan","MAIN WK","MAINTENANCE WORKER","SUBER WILLIAM ERIC","SUBERWIL000","PITTMAN, JOE DOLPHAS","JOE DOLPHAS PITTMAN","8:00","07/01/2019","06/30/2020","CLASSIFIED",40,32]
["COOPEJUL000","J03335","JULIE","THORNTON","COOPER","Julie.Cooper@SUMTER.K12.FL.US","256","Ins 198 Days","0102","WILDWOOD ELEMEN","19-20 Active Plan","TEACHER  SECOND","GENERAL FUND TEACHER","TEMPLE JOHN P","TEMPLJOH000","COOPER, JULIE THORNTON","JULIE THORNTON COOPER","7:36","08/02/2019","06/02/2020","INSTRUCTIONAL",38,30.4]
["BARNEJAM000","J03360","JAMI","LEN","BARNES","Jami.Barnes@Sumter.k12.fl.us","256","Ins 198 Days","0171","SOUTH SUMTER HI","19-20 Active Plan","TEACHER READ-SH","SAI/GF AVID","MCKINNEY CHRISTINA JOHNSON","MCKINCHR001","BARNES, JAMI LEN","JAMI LEN BARNES","7:36","08/02/2019","06/02/2020","INSTRUCTIONAL",38,30.4]
["WYATTJEN000","J03363","JENNIFER","MICHELE","WYATT","Jennifer.Wyatt@Sumter.k12.fl.us","151","Adm 250 Days","0042","SOUTH SUMTER MI","19-20 Active Plan","ASST PRIN-M/J","PRINCIPAL ASSISTANT","CAMP JOEL S","CAMP JOE000","WYATT, JENNIFER MICHELE","JENNIFER MICHELE WYATT","8:00","07/01/2019","06/30/2020","ADMINISTRATION",40,32]
["MEARSJEN000","J03375","JENNIFER","SIMMONS","MEARS","Jennifer.Mears@SUMTER.K12.FL.US","256","Ins 198 Days","0051","WEBSTER ELEMENT","19-20 Active Plan","TEACHER  FIFTH","GENERAL FUND TEACHER","SHEA MELYNDA BROOKE","SHEA MEL000","MEARS, JENNIFER SIMMONS","JENNIFER SIMMONS MEARS","7:36","08/02/2019","06/02/2020","INSTRUCTIONAL",38,30.4]
["GORDOJOH000","J03416","JOHN","SCOTT","GORDON","John.Gordon@sumter.k12.fl.us","358","Non 186 Days","9004","TRANSPORTATION","19-20 Active Plan","BUS DRIVER","BUS DRIVER","FOOTE MICHAEL T","FOOTEMIC000","GORDON, JOHN SCOTT","JOHN SCOTT GORDON","5:15","08/12/2019","05/29/2020","CLASSIFIED",26.25,21]
["ARGENJEA000","J03468","JEANETTE","MECHELLE","ARGENTO","Jeanette.Argento@Sumter.k12.fl.us","264","Ins 208A Days","0102","WILDWOOD ELEMEN","19-20 Active Plan","SP/LANG PATH","SPEECH/LANGUAGE PATH","TEMPLE JOHN P","TEMPLJOH000","ARGENTO, JEANETTE MECHELLE","JEANETTE MECHELLE ARGENTO","8:00","08/02/2019","06/16/2020","INSTRUCTIONAL",40,32]
["HART JAC000","J03526","JACQUELINE","AMY","HART","Jacqueline.Hart@SUMTER.K12.FL.US","256","Ins 198 Days","0051","WEBSTER ELEMENT","19-20 Active Plan","TEACHER  THIRD","GENERAL FUND TEACHER","SHEA MELYNDA BROOKE","SHEA MEL000","HART, JACQUELINE AMY","JACQUELINE AMY HART","7:36","08/02/2019","06/02/2020","INSTRUCTIONAL",38,30.4]
["OWENSJIM000","J03563","JIMMY","R","OWENS","jimmy.owens@sumter.k12.fl.us","351","Non 250 Days","9005","MAINTENANCE CEN","19-20 Active Plan","AC MECHANIC","MAINTENANCE WORKER","SUBER WILLIAM ERIC","SUBERWIL000","OWENS, JIMMY R","JIMMY R OWENS","8:00","07/01/2019","06/30/2020","CLASSIFIED",40,32]
["KINNEJAI000","J03623","JAIMIE","CRENSHAW","KINNEY","Jaimie.Kinney@Sumter.k12.fl.us","762","212 A Intern","0102","WILDWOOD ELEMEN","19-20 Active Plan","ADMIN ASST  INS/CUR","TITLE I INTERN","TEMPLE JOHN P","TEMPLJOH000","KINNEY, JAIMIE CRENSHAW","JAIMIE CRENSHAW KINNEY","8:00","07/25/2019","06/12/2020","INTERN",40,32]
["BRYANJEN000","J03713","JENNIFER","ASHLY","BRYANT","Jennifer.Bryant@SUMTER.K12.FL.US","256","Ins 198 Days","0031","BUSHNELL ELEMEN","19-20 Active Plan","TEACHER  FIFTH","GENERAL FUND TEACHER","GOODWIN KELLY MARGARET","GOODWKEL000","BRYANT, JENNIFER ASHLY","JENNIFER ASHLY BRYANT","7:36","08/02/2019","06/02/2020","INSTRUCTIONAL",38,30.4]
["HOOVEJAY000","J03882","JAY","D","HOOVER","Jay.Hoover@SUMTER.K12.FL.US","256","Ins 198 Days","0161","WILDWOOD M/H","19-20 Active Plan","TEACHER  SCIENCE-SH","CLASS SIZE TEACHER","GRAYBEAL JERRY DUANE","GRAYBJER000","HOOVER, JAY D","JAY D HOOVER","7:36","08/02/2019","06/02/2020","INSTRUCTIONAL",38,30.4]
["DECEMJAM000","J03982","JAMES","R","DECEMBRINO","james.decembrino@sumter.k12.fl.us","358","Non 186 Days","9004","TRANSPORTATION","19-20 Active Plan","BUS DRIVER","BUS DRIVER","FOOTE MICHAEL T","FOOTEMIC000","DECEMBRINO, JAMES R","JAMES R DECEMBRINO","4:00","08/12/2019","05/29/2020","CLASSIFIED",20,16]
["STRICJOE000","J04010","JOELLA","BETH","STRICKLAND","Joella.Strickland@Sumter.k12.fl.us","256","Ins 198 Days","0051","WEBSTER ELEMENT","19-20 Active Plan","LIB/MED SPEC-E","MEDIA SPECIALIST","SHEA MELYNDA BROOKE","SHEA MEL000","STRICKLAND, JOELLA BETH","JOELLA BETH STRICKLAND","7:36","08/02/2019","06/02/2020","INSTRUCTIONAL",38,30.4]
["AYERSJAI000","J04012","JAIME","LEIGH","AYERS","Jaime.Ayers@Sumter.K12.Fl.US","256","Ins 198 Days","0051","WEBSTER ELEMENT","19-20 Active Plan","TEACHER  KG","CLASS SIZE TEACHER","SHEA MELYNDA BROOKE","SHEA MEL000","AYERS, JAIME LEIGH","JAIME LEIGH AYERS","7:36","08/02/2019","06/02/2020","INSTRUCTIONAL",38,30.4]
["DUNN JAS000","J04075","JASON","P","DUNN","Jason.Dunn@sumter.k12.fl.us","256","Ins 198 Days","0171","SOUTH SUMTER HI","19-20 Active Plan","TEACHER  VE","ESE TEACHER","MCKINNEY CHRISTINA JOHNSON","MCKINCHR001","DUNN, JASON P","JASON P DUNN","7:36","08/02/2019","06/02/2020","INSTRUCTIONAL",38,30.4]
["CIMINJOS000","J04078","JOSEPH","PETER","CIMINO","joseph.cimino@sumter.k12.fl.us","351","Non 250 Days","9004","TRANSPORTATION","19-20 Active Plan","MECHANIC","MECHANIC","FOOTE MICHAEL T","FOOTEMIC000","CIMINO, JOSEPH PETER","JOSEPH PETER CIMINO","8:00","07/01/2019","06/30/2020","CLASSIFIED",40,32]
["EASTWJER000","J04091","JERI",null,"EASTWOOD","jeri.eastwood@sumter.k12.fl.us","668","NURSES","0051","WEBSTER ELEMENT","19-20 Active Plan","NURSE  RN","NURSE","GOODSON EILEEN H","GOODSEIL000","EASTWOOD, JERI","JERI EASTWOOD","7:36","08/05/2019","06/02/2020","NON-INSTRUCT NO BARGAINING UNI",38,30.4]
["BISIGJOH000","J04116","JOHN","MICHAEL","BISIGNANO","John.Bisignano@Sumter.k12.fl.us","256","Ins 198 Days","0031","BUSHNELL ELEMEN","19-20 Active Plan","TEACHER  PE-E","GENERAL FUND TEACHER","GOODWIN KELLY MARGARET","GOODWKEL000","BISIGNANO, JOHN MICHAEL","JOHN MICHAEL BISIGNANO","7:36","08/02/2019","06/02/2020","INSTRUCTIONAL",{"$f":"+R386*24*5","v":38},{"$f":"+R386*24*4","v":30.4}]
["GIRARJAN000","J04289","JANICE","ANN","GIRARD","Janice.Girard@Sumter.k12.fl.us","256","Ins 198 Days","0161","WILDWOOD M/H","19-20 Active Plan","TEACHER  MATH-M/J","CLASS SIZE TEACHER","GRAYBEAL JERRY DUANE","GRAYBJER000","GIRARD, JANICE ANN","JANICE ANN GIRARD","7:36","08/02/2019","06/02/2020","INSTRUCTIONAL",38,30.4]
["FORREJON000","J04304","JONATHAN","LEE","FORRESTER","Jonathan.Forrester@Sumter.k12.fl.us","256","Ins 198 Days","0171","SOUTH SUMTER HI","19-20 Active Plan","TEACHER  MATH-SH","GENERAL FUND TEACHER","MCKINNEY CHRISTINA JOHNSON","MCKINCHR001","FORRESTER, JONATHAN LEE","JONATHAN LEE FORRESTER","7:36","08/02/2019","06/02/2020","INSTRUCTIONAL",38,30.4]
["TEMPLJES000","J04336","JESSICA","RAE","TEMPLE","Jessica.Temple@sumter.k12.fl.us","351","Non 250 Days","9001","COUNTY OFFICE","19-20 Active Plan","TECH  IT","TECHNICIAN HELP DESK","HUFF RICHARD BRYAN","HUFF RIC000","TEMPLE, JESSICA RAE","JESSICA RAE TEMPLE","8:00","07/01/2019","06/30/2020","CLASSIFIED",40,32]
["CLAYTJEN000","J04341","JENNIFER","ELAINE","CLAYTON","JENNIFER.CLAYTON@SUMTER.K12.FL.US","256","Ins 198 Days","0171","SOUTH SUMTER HI","19-20 Active Plan","TEACHER  BUS TECH ED","GENERAL FUND TEACHER","MCKINNEY CHRISTINA JOHNSON","MCKINCHR001","CLAYTON, JENNIFER ELAINE","JENNIFER ELAINE CLAYTON","7:36","08/02/2019","06/02/2020","INSTRUCTIONAL",38,30.4]
["LIPHAJER000","J04347","JERRY","PAUL","LIPHAM","JERRY.LIPHAM@SUMTER.K12.FL.US","256","Ins 198 Days","0161","WILDWOOD M/H","19-20 Active Plan","TEACHER  AGRI/NRE","GENERAL FUND TEACHER","GRAYBEAL JERRY DUANE","GRAYBJER000","LIPHAM, JERRY PAUL","JERRY PAUL LIPHAM","7:36","08/02/2019","06/02/2020","INSTRUCTIONAL",38,30.4]
["HOWELJAM000","J04618","JAMES","MICHAEL","HOWELL","james.howell@sumter.k12.fl.us","358","Non 186 Days","9004","TRANSPORTATION","19-20 Active Plan","BUS DRIVER","BUS DRIVER","FOOTE MICHAEL T","FOOTEMIC000","HOWELL, JAMES MICHAEL","JAMES MICHAEL HOWELL","4:00","08/12/2019","05/29/2020","CLASSIFIED",20,16]
["GRAYBJER000","J04635","JERRY","DUANE","GRAYBEAL","Jerry.Graybeal@sumter.k12.fl.us","151","Adm 250 Days","0161","WILDWOOD M/H","19-20 Active Plan","PRINCIPAL-SH","PRINCIPAL","CAMP JOEL S","CAMP JOE000","GRAYBEAL, JERRY DUANE","JERRY DUANE GRAYBEAL","8:00","07/01/2019","06/30/2020","ADMINISTRATION",40,32]
["HAMILJES000","J04673","JESSICA","ROSE","HAMILTON","jessica.hamilton@sumter.k12.fl.us","256","Ins 198 Days","0031","BUSHNELL ELEMEN","19-20 Active Plan","TEACHER  THIRD","CLASS SIZE TEACHER","GOODWIN KELLY MARGARET","GOODWKEL000","HAMILTON, JESSICA ROSE","JESSICA ROSE HAMILTON","7:36","08/02/2019","06/02/2020","INSTRUCTIONAL",38,30.4]
["BENNEJEF000","J04714","JEFFREY","S","BENNETT","Jeffrey.Bennett@sumter.k12.fl.us","351","Non 250 Days","9005","MAINTENANCE CEN","19-20 Active Plan","ELECTRONICS  MAIN","MAINTENANCE WORKER","SUBER WILLIAM ERIC","SUBERWIL000","BENNETT, JEFFREY S","JEFFREY S BENNETT","8:00","07/01/2019","06/30/2020","CLASSIFIED",40,32]
["LOVLEJIL000","J04764","JILL","B","LOVLEY","Jill.Lovley@sumter.k12.fl.us","371","Non 196 Days","0031","BUSHNELL ELEMEN","19-20 Active Plan","PARAPROFESSIONAL  PK","TITLE I/ PRE K LEAD","GOODWIN KELLY MARGARET","GOODWKEL000","LOVLEY, JILL B","JILL B LOVLEY","8:00","08/02/2019","06/02/2020","CLASSIFIED",40,32]
["BROWNJOS000","J04899","JOSHUA","ALLEN","BROWN","joshua.brown@sumter.k12.fl.us","351","Non 250 Days","9004","TRANSPORTATION","19-20 Active Plan","MECHANIC","MECHANIC","FOOTE MICHAEL T","FOOTEMIC000","BROWN, JOSHUA ALLEN","JOSHUA ALLEN BROWN","8:00","07/01/2019","06/30/2020","CLASSIFIED",40,32]
["SIMMOJOH001","J04944","JOHN","DAVID","SIMMONS","john.simmons@sumter.k12.fl.us","370","Non 186 Days","0042","SOUTH SUMTER MI","19-20 Active Plan","FOOD SER AIDE","FOOD SERVICE","SUBER WILLIAM ERIC","SUBERWIL000","SIMMONS, JOHN DAVID","JOHN DAVID SIMMONS","4:00","10/28/2019","05/29/2020","CLASSIFIED",20,16]
["PARKSJON001","J04970","JONATHAN","D","PARKS","jonathan.parks@sumter.k12.fl.us","351","Non 250 Days","9005","MAINTENANCE CEN","19-20 Active Plan","FOREMAN  MAIN","MAINTENANCE ASST. CHIEF","SUBER WILLIAM ERIC","SUBERWIL000","PARKS, JONATHAN D","JONATHAN D PARKS","8:00","03/02/2020","06/30/2020","CLASSIFIED",40,32]
["REILLJEA000","J05081","JEAN","ANN","REILLY","jean.reilly@sumter.k12.fl.us","275","Ins 202 Days","0102","WILDWOOD ELEMEN","19-20 Active Plan","COUNSELOR-E","COUNSELOR","TEMPLE JOHN P","TEMPLJOH000","REILLY, JEAN ANN","JEAN ANN REILLY","7:36","08/02/2019","06/02/2020","INSTRUCTIONAL",38,30.4]
["HARRIJAS000","J05082","JASMYN","OLIVIA","HARRISON","jasmyn.harrison@sumter.k12.fl.us","256","Ins 198 Days","0102","WILDWOOD ELEMEN","19-20 Active Plan","TEACHER  THIRD","GENERAL FUND TEACHER","TEMPLE JOHN P","TEMPLJOH000","HARRISON, JASMYN OLIVIA","JASMYN OLIVIA HARRISON","7:36","08/02/2019","06/02/2020","INSTRUCTIONAL",38,30.4]
["FAHEYJUL000","J05109","JULIE","MICHELLE","FAHEY","julie.fahey@sumter.k12.fl.us","256","Ins 198 Days","0042","SOUTH SUMTER MI","19-20 Active Plan","TEACHER  ART-M/J","GENERAL FUND TEACHER","CAMP JOEL S","CAMP JOE000","FAHEY, JULIE MICHELLE","JULIE MICHELLE FAHEY","7:36","08/02/2019","06/02/2020","INSTRUCTIONAL",38,30.4]
["HAMILJEF000","J05126","JEFFREY","WILSON","HAMILTON","jeffrey.hamilton@sumter.k12.fl.us","358","Non 186 Days","9004","TRANSPORTATION","19-20 Active Plan","BUS DRIVER","BUS DRIVER","FOOTE MICHAEL T","FOOTEMIC000","HAMILTON JR, JEFFREY WILSON","JEFFREY WILSON HAMILTON JR","4:00","08/12/2019","05/29/2020","CLASSIFIED",20,16]
["YOUNGJEA000","J05150","JEANNE","MARIE","YOUNG","jeanne.young@sumter.k12.fl.us","351","Non 250 Days","9001","COUNTY OFFICE","19-20 Active Plan","ACCOUNT CLERK","TECHNICIAN PAYROLL","SMITH DEBORAH WALTERS","SMITHDEB000","YOUNG, JEANNE MARIE","JEANNE MARIE YOUNG","8:00","07/01/2019","06/30/2020","CLASSIFIED",40,32]
["WILLIJON000","J05160","JONI","LYNN","WILLIAMS","joni.williams@sumter.k12.fl.us","355","Non 200 Days","0181","LAKE PANASOFFKE","19-20 Active Plan","CLERK  SCH","CLERK SCHOOL","WADE NICOLE LYNN","WADE NIC000","WILLIAMS, JONI LYNN","JONI LYNN WILLIAMS","7:00","08/01/2019","06/04/2020","CLASSIFIED",35,28]
["OCHOAJUV000","J05164","JUVENTINA","MARIE","OCHOA","juventina.ochoa@sumter.k12.fl.us","351","Non 250 Days","3001","SUMTER PREP","19-20 Active Plan","CUSTODIAN","CUSTODIAN","PRESLEY JAMES CHESTER","PRESLJAM000","OCHOA, JUVENTINA MARIE","JUVENTINA MARIE OCHOA","8:00","07/01/2019","06/30/2020","CLASSIFIED",40,32]
["BYNUMJOS000","J05186","JOSEPHUS",null,"BYNUM","josephus.bynum@sumter.k12.fl.us","370","Non 186 Days","0161","WILDWOOD M/H","19-20 Active Plan","PARAPROFESSIONAL  SH","TITLE I CHOICE PARA","GRAYBEAL JERRY DUANE","GRAYBJER000","BYNUM III, JOSEPHUS","JOSEPHUS BYNUM III","7:00","08/12/2019","05/29/2020","CLASSIFIED",35,28]
["JUDGEJES000","J05197","JESSICA","ERIN","JUDGE","jessica.judge@sumter.k12.fl.us","351","Non 250 Days","9001","COUNTY OFFICE","19-20 Active Plan","CLERK FOOD SERVICES","FOOD SERVICE CLERK","SUBER WILLIAM ERIC","SUBERWIL000","JUDGE, JESSICA ERIN","JESSICA ERIN JUDGE","8:00","07/01/2019","06/30/2020","CLASSIFIED",40,32]
["GOODSJAM000","J05209","JAMES","MONROE","GOODSON","james.goodson@sumter.k12.fl.us","351","Non 250 Days","9005","MAINTENANCE CEN","19-20 Active Plan","COURIER","COURIER","SUBER WILLIAM ERIC","SUBERWIL000","GOODSON JR, JAMES MONROE","JAMES MONROE GOODSON JR","2:48","07/01/2019","06/30/2020","CLASSIFIED",14,11.2]
["BUSH JOS000","J05222","JOSHUA","VAN","BUSH","joshua.bush@sumter.k12.fl.us","351","Non 250 Days","9005","MAINTENANCE CEN","19-20 Active Plan","MAIN WK","MAINTENANCE WORKER","SUBER WILLIAM ERIC","SUBERWIL000","BUSH, JOSHUA VAN","JOSHUA VAN BUSH","8:00","07/01/2019","06/30/2020","CLASSIFIED",40,32]
["WILLIJEN000","J05238","JENNIFER",null,"WILLIAMS","jennifer.williams@sumter.k12.fl.us","256","Ins 198 Days","0161","WILDWOOD M/H","19-20 Active Plan","TEACHER  LANG AR-M/J","SAI TEACHER 40060","GRAYBEAL JERRY DUANE","GRAYBJER000","WILLIAMS, JENNIFER","JENNIFER WILLIAMS","7:36","08/02/2019","06/02/2020","INSTRUCTIONAL",38,30.4]
["SAGERJAS000","J05265","JASON","PATRICK","SAGER","jason.sager@sumter.k12.fl.us","256","Ins 198 Days","0171","SOUTH SUMTER HI","19-20 Active Plan","TEACHER  SOC ST-SH","GENERAL FUND TEACHER","MCKINNEY CHRISTINA JOHNSON","MCKINCHR001","SAGER, JASON PATRICK","JASON PATRICK SAGER","7:36","08/02/2019","06/02/2020","INSTRUCTIONAL",38,30.4]
["BAKERJAC000","J05272","JACOB","LEE","BAKER","jacob.baker@sumter.k12.fl.us","256","Ins 198 Days","0171","SOUTH SUMTER HI","19-20 Active Plan","TEACHER  VE","ESE TEACHER","MCKINNEY CHRISTINA JOHNSON","MCKINCHR001","BAKER, JACOB LEE","JACOB LEE BAKER","7:36","08/02/2019","06/02/2020","INSTRUCTIONAL",38,30.4]
["KUHNSJAM000","J05318","JAMIE","COLLEEN","KUHNS","jamie.kuhns@sumter.k12.fl.us","370","Non 186 Days","0102","WILDWOOD ELEMEN","19-20 Active Plan","PARAPROFESSIONAL  ELEM","GENERAL FUND PARA","TEMPLE JOHN P","TEMPLJOH000","KUHNS, JAMIE COLLEEN","JAMIE COLLEEN KUHNS","7:00","12/05/2019","05/29/2020","CLASSIFIED",35,28]
["WITCHJUL000","J05321","JULIA","CHANTE","WITCHARD","julia.witchard@sumter.k12.fl.us","256","Ins 198 Days","0171","SOUTH SUMTER HI","19-20 Active Plan","TEACHER  MATH-SH","CLASS SIZE TEACHER","MCKINNEY CHRISTINA JOHNSON","MCKINCHR001","WITCHARD, JULIA CHANTE","JULIA CHANTE WITCHARD","7:36","08/02/2019","06/02/2020","INSTRUCTIONAL",38,30.4]
["POWERJOS000","J05337","JOSEPH",null,"POWERS","joseph.powers@sumter.k12.fl.us","351","Non 250 Days","0051","WEBSTER ELEMENT","19-20 Active Plan","CUSTODIAN","CUSTODIAN","SHEA MELYNDA BROOKE","SHEA MEL000","POWERS, JOSEPH","JOSEPH POWERS","4:00","07/01/2019","06/30/2020","CLASSIFIED",20,16]
["NEGREJOS000","J05344","JOSEFINA",null,"NEGRETE","josefina.negrete@sumter.k12.fl.us","370","Non 186 Days","0171","SOUTH SUMTER HI","19-20 Active Plan","PARAPROFESSIONAL  M/J","TITLE III ESOL PARA","CAMP JOEL S","CAMP JOE000","NEGRETE, JOSEFINA","JOSEFINA NEGRETE","7:00","08/12/2019","05/29/2020","CLASSIFIED",35,28]
["COWARJAC000","J05358","JACQUELYNN","A","COWART","jacquelynn.cowart@sumter.k12.fl.us","370","Non 186 Days","0051","WEBSTER ELEMENT","19-20 Active Plan","PARAPROFESSIONAL ESE AGES 6-","ESE PARA","SHEA MELYNDA BROOKE","SHEA MEL000","COWART, JACQUELYNN A","JACQUELYNN A COWART","7:00","08/12/2019","05/29/2020","CLASSIFIED",35,28]
["JAMESJES000","J05390","JESSICA",null,"JAMES","jessica.james@sumter.k12.fl.us","256","Ins 198 Days","0102","WILDWOOD ELEMEN","19-20 Active Plan","TEACHER  FIRST","GENERAL FUND TEACHER","TEMPLE JOHN P","TEMPLJOH000","JAMES, JESSICA","JESSICA JAMES","7:36","08/02/2019","06/02/2020","INSTRUCTIONAL",38,30.4]
["FURLOJES000","J05392","JESSICA","WHITE","FURLONG","jessica.furlong@sumter.k12.fl.us","256","Ins 198 Days","0102","WILDWOOD ELEMEN","19-20 Active Plan","TEACHER READ-E","TITLE I TEACHER","TEMPLE JOHN P","TEMPLJOH000","FURLONG, JESSICA WHITE","JESSICA WHITE FURLONG","7:36","08/02/2019","06/02/2020","INSTRUCTIONAL",38,30.4]
["MCCORJAS000","J05405","JASON","M","MCCORMICK","jason.mccormick@sumter.k12.fl.us","256","Ins 198 Days","0171","SOUTH SUMTER HI","19-20 Active Plan","TEACHER READ-SH","GENERAL FUND TEACHER","MCKINNEY CHRISTINA JOHNSON","MCKINCHR001","MCCORMICK, JASON M","JASON M MCCORMICK","7:36","08/02/2019","06/02/2020","INSTRUCTIONAL",38,30.4]
["CATO JAM000","J05422","JAMES","CAMERON","CATO","james.cato@sumter.k12.fl.us","256","Ins 198 Days","0161","WILDWOOD M/H","19-20 Active Plan","TEACHER  AGRI/NRE","GENERAL FUND TEACHER","GRAYBEAL JERRY DUANE","GRAYBJER000","CATO, JAMES CAMERON","JAMES CAMERON CATO","7:36","08/02/2019","06/02/2020","INSTRUCTIONAL",38,30.4]
["WALLEJER001","J05430","JEREMY","E","WALLEN","jeremy.wallen@sumter.k12.fl.us","351","Non 250 Days","9004","TRANSPORTATION","19-20 Active Plan","MECHANIC","MECHANIC","FOOTE MICHAEL T","FOOTEMIC000","WALLEN, JEREMY E","JEREMY E WALLEN","8:00","07/22/2019","06/30/2020","CLASSIFIED",40,32]
["DIETZJOR000","J05435","JORDAN","JACKSON","DIETZ","jordan.dietz@sumter.k12.fl.us","370","Non 186 Days","0042","SOUTH SUMTER MI","19-20 Active Plan","PARAPROFESSIONAL ESE AGES 6-","ESE PARA","CAMP JOEL S","CAMP JOE000","DIETZ, JORDAN JACKSON","JORDAN JACKSON DIETZ","7:00","08/12/2019","05/29/2020","CLASSIFIED",35,28]
["BELLIJAN000","J05448","JANINE","MARIE","BELLINA","janine.bellina@sumter.k12.fl.us","357","Non 188 Days","0161","WILDWOOD M/H","19-20 Active Plan","FOOD SER WORKER","FOOD SERVICE","SUBER WILLIAM ERIC","SUBERWIL000","BELLINA, JANINE MARIE","JANINE MARIE BELLINA","8:00","01/08/2020","06/01/2020","CLASSIFIED",40,32]
["SLOANJEF000","J05453","JEFFERY","DALE","SLOAN","jeffery.sloan@sumter.k12.fl.us","351","Non 250 Days","0102","WILDWOOD ELEMEN","19-20 Active Plan","CUSTODIAN","CUSTODIAN","TEMPLE JOHN P","TEMPLJOH000","SLOAN, JEFFERY DALE","JEFFERY DALE SLOAN","4:30","08/16/2019","06/30/2020","CLASSIFIED",22.5,18]
["BRYANJER000","J05466","JEREMY","GERROD","BRYANT","jeremy.bryant@sumter.k12.fl.us","351","Non 250 Days","0031","BUSHNELL ELEMEN","19-20 Active Plan","CUSTODIAN","CUSTODIAN","GOODWIN KELLY MARGARET","GOODWKEL000","BRYANT, JEREMY GERROD","JEREMY GERROD BRYANT","8:00","09/18/2019","06/30/2020","CLASSIFIED",40,32]
["SOWIEJEN000","J05481","JENNIFER","LYN","SOWIECKI","jennifer.sowiecki@sumter.k12.fl.us","358","Non 186 Days","9004","TRANSPORTATION","19-20 Active Plan","BUS DRIVER","BUS DRIVER","FOOTE MICHAEL T","FOOTEMIC000","SOWIECKI, JENNIFER LYN","JENNIFER LYN SOWIECKI","5:15","11/15/2019","05/29/2020","CLASSIFIED",26.25,21]
["DENHAJOH000","J05500","JOHN","WILLIAM","DENHAM","john.denham@sumter.k12.fl.us","358","Non 186 Days","9004","TRANSPORTATION","19-20 Active Plan","BUS DRIVER","BUS DRIVER","FOOTE MICHAEL T","FOOTEMIC000","DENHAM, JOHN WILLIAM","JOHN WILLIAM DENHAM","5:15","03/05/2020","05/29/2020","CLASSIFIED",26.25,21]
["CRESPJAN000","J05507","JANET",null,"CRESPO GAUD","janey.crespogaud@sumter.k12.fl.us","ADULT","ADULT ED","0191","ADULT EDUCATION",null,null,null,"FERGUSON CASEY LOREN","FERGUCAS000","CRESPO GAUD, JANET","JANET CRESPO GAUD",null,"08/02/2019","06/02/2020","INSTRUCTIONAL",0,0]
["ALVARJES000","J05510","JESE",null,"ALVAREZ","jese.alvarez@sumter.k12.fl.us","351","Non 250 Days","9005","MAINTENANCE CEN","19-20 Active Plan","MAIN WK","MAINTENANCE WORKER","SUBER WILLIAM ERIC","SUBERWIL000","ALVAREZ, JESE","JESE ALVAREZ","8:00","02/03/2020","06/30/2020","CLASSIFIED",40,32]
["DUSTIKAT000","K00010","KATHERINE","M","DUSTIN","Katherine.Dustin@SUMTER.K12.FL.US","151","Adm 250 Days","9008","ESE DEPARTMENT","19-20 Active Plan","DIR  EX ST ED","DIRECTOR ESE","MOFFITT DEBORAH DEON","MOFFIDEB000","DUSTIN, KATHERINE M","KATHERINE M DUSTIN","8:00","07/01/2019","06/30/2020","ADMINISTRATION",40,32]
["LYNCHKEN000","K00313","KENNETH","R","LYNCH","kenneth.lynch@sumter.k12.fl.us","358","Non 186 Days","9004","TRANSPORTATION","19-20 Active Plan","BUS DRIVER","BUS DRIVER","FOOTE MICHAEL T","FOOTEMIC000","LYNCH, KENNETH R","KENNETH R LYNCH","4:30","11/19/2019","05/29/2020","CLASSIFIED",22.5,18]
["STRICKER000","K00642","KERI","ALANA","STRICKLAND","Keri.Strickland@SUMTER.K12.FL.US","275","Ins 202 Days","0042","SOUTH SUMTER MI","19-20 Active Plan","COUNSELOR-M/J","COUNSELOR","CAMP JOEL S","CAMP JOE000","STRICKLAND, KERI ALANA","KERI ALANA STRICKLAND","7:36","07/31/2019","06/04/2020","INSTRUCTIONAL",38,30.4]
["MORELMAR000","K00714","MARION","KAY","MORELAND","marion.moreland@sumter.k12.fl.us","256","Ins 198 Days","0171","SOUTH SUMTER HI","19-20 Active Plan","LIB/MED SPEC-SH","MEDIA SPECIALIST","MCKINNEY CHRISTINA JOHNSON","MCKINCHR001","MORELAND, MARION KAY","MARION KAY MORELAND","7:36","08/02/2019","06/02/2020","INSTRUCTIONAL",38,30.4]
["MORROKAT000","K00804","KATHY","CRUCE","MORROT","Kathy.Morrot@SUMTER.K12.FL.US","372","Non 220A Days","0161","WILDWOOD M/H","19-20 Active Plan","DATA ENT OP  ATT/SW","DATA ENTRY CLERK","GRAYBEAL JERRY DUANE","GRAYBJER000","MORROT, KATHY CRUCE","KATHY CRUCE MORROT","7:00","07/12/2019","06/12/2020","CLASSIFIED",35,28]
["EDWARKAR000","K01171","KAREN","LEE","EDWARDS","Karen.Edwards@SUMTER.K12.FL.US","451","Con 250 Days","9001","COUNTY OFFICE","19-20 Active Plan","SEC  STAFF SER","TECHNICIAN HUMAN RESOURCES","WHITMAN LISA LYNN","WHITMLIS000","EDWARDS, KAREN LEE","KAREN LEE EDWARDS","8:00","07/01/2019","06/30/2020","CONFIDENTIAL/CLASSIFIED",40,32]
["GRADYKAT000","K01221","KATRINA","ANN","GRADY","KATRINA.GRADY@sumter.k12.fl.us","370","Non 186 Days","9004","TRANSPORTATION","19-20 Active Plan","BUS AIDE  EX ST ED","ESE BUS AIDE","FOOTE MICHAEL T","FOOTEMIC000","GRADY, KATRINA ANN","KATRINA ANN GRADY","4:00","08/12/2019","05/29/2020","CLASSIFIED",20,16]
["MOFFIKIM000","K01555","KIMBERLY","ANN","MOFFITT","Kimberly.Moffitt@sumter.k12.fl.us","256","Ins 198 Days","0171","SOUTH SUMTER HI","19-20 Active Plan","TEACHER  LANG AR-SH","CLASS SIZE TEACHER","MCKINNEY CHRISTINA JOHNSON","MCKINCHR001","MOFFITT, KIMBERLY ANN","KIMBERLY ANN MOFFITT","7:36","08/02/2019","06/02/2020","INSTRUCTIONAL",38,30.4]
["TRAGEKAT000","K01735","KATHLEEN","TAYLOR","TRAGESSER","Kathleen.Tragesser@SUMTER.K12.FL.US","256","Ins 198 Days","0031","BUSHNELL ELEMEN","19-20 Active Plan","TEACHER  KG","GENERAL FUND TEACHER","GOODWIN KELLY MARGARET","GOODWKEL000","TRAGESSER, KATHLEEN TAYLOR","KATHLEEN TAYLOR TRAGESSER","7:36","08/02/2019","06/02/2020","INSTRUCTIONAL",38,30.4]
["HAUGAKEN000","K01916","KENESHA","BRIANDA SHERMAN","HAUGABROOK","Kenesha.Haugabrook@SUMTER.K12.FL.US","256","Ins 198 Days","0102","WILDWOOD ELEMEN","19-20 Active Plan","TEACHER  VE","ESE TEACHER","TEMPLE JOHN P","TEMPLJOH000","HAUGABROOK, KENESHA BRIANDA SHERMAN","KENESHA BRIANDA SHERMAN HAUGABROOK","7:36","08/02/2019","06/02/2020","INSTRUCTIONAL",38,30.4]
["JONESKAT000","K02219","KATHY","MARIE","JONES","Kathy.Jones@sumter.k12.fl.us","256","Ins 198 Days","0181","LAKE PANASOFFKE","19-20 Active Plan","TEACHER  VE","ESE TEACHER","WADE NICOLE LYNN","WADE NIC000","JONES, KATHY MARIE","KATHY MARIE JONES","7:36","08/02/2019","06/02/2020","INSTRUCTIONAL",38,30.4]
["SEMCHKIM000","K02357","KIMBERLY","A","SEMCHUK","Kimberly.Semchuk@SUMTER.K12.FL.US","256","Ins 198 Days","0042","SOUTH SUMTER MI","19-20 Active Plan","TEACHER  PE-M/J","GENERAL FUND TEACHER","CAMP JOEL S","CAMP JOE000","SEMCHUK, KIMBERLY A","KIMBERLY A SEMCHUK","7:36","08/02/2019","06/02/2020","INSTRUCTIONAL",38,30.4]
["BORUMKIM000","K02858","KIMBERLY","SUE","BORUM","Kimberly.Borum@SUMTER.K12.FL.US","256","Ins 198 Days","0171","SOUTH SUMTER HI","19-20 Active Plan","RDG COACH - SH","GENERAL FUND TEACHER","MCKINNEY CHRISTINA JOHNSON","MCKINCHR001","BORUM, KIMBERLY SUE","KIMBERLY SUE BORUM","7:36","08/02/2019","06/02/2020","INSTRUCTIONAL",38,30.4]
["SHARPKAY000","K02861","KAY","MICHELLE","SHARP","Kay.Sharp@SUMTER.K12.FL.US","256","Ins 198 Days","0171","SOUTH SUMTER HI","19-20 Active Plan","TEACHER  PE-SH","GENERAL FUND TEACHER","MCKINNEY CHRISTINA JOHNSON","MCKINCHR001","SHARP, KAY MICHELLE","KAY MICHELLE SHARP","7:36","08/02/2019","06/02/2020","INSTRUCTIONAL",38,30.4]
["HILEMKEI000","K03083","KEITH","A","HILEMAN","Keith.Hileman@SUMTER.K12.FL.US","256","Ins 198 Days","0171","SOUTH SUMTER HI","19-20 Active Plan","TEACHER  PE-SH","GENERAL FUND TEACHER","MCKINNEY CHRISTINA JOHNSON","MCKINCHR001","HILEMAN, KEITH A","KEITH A HILEMAN","7:36","08/02/2019","06/02/2020","INSTRUCTIONAL",38,30.4]
["TYSONKIM000","K03252","KIMBERLY","ANN","TYSON","Kimberly.Tyson@SUMTER.K12.FL.US","256","Ins 198 Days","0042","SOUTH SUMTER MI","19-20 Active Plan","LIB/MED SPEC-M/J","MEDIA SPECIALIST","CAMP JOEL S","CAMP JOE000","TYSON, KIMBERLY ANN","KIMBERLY ANN TYSON","7:36","08/02/2019","06/02/2020","INSTRUCTIONAL",38,30.4]
["GOODWKEL000","K03281","KELLY","MARGARET","GOODWIN","Kelly.Goodwin@sumter.k12.fl.us","151","Adm 250 Days","0031","BUSHNELL ELEMEN","19-20 Active Plan","PRINCIPAL-E","PRINCIPAL","CHRISTIAN HELEN ANN","CHRISHEL000","GOODWIN, KELLY MARGARET","KELLY MARGARET GOODWIN","8:00","07/01/2019","06/30/2020","ADMINISTRATION",40,32]
["MILLEKEL000","K03286","KELLIE","ANN","MILLER","Kellie.Miller@Sumter.k12.fl.us","370","Non 186 Days","0181","LAKE PANASOFFKE","19-20 Active Plan","PARAPROFESSIONAL  ELEM","GENERAL FUND PARA","WADE NICOLE LYNN","WADE NIC000","MILLER, KELLIE ANN","KELLIE ANN MILLER","7:00","08/12/2019","05/29/2020","CLASSIFIED",35,28]
["LESTEKAR000","K03310","KARI","ANNE","LESTER","Kari.Lester@sumter.k12.fl.us","256","Ins 198 Days","0031","BUSHNELL ELEMEN","19-20 Active Plan","TEACHER  FIFTH","GENERAL FUND TEACHER","GOODWIN KELLY MARGARET","GOODWKEL000","LESTER, KARI ANNE","KARI ANNE LESTER","7:36","08/02/2019","06/02/2020","INSTRUCTIONAL",{"$f":"+R450*24*5","v":38},{"$f":"+R450*24*4","v":30.4}]
["LAWREKEL000","K03331","KELLY","MORRISON","LAWRENCE","Kelly.Lawrence@SUMTER.K12.FL.US","256","Ins 198 Days","0171","SOUTH SUMTER HI","19-20 Active Plan","LEARN RES SPEC","GENERAL FUND LEARNING RESOURCE","MCKINNEY CHRISTINA JOHNSON","MCKINCHR001","LAWRENCE, KELLY MORRISON","KELLY MORRISON LAWRENCE","7:36","08/02/2019","06/02/2020","INSTRUCTIONAL",38,30.4]
["TOWNSKAT000","K03597","KATHY","LENORA","TOWNS","Kathy.Towns@sumter.k12.fl.us","370","Non 186 Days","9004","TRANSPORTATION","19-20 Active Plan","BUS AIDE  EX ST ED","ESE BUS AIDE","FOOTE MICHAEL T","FOOTEMIC000","TOWNS, KATHY LENORA","KATHY LENORA TOWNS","4:15","08/12/2019","05/29/2020","CLASSIFIED",21.25,17]
["HAHN KIM000","K03644","KIMBERLY","D","HAHN","kimberly.hahn@sumter.k12.fl.us","370","Non 186 Days","0051","WEBSTER ELEMENT","19-20 Active Plan","PARAPROFESSIONAL ESE AGES 6-","ESE PARA","SHEA MELYNDA BROOKE","SHEA MEL000","HAHN, KIMBERLY D","KIMBERLY D HAHN","7:00","08/12/2019","05/29/2020","CLASSIFIED",35,28]
["STRICKEV000","K03653","KEVIN","ALLEN","STRICKLAND","Kevin.Strickland@sumter.k12.fl.us","256","Ins 198 Days","0042","SOUTH SUMTER MI","19-20 Active Plan","TEACHER  SCIENCE-M/J","CLASS SIZE TEACHER","CAMP JOEL S","CAMP JOE000","STRICKLAND, KEVIN ALLEN","KEVIN ALLEN STRICKLAND","7:36","08/02/2019","06/02/2020","INSTRUCTIONAL",38,30.4]
["SOMMEKIM000","K03657","KIM",null,"SOMMERSDORF","Kim.Sommersdorf@Sumter.k12.fl.us","256","Ins 198 Days","0031","BUSHNELL ELEMEN","19-20 Active Plan","TEACHER  THIRD","GENERAL FUND TEACHER","GOODWIN KELLY MARGARET","GOODWKEL000","SOMMERSDORF, KIM","KIM SOMMERSDORF","7:36","08/02/2019","06/02/2020","INSTRUCTIONAL",38,30.4]
["EDGELKEL001","K03659","KELLI","JO","EDGELL","kelli.edgell@sumter.k12.fl.us","256","Ins 198 Days","0042","SOUTH SUMTER MI","19-20 Active Plan","TEACHER  MATH-M/J","CLASS SIZE TEACHER","CAMP JOEL S","CAMP JOE000","EDGELL, KELLI JO","KELLI JO EDGELL","7:36","08/02/2019","06/02/2020","INSTRUCTIONAL",38,30.4]
["WATSOKAR000","K03684","KAREN","DIANE","WATSON","Karen.Watson@SUMTER.K12.FL.US","256","Ins 198 Days","0102","WILDWOOD ELEMEN","19-20 Active Plan","TEACHER  FIRST","GENERAL FUND TEACHER","TEMPLE JOHN P","TEMPLJOH000","WATSON, KAREN DIANE","KAREN DIANE WATSON","7:36","08/02/2019","06/02/2020","INSTRUCTIONAL",38,30.4]
["HACKEKIM001","K03761","KIMBERLY","ANN","HACKER","kimberly.hacker@sumter.k12.fl.us","370","Non 186 Days","0042","SOUTH SUMTER MI","19-20 Active Plan","PARAPROFESSIONAL ESE AGES 6-","ESE PARA","CAMP JOEL S","CAMP JOE000","HACKER, KIMBERLY ANN","KIMBERLY ANN HACKER","7:00","08/12/2019","05/29/2020","CLASSIFIED",35,28]
["WINTEKEV000","K03814","KEVIN","M","WINTER","Kevin.Winter@sumter.k12.fl.us","256","Ins 198 Days","0042","SOUTH SUMTER MI","19-20 Active Plan","TEACHER  SCIENCE-M/J","GENERAL FUND TEACHER","CAMP JOEL S","CAMP JOE000","WINTER, KEVIN M","KEVIN M WINTER","7:36","08/02/2019","06/02/2020","INSTRUCTIONAL",38,30.4]
["LESTEKIM000","K03877","KIMBERLY","D","LESTER","Kimberly.Lester@SUMTER.K12.FL.US","256","Ins 198 Days","0181","LAKE PANASOFFKE","19-20 Active Plan","TEACHER  SECOND","GENERAL FUND TEACHER","WADE NICOLE LYNN","WADE NIC000","LESTER, KIMBERLY D","KIMBERLY D LESTER","7:36","08/02/2019","06/02/2020","INSTRUCTIONAL",38,30.4]
["GREENKIM000","K03916","KIMBERLY","ANN","GREEN","Kimberly.Green@sumter.k12.fl.us","372","Non 220A Days","0171","SOUTH SUMTER HI","19-20 Active Plan","DATA ENT OP  ATT/SW","DATA ENTRY CLERK","MCKINNEY CHRISTINA JOHNSON","MCKINCHR001","GREEN, KIMBERLY ANN","KIMBERLY ANN GREEN","7:00","07/12/2019","06/12/2020","CLASSIFIED",35,28]
["VEAL KEL000","K04019","KELLI","ELAINE","VEAL","KELLI.VEAL@SUMTER.K12.FL.US","256","Ins 198 Days","0042","SOUTH SUMTER MI","19-20 Active Plan","TEACHER  CTE OR/EXP","GENERAL FUND TEACHER","CAMP JOEL S","CAMP JOE000","VEAL, KELLI ELAINE","KELLI ELAINE VEAL","7:36","08/02/2019","06/02/2020","INSTRUCTIONAL",38,30.4]
["EPPERKAS000","K04122","KASSY","MICHELLE","EPPERSON","Kassy.Epperson@Sumter.k12.fl.us","256","Ins 198 Days","0171","SOUTH SUMTER HI","19-20 Active Plan","TEACHER READ-SH","GENERAL FUND TEACHER","MCKINNEY CHRISTINA JOHNSON","MCKINCHR001","EPPERSON, KASSY MICHELLE","KASSY MICHELLE EPPERSON","7:36","08/02/2019","06/02/2020","INSTRUCTIONAL",38,30.4]
["NEAL KAT000","K04169","KATHY","HART","NEAL","kathy.neal@sumter.k12.fl.us","351","Non 250 Days","0051","WEBSTER ELEMENT","19-20 Active Plan","CUSTODIAN","CUSTODIAN","SHEA MELYNDA BROOKE","SHEA MEL000","NEAL, KATHY HART","KATHY HART NEAL","8:00","07/01/2019","06/30/2020","CLASSIFIED",40,32]
["NAVARKEL000","K04246","KELLY","SUSAN","NAVARRO","Kelly.Navarro@sumter.k12.fl.us","351","Non 250 Days","0181","LAKE PANASOFFKE","19-20 Active Plan","CUSTODIAN","CUSTODIAN","WADE NICOLE LYNN","WADE NIC000","NAVARRO, KELLY SUSAN","KELLY SUSAN NAVARRO","8:00","07/01/2019","06/30/2020","CLASSIFIED",40,32]
["BESERKIM000","K04348","KIMBERLY","STEPHENS","BESEROCK","KIMBERLY.BESEROCK@SUMTER.K12.FL.US","256","Ins 198 Days","0181","LAKE PANASOFFKE","19-20 Active Plan","TEACHER  GIFTED","ESE TEACHER","WADE NICOLE LYNN","WADE NIC000","BESEROCK, KIMBERLY STEPHENS","KIMBERLY STEPHENS BESEROCK","7:36","08/02/2019","06/02/2020","INSTRUCTIONAL",38,30.4]
["PREVAKAI000","K04442","KAILI","NICOLE","PREVATT","KAILI.PREVATT@SUMTER.K12.FL.US","371","Non 196 Days","0102","WILDWOOD ELEMEN","19-20 Active Plan","PARAPROFESSIONAL  PK","TITLE I/ PRE K LEAD","TEMPLE JOHN P","TEMPLJOH000","PREVATT, KAILI NICOLE","KAILI NICOLE PREVATT","8:00","08/02/2019","06/02/2020","CLASSIFIED",40,32]
["BATESKRI000","K04574","KRISTI","DANIELLE","BATES","kristi.bates@sumter.k12.fl.us","256","Ins 198 Days","0181","LAKE PANASOFFKE","19-20 Active Plan","TEACHER  KG","CLASS SIZE TEACHER","WADE NICOLE LYNN","WADE NIC000","BATES, KRISTI DANIELLE","KRISTI DANIELLE BATES","7:36","08/02/2019","06/02/2020","INSTRUCTIONAL",38,30.4]
["MIDDLKAD000","K04575","KADI","JO","MIDDLETON","Kadi.Middleton@sumter.k12.fl.us","370","Non 186 Days","0181","LAKE PANASOFFKE","19-20 Active Plan","PARAPROFESSIONAL  ELEM","GENERAL FUND PARA","WADE NICOLE LYNN","WADE NIC000","MIDDLETON, KADI JO","KADI JO MIDDLETON","7:00","08/12/2019","05/29/2020","CLASSIFIED",35,28]
["SPECHKAR000","K04598","KAREN","J","SPECHT","karen.specht@sumter.k12.fl.us","358","Non 186 Days","9004","TRANSPORTATION","19-20 Active Plan","BUS DRIVER","BUS DRIVER","FOOTE MICHAEL T","FOOTEMIC000","SPECHT, KAREN J","KAREN J SPECHT","5:00","11/07/2019","05/29/2020","CLASSIFIED",25,20]
["BAKERKEL000","K04631","KELSEY","BRIANNE","BAKER","Kelsey.Baker@sumter.k12.fl.us","256","Ins 198 Days","0181","LAKE PANASOFFKE","19-20 Active Plan","TEACHER  COMBIN-E","GENERAL FUND TEACHER","WADE NICOLE LYNN","WADE NIC000","BAKER, KELSEY BRIANNE","KELSEY BRIANNE BAKER","7:36","08/02/2019","06/02/2020","INSTRUCTIONAL",38,30.4]
["WITT KAT000","K04693","KATELIN","MARIE","WITT","katelin.witt@sumter.k12.fl.us","256","Ins 198 Days","0051","WEBSTER ELEMENT","19-20 Active Plan","TEACHER  THIRD","CLASS SIZE TEACHER","SHEA MELYNDA BROOKE","SHEA MEL000","WITT, KATELIN MARIE","KATELIN MARIE WITT","7:36","12/09/2019","06/02/2020","INSTRUCTIONAL",38,30.4]
["PENSOKEL000","K04732","KELLEY","LYNN","PENSON","kelley.penson@sumter.k12.fl.us","256","Ins 198 Days","0102","WILDWOOD ELEMEN","19-20 Active Plan","TEACHER  FOURTH","GENERAL FUND TEACHER","TEMPLE JOHN P","TEMPLJOH000","PENSON, KELLEY LYNN","KELLEY LYNN PENSON","7:36","08/02/2019","06/02/2020","INSTRUCTIONAL",38,30.4]
["CHAMBKYN000","K04802","KYNDAHL","CAREESE","CHAMBERS","Kyndahl.Chambers@sumter.k12.fl.us","256","Ins 198 Days","0102","WILDWOOD ELEMEN","19-20 Active Plan","TEACHER  THIRD","GENERAL FUND TEACHER","TEMPLE JOHN P","TEMPLJOH000","CHAMBERS, KYNDAHL CAREESE","KYNDAHL CAREESE CHAMBERS","7:36","08/02/2019","06/02/2020","INSTRUCTIONAL",38,30.4]
["ONDRIKYL000","K04803","KYLIE","RAE","ONDRIEZEK","Kylie.Ondriezek@sumter.k12.fl.us","256","Ins 198 Days","0161","WILDWOOD M/H","19-20 Active Plan","TEACHER READ-SH","TITLE I TEACHER","GRAYBEAL JERRY DUANE","GRAYBJER000","ONDRIEZEK, KYLIE RAE","KYLIE RAE ONDRIEZEK","7:36","08/02/2019","06/02/2020","INSTRUCTIONAL",38,30.4]
["MONTEKAT000","K04830","KATHERINE",null,"MONTESINO","Katherine.Montesino@sumter.k12.fl.us","256","Ins 198 Days","9008","ESE DEPARTMENT","19-20 Active Plan","TEACHER DHH - Deaf/Hard of Hea","ESE TEACHER","DUSTIN KATHERINE M","DUSTIKAT000","MONTESINO, KATHERINE","KATHERINE MONTESINO","7:36","08/02/2019","06/02/2020","INSTRUCTIONAL",38,30.4]
["HANSOKEV000","K04898","KEVIN","ROBERT GORDON","HANSON","Kevin.Hanson@sumter.k12.fl.us","256","Ins 198 Days","0171","SOUTH SUMTER HI","19-20 Active Plan","TEACHER  VE","ESE TEACHER","MCKINNEY CHRISTINA JOHNSON","MCKINCHR001","HANSON, KEVIN ROBERT GORDON","KEVIN ROBERT GORDON HANSON","7:36","08/02/2019","06/02/2020","INSTRUCTIONAL",38,30.4]
["REYNOKAL000","K04902","KALI","LYNN","REYNOLDS","Kali.Reynolds@sumter.k12.fl.us","256","Ins 198 Days","0031","BUSHNELL ELEMEN","19-20 Active Plan","TEACHER  FOURTH","GENERAL FUND TEACHER","GOODWIN KELLY MARGARET","GOODWKEL000","REYNOLDS, KALI LYNN","KALI LYNN REYNOLDS","7:36","08/02/2019","06/02/2020","INSTRUCTIONAL",38,30.4]
["BABAUKAR000","K04923","KARINA","DANETTE","BABAUTA","karina.babauta@sumter.k12.fl.us","351","Non 250 Days","0031","BUSHNELL ELEMEN","19-20 Active Plan","CUSTODIAN","CUSTODIAN","GOODWIN KELLY MARGARET","GOODWKEL000","BABAUTA, KARINA DANETTE","KARINA DANETTE BABAUTA","8:00","07/01/2019","06/30/2020","CLASSIFIED",40,32]
["HELMSKEL000","K04926","KELLY","ANN","HELMS","kelly.helms@sumter.k12.fl.us","451","Con 250 Days","9001","COUNTY OFFICE","19-20 Active Plan","SEC  STAFF SER","SECRETARY HUMAN RESOURCES","WHITMAN LISA LYNN","WHITMLIS000","HELMS, KELLY ANN","KELLY ANN HELMS","8:00","07/01/2019","06/30/2020","CONFIDENTIAL/CLASSIFIED",40,32]
["YEHL KAR001","K04943","KAREN","LYNN","YEHL","Karen.Yehl@sumter.k12.fl.us","256","Ins 198 Days","0031","BUSHNELL ELEMEN","19-20 Active Plan","TEACHER  SECOND","CLASS SIZE TEACHER","GOODWIN KELLY MARGARET","GOODWKEL000","YEHL, KAREN LYNN","KAREN LYNN YEHL","7:36","08/02/2019","06/02/2020","INSTRUCTIONAL",38,30.4]
["ABUNDKER000","K04969","KERI","GAINES","ABUNDIS","keri.abundis@sumter.k12.fl.us","351","Non 250 Days","0051","WEBSTER ELEMENT","19-20 Active Plan","CUSTODIAN","CUSTODIAN","SHEA MELYNDA BROOKE","SHEA MEL000","ABUNDIS, KERI GAINES","KERI GAINES ABUNDIS","8:00","07/01/2019","06/30/2020","CLASSIFIED",40,32]
["BROWNKRI001","K04993","KRISTI","LYNN","BROWN","Kristi.Brown@Sumter.k12.fl.us","370","Non 186 Days","0181","LAKE PANASOFFKE","19-20 Active Plan","PARAPROFESSIONAL  PK","IDEA/ PRE K PARA","WADE NICOLE LYNN","WADE NIC000","BROWN, KRISTI LYNN","KRISTI LYNN BROWN","7:00","08/12/2019","05/29/2020","CLASSIFIED",35,28]
["CRAWFKAY000","K05030","KAYLEE","DAWN","CRAWFORD","kaylee.crawford@sumter.k12.fl.us","370","Non 186 Days","0051","WEBSTER ELEMENT","19-20 Active Plan","PARAPROFESSIONAL ESE AGES 6-","ESE PARA","SHEA MELYNDA BROOKE","SHEA MEL000","CRAWFORD, KAYLEE DAWN","KAYLEE DAWN CRAWFORD","7:00","08/12/2019","05/29/2020","CLASSIFIED",35,28]
["LENOIKAT000","K05051","KATHLEEN","E","LENOIR","kathleen.lenoir@sumter.k12.fl.us","351","Non 250 Days","9004","TRANSPORTATION","19-20 Active Plan","SEC TRANSPORTATION","SECRETARY TRANSPORTATION","FOOTE MICHAEL T","FOOTEMIC000","LENOIR, KATHLEEN E","KATHLEEN E LENOIR","8:00","07/01/2019","06/30/2020","CLASSIFIED",40,32]
["PALAZKAT000","K05087","KATHERINE","C","PALAZZO","katherine.palazzo@sumter.k12.fl.us","256","Ins 198 Days","0102","WILDWOOD ELEMEN","19-20 Active Plan","TEACHER  KG","GENERAL FUND TEACHER","TEMPLE JOHN P","TEMPLJOH000","PALAZZO, KATHERINE C","KATHERINE C PALAZZO","7:36","08/02/2019","06/02/2020","INSTRUCTIONAL",38,30.4]
["HENDRKIP000","K05090","KIP","A","HENDRIX","kip.hendrix@sumter.k12.fl.us","256","Ins 198 Days","0181","LAKE PANASOFFKE","19-20 Active Plan","TEACHER  FOURTH","GENERAL FUND TEACHER","WADE NICOLE LYNN","WADE NIC000","HENDRIX, KIP A","KIP A HENDRIX","7:36","08/02/2019","06/02/2020","INSTRUCTIONAL",38,30.4]
["LYCANKIE000","K05141","KIETH","T","LYCANS","kieth.lycans@sumter.k12.fl.us","351","Non 250 Days","9005","MAINTENANCE CEN","19-20 Active Plan","MAIN WK","MAINTENANCE WORKER","SUBER WILLIAM ERIC","SUBERWIL000","LYCANS, KIETH T","KIETH T LYCANS","8:00","07/01/2019","06/30/2020","CLASSIFIED",40,32]
["BOWENKAT000","K05228","KATHERYN","M","BOWEN","katheryn.bowen@sumter.k12.fl.us","256","Ins 198 Days","0102","WILDWOOD ELEMEN","19-20 Active Plan","SP/LANG PATH","SPEECH/LANGUAGE PATH","TEMPLE JOHN P","TEMPLJOH000","BOWEN, KATHERYN M","KATHERYN M BOWEN","8:00","08/02/2019","06/02/2020","INSTRUCTIONAL",40,32]
["MCCLUKYL000","K05255","KYLE","JAMES","MCCLURG","kyle.mcclurg@sumter.k12.fl.us","256","Ins 198 Days","0171","SOUTH SUMTER HI","19-20 Active Plan","ATHLETIC TR","GENERAL FUND TEACHER","MCKINNEY CHRISTINA JOHNSON","MCKINCHR001","MCCLURG, KYLE JAMES","KYLE JAMES MCCLURG","7:36","08/02/2019","06/02/2020","INSTRUCTIONAL",38,30.4]
["KROLLKAT000","K05342","KATHRYN","ANN","KROLL","kathryn.kroll@sumter.k12.fl.us","256","Ins 198 Days","0171","SOUTH SUMTER HI","19-20 Active Plan","TEACHER  SOC ST-SH","GENERAL FUND TEACHER","MCKINNEY CHRISTINA JOHNSON","MCKINCHR001","KROLL, KATHRYN ANN","KATHRYN ANN KROLL","7:36","08/02/2019","06/02/2020","INSTRUCTIONAL",38,30.4]
["UPSHAKAI000","K05416","KAILEE","LAUREN","UPSHAW","kailee.upshaw@sumter.k12.fl.us","256","Ins 198 Days","0042","SOUTH SUMTER MI","19-20 Active Plan","TEACHER  HEALTH SCI ED","GENERAL FUND TEACHER","CAMP JOEL S","CAMP JOE000","UPSHAW, KAILEE LAUREN","KAILEE LAUREN UPSHAW","7:36","08/02/2019","06/02/2020","INSTRUCTIONAL",38,30.4]
["SMITHKIM000","K05441","KIMBERLY","A","SMITH","kimberly.smith@sumter.k12.fl.us","370","Non 186 Days","0102","WILDWOOD ELEMEN","19-20 Active Plan","PARAPROFESSIONAL  PK","IDEA/ PRE K PARA","TEMPLE JOHN P","TEMPLJOH000","SMITH, KIMBERLY A","KIMBERLY A SMITH","7:00","11/01/2019","05/29/2020","CLASSIFIED",35,28]
["FLOREKIM000","K05471","KIMBERLY","LORRAINE","FLORENCE","kimberly.florence@sumter.k12.fl.us","358","Non 186 Days","9004","TRANSPORTATION","19-20 Active Plan","BUS DRIVER","BUS DRIVER","FOOTE MICHAEL T","FOOTEMIC000","FLORENCE, KIMBERLY LORRAINE","KIMBERLY LORRAINE FLORENCE","4:00","10/22/2019","05/29/2020","CLASSIFIED",20,16]
["NEAL KAR000","K05509","KARA","ANN","NEAL","kara.neal@sumter.k12.fl.us","256","Ins 198 Days","0161","WILDWOOD M/H","19-20 Active Plan","TEACHER  LANG AR-SH","CLASS SIZE TEACHER","GRAYBEAL JERRY DUANE","GRAYBJER000","NEAL, KARA ANN","KARA ANN NEAL","7:36","01/27/2020","06/02/2020","INSTRUCTIONAL",38,30.4]
["CROSBLAT000","L00242","LATICIA","S","CROSBY","Laticia.Crosby@SUMTER.K12.FL.US","152","Adm- 221 Days","0161","WILDWOOD M/H","19-20 Active Plan","ASST PRIN-SH","PRINCIPAL ASSISTANT","GRAYBEAL JERRY DUANE","GRAYBJER000","CROSBY, LATICIA S","LATICIA S CROSBY","8:00","07/12/2019","06/12/2020","ADMINISTRATION",40,32]
["STURGLIS000","L00480","LISA","GAIL","STURGILL","lisa.sturgill@sumter.k12.fl.us","357","Non 188 Days","0102","WILDWOOD ELEMEN","19-20 Active Plan","FOOD SER WORKER","FOOD SERVICE","SUBER WILLIAM ERIC","SUBERWIL000","STURGILL, LISA GAIL","LISA GAIL STURGILL","8:00","08/09/2019","06/01/2020","CLASSIFIED",40,32]
["WHITMLIS000","L00851","LISA","LYNN","WHITMAN","Lisa.Whitman@SUMTER.K12.FL.US","151","Adm 250 Days","9001","COUNTY OFFICE","19-20 Active Plan","EXEC DIR  ADMIN","SR DIRECTOR HUMAN RESOURCES","SMITH DEBORAH WALTERS","SMITHDEB000","WHITMAN, LISA LYNN","LISA LYNN WHITMAN","8:00","07/01/2019","06/30/2020","ADMINISTRATION",40,32]
["PAXTOLES000","L00998","LESLIE","DIANE","PAXTON","Leslie.Paxton@SUMTER.K12.FL.US","351","Non 250 Days","9001","COUNTY OFFICE","19-20 Active Plan","CLAIMS REP","TECHNICIAN EMPLOYEE BENEFITS","WHITMAN LISA LYNN","WHITMLIS000","PAXTON, LESLIE DIANE","LESLIE DIANE PAXTON","8:00","07/01/2019","06/30/2020","CLASSIFIED",40,32]
["LANHALIN000","L01002","LINDA","DARLENE","LANHAM","Linda.Lanham@SUMTER.K12.FL.US","256","Ins 198 Days","0051","WEBSTER ELEMENT","19-20 Active Plan","TEACHER  FIFTH","CLASS SIZE TEACHER","SHEA MELYNDA BROOKE","SHEA MEL000","LANHAM, LINDA DARLENE","LINDA DARLENE LANHAM","7:36","08/02/2019","06/02/2020","INSTRUCTIONAL",38,30.4]
["STUDDLIS000","L01253","LISSA","DIANE","STUDDARD","Lissa.Studdard@SUMTER.K12.FL.US","351","Non 250 Days","9001","COUNTY OFFICE","19-20 Active Plan","SEC  INS/CUR","SECRETARY SECONDARY ED","SHIRLEY RICHARD ALLEN, JR","SHIRLRIC001","STUDDARD, LISSA DIANE","LISSA DIANE STUDDARD","8:00","07/01/2019","06/30/2020","CLASSIFIED",40,32]
["EVERELAR000","L01280","LARRY","D","EVERETT","Larry.Everett@SUMTER.K12.FL.US","351","Non 250 Days","0051","WEBSTER ELEMENT","19-20 Active Plan","HEAD CUSTODIAN","CUSTODIAN","SHEA MELYNDA BROOKE","SHEA MEL000","EVERETT, LARRY D","LARRY D EVERETT","8:00","07/01/2019","06/30/2020","CLASSIFIED",40,32]
["CRENSLIZ000","L01350","LIZA","Z","CRENSHAW","Liza.Crenshaw@SUMTER.K12.FL.US","256","Ins 198 Days","0031","BUSHNELL ELEMEN","19-20 Active Plan","TEACHER  FIRST","CLASS SIZE TEACHER","GOODWIN KELLY MARGARET","GOODWKEL000","CRENSHAW, LIZA Z","LIZA Z CRENSHAW","7:36","08/02/2019","06/02/2020","INSTRUCTIONAL",38,30.4]
["WILLILAT000","L01421","LATESIA","ANN","WILLIAMS","Latesia.Williams@SUMTER.K12.FL.US","355","Non 200 Days","0102","WILDWOOD ELEMEN","19-20 Active Plan","CLERK  SCH","CLERK SCHOOL","TEMPLE JOHN P","TEMPLJOH000","WILLIAMS, LATESIA ANN","LATESIA ANN WILLIAMS","7:00","08/01/2019","06/04/2020","CLASSIFIED",35,28]
["CHESLLOU000","L01527","LOUCILE","JANE","CHESLEY","Loucile.Chesley@SUMTER.K12.FL.US","256","Ins 198 Days","0102","WILDWOOD ELEMEN","19-20 Active Plan","TEACHER  KG","CLASS SIZE TEACHER","TEMPLE JOHN P","TEMPLJOH000","CHESLEY, LOUCILE JANE","LOUCILE JANE CHESLEY","7:36","08/02/2019","06/02/2020","INSTRUCTIONAL",38,30.4]
["FORT LIN000","L02001","LINDA","EDITH","FORT","Lea.Fort@sumter.k12.fl.us","370","Non 186 Days","0181","LAKE PANASOFFKE","19-20 Active Plan","LAB ASSISTANT","TITLE I LAB ASSISTANT","WADE NICOLE LYNN","WADE NIC000","FORT, LINDA EDITH","LINDA EDITH FORT","7:24","08/12/2019","05/29/2020","CLASSIFIED",37,29.6]
["ELLISLYN000","L02027","LYNN","P","ELLIS","Lynn.Ellis@SUMTER.K12.FL.US","355","Non 200 Days","3001","SUMTER PREP","19-20 Active Plan","CLERK  SCH","CLERK SCHOOL","PRESLEY JAMES CHESTER","PRESLJAM000","ELLIS, LYNN P","LYNN P ELLIS","7:00","08/01/2019","06/04/2020","CLASSIFIED",35,28]
["MOON LUA000","L02097","LUANNE","E","MOON","Luanne.Moon@SUMTER.K12.FL.US","351","Non 250 Days","9001","COUNTY OFFICE","19-20 Active Plan","OTH FOOD SER EMP","FOOD SERVICE","SUBER WILLIAM ERIC","SUBERWIL000","MOON, LUANNE E","LUANNE E MOON","8:00","07/01/2019","06/30/2020","CLASSIFIED",40,32]
["LORUSLIS001","L02327","LISA","M","LORUSSO","Lisa.Lorusso@SUMTER.K12.FL.US","451","Con 250 Days","0181","LAKE PANASOFFKE","19-20 Active Plan","SEC  SCH","SECRETARY SCHOOL","WADE NICOLE LYNN","WADE NIC000","LORUSSO, LISA M","LISA M LORUSSO","8:00","07/01/2019","06/30/2020","CONFIDENTIAL/CLASSIFIED",40,32]
["BONNALIN000","L02813","LINDA","CAROL","BONNAR","Linda.Bonnar@SUMTER.K12.FL.US","351","Non 250 Days","9005","MAINTENANCE CEN","19-20 Active Plan","SEC INTERNAL SERVICES","SECRETARY WAREHOUSE","SUBER WILLIAM ERIC","SUBERWIL000","BONNAR, LINDA CAROL","LINDA CAROL BONNAR","8:00","07/01/2019","06/30/2020","CLASSIFIED",40,32]
["STRICLAU000","L03262","LAURA","LEIGH","STRICKLAND","Laura.Strickland@SUMTER.K12.FL.US","256","Ins 198 Days","0161","WILDWOOD M/H","19-20 Active Plan","TEACHER  MATH-SH","GENERAL FUND TEACHER","GRAYBEAL JERRY DUANE","GRAYBJER000","STRICKLAND, LAURA LEIGH","LAURA LEIGH STRICKLAND","7:36","08/02/2019","06/02/2020","INSTRUCTIONAL",38,30.4]
["HOLLOLAC000","L03308","LACY","SUZANNE","HOLLOWAY","Lacy.Holloway@SUMTER.K12.FL.US","256","Ins 198 Days","0171","SOUTH SUMTER HI","19-20 Active Plan","TEACHER  LANG AR-SH","SAI/GF AVID","MCKINNEY CHRISTINA JOHNSON","MCKINCHR001","HOLLOWAY, LACY SUZANNE","LACY SUZANNE HOLLOWAY","7:36","08/02/2019","06/02/2020","INSTRUCTIONAL",38,30.4]
["SHERMLAN000","L03344","LANDREA","NIKOLE","SHERMAN","Landrea.Sherman@sumter.k12.fl.us","275","Ins 202 Days","0181","LAKE PANASOFFKE","19-20 Active Plan","COUNSELOR-E","COUNSELOR","WADE NICOLE LYNN","WADE NIC000","SHERMAN, LANDREA NIKOLE","LANDREA NIKOLE SHERMAN","7:36","07/31/2019","06/04/2020","INSTRUCTIONAL",38,30.4]
["WALESLOR000","L03515","LORETTA","A","WALES","Loretta.Wales@SUMTER.K12.FL.US","370","Non 186 Days","0102","WILDWOOD ELEMEN","19-20 Active Plan","PARAPROFESSIONAL ESE AGES 6-","ESE PARA","TEMPLE JOHN P","TEMPLJOH000","WALES, LORETTA A","LORETTA A WALES","7:00","08/12/2019","05/29/2020","CLASSIFIED",{"$f":"+R514*24*5","v":35},{"$f":"+R514*24*4","v":28}]
["CLINELAU000","L03516","LAURA","PIERCE","CLINE","Laura.Cline@sumter.k12.fl.us","370","Non 186 Days","0051","WEBSTER ELEMENT","19-20 Active Plan","PARAPROFESSIONAL  PK","IDEA/ PRE K PARA","SHEA MELYNDA BROOKE","SHEA MEL000","CLINE, LAURA PIERCE","LAURA PIERCE CLINE","7:00","08/12/2019","05/29/2020","CLASSIFIED",35,28]
["KELLYLAS000","L03569","LASHANDRA","TIMEAL","KELLY","Lashandra.Kelly@SUMTER.K12.FL.US","256","Ins 198 Days","0031","BUSHNELL ELEMEN","19-20 Active Plan","MATH COACH - E","GENERAL FUND TEACHER","GOODWIN KELLY MARGARET","GOODWKEL000","KELLY, LASHANDRA TIMEAL","LASHANDRA TIMEAL KELLY","8:00","08/21/2019","06/02/2020","INSTRUCTIONAL",40,32]
["PEACOLIS000","L03661","LISA","JEANINE","PEACOCK","Jeanine.Peacock@sumter.k12.fl.us","256","Ins 198 Days","0181","LAKE PANASOFFKE","19-20 Active Plan","LIB/MED SPEC-E","MEDIA SPECIALIST","WADE NICOLE LYNN","WADE NIC000","PEACOCK, LISA JEANINE","LISA JEANINE PEACOCK","7:36","08/02/2019","06/02/2020","INSTRUCTIONAL",38,30.4]
["GRIFFLYD000","L03844","LYDIA","ANN","GRIFFIN","lydia.griffin@sumter.k12.fl.us","357","Non 188 Days","0051","WEBSTER ELEMENT","19-20 Active Plan","FOOD SER WORKER","FOOD SERVICE","SUBER WILLIAM ERIC","SUBERWIL000","GRIFFIN, LYDIA ANN","LYDIA ANN GRIFFIN","8:00","08/09/2019","06/01/2020","CLASSIFIED",40,32]
["GORDOLOR000","L04137","LORRAINE","JUNE","GORDON","Lorraine.Gordon@sumter.k12.fl.us","275","Ins 202 Days","3001","SUMTER PREP","19-20 Active Plan","COUNSELOR-OTHER SCH","COUNSELOR/ SAI","PRESLEY JAMES CHESTER","PRESLJAM000","GORDON, LORRAINE JUNE","LORRAINE JUNE GORDON","7:36","07/31/2019","06/04/2020","INSTRUCTIONAL",38,30.4]
["SHOAFLIS000","L04180","LISA","FUGATE","SHOAF","Lisa.Shoaf@sumter.k12.fl.us","451","Con 250 Days","0051","WEBSTER ELEMENT","19-20 Active Plan","SEC  SCH","SECRETARY SCHOOL","SHEA MELYNDA BROOKE","SHEA MEL000","SHOAF, LISA FUGATE","LISA FUGATE SHOAF","8:00","07/01/2019","06/30/2020","CONFIDENTIAL/CLASSIFIED",40,32]
["WATSOLIN001","L04311","LINDSEY","DALE","WATSON","Lindsey.Watson@sumter.k12.fl.us","651","CNU 250 Days","9001","COUNTY OFFICE","19-20 Active Plan","ADMIN ASST MIS","BUSINESS INFORMATION ASSISTANT","HUFF RICHARD BRYAN","HUFF RIC000","WATSON, LINDSEY DALE","LINDSEY DALE WATSON","8:00","07/01/2019","06/30/2020","NON-INSTRUCT NO BARGAINING UNI",40,32]
["MAGLILIN000","L04330","LINDA",null,"MAGLIOCCA","LINDA.MAGLIOCCA@SUMTER.K12.FL.US","275","Ins 202 Days","0102","WILDWOOD ELEMEN","19-20 Active Plan","COUNSELOR-E","TITLE I/ COUNSELOR","TEMPLE JOHN P","TEMPLJOH000","MAGLIOCCA, LINDA","LINDA MAGLIOCCA","7:36","07/31/2019","06/04/2020","INSTRUCTIONAL",38,30.4]
["MANCILES000","L04355","LESLIE","A","MANCINI","LESLIE.MANCINI@SUMTER.K12.FL.US","256","Ins 198 Days","0031","BUSHNELL ELEMEN","19-20 Active Plan","TEACHER  FIFTH","CLASS SIZE TEACHER","GOODWIN KELLY MARGARET","GOODWKEL000","MANCINI, LESLIE A","LESLIE A MANCINI","7:36","08/02/2019","06/02/2020","INSTRUCTIONAL",38,30.4]
["DUCKWLAU000","L04358","LAURYN","J","DUCKWORTH","LAURYN.DUCKWORTH@SUMTER.K12.FL.US","256","Ins 198 Days","0031","BUSHNELL ELEMEN","19-20 Active Plan","TEACHER  THIRD","GENERAL FUND TEACHER","GOODWIN KELLY MARGARET","GOODWKEL000","DUCKWORTH, LAURYN J","LAURYN J DUCKWORTH","7:36","08/02/2019","06/02/2020","INSTRUCTIONAL",38,30.4]
["OXENDLUC000","L04434","LUCAS","A","OXENDINE","lucas.oxendine@sumter.k12.fl.us","351","Non 250 Days","0042","SOUTH SUMTER MI","19-20 Active Plan","CUSTODIAN","CUSTODIAN","CAMP JOEL S","CAMP JOE000","OXENDINE, LUCAS A","LUCAS A OXENDINE","8:00","07/01/2019","06/30/2020","CLASSIFIED",40,32]
["DE JELIM000","L04510","LIMARY",null,"DE JESUS","Limary.DeJesus@sumter.k12.fl.us","256","Ins 198 Days","0161","WILDWOOD M/H","19-20 Active Plan","TEACHER  WORLD LAN-SH","CLASS SIZE TEACHER","GRAYBEAL JERRY DUANE","GRAYBJER000","DE JESUS, LIMARY","LIMARY DE JESUS","7:36","08/02/2019","06/02/2020","INSTRUCTIONAL",38,30.4]
["SPARRLIS000","L04577","LISA","MARIE","SPARROW","Lisa.Sparrow@sumter.k12.fl.us","370","Non 186 Days","0031","BUSHNELL ELEMEN","19-20 Active Plan","PARAPROFESSIONAL  ELEM","SAI PARA","GOODWIN KELLY MARGARET","GOODWKEL000","SPARROW, LISA MARIE","LISA MARIE SPARROW","7:00","08/12/2019","05/29/2020","CLASSIFIED",35,28]
["GORHALAU000","L04647","LAURA","ANNE","GORHAM","Laura.Gorham@sumter.k12.fl.us","256","Ins 198 Days","0031","BUSHNELL ELEMEN","19-20 Active Plan","TEACHER  VE","ESE TEACHER","GOODWIN KELLY MARGARET","GOODWKEL000","GORHAM, LAURA ANNE","LAURA ANNE GORHAM","7:36","08/02/2019","06/02/2020","INSTRUCTIONAL",38,30.4]
["GARZALID000","L04707","LIDIA","GONZALEZ","GARZA","Lidia.Garza@sumter.k12.fl.us","370","Non 186 Days","3001","SUMTER PREP","19-20 Active Plan","PARAPROFESSIONAL  ESE AGES 6-","IDEA PARA","PRESLEY JAMES CHESTER","PRESLJAM000","GARZA, LIDIA GONZALEZ","LIDIA GONZALEZ GARZA","7:00","10/07/2019","05/29/2020","CLASSIFIED",35,28]
["BORDELIS000","L04835","LISA","F","BORDENKIRCHER","Lisa.Bordenkircher@sumter.k12.fl.us","256","Ins 198 Days","0161","WILDWOOD M/H","19-20 Active Plan","SP/LANG PATH","SPEECH/LANGUAGE PATH","GRAYBEAL JERRY DUANE","GRAYBJER000","BORDENKIRCHER, LISA F","LISA F BORDENKIRCHER","8:00","08/02/2019","06/02/2020","INSTRUCTIONAL",40,32]
["HAVENLOR000","L04981","LORI","MAIER","HAVENS","lori.havens@sumter.k12.fl.us","256","Ins 198 Days","0171","SOUTH SUMTER HI","19-20 Active Plan","TEACHER READ-SH","SAI TEACHER","MCKINNEY CHRISTINA JOHNSON","MCKINCHR001","HAVENS, LORI MAIER","LORI MAIER HAVENS","7:36","08/02/2019","06/02/2020","INSTRUCTIONAL",38,30.4]
["WRIGHLIS000","L05034","LISSA","MARIE","WRIGHT","lissa.wright@sumter.k12.fl.us","351","Non 250 Days","0161","WILDWOOD M/H","19-20 Active Plan","HEAD CUSTODIAN","CUSTODIAN","GRAYBEAL JERRY DUANE","GRAYBJER000","WRIGHT, LISSA MARIE","LISSA MARIE WRIGHT","8:00","09/23/2019","06/30/2020","CLASSIFIED",40,32]
["BROWNLOG000","L05084","LOGAN","WADE","BROWN","logan.brown@sumter.k12.fl.us","256","Ins 198 Days","0042","SOUTH SUMTER MI","19-20 Active Plan","TEACHER  MATH-M/J","GENERAL FUND TEACHER","CAMP JOEL S","CAMP JOE000","BROWN, LOGAN WADE","LOGAN WADE BROWN","7:36","08/02/2019","06/02/2020","INSTRUCTIONAL",38,30.4]
["ASKEWLAU000","L05091","LAUREN","RUTH","ASKEW","lauren.askew@sumter.k12.fl.us","256","Ins 198 Days","0161","WILDWOOD M/H","19-20 Active Plan","TEACHER  SOC ST-M/J","GENERAL FUND TEACHER","GRAYBEAL JERRY DUANE","GRAYBJER000","ASKEW, LAUREN RUTH","LAUREN RUTH ASKEW","7:36","08/02/2019","06/02/2020","INSTRUCTIONAL",38,30.4]
["ANDERLOR000","L05113","LORI","LYNN","ANDERSON","lori.anderson@sumter.k12.fl.us","370","Non 186 Days","0102","WILDWOOD ELEMEN","19-20 Active Plan","PARAPROFESSIONAL ESE AGES 6-","ESE PARA","TEMPLE JOHN P","TEMPLJOH000","ANDERSON, LORI LYNN","LORI LYNN ANDERSON","7:00","08/12/2019","05/29/2020","CLASSIFIED",35,28]
["DAVENLIS001","L05115","LISA","MARIE","DAVENPORT","lisa.davenport@sumter.k12.fl.us","256","Ins 198 Days","0171","SOUTH SUMTER HI","19-20 Active Plan","TEACHER  VE","ESE TEACHER","MCKINNEY CHRISTINA JOHNSON","MCKINCHR001","DAVENPORT, LISA MARIE","LISA MARIE DAVENPORT","7:36","08/02/2019","06/02/2020","INSTRUCTIONAL",38,30.4]
["UTT  LAU000","L05118","LAUREN","ANN","UTT","lauren.utt@sumter.k12.fl.us","370","Non 186 Days","0181","LAKE PANASOFFKE","19-20 Active Plan","PARAPROFESSIONAL ESE AGES 6-","ESE PARA","WADE NICOLE LYNN","WADE NIC000","UTT, LAUREN ANN","LAUREN ANN UTT","7:00","08/12/2019","05/29/2020","CLASSIFIED",35,28]
["YOUNGLAK000","L05191","LAKEISHA","ARNISHA","YOUNG","Lakeisha.Young@sumter.k12.fl.us","668","NURSES","0181","LAKE PANASOFFKE","19-20 Active Plan","NURSE  RN","NURSE","GOODSON EILEEN H","GOODSEIL000","YOUNG, LAKEISHA ARNISHA","LAKEISHA ARNISHA YOUNG","7:36","08/05/2019","06/02/2020","NON-INSTRUCT NO BARGAINING UNI",38,30.4]
["SMITHLOR000","L05251","LORI","DONIEL","SMITH","lori.smith@sumter.k12.fl.us","256","Ins 198 Days","0042","SOUTH SUMTER MI","19-20 Active Plan","TEACHER READ-M/J","GENERAL FUND TEACHER","CAMP JOEL S","CAMP JOE000","SMITH, LORI DONIEL","LORI DONIEL SMITH","7:36","08/02/2019","06/02/2020","INSTRUCTIONAL",38,30.4]
["MELENLIS000","L05284","LISA","MARIE","MELENDEZ","lisa.melendez@sumter.k12.fl.us","253","Ins 218 Days","9001","COUNTY OFFICE","19-20 Active Plan","SCHOOL SOCIAL WORKER","SOCIAL WORKER","GOODSON EILEEN H","GOODSEIL000","MELENDEZ, LISA MARIE","LISA MARIE MELENDEZ","7:36","07/19/2019","06/16/2020","INSTRUCTIONAL",38,30.4]
["HOOTELIN000","L05329","LINDA","RAE","HOOTEN","linda.hooten@sumter.k12.fl.us","370","Non 186 Days","9004","TRANSPORTATION","19-20 Active Plan","BUS AIDE  EX ST ED","ESE BUS AIDE","FOOTE MICHAEL T","FOOTEMIC000","HOOTEN, LINDA RAE","LINDA RAE HOOTEN","4:00","08/12/2019","05/29/2020","CLASSIFIED",20,16]
["LANE LAU000","L05341","LAURA","ANNE","LANE","laura.lane@sumter.k12.fl.us","370","Non 186 Days","0031","BUSHNELL ELEMEN","19-20 Active Plan","PARAPROFESSIONAL ESE AGES 6-","ESE PARA","GOODWIN KELLY MARGARET","GOODWKEL000","LANE, LAURA ANNE","LAURA ANNE LANE","7:00","08/12/2019","05/29/2020","CLASSIFIED",35,28]
["MOULTLAU000","L05354","LAURA","KATHRYN","MOULTON","laura.moulton@sumter.k12.fl.us","256","Ins 198 Days","0031","BUSHNELL ELEMEN","19-20 Active Plan","TEACHER  VE","ESE TEACHER","GOODWIN KELLY MARGARET","GOODWKEL000","MOULTON, LAURA KATHRYN","LAURA KATHRYN MOULTON","7:36","08/02/2019","06/02/2020","INSTRUCTIONAL",38,30.4]
["SASSELAU000","L05356","LAURIE","ANN","SASSER","laurie.sasser@sumter.k12.fl.us","358","Non 186 Days","9004","TRANSPORTATION","19-20 Active Plan","BUS DRIVER","BUS DRIVER","FOOTE MICHAEL T","FOOTEMIC000","SASSER, LAURIE ANN","LAURIE ANN SASSER","6:00","08/12/2019","05/29/2020","CLASSIFIED",30,24]
["OCHOALIS001","L05357","LISA","VALENTINA","OCHOA","lisa.ochoa@sumter.k12.fl.us","351","Non 250 Days","3001","SUMTER PREP","19-20 Active Plan","CUSTODIAN","CUSTODIAN","PRESLEY JAMES CHESTER","PRESLJAM000","OCHOA, LISA VALENTINA","LISA VALENTINA OCHOA","5:00","07/01/2019","06/30/2020","CLASSIFIED",25,20]
["MILLELAT000","L05371","LATONYA","BLAIR","MILLER","latonya.miller@sumter.k12.fl.us","762","212 A Intern","0161","WILDWOOD M/H","19-20 Active Plan","ADMIN ASST  SCH","INTERN","GRAYBEAL JERRY DUANE","GRAYBJER000","MILLER, LATONYA BLAIR","LATONYA BLAIR MILLER","8:00","07/25/2019","06/12/2020","INTERN",40,32]
["SKAGGLIN000","L05398","LINDSEY","TAYLOR","SKAGGS","lindsey.skaggs@sumter.k12.fl.us","256","Ins 198 Days","0161","WILDWOOD M/H","19-20 Active Plan","TEACHER  SCIENCE-M/J","GENERAL FUND TEACHER","GRAYBEAL JERRY DUANE","GRAYBJER000","SKAGGS, LINDSEY TAYLOR","LINDSEY TAYLOR SKAGGS","7:36","08/02/2019","06/02/2020","INSTRUCTIONAL",38,30.4]
["BULLOLYN000","L05414","LYNN","GWALTNEY","BULLOCK","lynn.bullock@sumter.k12.fl.us","256","Ins 198 Days","0031","BUSHNELL ELEMEN","19-20 Active Plan","TEACHER  VE","ESE TEACHER","GOODWIN KELLY MARGARET","GOODWKEL000","BULLOCK, LYNN GWALTNEY","LYNN GWALTNEY BULLOCK","7:36","08/02/2019","06/02/2020","INSTRUCTIONAL",38,30.4]
["MALDOLUZ000","L05460","LUZ",null,"MALDONADO","luz.maldonado@sumter.k12.fl.us","351","Non 250 Days","0102","WILDWOOD ELEMEN","19-20 Active Plan","CUSTODIAN","CUSTODIAN","TEMPLE JOHN P","TEMPLJOH000","MALDONADO, LUZ","LUZ MALDONADO","6:00","09/23/2019","06/30/2020","CLASSIFIED",30,24]
["HURSTLET000","L05487","LETICIA",null,"HURST","leticia.hurst@sumter.k12.fl.us","370","Non 186 Days","0161","WILDWOOD M/H","19-20 Active Plan","FOOD SER AIDE","FOOD SERVICE","SUBER WILLIAM ERIC","SUBERWIL000","HURST, LETICIA","LETICIA HURST","4:00","12/03/2019","05/29/2020","CLASSIFIED",20,16]
["DUNLALES000","L05492","LESHARD","TAVON","DUNLAP","leshard.dunlap@sumter.k12.fl.us","358","Non 186 Days","9004","TRANSPORTATION","19-20 Active Plan","BUS DRIVER","BUS DRIVER","FOOTE MICHAEL T","FOOTEMIC000","DUNLAP, LESHARD TAVON","LESHARD TAVON DUNLAP","4:00","01/21/2020","05/29/2020","CLASSIFIED",20,16]
["FARR LON000","L05517","LONI","DIANA","FARR","loni.farr@sumter.k12.fl.us","358","Non 186 Days","9004","TRANSPORTATION","19-20 Active Plan","BUS DRIVER","BUS DRIVER","FOOTE MICHAEL T","FOOTEMIC000","FARR, LONI DIANA","LONI DIANA FARR","4:00","02/27/2020","05/29/2020","CLASSIFIED",20,16]
["ATHERMIC000","M00121","MICHAEL","J","ATHERTON","Michael.Atherton@SUMTER.K12.FL.US","256","Ins 198 Days","0181","LAKE PANASOFFKE","19-20 Active Plan","TEACHER  PE-E","GENERAL FUND TEACHER","WADE NICOLE LYNN","WADE NIC000","ATHERTON, MICHAEL J","MICHAEL J ATHERTON","7:36","08/02/2019","06/02/2020","INSTRUCTIONAL",38,30.4]
["MANNIMEG000","M00303","MEGGEN","DAWN","MANNINO","MEGGEN.MANNINO@SUMTER.K12.FL.US","256","Ins 198 Days","0102","WILDWOOD ELEMEN","19-20 Active Plan","TEACHER  REM/CE-E","TITLE I/ IDEA TEACHER","TEMPLE JOHN P","TEMPLJOH000","MANNINO, MEGGEN DAWN","MEGGEN DAWN MANNINO","7:36","08/02/2019","06/02/2020","INSTRUCTIONAL",38,30.4]
["NICHOMER000","M00375","MEREDITH","ANN","NICHOLS","Meredith.Nichols@SUMTER.K12.FL.US","256","Ins 198 Days","0051","WEBSTER ELEMENT","19-20 Active Plan","TEACHER  FIFTH","GENERAL FUND TEACHER","SHEA MELYNDA BROOKE","SHEA MEL000","NICHOLS, MEREDITH ANN","MEREDITH ANN NICHOLS","7:36","08/02/2019","06/02/2020","INSTRUCTIONAL",38,30.4]
["INNESMAR000","M00408","MARYANN","THERESA","INNES-GAJOS","Maryann.Innes-Gajos@sumter.k12.fl.us","256","Ins 198 Days","0042","SOUTH SUMTER MI","19-20 Active Plan","TEACHER  LANG AR-M/J","CLASS SIZE TEACHER","CAMP JOEL S","CAMP JOE000","INNES-GAJOS, MARYANN THERESA","MARYANN THERESA INNES-GAJOS","7:36","08/02/2019","06/02/2020","INSTRUCTIONAL",38,30.4]
["WILLIMAR003","M00853","MARY","NOEL","WILLIAMS","mary.williams@sumter.k12.fl.us","357","Non 188 Days","0102","WILDWOOD ELEMEN","19-20 Active Plan","FOOD SER WORKER","FOOD SERVICE","SUBER WILLIAM ERIC","SUBERWIL000","WILLIAMS, MARY NOEL","MARY NOEL WILLIAMS","8:00","08/09/2019","06/01/2020","CLASSIFIED",40,32]
["FOOTEMIC000","M00978","MICHAEL","T","FOOTE","MICHAEL.T.FOOTE@SUMTER.K12.FL.US","651","CNU 250 Days","9004","TRANSPORTATION","19-20 Active Plan","SPEC  TRANS","TRANSPORTATION CHIEF","SUBER WILLIAM ERIC","SUBERWIL000","FOOTE, MICHAEL T","MICHAEL T FOOTE","8:00","07/01/2019","06/30/2020","NON-INSTRUCT NO BARGAINING UNI",40,32]
["SHEPPMAR000","M01080","MARGARET","PATRICIA","SHEPPARD","Margaret.Sheppard@SUMTER.K12.FL.US","351","Non 250 Days","9004","TRANSPORTATION","19-20 Active Plan","ROUTE COOR","TECHNICIAN ROUTE COORDINATOR","FOOTE MICHAEL T","FOOTEMIC000","SHEPPARD, MARGARET PATRICIA","MARGARET PATRICIA SHEPPARD","8:00","07/01/2019","06/30/2020","CLASSIFIED",40,32]
["EVEREMOL000","M01449","MOLLY JO","T","EVERETT","Molly.Everett@sumter.k12.fl.us","256","Ins 198 Days","0181","LAKE PANASOFFKE","19-20 Active Plan","TEACHER  SECOND","CLASS SIZE TEACHER","WADE NICOLE LYNN","WADE NIC000","EVERETT, MOLLY JO T","MOLLY JO T EVERETT","7:36","08/02/2019","06/02/2020","INSTRUCTIONAL",38,30.4]
["HOUSTMAE000","M01718","MAE","DEAN","HOUSTON","mae.houston@sumter.k12.fl.us","370","Non 186 Days","0051","WEBSTER ELEMENT","19-20 Active Plan","PARAPROFESSIONAL  TTL I-E","TITLE I PARA","SHEA MELYNDA BROOKE","SHEA MEL000","HOUSTON, MAE DEAN","MAE DEAN HOUSTON","7:00","08/12/2019","05/29/2020","CLASSIFIED",35,28]
["HAMILMAR000","M01806","MARIANNE","A","HAMILTON","Marianne.Hamilton@SUMTER.K12.FL.US","253","Ins 218 Days","0171","SOUTH SUMTER HI","19-20 Active Plan","STAFFING SPEC","STAFFING SPECIALIST","MCKINNEY CHRISTINA JOHNSON","MCKINCHR001","HAMILTON, MARIANNE A","MARIANNE A HAMILTON","8:00","07/19/2019","06/16/2020","INSTRUCTIONAL",40,32]
["FUSSEMAR000","M01972","MARSHA","HAYES","FUSSELL","Marsha.Fussell@SUMTER.K12.FL.US","651","CNU 250 Days","9001","COUNTY OFFICE","19-20 Active Plan","ADMIN ASST  FISCAL","FINANCE ASSISTANT","SMITH DEBORAH WALTERS","SMITHDEB000","FUSSELL, MARSHA HAYES","MARSHA HAYES FUSSELL","8:00","07/01/2019","06/30/2020","NON-INSTRUCT NO BARGAINING UNI",40,32]
["RANKIMAR000","M02035","MARYANN",null,"RANKIN","Maryann.Rankin@SUMTER.K12.FL.US","355","Non 200 Days","0102","WILDWOOD ELEMEN","19-20 Active Plan","CLERK  SCH","CLERK SCHOOL","TEMPLE JOHN P","TEMPLJOH000","RANKIN, MARYANN","MARYANN RANKIN","7:00","08/01/2019","06/04/2020","CLASSIFIED",35,28]
["LOOMIMAR000","M02512","MARY","ANN","LOOMIS","Mary.Loomis@SUMTER.K12.FL.US","256","Ins 198 Days","0181","LAKE PANASOFFKE","19-20 Active Plan","TEACHER  KG","CLASS SIZE TEACHER","WADE NICOLE LYNN","WADE NIC000","LOOMIS, MARY ANN","MARY ANN LOOMIS","7:36","08/02/2019","06/02/2020","INSTRUCTIONAL",38,30.4]
["GORE MAU000","M02939","MAURI","HARRIS","GORE","Mauri.Gore@SUMTER.K12.FL.US","256","Ins 198 Days","0161","WILDWOOD M/H","19-20 Active Plan","TEACHER  SOC ST-SH","GENERAL FUND TEACHER","GRAYBEAL JERRY DUANE","GRAYBJER000","GORE, MAURI HARRIS","MAURI HARRIS GORE","7:36","08/02/2019","06/02/2020","INSTRUCTIONAL",38,30.4]
["SMITHMAR000","M03001","MARY","M","SMITH","mary.smith@sumter.k12.fl.us","358","Non 186 Days","9004","TRANSPORTATION","19-20 Active Plan","BUS DRIVER","BUS DRIVER","FOOTE MICHAEL T","FOOTEMIC000","SMITH, MARY M","MARY M SMITH","5:15","08/12/2019","05/29/2020","CLASSIFIED",26.25,21]
["SOWELMAR000","M03096","MARVIN","L","SOWELL","Marvin.Sowell@SUMTER.K12.FL.US","351","Non 250 Days","0181","LAKE PANASOFFKE","19-20 Active Plan","HEAD CUSTODIAN","CUSTODIAN","WADE NICOLE LYNN","WADE NIC000","SOWELL, MARVIN L","MARVIN L SOWELL","8:00","07/01/2019","06/30/2020","CLASSIFIED",40,32]
["CRAWFMIC000","M03238","MICHELE","DAWN","CRAWFORD","Michele.Crawford@SUMTER.K12.FL.US","372","Non 220A Days","0051","WEBSTER ELEMENT","19-20 Active Plan","DATA ENT OP  ATT/SW","DATA ENTRY CLERK","SHEA MELYNDA BROOKE","SHEA MEL000","CRAWFORD, MICHELE DAWN","MICHELE DAWN CRAWFORD","7:00","07/12/2019","06/12/2020","CLASSIFIED",35,28]
["VAN RMER000","M03267","MERRY","ALICE","VAN RYN","Merry.VanRyn@sumter.k12.fl.us","256","Ins 198 Days","0102","WILDWOOD ELEMEN","19-20 Active Plan","TEACHER  THIRD","GENERAL FUND TEACHER","TEMPLE JOHN P","TEMPLJOH000","VAN RYN, MERRY ALICE","MERRY ALICE VAN RYN","7:36","08/02/2019","06/02/2020","INSTRUCTIONAL",38,30.4]
["BENNEMAR001","M03269","MARIA","ANN","BENNETT","Maria.Bennett@sumter.k12.fl.us","253","Ins 218 Days","9008","ESE DEPARTMENT","19-20 Active Plan","STAFFING SPEC","STAFFING SPECIALIST","DUSTIN KATHERINE M","DUSTIKAT000","BENNETT, MARIA ANN","MARIA ANN BENNETT","8:00","07/19/2019","06/16/2020","INSTRUCTIONAL",40,32]
["SIMMOMEL000","M03350","MELISSA","CATHERINE","SIMMONS","Melissa.Simmons@SUMTER.K12.FL.US","256","Ins 198 Days","0042","SOUTH SUMTER MI","19-20 Active Plan","TEACHER  VE","ESE TEACHER","CAMP JOEL S","CAMP JOE000","SIMMONS, MELISSA CATHERINE","MELISSA CATHERINE SIMMONS","7:36","08/02/2019","06/02/2020","INSTRUCTIONAL",38,30.4]
["FOOTEMIC001","M03366","MICHAEL","T","FOOTE","Michael.Foote@SUMTER.K12.FL.US","256","Ins 198 Days","0171","SOUTH SUMTER HI","19-20 Active Plan","TEACHER  SOC ST-SH","CLASS SIZE TEACHER","MCKINNEY CHRISTINA JOHNSON","MCKINCHR001","FOOTE II, MICHAEL T","MICHAEL T FOOTE II","7:36","08/02/2019","06/02/2020","INSTRUCTIONAL",38,30.4]
["WOOD MIC000","M03367","MICHAEL","TANNER","WOOD","Tanner.Wood@sumter.k12.fl.us","256","Ins 198 Days","0161","WILDWOOD M/H","19-20 Active Plan","LIB/MED SPEC-SH","MEDIA SPECIALIST","GRAYBEAL JERRY DUANE","GRAYBJER000","WOOD, MICHAEL TANNER","MICHAEL TANNER WOOD","7:36","08/02/2019","06/02/2020","INSTRUCTIONAL",38,30.4]
["HENDRMAR000","M03469","MARCY","GRANT","HENDRIX","Marcy.Hendrix@SUMTER.K12.FL.US","264","Ins 208A Days","0181","LAKE PANASOFFKE","19-20 Active Plan","SP/LANG PATH","SPEECH/LANGUAGE PATH","WADE NICOLE LYNN","WADE NIC000","HENDRIX, MARCY GRANT","MARCY GRANT HENDRIX","8:00","08/02/2019","06/16/2020","INSTRUCTIONAL",40,32]
["JOYNEMEL000","M03494","MELISSA","HANNON","JOYNER","Melissa.Joyner@SUMTER.K12.FL.US","251","Ins 250 Days","9008","ESE DEPARTMENT","19-20 Active Plan","SCH PSYCHOLOGIST","PSYCHOLOGIST","DUSTIN KATHERINE M","DUSTIKAT000","JOYNER, MELISSA HANNON","MELISSA HANNON JOYNER","7:36","07/01/2019","06/30/2020","INSTRUCTIONAL",38,30.4]
["WHITEMOR000","M03495","MORRIS","MONIQUE","WHITE","Morris.White@SUMTER.K12.FL.US","256","Ins 198 Days","0042","SOUTH SUMTER MI","19-20 Active Plan","TEACHER  LANG AR-M/J","GENERAL FUND TEACHER","CAMP JOEL S","CAMP JOE000","WHITE, MORRIS MONIQUE","MORRIS MONIQUE WHITE","7:36","08/02/2019","06/02/2020","INSTRUCTIONAL",38,30.4]
["BRESSMAR000","M03536","MARSHA","GALE","BRESSETTE","Marsha.Bressette@sumter.k12.fl.us","370","Non 186 Days","0031","BUSHNELL ELEMEN","19-20 Active Plan","PARAPROFESSIONAL  ELEM","GENERAL FUND PARA","GOODWIN KELLY MARGARET","GOODWKEL000","BRESSETTE, MARSHA GALE","MARSHA GALE BRESSETTE","7:00","01/21/2020","05/29/2020","CLASSIFIED",{"$f":"+R578*24*5","v":35},{"$f":"+R578*24*4","v":28}]
["JOHNSMAR000","M03544","MARCUS","L","JOHNSON","Marcus.Johnson@SUMTER.K12.FL.US","256","Ins 198 Days","0042","SOUTH SUMTER MI","19-20 Active Plan","TEACHER  SOC ST-M/J","CLASS SIZE TEACHER","CAMP JOEL S","CAMP JOE000","JOHNSON, MARCUS L","MARCUS L JOHNSON","7:36","08/02/2019","06/02/2020","INSTRUCTIONAL",38,30.4]
["SHEA MEL000","M03583","MELYNDA","BROOKE","SHEA","Melynda.Shea@SUMTER.K12.FL.US","762","212 A Intern","0051","WEBSTER ELEMENT","19-20 Active Plan","ADMIN ASST  SCH","INTERN","GOODWIN KELLY MARGARET","GOODWKEL000","SHEA, MELYNDA BROOKE","MELYNDA BROOKE SHEA","8:00","07/25/2019","06/12/2020","INTERN",40,32]
["WINTEMIC000","M03620","MICHAEL","C","WINTER","Michael.Winter@SUMTER.K12.FL.US","256","Ins 198 Days","0042","SOUTH SUMTER MI","19-20 Active Plan","TEACHER  MATH-M/J","GENERAL FUND TEACHER","CAMP JOEL S","CAMP JOE000","WINTER, MICHAEL C","MICHAEL C WINTER","7:36","08/02/2019","06/02/2020","INSTRUCTIONAL",38,30.4]
["BABAUMAR000","M03634","MARLA","HANSON","BABAUTA","Marla.Babauta@sumter.k12.fl.us","451","Con 250 Days","9001","COUNTY OFFICE","19-20 Active Plan","EXEC SEC  ADMIN","SECRETARY EXECUTIVE","SHIRLEY RICHARD A","SHIRLRIC000","BABAUTA, MARLA HANSON","MARLA HANSON BABAUTA","8:00","07/01/2019","06/30/2020","CONFIDENTIAL/CLASSIFIED",40,32]
["DAVIDMIC001","M03717","MICHELE","CHRISTA","DAVIDSON","Michele.Davidson@SUMTER.K12.FL.US","668","NURSES","0102","WILDWOOD ELEMEN","19-20 Active Plan","NURSE  RN","NURSE","GOODSON EILEEN H","GOODSEIL000","DAVIDSON, MICHELE CHRISTA","MICHELE CHRISTA DAVIDSON","7:36","08/05/2019","06/02/2020","NON-INSTRUCT NO BARGAINING UNI",38,30.4]
["BARR MEL000","M03820","MELANIE","ANGELIQUE","BARR","Melanie.Barr@Sumter.k12.fl.us","253","Ins 218 Days","0031","BUSHNELL ELEMEN","19-20 Active Plan","STAFFING SPEC","STAFFING SPECIALIST","GOODWIN KELLY MARGARET","GOODWKEL000","BARR, MELANIE ANGELIQUE","MELANIE ANGELIQUE BARR","8:00","07/19/2019","06/16/2020","INSTRUCTIONAL",40,32]
["CHIRIMIC000","M03864","MICHAEL","RODRIGUEZ","CHIRINO","Michael.Chirino@SUMTER.K12.FL.US","256","Ins 198 Days","0161","WILDWOOD M/H","19-20 Active Plan","TEACHER READ-SH","CLASS SIZE TEACHER","GRAYBEAL JERRY DUANE","GRAYBJER000","CHIRINO, MICHAEL RODRIGUEZ","MICHAEL RODRIGUEZ CHIRINO","7:36","08/02/2019","06/02/2020","INSTRUCTIONAL",38,30.4]
["HOOTEMAR000","M03965","MARTHA","P","HOOTEN","Patti.Hooten@SUMTER.K12.FL.US","351","Non 250 Days","9005","MAINTENANCE CEN","19-20 Active Plan","BOOKKEEPER  FACIL","FACILITIES BOOKKEEPER","SUBER WILLIAM ERIC","SUBERWIL000","HOOTEN, MARTHA P","MARTHA P HOOTEN","8:00","07/01/2019","06/30/2020","CLASSIFIED",40,32]
["MORGAMIR000","M03977","MIRANDA","LYNN","MORGAN","MIRANDA.MORGAN@sumter.k12.fl.us","256","Ins 198 Days","0051","WEBSTER ELEMENT","19-20 Active Plan","TEACHER  THIRD","GENERAL FUND TEACHER","SHEA MELYNDA BROOKE","SHEA MEL000","MORGAN, MIRANDA LYNN","MIRANDA LYNN MORGAN","7:36","08/02/2019","06/02/2020","INSTRUCTIONAL",38,30.4]
["HAUGAMEL000","M04025","MELANI","LATISHA","HAUGABROOK","Melani.Haugabrook@Sumter.k12.fl.us","256","Ins 198 Days","0051","WEBSTER ELEMENT","19-20 Active Plan","READING COACH - E","TITLE I TEACHER","SHEA MELYNDA BROOKE","SHEA MEL000","HAUGABROOK, MELANI LATISHA","MELANI LATISHA HAUGABROOK","7:36","08/02/2019","06/02/2020","INSTRUCTIONAL",38,30.4]
["NGO  MEL000","M04026","MELISSA","AUDREY","NGO","Melissa.Ngo@sumter.k12.fl.us","256","Ins 198 Days","0171","SOUTH SUMTER HI","19-20 Active Plan","TEACHER  ART-SH","GENERAL FUND TEACHER","MCKINNEY CHRISTINA JOHNSON","MCKINCHR001","NGO, MELISSA AUDREY","MELISSA AUDREY NGO","7:36","08/02/2019","06/02/2020","INSTRUCTIONAL",38,30.4]
["DAMUTMAR000","M04088","MARIA","JACOBA","DAMUTH","Maria.Damuth@sumter.k12.fl.us","370","Non 186 Days","0031","BUSHNELL ELEMEN","19-20 Active Plan","PARAPROFESSIONAL ESE AGES 6-","ESE PARA","GOODWIN KELLY MARGARET","GOODWKEL000","DAMUTH, MARIA JACOBA","MARIA JACOBA DAMUTH","7:00","08/12/2019","05/29/2020","CLASSIFIED",35,28]
["VERA MAR000","M04110","MARIBEL",null,"VERA","maribel.vera@Sumter.k12.fl.us","256","Ins 198 Days","0181","LAKE PANASOFFKE","19-20 Active Plan","TEACHER  FIRST","GENERAL FUND TEACHER","WADE NICOLE LYNN","WADE NIC000","VERA, MARIBEL","MARIBEL VERA","7:36","08/02/2019","06/02/2020","INSTRUCTIONAL",38,30.4]
["DAVINMAT000","M04112","MATTHEW","P","DAVIN","Matthew.Davin@Sumter.k12.fl.us","256","Ins 198 Days","0181","LAKE PANASOFFKE","19-20 Active Plan","TEACHER  COMBIN-E","GENERAL FUND TEACHER","WADE NICOLE LYNN","WADE NIC000","DAVIN, MATTHEW P","MATTHEW P DAVIN","7:36","08/02/2019","06/02/2020","INSTRUCTIONAL",38,30.4]
["AKANAMEL000","M04125","MELISSA","MAE","AKANA","Melissa.Akana@Sumter.k12.fl.us","256","Ins 198 Days","0181","LAKE PANASOFFKE","19-20 Active Plan","TEACHER  THIRD","CLASS SIZE TEACHER","WADE NICOLE LYNN","WADE NIC000","AKANA, MELISSA MAE","MELISSA MAE AKANA","7:36","08/02/2019","06/02/2020","INSTRUCTIONAL",38,30.4]
["SLAYMMAR000","M04310","MARCIA","LOREEN","SLAYMAKER","marcia.slaymaker@sumter.k12.fl.us","358","Non 186 Days","9004","TRANSPORTATION","19-20 Active Plan","BUS DRIVER","BUS DRIVER","FOOTE MICHAEL T","FOOTEMIC000","SLAYMAKER, MARCIA LOREEN","MARCIA LOREEN SLAYMAKER","5:15","08/27/2019","05/29/2020","CLASSIFIED",26.25,21]
["HOLT MAG000","M04332","MAGAN","LEANN","HOLT","MAGAN.HOLT@SUMTER.K12.FL.US","256","Ins 198 Days","0031","BUSHNELL ELEMEN","19-20 Active Plan","TEACHER  KG","CLASS SIZE TEACHER","GOODWIN KELLY MARGARET","GOODWKEL000","HOLT, MAGAN LEANN","MAGAN LEANN HOLT","7:36","08/02/2019","06/02/2020","INSTRUCTIONAL",38,30.4]
["CHISEMEL000","M04437","MELISSA","MARIE","CHISENHALL","Melissa.Chisenhall@sumter.k12.fl.us","355","Non 200 Days","0031","BUSHNELL ELEMEN","19-20 Active Plan","CLERK  SCH","CLERK SCHOOL","GOODWIN KELLY MARGARET","GOODWKEL000","CHISENHALL, MELISSA MARIE","MELISSA MARIE CHISENHALL","7:00","08/01/2019","06/04/2020","CLASSIFIED",35,28]
["ALBERMIC000","M04640","MICHELLE",null,"ALBERTO","Michelle.Alberto@sumter.k12.fl.us","256","Ins 198 Days","0042","SOUTH SUMTER MI","19-20 Active Plan","TEACHER  SCIENCE-M/J","GENERAL FUND TEACHER","CAMP JOEL S","CAMP JOE000","ALBERTO, MICHELLE","MICHELLE ALBERTO","7:36","08/02/2019","06/02/2020","INSTRUCTIONAL",38,30.4]
["MONTEMAY000","M04688","MAYELIN","LIZABETH","MONTERO","mayelin.montero@sumter.k12.fl.us","370","Non 186 Days","0042","SOUTH SUMTER MI","19-20 Active Plan","PARAPROFESSIONAL  M/J","GENERAL FUND PARA","CAMP JOEL S","CAMP JOE000","MONTERO, MAYELIN LIZABETH","MAYELIN LIZABETH MONTERO","7:00","08/12/2019","05/29/2020","CLASSIFIED",35,28]
["CLERMMIC000","M04727","MICHAEL","ROBERT","CLERMONT","michael.clermont@sumter.k12.fl.us","351","Non 250 Days","0161","WILDWOOD M/H","19-20 Active Plan","CUSTODIAN","FOOD SERVICE/CUSTODIAN","GRAYBEAL JERRY DUANE","GRAYBJER000","CLERMONT, MICHAEL ROBERT","MICHAEL ROBERT CLERMONT","8:00","07/01/2019","06/30/2020","CLASSIFIED",40,32]
["ANDREMEG000","M04823","MEGAN","RISH","ANDREWS","Megan.Andrews@sumter.k12.fl.us","256","Ins 198 Days","0161","WILDWOOD M/H","19-20 Active Plan","TEACHER  HEALTH SCI ED","GENERAL FUND TEACHER","GRAYBEAL JERRY DUANE","GRAYBJER000","ANDREWS, MEGAN RISH","MEGAN RISH ANDREWS","7:36","08/02/2019","06/02/2020","INSTRUCTIONAL",38,30.4]
["WALENMIC000","M04836","MICHELE","A","WALENTUKONIS","michele.walentukonis@sumter.k12.fl.us","358","Non 186 Days","9004","TRANSPORTATION","19-20 Active Plan","BUS DRIVER","BUS DRIVER","FOOTE MICHAEL T","FOOTEMIC000","WALENTUKONIS, MICHELE A","MICHELE A WALENTUKONIS","4:00","08/12/2019","05/29/2020","CLASSIFIED",20,16]
["HANSEMEL000","M04845","MELISSA","JANIE","HANSEN","Melissa.Hansen@sumter.k12.fl.us","370","Non 186 Days","0031","BUSHNELL ELEMEN","19-20 Active Plan","PARAPROFESSIONAL ESE AGES 6-","ESE PARA","GOODWIN KELLY MARGARET","GOODWKEL000","HANSEN, MELISSA JANIE","MELISSA JANIE HANSEN","7:00","08/12/2019","05/29/2020","CLASSIFIED",35,28]
["MESIEMEL000","M04877","MELISSA","LOUISE","MESIEMORE","MELISSA.MESIEMORE@SUMTER.K12.FL.US","351","Non 250 Days","9001","COUNTY OFFICE","19-20 Active Plan","SEC  PPS","SECRETARY PUPIL PERSONNEL SERV","GOODSON EILEEN H","GOODSEIL000","MESIEMORE, MELISSA LOUISE","MELISSA LOUISE MESIEMORE","8:00","07/01/2019","06/30/2020","CLASSIFIED",40,32]
["MIZELMIC000","M04879","MICHAEL","P","MIZELL","michael.mizell@sumter.k12.fl.us","351","Non 250 Days","9005","MAINTENANCE CEN","19-20 Active Plan","FOREMAN  MAIN","MAINTENANCE ASST. CHIEF","SUBER WILLIAM ERIC","SUBERWIL000","MIZELL, MICHAEL P","MICHAEL P MIZELL","8:00","07/01/2019","06/30/2020","CLASSIFIED",40,32]
["WALSHMIC000","M04896","MICHELE","MARIE","WALSH","Michele.Walsh@sumter.k12.fl.us","366","Non 210A Days","0181","LAKE PANASOFFKE","19-20 Active Plan","DATA ENT OP  ATT/SW","DATA ENTRY CLERK","WADE NICOLE LYNN","WADE NIC000","WALSH, MICHELE MARIE","MICHELE MARIE WALSH","7:00","07/26/2019","06/12/2020","CLASSIFIED",35,28]
["CORONMAR000","M04913","MARIA","ELENA","CORONADO","maria.coronado@sumter.k12.fl.us","351","Non 250 Days","0051","WEBSTER ELEMENT","19-20 Active Plan","CUSTODIAN","FOOD SERVICE/CUSTODIAN","SHEA MELYNDA BROOKE","SHEA MEL000","CORONADO, MARIA ELENA","MARIA ELENA CORONADO","8:00","07/01/2019","06/30/2020","CLASSIFIED",40,32]
["ARROYMAD000","M04964","MADELINE",null,"ARROYO","Madeline.Arroyo@sumter.k12.fl.us","370","Non 186 Days","0102","WILDWOOD ELEMEN","19-20 Active Plan","PARAPROFESSIONAL  TTL I-E","TITLE I PARA","TEMPLE JOHN P","TEMPLJOH000","ARROYO, MADELINE","MADELINE ARROYO","7:00","08/12/2019","05/29/2020","CLASSIFIED",35,28]
["MELINMER000","M05047","MERRYANNE",null,"MELIN","merryanne.melin@sumter.k12.fl.us","351","Non 250 Days","0181","LAKE PANASOFFKE","19-20 Active Plan","CUSTODIAN","CUSTODIAN","WADE NICOLE LYNN","WADE NIC000","MELIN, MERRYANNE","MERRYANNE MELIN","8:00","07/01/2019","06/30/2020","CLASSIFIED",40,32]
["KARDIMIC001","M05050","MICHAEL",null,"KARDIASMENOS","michael.kardiasmenos@sumter.k12.fl.us","358","Non 186 Days","9004","TRANSPORTATION","19-20 Active Plan","BUS DRIVER","BUS DRIVER","FOOTE MICHAEL T","FOOTEMIC000","KARDIASMENOS, MICHAEL","MICHAEL KARDIASMENOS","5:45","01/27/2020","05/29/2020","CLASSIFIED",28.75,23]
["MENDEMAR000","M05140","MARIA","ELENA","MENDEZ","maria.mendez@sumter.k12.fl.us","351","Non 250 Days","0042","SOUTH SUMTER MI","19-20 Active Plan","CUSTODIAN","CUSTODIAN","CAMP JOEL S","CAMP JOE000","MENDEZ, MARIA ELENA","MARIA ELENA MENDEZ","6:00","07/01/2019","06/30/2020","CLASSIFIED",30,24]
["MARSHM  000","M05167","M","LARONE","MARSHMAN","m.marshman@sumter.k12.fl.us","370","Non 186 Days","9004","TRANSPORTATION","19-20 Active Plan","BUS AIDE  EX ST ED","ESE BUS AIDE","FOOTE MICHAEL T","FOOTEMIC000","MARSHMAN, M LARONE","M LARONE MARSHMAN","5:15","08/12/2019","05/29/2020","CLASSIFIED",26.25,21]
["THOMAMEL000","M05181","MELISSA","JO","THOMAS","melissa.thomas@sumter.k12.fl.us","355","Non 200 Days","0042","SOUTH SUMTER MI","19-20 Active Plan","CLERK  SCH","CLERK SCHOOL","CAMP JOEL S","CAMP JOE000","THOMAS, MELISSA JO","MELISSA JO THOMAS","7:00","08/01/2019","06/04/2020","CLASSIFIED",35,28]
["DENNIMIC000","M05184","MICHELLE","RENEE","DENNIS","michelle.dennis@sumter.k12.fl.us","370","Non 186 Days","9004","TRANSPORTATION","19-20 Active Plan","BUS AIDE  EX ST ED","ESE BUS AIDE","FOOTE MICHAEL T","FOOTEMIC000","DENNIS, MICHELLE RENEE","MICHELLE RENEE DENNIS","5:00","08/12/2019","05/29/2020","CLASSIFIED",25,20]
["HAWKIMAR000","M05200","MARCUS","ANTWOIN","HAWKINS","marcus.hawkins@sumter.k12.fl.us","256","Ins 198 Days","0161","WILDWOOD M/H","19-20 Active Plan","TEACHER  PE-M/J","GENERAL FUND TEACHER","GRAYBEAL JERRY DUANE","GRAYBJER000","HAWKINS SR, MARCUS ANTWOIN","MARCUS ANTWOIN HAWKINS SR","7:36","08/02/2019","06/02/2020","INSTRUCTIONAL",38,30.4]
["RAMPUMIC000","M05226","MICHELLE","LUCILLE","RAMPUTI","michelle.ramputi@sumter.k12.fl.us","762","212 A Intern","0051","WEBSTER ELEMENT","19-20 Active Plan","ADMIN ASST  SCH","INTERN","SHEA MELYNDA BROOKE","SHEA MEL000","RAMPUTI, MICHELLE LUCILLE","MICHELLE LUCILLE RAMPUTI","8:00","07/25/2019","06/12/2020","INTERN",40,32]
["HOSKEMEL000","M05236","MELISSA","J","HOSKEY","melissa.hoskey@sumter.k12.fl.us","256","Ins 198 Days","0171","SOUTH SUMTER HI","19-20 Active Plan","TEACHER  LANG AR-SH","GENERAL FUND TEACHER","MCKINNEY CHRISTINA JOHNSON","MCKINCHR001","HOSKEY, MELISSA J","MELISSA J HOSKEY","7:36","08/02/2019","06/02/2020","INSTRUCTIONAL",38,30.4]
["WILSOMOR000","M05240","MORGAN","EDWARDS","WILSON","morgan.wilson@sumter.k12.fl.us","256","Ins 198 Days","0171","SOUTH SUMTER HI","19-20 Active Plan","TEACHER  AGRI/NRE","GENERAL FUND/ SAI TEACHER","MCKINNEY CHRISTINA JOHNSON","MCKINCHR001","WILSON, MORGAN EDWARDS","MORGAN EDWARDS WILSON","7:36","08/02/2019","06/02/2020","INSTRUCTIONAL",38,30.4]
["HART MAR000","M05261","MARCELLUS","ANDRA","HART","marcellus.hart@sumter.k12.fl.us","256","Ins 198 Days","0042","SOUTH SUMTER MI","19-20 Active Plan","TEACHER  VE","ESE TEACHER","CAMP JOEL S","CAMP JOE000","HART, MARCELLUS ANDRA","MARCELLUS ANDRA HART","7:36","08/02/2019","06/02/2020","INSTRUCTIONAL",38,30.4]
["BOSTIMEL001","M05279","MELISSA","SUE","BOSTICK","melissa.bostick@sumter.k12.fl.us","370","Non 186 Days","0161","WILDWOOD M/H","19-20 Active Plan","PARAPROFESSIONAL ESE AGES 6-","ESE PARA","GRAYBEAL JERRY DUANE","GRAYBJER000","BOSTICK, MELISSA SUE","MELISSA SUE BOSTICK","7:00","08/12/2019","05/29/2020","CLASSIFIED",35,28]
["HAWKIMON001","M05304","MONTRELL","ANDREA","HAWKINS","montrell.hawkins@sumter.k12.fl.us","371","Non 196 Days","0161","WILDWOOD M/H","19-20 Active Plan","CLERK  GUIDANCE","CLERK GUIDANCE","GRAYBEAL JERRY DUANE","GRAYBJER000","HAWKINS, MONTRELL ANDREA","MONTRELL ANDREA HAWKINS","7:00","07/29/2019","06/09/2020","CLASSIFIED",35,28]
["WORD MIR000","M05328","MIRIAM","FORT","WORD","miriam.word@sumter.k12.fl.us","ADULT","ADULT ED","0191","ADULT EDUCATION",null,null,null,null,null,"WORD, MIRIAM FORT","MIRIAM FORT WORD",null,null,null,null,0,0]
["DEMONMIC000","M05353","MICHAEL","STUART","DEMONBREUN","michael.demonbreun@sumter.k12.fl.us","256","Ins 198 Days","9001","COUNTY OFFICE","19-20 Active Plan","TEACHER  OTHER","VIRTUAL TEACHER","PRESLEY JAMES CHESTER","PRESLJAM000","DEMONBREUN, MICHAEL STUART","MICHAEL STUART DEMONBREUN","7:36","08/02/2019","06/02/2020","INSTRUCTIONAL",38,30.4]
["HANSEMOR000","M05391","MORGAN",null,"HANSEN","morgan.hansen@sumter.k12.fl.us","256","Ins 198 Days","0051","WEBSTER ELEMENT","19-20 Active Plan","TEACHER  THIRD","GENERAL FUND TEACHER","SHEA MELYNDA BROOKE","SHEA MEL000","HANSEN, MORGAN","MORGAN HANSEN","7:36","08/02/2019","06/02/2020","INSTRUCTIONAL",38,30.4]
["ENGELMAR000","M05397","MARSHA","LEE","ENGELHARDT","marsha.engelhardt@sumter.k12.fl.us","256","Ins 198 Days","0031","BUSHNELL ELEMEN","19-20 Active Plan","TEACHER  KG","GENERAL FUND TEACHER","GOODWIN KELLY MARGARET","GOODWKEL000","ENGELHARDT, MARSHA LEE","MARSHA LEE ENGELHARDT","7:36","08/02/2019","06/02/2020","INSTRUCTIONAL",38,30.4]
["TUBBSMAR000","M05421","MARKO","DURIAN","TUBBS","marko.tubbs@sumter.k12.fl.us","256","Ins 198 Days","0171","SOUTH SUMTER HI","19-20 Active Plan","TEACHER  ROTC/MIL TRNG-SH","NNDCC TEACHER","MCKINNEY CHRISTINA JOHNSON","MCKINCHR001","TUBBS, MARKO DURIAN","MARKO DURIAN TUBBS","7:36","08/02/2019","06/02/2020","INSTRUCTIONAL",38,30.4]
["PAYETMEL000","M05423","MELANIE","HAMMOND","PAYETTE","melanie.payette@sumter.k12.fl.us","256","Ins 198 Days","0161","WILDWOOD M/H","19-20 Active Plan","TEACHER  LANG AR-M/J","CLASS SIZE TEACHER","GRAYBEAL JERRY DUANE","GRAYBJER000","PAYETTE, MELANIE HAMMOND","MELANIE HAMMOND PAYETTE","7:36","08/02/2019","06/02/2020","INSTRUCTIONAL",38,30.4]
["SCHLEMER000","M05431","MERRILL","EDWARD JERAULD","SCHLEGEL","merrill.schlegel@sumter.k12.fl.us","256","Ins 198 Days","0161","WILDWOOD M/H","19-20 Active Plan","TEACHER  VE","ESE TEACHER","GRAYBEAL JERRY DUANE","GRAYBJER000","SCHLEGEL, MERRILL EDWARD JERAULD","MERRILL EDWARD JERAULD SCHLEGEL","7:36","08/02/2019","06/02/2020","INSTRUCTIONAL",38,30.4]
["WILLIMON000","M05437","MONICA",null,"WILLIAMS","monica.williams@sumter.k12.fl.us","370","Non 186 Days","3001","SUMTER PREP","19-20 Active Plan","PARAPROFESSIONAL ESE AGES 6-","ESE PARA","PRESLEY JAMES CHESTER","PRESLJAM000","WILLIAMS, MONICA","MONICA WILLIAMS","7:00","08/12/2019","05/29/2020","CLASSIFIED",35,28]
["FAIRAMIC000","M05478","MICHELLE",null,"FAIRALL","michelle.fairall@sumter.k12.fl.us","256","Ins 198 Days","9008","ESE DEPARTMENT","19-20 Active Plan","BEHAVIOR SPEC","IDEA/ GF BEHAVIOR SPECIALIST","DUSTIN KATHERINE M","DUSTIKAT000","FAIRALL, MICHELLE","MICHELLE FAIRALL","7:36","10/25/2019","06/02/2020","INSTRUCTIONAL",38,30.4]
["MEAD MAD001","M05491","MADELYN","KAY","MEAD","madelyn.mead@sumter.k12.fl.us","370","Non 186 Days","0161","WILDWOOD M/H","19-20 Active Plan","PARAPROFESSIONAL ESE AGES 6-","ESE PARA","GRAYBEAL JERRY DUANE","GRAYBJER000","MEAD, MADELYN KAY","MADELYN KAY MEAD","7:00","12/11/2019","05/29/2020","CLASSIFIED",35,28]
["RISH NOR000","N01474","NORA","E","RISH","Nora.Rish@SUMTER.K12.FL.US","256","Ins 198 Days","0181","LAKE PANASOFFKE","19-20 Active Plan","TEACHER  THIRD","GENERAL FUND TEACHER","WADE NICOLE LYNN","WADE NIC000","RISH, NORA E","NORA E RISH","7:36","08/02/2019","06/02/2020","INSTRUCTIONAL",38,30.4]
["ANDERNAN000","N02135","NANCY","CAROL","ANDERSON","Nancy.Anderson@sumter.k12.fl.us","ADULT","ADULT ED","0191","ADULT EDUCATION",null,null,null,"FERGUSON CASEY LOREN","FERGUCAS000","ANDERSON, NANCY CAROL","NANCY CAROL ANDERSON",null,"08/02/2019","06/02/2020","INSTRUCTIONAL",0,0]
["BUTZENIC000","N02521","NICOLE","MARIE","BUTZER-COLLINS","Nicole.Butzer-Collins@sumter.k12.fl.us","370","Non 186 Days","3001","SUMTER PREP","19-20 Active Plan","LAB ASSISTANT","SAI LAB ASSISTANT","PRESLEY JAMES CHESTER","PRESLJAM000","BUTZER-COLLINS, NICOLE MARIE","NICOLE MARIE BUTZER-COLLINS","7:24","08/12/2019","05/29/2020","CLASSIFIED",37,29.6]
["SOVERNIC000","N03236","NICHOLAS","BENJAMIN","SOVERCOOL","Nicholas.Sovercool@Sumter.k12.fl.us","151","Adm 250 Days","9001","COUNTY OFFICE","19-20 Active Plan","SUP CURRICULUM/ACCOUNTABILITY","SUPERVISOR CURRICULUM","SHIRLEY RICHARD ALLEN, JR","SHIRLRIC001","SOVERCOOL, NICHOLAS BENJAMIN","NICHOLAS BENJAMIN SOVERCOOL","8:00","07/01/2019","06/30/2020","ADMINISTRATION",40,32]
["BISHONAN000","N03270","NANCY","ELIZABETH","BISHOP","Nancy.Bishop@SUMTER.K12.FL.US","256","Ins 198 Days","0051","WEBSTER ELEMENT","19-20 Active Plan","TEACHER  FIFTH","CLASS SIZE TEACHER","SHEA MELYNDA BROOKE","SHEA MEL000","BISHOP, NANCY ELIZABETH","NANCY ELIZABETH BISHOP","7:36","08/02/2019","06/02/2020","INSTRUCTIONAL",38,30.4]
["MCCRANIC000","N03561","NICHOLAS","J","MCCRAY","nicholas.mccray@sumter.k12.fl.us","370","Non 186 Days","0102","WILDWOOD ELEMEN","19-20 Active Plan","PARAPROFESSIONAL  ELEM","GENERAL FUND PARA","TEMPLE JOHN P","TEMPLJOH000","MCCRAY, NICHOLAS J","NICHOLAS J MCCRAY","7:00","08/12/2019","05/29/2020","CLASSIFIED",35,28]
["WADE NIC000","N03638","NICOLE","LYNN","WADE","Nicole.Wade@Sumter.k12.fl.us","151","Adm 250 Days","0181","LAKE PANASOFFKE","19-20 Active Plan","PRINCIPAL-E","PRINCIPAL","CHRISTIAN HELEN ANN","CHRISHEL000","WADE, NICOLE LYNN","NICOLE LYNN WADE","8:00","07/01/2019","06/30/2020","ADMINISTRATION",40,32]
["SIMMONAT000","N03796","NATALIE","JEAN","SIMMONS","Natalie.Simmons@Sumter.k12.fl.us","256","Ins 198 Days","0051","WEBSTER ELEMENT","19-20 Active Plan","TEACHER  KG","GENERAL FUND TEACHER","SHEA MELYNDA BROOKE","SHEA MEL000","SIMMONS, NATALIE JEAN","NATALIE JEAN SIMMONS","7:36","08/02/2019","06/02/2020","INSTRUCTIONAL",38,30.4]
["MARTINOR000","N04297","NORMA","ANN","MARTIN","Norma.Martin@sumter.k12.fl.us","358","Non 186 Days","9004","TRANSPORTATION","19-20 Active Plan","BUS DRIVER","BUS DRIVER","FOOTE MICHAEL T","FOOTEMIC000","MARTIN, NORMA ANN","NORMA ANN MARTIN","7:00","11/05/2019","05/29/2020","CLASSIFIED",35,28]
["HAMPTNIC000","N04905","NICOLE","MARIE","HAMPTON","Nicole.Hampton@sumter.k12.fl.us","370","Non 186 Days","0181","LAKE PANASOFFKE","19-20 Active Plan","PARAPROFESSIONAL ESE AGES 6-","ESE PARA","WADE NICOLE LYNN","WADE NIC000","HAMPTON, NICOLE MARIE","NICOLE MARIE HAMPTON","7:00","08/12/2019","05/29/2020","CLASSIFIED",35,28]
["BALL NEI000","N05114","NEIL","E","BALL","neil.ball@sumter.k12.fl.us","256","Ins 198 Days","0102","WILDWOOD ELEMEN","19-20 Active Plan","TEACHER  FIFTH","GENERAL FUND TEACHER","TEMPLE JOHN P","TEMPLJOH000","BALL II, NEIL E","NEIL E BALL II","7:36","08/02/2019","06/02/2020","INSTRUCTIONAL",38,30.4]
["STRICNAT000","N05343","NATALIE","ANN","STRICKLAND","natalie.strickland@sumter.k12.fl.us","256","Ins 198 Days","0042","SOUTH SUMTER MI","19-20 Active Plan","TEACHER  LANG AR-M/J","GENERAL FUND TEACHER","CAMP JOEL S","CAMP JOE000","STRICKLAND, NATALIE ANN","NATALIE ANN STRICKLAND","7:36","08/02/2019","06/02/2020","INSTRUCTIONAL",{"$f":"+R642*24*5","v":38},{"$f":"+R642*24*4","v":30.4}]
["MCCARNEV000","N05386","NEVRA","SAMANLI","MCCARTHY","nevra.mccarthy@sumter.k12.fl.us","370","Non 186 Days","0161","WILDWOOD M/H","19-20 Active Plan","PARAPROFESSIONAL ESE AGES 6-","ESE PARA","GRAYBEAL JERRY DUANE","GRAYBJER000","MCCARTHY, NEVRA SAMANLI","NEVRA SAMANLI MCCARTHY","7:00","09/09/2019","05/29/2020","CLASSIFIED",35,28]
["ATKINNIR000","N05400","NIRMALA","JESSICA","ATKINSON","nirmala.atkinson@sumter.k12.fl.us","256","Ins 198 Days","0031","BUSHNELL ELEMEN","19-20 Active Plan","TEACHER  KG","GENERAL FUND TEACHER","GOODWIN KELLY MARGARET","GOODWKEL000","ATKINSON, NIRMALA JESSICA","NIRMALA JESSICA ATKINSON","7:36","08/02/2019","06/02/2020","INSTRUCTIONAL",38,30.4]
["LYCANNAT000","N05428","NATALIE","D","LYCANS","natalie.lycans@sumter.k12.fl.us","256","Ins 198 Days","0171","SOUTH SUMTER HI","19-20 Active Plan","TEACHER  LANG AR-SH","GENERAL FUND TEACHER","MCKINNEY CHRISTINA JOHNSON","MCKINCHR001","LYCANS, NATALIE D","NATALIE D LYCANS","7:36","08/02/2019","06/02/2020","INSTRUCTIONAL",38,30.4]
["GOUGHNAN000","N05450","NANCY","YVONNE","GOUGH","nancy.gough@sumter.k12.fl.us","256","Ins 198 Days","0031","BUSHNELL ELEMEN","19-20 Active Plan","SP/LANG PATH","SPEECH/LANGUAGE PATH","GOODWIN KELLY MARGARET","GOODWKEL000","GOUGH, NANCY YVONNE","NANCY YVONNE GOUGH","4:48","08/27/2019","06/02/2020","INSTRUCTIONAL",24,19.2]
["LOVETNAT000","N05497","NATHANIEL","LOGAN","LOVETT","nathaniel.lovett@sumter.k12.fl.us","372","Non 220A Days","9006","TECHNOLOGY DEPT","19-20 Active Plan","TECH  IT","TECHNICIAN TECH SUPPORT","TRICK DAVID E","TRICKDAV000","LOVETT, NATHANIEL LOGAN","NATHANIEL LOGAN LOVETT","8:00","01/06/2020","06/12/2020","CLASSIFIED",40,32]
["MANYEORI000","O00589","ORIS",null,"MANYENGA","Oris.Manyenga@SUMTER.K12.FL.US","256","Ins 198 Days","0171","SOUTH SUMTER HI","19-20 Active Plan","TEACHER  SCIENCE-SH","CLASS SIZE TEACHER","MCKINNEY CHRISTINA JOHNSON","MCKINCHR001","MANYENGA, ORIS","ORIS MANYENGA","7:36","08/02/2019","06/02/2020","INSTRUCTIONAL",38,30.4]
["AUTRYPAM000","P00229","PAMELA","DAPHNE","AUTRY","pamela.autry@sumter.k12.fl.us","256","Ins 198 Days","3001","SUMTER PREP","19-20 Active Plan","TEACHER READ-SH","SAI TEACHER","PRESLEY JAMES CHESTER","PRESLJAM000","AUTRY, PAMELA DAPHNE","PAMELA DAPHNE AUTRY","7:36","08/02/2019","06/02/2020","INSTRUCTIONAL",38,30.4]
["LANDEPAM000","P00662","PAMELA","A","LANDERS","Pamela.Landers@SUMTER.K12.FL.US","253","Ins 218 Days","0042","SOUTH SUMTER MI","19-20 Active Plan","STAFFING SPEC","STAFFING SPECIALIST","CAMP JOEL S","CAMP JOE000","LANDERS, PAMELA A","PAMELA A LANDERS","8:00","07/19/2019","06/16/2020","INSTRUCTIONAL",40,32]
["WALLEPAM000","P00741","PAMELA","L","WALLEY","Pamela.Walley@SUMTER.K12.FL.US","256","Ins 198 Days","0102","WILDWOOD ELEMEN","19-20 Active Plan","TEACHER  VE","ESE TEACHER","TEMPLE JOHN P","TEMPLJOH000","WALLEY, PAMELA L","PAMELA L WALLEY","7:36","08/02/2019","06/02/2020","INSTRUCTIONAL",38,30.4]
["WELLSPAT000","P00774","PATRICIA","MCCORMIC","WELLS","Patricia.Wells@SUMTER.K12.FL.US","256","Ins 198 Days","0171","SOUTH SUMTER HI","19-20 Active Plan","TEACHER  AGRI/NRE","GENERAL FUND TEACHER","MCKINNEY CHRISTINA JOHNSON","MCKINCHR001","WELLS, PATRICIA MCCORMIC","PATRICIA MCCORMIC WELLS","7:36","08/02/2019","06/02/2020","INSTRUCTIONAL",38,30.4]
["STIEFPAT000","P01227","PATRICIA","ANN","STIEFEL","Patricia.Stiefel@sumter.k12.fl.us","358","Non 186 Days","9004","TRANSPORTATION","19-20 Active Plan","BUS DRIVER","BUS DRIVER","FOOTE MICHAEL T","FOOTEMIC000","STIEFEL, PATRICIA ANN","PATRICIA ANN STIEFEL","5:45","08/12/2019","05/29/2020","CLASSIFIED",28.75,23]
["BUTLEPAT000","P02032","PATRICIA","PERDUE","BUTLER","Patricia.Butler@SUMTER.K12.FL.US","256","Ins 198 Days","0051","WEBSTER ELEMENT","19-20 Active Plan","TEACHER  FIRST","GENERAL FUND TEACHER","SHEA MELYNDA BROOKE","SHEA MEL000","BUTLER, PATRICIA PERDUE","PATRICIA PERDUE BUTLER","7:36","08/02/2019","06/02/2020","INSTRUCTIONAL",38,30.4]
["PARKEPAU000","P02136","PAULA","LYNETTE","PARKER","Paula.Parker@SUMTER.K12.FL.US","256","Ins 198 Days","0161","WILDWOOD M/H","19-20 Active Plan","TEACHER  PE-M/J","GENERAL FUND TEACHER","GRAYBEAL JERRY DUANE","GRAYBJER000","PARKER, PAULA LYNETTE","PAULA LYNETTE PARKER","7:36","08/02/2019","06/02/2020","INSTRUCTIONAL",38,30.4]
["MANNIPAU000","P02424","PAUL","J","MANNINO","Paul.Mannino@SUMTER.K12.FL.US","256","Ins 198 Days","0102","WILDWOOD ELEMEN","19-20 Active Plan","TEACHER  VE","ESE TEACHER","TEMPLE JOHN P","TEMPLJOH000","MANNINO, PAUL J","PAUL J MANNINO","7:36","08/02/2019","06/02/2020","INSTRUCTIONAL",38,30.4]
["CRENSPAU000","P03009","PAULA","C","CRENSHAW","Paula.Crenshaw@SUMTER.K12.FL.US","256","Ins 198 Days","0181","LAKE PANASOFFKE","19-20 Active Plan","TEACHER  VE","ESE TEACHER","WADE NICOLE LYNN","WADE NIC000","CRENSHAW, PAULA C","PAULA C CRENSHAW","7:36","08/02/2019","06/02/2020","INSTRUCTIONAL",38,30.4]
["FURTAPEG000","P03137","PEGGY","BURNS ANDERSON","FURTADO","peggy.furtado@sumter.k12.fl.us","256","Ins 198 Days","0051","WEBSTER ELEMENT","19-20 Active Plan","TEACHER  FIFTH","GENERAL FUND TEACHER","SHEA MELYNDA BROOKE","SHEA MEL000","FURTADO, PEGGY BURNS ANDERSON","PEGGY BURNS ANDERSON FURTADO","7:36","08/02/2019","06/02/2020","INSTRUCTIONAL",38,30.4]
["FUCHSPAT000","P03320","PATRICIA","TOLEDO","FUCHS","Patricia.Fuchs@SUMTER.K12.FL.US","370","Non 186 Days","0161","WILDWOOD M/H","19-20 Active Plan","PARAPROFESSIONAL  M/J","GENERAL FUND PARA - ESOL","GRAYBEAL JERRY DUANE","GRAYBJER000","FUCHS, PATRICIA TOLEDO","PATRICIA TOLEDO FUCHS","7:00","08/12/2019","05/29/2020","CLASSIFIED",35,28]
["SARABPAT000","P03724","PATRISIA",null,"SARABIA","Patrisia.Sarabia@SUMTER.K12.FL.US","256","Ins 198 Days","0102","WILDWOOD ELEMEN","19-20 Active Plan","TEACHER  FIFTH","GENERAL FUND TEACHER","TEMPLE JOHN P","TEMPLJOH000","SARABIA, PATRISIA","PATRISIA SARABIA","7:36","08/02/2019","06/02/2020","INSTRUCTIONAL",38,30.4]
["HEIJKPAT000","P03976","PATRICIA","R","HEIJKOOP","Patricia.Heijkoop@Sumter.k12.fl.us","256","Ins 198 Days","0042","SOUTH SUMTER MI","19-20 Active Plan","TEACHER  SCIENCE-M/J","GENERAL FUND TEACHER","CAMP JOEL S","CAMP JOE000","HEIJKOOP, PATRICIA R","PATRICIA R HEIJKOOP","7:36","08/02/2019","06/02/2020","INSTRUCTIONAL",38,30.4]
["ROUSHPAT000","P04055","PATRICIA","LYNN","ROUSH","Patricia.Roush@sumter.k12.fl.us","256","Ins 198 Days","0031","BUSHNELL ELEMEN","19-20 Active Plan","TEACHER  THIRD","GENERAL FUND TEACHER","GOODWIN KELLY MARGARET","GOODWKEL000","ROUSH, PATRICIA LYNN","PATRICIA LYNN ROUSH","7:36","08/02/2019","06/02/2020","INSTRUCTIONAL",38,30.4]
["EVANSPAM000","P04236","PAMELA","ANITA","EVANS","Pamela.Evans@Sumter.k12.fl.us","256","Ins 198 Days","0181","LAKE PANASOFFKE","19-20 Active Plan","TEACHER  FIRST","GENERAL FUND TEACHER","WADE NICOLE LYNN","WADE NIC000","EVANS, PAMELA ANITA","PAMELA ANITA EVANS","7:36","08/02/2019","06/02/2020","INSTRUCTIONAL",38,30.4]
["JADUNPRE000","P04294","PREYA","D","JADUNAUTH","Preya.Jadunauth@sumter.k12.fl.us","265","Ins 212B Days","0171","SOUTH SUMTER HI","19-20 Active Plan","COUNSELOR-SH","COUNSELOR B","MCKINNEY CHRISTINA JOHNSON","MCKINCHR001","JADUNAUTH, PREYA D","PREYA D JADUNAUTH","7:36","07/30/2019","06/17/2020","INSTRUCTIONAL",38,30.4]
["PERROPET000","P04352","PETER","MICHAEL","PERRONE","PETER.PERRONE@SUMTER.K12.FL.US","256","Ins 198 Days","0171","SOUTH SUMTER HI","19-20 Active Plan","TEACHER  MUSIC-SH","GENERAL FUND TEACHER","MCKINNEY CHRISTINA JOHNSON","MCKINCHR001","PERRONE, PETER MICHAEL","PETER MICHAEL PERRONE","7:36","08/02/2019","06/02/2020","INSTRUCTIONAL",38,30.4]
["SOUCYPAU000","P04552","PAULA","M","SOUCY","paula.soucy@sumter.k12.fl.us","357","Non 188 Days","0171","SOUTH SUMTER HI","19-20 Active Plan","FOOD SER WORKER","FOOD SERVICE","SUBER WILLIAM ERIC","SUBERWIL000","SOUCY, PAULA M","PAULA M SOUCY","7:00","08/09/2019","06/01/2020","CLASSIFIED",35,28]
["ROTARPAI000","P04818","PAIGE","RENEE","ROTARIUS","Paige.Rotarius@sumter.k12.fl.us","256","Ins 198 Days","0102","WILDWOOD ELEMEN","19-20 Active Plan","TEACHER  KG","GENERAL FUND TEACHER","TEMPLE JOHN P","TEMPLJOH000","ROTARIUS, PAIGE RENEE","PAIGE RENEE ROTARIUS","7:36","08/02/2019","06/02/2020","INSTRUCTIONAL",38,30.4]
["KLIMAPAU000","P04867","PAULA","MYLETTE","KLIMAS","Paula.Klimas@sumter.k12.fl.us","370","Non 186 Days","0031","BUSHNELL ELEMEN","19-20 Active Plan","PARAPROFESSIONAL ESE AGES 6-","ESE PARA","GOODWIN KELLY MARGARET","GOODWKEL000","KLIMAS, PAULA MYLETTE","PAULA MYLETTE KLIMAS","7:00","08/12/2019","05/29/2020","CLASSIFIED",35,28]
["FERRIPAM000","P04893","PAMELA","JEAN","FERRIS","pamela.ferris@sumter.k12.fl.us","358","Non 186 Days","9004","TRANSPORTATION","19-20 Active Plan","BUS DRIVER","BUS DRIVER","FOOTE MICHAEL T","FOOTEMIC000","FERRIS, PAMELA JEAN","PAMELA JEAN FERRIS","5:30","08/12/2019","05/29/2020","CLASSIFIED",27.5,22]
["RICE PAT000","P05026","PATRICIA","DIANE","RICE","patricia.rice@sumter.k12.fl.us","ADULT","ADULT ED","0191","ADULT EDUCATION",null,null,null,null,null,"RICE, PATRICIA DIANE","PATRICIA DIANE RICE",null,null,null,null,0,0]
["NORRIPAU000","P05211","PAUL","DARREN","NORRIS","darren.norris@sumter.k12.fl.us","151","Adm 250 Days","9001","COUNTY OFFICE","19-20 Active Plan","SUPERVISOR OF SECURITY","SPECIALIST SAFETY","SUBER WILLIAM ERIC","SUBERWIL000","NORRIS, PAUL DARREN","PAUL DARREN NORRIS","8:00","07/01/2019","06/30/2020","ADMINISTRATION",40,32]
["ROG  PAU000","P05363","PAUL","A","ROG","paul.rog@sumter.k12.fl.us","370","Non 186 Days","0031","BUSHNELL ELEMEN","19-20 Active Plan","PARAPROFESSIONAL  ELEM","SAI PARA","GOODWIN KELLY MARGARET","GOODWKEL000","ROG, PAUL A","PAUL A ROG","7:00","08/12/2019","05/29/2020","CLASSIFIED",35,28]
["JOHNSPEN000","P05367","PENNY","DIANE","JOHNSON","penny.johnson@sumter.k12.fl.us","358","Non 186 Days","9004","TRANSPORTATION","19-20 Active Plan","BUS DRIVER","BUS DRIVER","FOOTE MICHAEL T","FOOTEMIC000","JOHNSON, PENNY DIANE","PENNY DIANE JOHNSON","4:00","01/27/2020","05/29/2020","CLASSIFIED",20,16]
["HODGEPAT000","P05409","PATRICK","TAYLOR","HODGES","patrick.hodges@sumter.k12.fl.us","256","Ins 198 Days","0102","WILDWOOD ELEMEN","19-20 Active Plan","TEACHER  FIFTH","GENERAL FUND TEACHER","TEMPLE JOHN P","TEMPLJOH000","HODGES, PATRICK TAYLOR","PATRICK TAYLOR HODGES","7:36","08/02/2019","06/02/2020","INSTRUCTIONAL",38,30.4]
["CRALLPAT000","P05502","PATRICIA","DUNBAR","CRALL","patricia.crall@sumter.k12.fl.us","256","Ins 198 Days","0051","WEBSTER ELEMENT","19-20 Active Plan","TEACHER  FOURTH","CLASS SIZE TEACHER","SHEA MELYNDA BROOKE","SHEA MEL000","CRALL, PATRICIA DUNBAR","PATRICIA DUNBAR CRALL","7:36","01/21/2020","06/02/2020","INSTRUCTIONAL",38,30.4]
["WOJNAROS000","R00083","ROSEMARY","FAITH","WOJNAROWSKI","Rosemary.Wojnarowski@SUMTER.K12.FL.US","256","Ins 198 Days","0181","LAKE PANASOFFKE","19-20 Active Plan","TEACHER  SECOND","GENERAL FUND TEACHER","WADE NICOLE LYNN","WADE NIC000","WOJNAROWSKI, ROSEMARY FAITH","ROSEMARY FAITH WOJNAROWSKI","7:36","08/02/2019","06/02/2020","INSTRUCTIONAL",38,30.4]
["WILEYRAC000","R00204","RACHAEL","JUARBE","WILEY","Rachael.Wiley@SUMTER.K12.FL.US","370","Non 186 Days","0102","WILDWOOD ELEMEN","19-20 Active Plan","PARAPROFESSIONAL  ESE AGES 6-","IDEA PRESCHOOL PARA","TEMPLE JOHN P","TEMPLJOH000","WILEY, RACHAEL JUARBE","RACHAEL JUARBE WILEY","7:00","08/12/2019","05/29/2020","CLASSIFIED",35,28]
["BENNEROB000","R00236","ROBIN","A","BENNETT","Robin.Bennett@SUMTER.K12.FL.US","370","Non 186 Days","0171","SOUTH SUMTER HI","19-20 Active Plan","PARAPROFESSIONAL ESE AGES 6-","ESE PARA","MCKINNEY CHRISTINA JOHNSON","MCKINCHR001","BENNETT, ROBIN A","ROBIN A BENNETT","7:00","08/12/2019","05/29/2020","CLASSIFIED",35,28]
["BEELEREB000","R00790","REBECCA","S","BEELER","Rebecca.Beeler@SUMTER.K12.FL.US","256","Ins 198 Days","0102","WILDWOOD ELEMEN","19-20 Active Plan","TEACHER  SECOND","GENERAL FUND TEACHER","TEMPLE JOHN P","TEMPLJOH000","BEELER, REBECCA S","REBECCA S BEELER","7:36","08/02/2019","06/02/2020","INSTRUCTIONAL",38,30.4]
["KNIGHREB000","R00808","REBECCA","ANN","KNIGHT","Rebecca.Knight@SUMTER.K12.FL.US","371","Non 196 Days","0042","SOUTH SUMTER MI","19-20 Active Plan","CLERK  GUIDANCE","CLERK GUIDANCE","CAMP JOEL S","CAMP JOE000","KNIGHT, REBECCA ANN","REBECCA ANN KNIGHT","8:00","08/02/2019","06/02/2020","CLASSIFIED",40,32]
["JOWERROS000","R01180","ROSEMARY","JONES","JOWERS","Rosemary.Jowers@SUMTER.K12.FL.US","370","Non 186 Days","0102","WILDWOOD ELEMEN","19-20 Active Plan","PARAPROFESSIONAL  ELEM","GENERAL FUND PARA","TEMPLE JOHN P","TEMPLJOH000","JOWERS, ROSEMARY JONES","ROSEMARY JONES JOWERS","7:00","08/12/2019","05/29/2020","CLASSIFIED",35,28]
["DIXONRON000","R01433","RONALD","E","DIXON","Ronald.Dixon@SUMTER.K12.FL.US","256","Ins 198 Days","0161","WILDWOOD M/H","19-20 Active Plan","TEACHER  SOC ST-M/J","CLASS SIZE TEACHER","GRAYBEAL JERRY DUANE","GRAYBJER000","DIXON, RONALD E","RONALD E DIXON","7:36","08/02/2019","06/02/2020","INSTRUCTIONAL",38,30.4]
["PIWOWROB000","R02684","ROBERT","ASHLEY","PIWOWAR","Robert.Piwowar@SUMTER.K12.FL.US","ADULT","ADULT ED","0191","ADULT EDUCATION",null,null,null,"FERGUSON CASEY LOREN","FERGUCAS000","PIWOWAR, ROBERT ASHLEY","ROBERT ASHLEY PIWOWAR",null,null,null,null,0,0]
["SHIRLRIC001","R03212","RICHARD","ALLEN","SHIRLEY","Allen.Shirley@Sumter.k12.fl.us","151","Adm 250 Days","9001","COUNTY OFFICE","19-20 Active Plan","DIR  SECON ED","DIRECTOR SECONDARY EDUCATION","MOFFITT DEBORAH DEON","MOFFIDEB000","SHIRLEY JR, RICHARD ALLEN","RICHARD ALLEN SHIRLEY JR","8:00","07/01/2019","06/30/2020","ADMINISTRATION",40,32]
["HUFF RIC000","R03658","RICHARD","BRYAN","HUFF","Bryan.Huff@sumter.k12.fl.us","151","Adm 250 Days","9001","COUNTY OFFICE","19-20 Active Plan","DIR INFO SER","DIRECTOR INFORMATION SERVICES","SMITH DEBORAH WALTERS","SMITHDEB000","HUFF, RICHARD BRYAN","RICHARD BRYAN HUFF","8:00","07/01/2019","06/30/2020","ADMINISTRATION",40,32]
["THORNRAC000","R03850","RACHEL","GAIL","THORNBURG","rachel.thornburg@sumter.k12.fl.us","357","Non 188 Days","0161","WILDWOOD M/H","19-20 Active Plan","FOOD SER WORKER","FOOD SERVICE","SUBER WILLIAM ERIC","SUBERWIL000","THORNBURG, RACHEL GAIL","RACHEL GAIL THORNBURG","8:00","08/09/2019","06/01/2020","CLASSIFIED",40,32]
["EVEREROB000","R03914","ROBERT","E","EVERETT","Robert.Everett@sumter.k12.fl.us","370","Non 186 Days","0171","SOUTH SUMTER HI","19-20 Active Plan","PARAPROFESSIONAL ESE AGES 6-","ESE PARA","MCKINNEY CHRISTINA JOHNSON","MCKINCHR001","EVERETT, ROBERT E","ROBERT E EVERETT","7:00","08/12/2019","05/29/2020","CLASSIFIED",35,28]
["BUSH RIC000","R03929","RICHARD","PAUL","BUSH","Richard.Bush@SUMTER.K12.FL.US","351","Non 250 Days","9005","MAINTENANCE CEN","19-20 Active Plan","MAIN WK","MAINTENANCE WORKER","SUBER WILLIAM ERIC","SUBERWIL000","BUSH, RICHARD PAUL","RICHARD PAUL BUSH","8:00","07/01/2019","06/30/2020","CLASSIFIED",40,32]
["LANGSRHO000","R03947","RHONDA","HUNT","LANGSTON","Rhonda.Langston@SUMTER.K12.FL.US","351","Non 250 Days","9005","MAINTENANCE CEN","19-20 Active Plan","SEC FACILITIES/CONSTRUCTION","FACILITIES SECRETARY","SUBER WILLIAM ERIC","SUBERWIL000","LANGSTON, RHONDA HUNT","RHONDA HUNT LANGSTON","8:00","07/01/2019","06/30/2020","CLASSIFIED",40,32]
["BURNSRIC000","R04054","RICHARD","NEIL","BURNS","Neil.Burns@sumter.k12.fl.us","351","Non 250 Days","9005","MAINTENANCE CEN","19-20 Active Plan","ELECTRICIAN","MAINTENANCE WORKER","SUBER WILLIAM ERIC","SUBERWIL000","BURNS, RICHARD NEIL","RICHARD NEIL BURNS","8:00","07/01/2019","06/30/2020","CLASSIFIED",40,32]
["CRAWFREB000","R04056","REBECCA","L","CRAWFORD","Rebecca.Crawford@sumter.k12.fl.us","370","Non 186 Days","0031","BUSHNELL ELEMEN","19-20 Active Plan","PARAPROFESSIONAL ESE AGES 6-","ESE PARA","GOODWIN KELLY MARGARET","GOODWKEL000","CRAWFORD, REBECCA L","REBECCA L CRAWFORD","7:00","08/12/2019","05/29/2020","CLASSIFIED",35,28]
["OLSONROG000","R04183","ROGER","L","OLSON","roger.olson@sumter.k12.fl.us","358","Non 186 Days","9004","TRANSPORTATION","19-20 Active Plan","BUS DRIVER","BUS DRIVER","FOOTE MICHAEL T","FOOTEMIC000","OLSON, ROGER L","ROGER L OLSON","4:30","08/12/2019","05/29/2020","CLASSIFIED",22.5,18]
["MCCORREB000","R04339","REBECCA","JOY","MCCORKLE","REBECCA.MCCORKLE@SUMTER.K12.FL.US","256","Ins 198 Days","0181","LAKE PANASOFFKE","19-20 Active Plan","TEACHER  SECOND","CLASS SIZE TEACHER","WADE NICOLE LYNN","WADE NIC000","MCCORKLE, REBECCA JOY","REBECCA JOY MCCORKLE","7:36","08/02/2019","06/02/2020","INSTRUCTIONAL",38,30.4]
["BABAURAY000","R04467","RAY","PHILIP","BABAUTA","ray.babauta@sumter.k12.fl.us","351","Non 250 Days","9005","MAINTENANCE CEN","19-20 Active Plan","MAIN WK","MAINTENANCE WORKER","SUBER WILLIAM ERIC","SUBERWIL000","BABAUTA, RAY PHILIP","RAY PHILIP BABAUTA","8:00","07/01/2019","06/30/2020","CLASSIFIED",40,32]
["VELAZRIC000","R04512","RICALDO","LUIS","VELAZQUEZ","Ricaldo.Velazquez@sumter.k12.fl.us","762","212 A Intern","3001","SUMTER PREP","19-20 Active Plan","ADMIN ASST  SCH","INTERN","PRESLEY JAMES CHESTER","PRESLJAM000","VELAZQUEZ, RICALDO LUIS","RICALDO LUIS VELAZQUEZ","8:00","07/25/2019","06/12/2020","INTERN",40,32]
["HARRIRYA000","R04522","RYAN","J","HARRISON","Ryan.Harrison@sumter.k12.fl.us","256","Ins 198 Days","0161","WILDWOOD M/H","19-20 Active Plan","TEACHER  OTHER","VIRTUAL TEACHER","GRAYBEAL JERRY DUANE","GRAYBJER000","HARRISON, RYAN J","RYAN J HARRISON","7:36","08/02/2019","06/02/2020","INSTRUCTIONAL",38,30.4]
["COMMERIC000","R04657","RICHARD","J","COMMERFORD","Richard.Commerford@sumter.k12.fl.us","256","Ins 198 Days","0161","WILDWOOD M/H","19-20 Active Plan","TEACHER  SCIENCE-SH","CLASS SIZE TEACHER","GRAYBEAL JERRY DUANE","GRAYBJER000","COMMERFORD, RICHARD J","RICHARD J COMMERFORD","7:36","08/02/2019","06/02/2020","INSTRUCTIONAL",38,30.4]
["BARNEREB000","R04687","REBEKAH","LYNNE","BARNES","REBEKAH.BARNES@sumter.k12.fl.us","256","Ins 198 Days","0042","SOUTH SUMTER MI","19-20 Active Plan","TEACHER  AGRI/NRE","GENERAL FUND TEACHER","CAMP JOEL S","CAMP JOE000","BARNES, REBEKAH LYNNE","REBEKAH LYNNE BARNES","7:36","08/02/2019","06/02/2020","INSTRUCTIONAL",38,30.4]
["CLARKROB000","R04700","ROBERT","PATRICK","CLARK","Robert.Clark@sumter.k12.fl.us","256","Ins 198 Days","0181","LAKE PANASOFFKE","19-20 Active Plan","TEACHER  MUSIC-E","GENERAL FUND TEACHER","WADE NICOLE LYNN","WADE NIC000","CLARK, ROBERT PATRICK","ROBERT PATRICK CLARK","7:36","08/02/2019","06/02/2020","INSTRUCTIONAL",38,30.4]
["WISEMRUT000","R05085","RUTH","MARGARET","WISEMAN","ruth.wiseman@sumter.k12.fl.us","253","Ins 218 Days","0102","WILDWOOD ELEMEN","19-20 Active Plan","STAFFING SPEC","STAFFING SPECIALIST","TEMPLE JOHN P","TEMPLJOH000","WISEMAN, RUTH MARGARET","RUTH MARGARET WISEMAN","8:00","07/19/2019","06/16/2020","INSTRUCTIONAL",40,32]
["MEYERREB000","R05089","REBEKAH","ERYN","MEYER","rebekah.meyer@sumter.k12.fl.us","256","Ins 198 Days","0171","SOUTH SUMTER HI","19-20 Active Plan","TEACHER  SOC ST-SH","GENERAL FUND TEACHER","MCKINNEY CHRISTINA JOHNSON","MCKINCHR001","MEYER, REBEKAH ERYN","REBEKAH ERYN MEYER","7:36","08/02/2019","06/02/2020","INSTRUCTIONAL",38,30.4]
["THOMAROB000","R05124","ROBERT","MERRITT","THOMAS","robert.thomas@sumter.k12.fl.us","370","Non 186 Days","0102","WILDWOOD ELEMEN","19-20 Active Plan","PARAPROFESSIONAL ESE AGES 6-","ESE PARA","TEMPLE JOHN P","TEMPLJOH000","THOMAS, ROBERT MERRITT","ROBERT MERRITT THOMAS","7:00","08/12/2019","05/29/2020","CLASSIFIED",35,28]
["CARUTROB001","R05130","ROBIN","LEATWA","CARUTHERS","robin.caruthers@sumter.k12.fl.us","370","Non 186 Days","9004","TRANSPORTATION","19-20 Active Plan","BUS AIDE  EX ST ED","ESE BUS AIDE","FOOTE MICHAEL T","FOOTEMIC000","CARUTHERS, ROBIN LEATWA","ROBIN LEATWA CARUTHERS","4:00","08/12/2019","05/29/2020","CLASSIFIED",20,16]
["MERRIRIT000","R05180","RITA","LOUISE","MERRITT","rita.merritt@sumter.k12.fl.us","370","Non 186 Days","0031","BUSHNELL ELEMEN","19-20 Active Plan","PARAPROFESSIONAL ESE AGES 6-","ESE PARA","GOODWIN KELLY MARGARET","GOODWKEL000","MERRITT, RITA LOUISE","RITA LOUISE MERRITT","7:00","12/09/2019","05/29/2020","CLASSIFIED",35,28]
["THOMLRAI000","R05283","RAINA","RAWLINS","THOMLEY","raina.thomley@sumter.k12.fl.us","370","Non 186 Days","0102","WILDWOOD ELEMEN","19-20 Active Plan","PARAPROFESSIONAL  TTL I-E","TITLE I PARA","TEMPLE JOHN P","TEMPLJOH000","THOMLEY, RAINA RAWLINS","RAINA RAWLINS THOMLEY","7:00","08/12/2019","05/29/2020","CLASSIFIED",35,28]
["TOOLEROS000","R05347","ROSALINDA",null,"TOOLE","rosalinda.toole@sumter.k12.fl.us","357","Non 188 Days","0171","SOUTH SUMTER HI","19-20 Active Plan","FOOD SER WORKER","FOOD SERVICE","SUBER WILLIAM ERIC","SUBERWIL000","TOOLE, ROSALINDA","ROSALINDA TOOLE","6:00","08/09/2019","06/01/2020","CLASSIFIED",{"$f":"+R706*24*5","v":30},{"$f":"+R706*24*4","v":24}]
["THOMPRIC000","R05361","RICARDO","CARLINGTON","THOMPSON","ricardo.thompson@sumter.k12.fl.us","351","Non 250 Days","0161","WILDWOOD M/H","19-20 Active Plan","CUSTODIAN","CUSTODIAN","GRAYBEAL JERRY DUANE","GRAYBJER000","THOMPSON, RICARDO CARLINGTON","RICARDO CARLINGTON THOMPSON","7:00","08/12/2019","06/30/2020","CLASSIFIED",35,28]
["WILLIROC000","R05383","ROCKY","S","WILLIAMS","rocky.williams@sumter.k12.fl.us","358","Non 186 Days","9004","TRANSPORTATION","19-20 Active Plan","BUS DRIVER","BUS DRIVER","FOOTE MICHAEL T","FOOTEMIC000","WILLIAMS, ROCKY S","ROCKY S WILLIAMS","4:00","08/12/2019","05/29/2020","CLASSIFIED",20,16]
["AUCOIRAI000","R05402","RAINIE","J","AUCOIN","rainie.aucoin@sumter.k12.fl.us","256","Ins 198 Days","0161","WILDWOOD M/H","19-20 Active Plan","TEACHER READ-M/J","GENERAL FUND TEACHER","GRAYBEAL JERRY DUANE","GRAYBJER000","AUCOIN, RAINIE J","RAINIE J AUCOIN","7:36","08/02/2019","06/02/2020","INSTRUCTIONAL",38,30.4]
["SCHULROB000","R05420","ROBERT","ANDREW","SCHULTZ","robert.schultz@sumter.k12.fl.us","256","Ins 198 Days","0161","WILDWOOD M/H","19-20 Active Plan","TEACHER  SCIENCE-M/J","GENERAL FUND TEACHER","GRAYBEAL JERRY DUANE","GRAYBJER000","SCHULTZ, ROBERT ANDREW","ROBERT ANDREW SCHULTZ","7:36","08/02/2019","06/02/2020","INSTRUCTIONAL",38,30.4]
["ANDRAROS001","R05433","ROSA","E","ANDRADE","rosa.andrade@sumter.k12.fl.us","351","Non 250 Days","0042","SOUTH SUMTER MI","19-20 Active Plan","CUSTODIAN","CUSTODIAN","CAMP JOEL S","CAMP JOE000","ANDRADE, ROSA E","ROSA E ANDRADE","6:00","08/07/2019","06/30/2020","CLASSIFIED",30,24]
["MITCHROY000","R05461","ROY","WENDELL","MITCHELL","roy.mitchell@sumter.k12.fl.us","370","Non 186 Days","0171","SOUTH SUMTER HI","19-20 Active Plan","PARAPROFESSIONAL  SH","SAI PARA - ISS","MCKINNEY CHRISTINA JOHNSON","MCKINCHR001","MITCHELL, ROY WENDELL","ROY WENDELL MITCHELL","7:00","09/06/2019","05/29/2020","CLASSIFIED",35,28]
["REAVESHE000","S00951","SHERRY","MARIE","REAVES","sherry.reaves@sumter.k12.fl.us","256","Ins 198 Days","0051","WEBSTER ELEMENT","19-20 Active Plan","TEACHER  FIRST","CLASS SIZE TEACHER","SHEA MELYNDA BROOKE","SHEA MEL000","REAVES, SHERRY MARIE","SHERRY MARIE REAVES","7:36","08/02/2019","06/02/2020","INSTRUCTIONAL",38,30.4]
["MERRISHA000","S00964","SHARON","RENEE","MERRITT","Sharon.Merritt@SUMTER.K12.FL.US","370","Non 186 Days","0181","LAKE PANASOFFKE","19-20 Active Plan","PARAPROFESSIONAL  TTL I-E","TITLE I PARA","WADE NICOLE LYNN","WADE NIC000","MERRITT, SHARON RENEE","SHARON RENEE MERRITT","7:00","08/12/2019","05/29/2020","CLASSIFIED",35,28]
["WILLISHE000","S01083","SHELLY","YVETTE","WILLIAMS","Shelly.Williams@SUMTER.K12.FL.US","256","Ins 198 Days","0171","SOUTH SUMTER HI","19-20 Active Plan","TEACHER  WORLD LAN-SH","CLASS SIZE TEACHER","MCKINNEY CHRISTINA JOHNSON","MCKINCHR001","WILLIAMS, SHELLY YVETTE","SHELLY YVETTE WILLIAMS","7:36","08/02/2019","06/02/2020","INSTRUCTIONAL",38,30.4]
["MITCHSON000","S01261","SONYA","VONECIA","MITCHELL","sonya.mitchell@sumter.k12.fl.us","351","Non 250 Days","0031","BUSHNELL ELEMEN","19-20 Active Plan","CUSTODIAN","FOOD SERVICE/CUSTODIAN","GOODWIN KELLY MARGARET","GOODWKEL000","MITCHELL, SONYA VONECIA","SONYA VONECIA MITCHELL","8:00","07/01/2019","06/30/2020","CLASSIFIED",40,32]
["IANNUSHA000","S01570","SHARON","ELIZABETH","IANNUCCI","SHARON.IANNUCCI@SUMTER.K12.FL.US","354","Non 206 Days","9008","ESE DEPARTMENT","19-20 Active Plan","DATA ENT OP  INS/CUR","IDEA DATA ENTRY CLERK","DUSTIN KATHERINE M","DUSTIKAT000","IANNUCCI, SHARON ELIZABETH","SHARON ELIZABETH IANNUCCI","8:00","07/29/2019","06/09/2020","CLASSIFIED",40,32]
["KAMINSAL000","S01588","SALLY","CHMIEL","KAMINSKI","Sally.Kaminski@SUMTER.K12.FL.US","256","Ins 198 Days","0102","WILDWOOD ELEMEN","19-20 Active Plan","TEACHER  SECOND","GENERAL FUND TEACHER","TEMPLE JOHN P","TEMPLJOH000","KAMINSKI, SALLY CHMIEL","SALLY CHMIEL KAMINSKI","7:36","08/02/2019","06/02/2020","INSTRUCTIONAL",38,30.4]
["OGILVSUE000","S01589","SUE","ANN","OGILVIE","sue.ogilvie@sumter.k12.fl.us","351","Non 250 Days","0031","BUSHNELL ELEMEN","19-20 Active Plan","CUSTODIAN","CUSTODIAN","GOODWIN KELLY MARGARET","GOODWKEL000","OGILVIE, SUE ANN","SUE ANN OGILVIE","8:00","07/01/2019","06/30/2020","CLASSIFIED",40,32]
["BERRYSHA000","S01681","SHANNON","L J","BERRY","Shannon.Berry@SUMTER.K12.FL.US","256","Ins 198 Days","0051","WEBSTER ELEMENT","19-20 Active Plan","SP/LANG PATH","SPEECH/LANGUAGE PATH","SHEA MELYNDA BROOKE","SHEA MEL000","BERRY, SHANNON L J","SHANNON L J BERRY","8:00","08/02/2019","06/02/2020","INSTRUCTIONAL",40,32]
["RICHASAN000","S01793","SANDRA","R","RICHARDSON","Sandra.Richardson@SUMTER.K12.FL.US","354","Non 206 Days","9008","ESE DEPARTMENT","19-20 Active Plan","DATA ENT OP  INS/CUR","IDEA DATA ENTRY","DUSTIN KATHERINE M","DUSTIKAT000","RICHARDSON, SANDRA R","SANDRA R RICHARDSON","8:00","07/29/2019","06/09/2020","CLASSIFIED",40,32]
["REVELSHI000","S01976","SHIRLEY","NELSON","REVELS","Shirley.Revels@SUMTER.K12.FL.US","651","CNU 250 Days","9001","COUNTY OFFICE","19-20 Active Plan","BUDGET ANALYST","FINANCE ANALYST","SMITH DEBORAH WALTERS","SMITHDEB000","REVELS, SHIRLEY NELSON","SHIRLEY NELSON REVELS","8:00","07/01/2019","06/30/2020","NON-INSTRUCT NO BARGAINING UNI",40,32]
["LEONHSUS000","S01982","SUSIE","A","LEONHART","Susie.Leonhart@SUMTER.K12.FL.US","355","Non 200 Days","0051","WEBSTER ELEMENT","19-20 Active Plan","CLERK  SCH","CLERK SCHOOL","SHEA MELYNDA BROOKE","SHEA MEL000","LEONHART, SUSIE A","SUSIE A LEONHART","7:00","08/01/2019","06/04/2020","CLASSIFIED",35,28]
["MCCLASAN000","S02000","SANDRA","G","MCCLANAHAN","Sandra.Mcclanahan@SUMTER.K12.FL.US","256","Ins 198 Days","0171","SOUTH SUMTER HI","19-20 Active Plan","TEACHER  WORLD LAN-SH","CLASS SIZE TEACHER","MCKINNEY CHRISTINA JOHNSON","MCKINCHR001","MCCLANAHAN, SANDRA G","SANDRA G MCCLANAHAN","7:36","08/02/2019","06/02/2020","INSTRUCTIONAL",38,30.4]
["ROBINSHE000","S02205","SHERRI","ANN","ROBINSON","Sherri.Robinson@SUMTER.K12.FL.US","256","Ins 198 Days","0102","WILDWOOD ELEMEN","19-20 Active Plan","TEACHER  VE","ESE TEACHER","TEMPLE JOHN P","TEMPLJOH000","ROBINSON, SHERRI ANN","SHERRI ANN ROBINSON","7:36","08/02/2019","06/02/2020","INSTRUCTIONAL",38,30.4]
["OSTEESHE000","S02240","SHERRIE","KIM","OSTEEN","Sherrie.Osteen@SUMTER.k12.fl.us","370","Non 186 Days","0171","SOUTH SUMTER HI","19-20 Active Plan","PARAPROFESSIONAL ESE AGES 6-","ESE PARA","MCKINNEY CHRISTINA JOHNSON","MCKINCHR001","OSTEEN, SHERRIE KIM","SHERRIE KIM OSTEEN","7:00","08/12/2019","05/29/2020","CLASSIFIED",35,28]
["MILLESUZ000","S02347","SUZANNE","RENEE","MILLER","Suzanne.Miller@SUMTER.K12.FL.US","256","Ins 198 Days","0181","LAKE PANASOFFKE","19-20 Active Plan","TEACHER  THIRD","GENERAL FUND TEACHER","WADE NICOLE LYNN","WADE NIC000","MILLER, SUZANNE RENEE","SUZANNE RENEE MILLER","7:36","08/02/2019","06/02/2020","INSTRUCTIONAL",38,30.4]
["FOWLESUS001","S02402","SUSAN","JEAN","FOWLER","Susan.Fowler@sumter.k12.fl.us","355","Non 200 Days","0031","BUSHNELL ELEMEN","19-20 Active Plan","CLERK  SCH","CLERK SCHOOL","GOODWIN KELLY MARGARET","GOODWKEL000","FOWLER, SUSAN JEAN","SUSAN JEAN FOWLER","7:00","08/01/2019","06/04/2020","CLASSIFIED",35,28]
["MORELSTE000","S02406","STEPHEN","VON","MORELAND","Stephen.Moreland@SUMTER.K12.FL.US","256","Ins 198 Days","0161","WILDWOOD M/H","19-20 Active Plan","TEACHER  OTHER","VIRTUAL TEACHER","GRAYBEAL JERRY DUANE","GRAYBJER000","MORELAND, STEPHEN VON","STEPHEN VON MORELAND","7:36","08/02/2019","06/02/2020","INSTRUCTIONAL",38,30.4]
["MCGRESYL000","S02462","SYLVIA",null,"MCGREGOR","Sylvia.Mcgregor@SUMTER.K12.FL.US","370","Non 186 Days","0051","WEBSTER ELEMENT","19-20 Active Plan","PARAPROFESSIONAL  ELEM","GENERAL FUND PARA - ESOL","SHEA MELYNDA BROOKE","SHEA MEL000","MCGREGOR, SYLVIA","SYLVIA MCGREGOR","7:00","08/12/2019","03/31/2020","CLASSIFIED",35,28]
["PENINSUS000","S02522","SUSAN","MARIE","PENINGER","SUSAN.PENINGER@SUMTER.K12.FL.US","359","Non 191 Days","0031","BUSHNELL ELEMEN","19-20 Active Plan","MANAGER  FOOD SER","FOOD SERVICE","GOODWIN KELLY MARGARET","GOODWKEL000","PENINGER, SUSAN MARIE","SUSAN MARIE PENINGER","8:00","08/07/2019","06/02/2020","CLASSIFIED",40,32]
["OLANDSHA000","S02779","SHARON","JOY","OLANDER","Sharon.Olander@SUMTER.K12.FL.US","370","Non 186 Days","0161","WILDWOOD M/H","19-20 Active Plan","PARAPROFESSIONAL ESE AGES 6-","ESE PARA","GRAYBEAL JERRY DUANE","GRAYBJER000","OLANDER, SHARON JOY","SHARON JOY OLANDER","7:00","08/12/2019","05/29/2020","CLASSIFIED",35,28]
["PAULISHE000","S03178","SHELLY","BELITHE","PAULINYCE","Shelly.Paulinyce@SUMTER.K12.FL.US","256","Ins 198 Days","0042","SOUTH SUMTER MI","19-20 Active Plan","TEACHER  SCIENCE-M/J","GENERAL FUND TEACHER","CAMP JOEL S","CAMP JOE000","PAULINYCE, SHELLY BELITHE","SHELLY BELITHE PAULINYCE","7:36","08/02/2019","06/02/2020","INSTRUCTIONAL",38,30.4]
["MINERSTA000","S03190","STACY","NICOLE","MINER","Stacy.Miner@SUMTER.K12.FL.US","370","Non 186 Days","0031","BUSHNELL ELEMEN","19-20 Active Plan","PARAPROFESSIONAL ESE AGES 6-","ESE PARA","GOODWIN KELLY MARGARET","GOODWKEL000","MINER, STACY NICOLE","STACY NICOLE MINER","7:00","08/12/2019","05/29/2020","CLASSIFIED",35,28]
["CRISWSTA000","S03239","STACEY","M","CRISWELL","Stacey.Criswell@SUMTER.K12.FL.US","370","Non 186 Days","3001","SUMTER PREP","19-20 Active Plan","PARAPROFESSIONAL  OTH BAS","GENERAL FUND PARA","PRESLEY JAMES CHESTER","PRESLJAM000","CRISWELL, STACEY M","STACEY M CRISWELL","7:00","08/12/2019","05/29/2020","CLASSIFIED",35,28]
["WOODASHA000","S03256","SHANNON","LEIGH","WOODARD","Shannon.Woodard@SUMTER.K12.FL.US","372","Non 220A Days","0171","SOUTH SUMTER HI","19-20 Active Plan","CLERK  SCH","CLERK SCHOOL","MCKINNEY CHRISTINA JOHNSON","MCKINCHR001","WOODARD, SHANNON LEIGH","SHANNON LEIGH WOODARD","7:00","07/12/2019","06/12/2020","CLASSIFIED",35,28]
["MAGGESAN000","S03287","SANDRA","DOBSON","MAGGERT","Sandra.Maggert@SUMTER.K12.FL.US","256","Ins 198 Days","0031","BUSHNELL ELEMEN","19-20 Active Plan","TEACHER  FIRST","GENERAL FUND TEACHER","GOODWIN KELLY MARGARET","GOODWKEL000","MAGGERT, SANDRA DOBSON","SANDRA DOBSON MAGGERT","7:36","08/02/2019","06/02/2020","INSTRUCTIONAL",38,30.4]
["HUNT SHE000","S03371","SHELLY","GIDEONS","HUNT","Shelly.Hunt@Sumter.k12.fl.us","256","Ins 198 Days","0181","LAKE PANASOFFKE","19-20 Active Plan","LEARN RES SPEC","TITLE I/ IDEA SPECIALIST","WADE NICOLE LYNN","WADE NIC000","HUNT, SHELLY GIDEONS","SHELLY GIDEONS HUNT","7:36","08/02/2019","06/02/2020","INSTRUCTIONAL",38,30.4]
["COBURSTA000","S03440","STANLEY","KEITH","COBURN","Stanley.Coburn@SUMTER.K12.FL.US","256","Ins 198 Days","0171","SOUTH SUMTER HI","19-20 Active Plan","TEACHER  PE-SH","GENERAL FUND TEACHER","MCKINNEY CHRISTINA JOHNSON","MCKINCHR001","COBURN, STANLEY KEITH","STANLEY KEITH COBURN","7:36","08/02/2019","06/02/2020","INSTRUCTIONAL",38,30.4]
["MORRISTA000","S03461","STACY","SKIPPER","MORRISON","Stacy.Morrison@SUMTER.K12.FL.US","256","Ins 198 Days","0042","SOUTH SUMTER MI","19-20 Active Plan","TEACHER  SOC ST-M/J","GENERAL FUND TEACHER","CAMP JOEL S","CAMP JOE000","MORRISON, STACY SKIPPER","STACY SKIPPER MORRISON","7:36","08/02/2019","06/02/2020","INSTRUCTIONAL",38,30.4]
["DOBSOSAN000","S03499","SANDRA","K","DOBSON","Sandra.Dobson@sumter.k12.fl.us","256","Ins 198 Days","3001","SUMTER PREP","19-20 Active Plan","TEACHER  MATH-SH","GENERAL FUND TEACHER","PRESLEY JAMES CHESTER","PRESLJAM000","DOBSON, SANDRA K","SANDRA K DOBSON","7:36","10/09/2019","06/02/2020","INSTRUCTIONAL",38,30.4]
["FORT SUS000","S03512","SUSAN","MARIE","FORT","Susan.Fort@sumter.k12.fl.us","253","Ins 218 Days","9001","COUNTY OFFICE","19-20 Active Plan","TSA  ST TRNG","TITLE I SPECIALIST","CHRISTIAN HELEN ANN","CHRISHEL000","FORT, SUSAN MARIE","SUSAN MARIE FORT","7:36","07/19/2019","06/16/2020","INSTRUCTIONAL",38,30.4]
["MARSHSHE000","S03539","SHERRHONDA","NASHAYE","MARSH","Sherrhonda.Marsh@sumter.k12.fl.us","371","Non 196 Days","0102","WILDWOOD ELEMEN","19-20 Active Plan","PARAPROFESSIONAL  PK","TITLE I/ PRE K LEAD","TEMPLE JOHN P","TEMPLJOH000","MARSH, SHERRHONDA NASHAYE","SHERRHONDA NASHAYE MARSH","8:00","11/01/2019","06/02/2020","CLASSIFIED",40,32]
["SKIPPSAN000","S03592","SANCI","D","SKIPPER","Sanci.Skipper@sumter.k12.fl.us","256","Ins 198 Days","0102","WILDWOOD ELEMEN","19-20 Active Plan","TEACHER  VE","ESE TEACHER","TEMPLE JOHN P","TEMPLJOH000","SKIPPER, SANCI D","SANCI D SKIPPER","7:36","10/21/2019","06/02/2020","INSTRUCTIONAL",38,30.4]
["WILEYSHE001","S03593","SHELBIE","STRICKLAND","WILEY","shelbie.wiley@sumter.k12.fl.us","256","Ins 198 Days","0171","SOUTH SUMTER HI","19-20 Active Plan","TEACHER  SCIENCE-SH","GENERAL FUND TEACHER","MCKINNEY CHRISTINA JOHNSON","MCKINCHR001","WILEY, SHELBIE STRICKLAND","SHELBIE STRICKLAND WILEY","7:36","08/02/2019","06/02/2020","INSTRUCTIONAL",38,30.4]
["NORRISTA000","S03665","STACY","LYNN","NORRIS","Stacy.Norris@SUMTER.K12.FL.US","371","Non 196 Days","0181","LAKE PANASOFFKE","19-20 Active Plan","PARAPROFESSIONAL  PK","TITLE I/ PRE K LEAD","WADE NICOLE LYNN","WADE NIC000","NORRIS, STACY LYNN","STACY LYNN NORRIS","8:00","08/02/2019","06/02/2020","CLASSIFIED",40,32]
["ANDRESUS000","S03673","SUSAN","MICHELLE","ANDREWS","Susan.Andrews@SUMTER.K12.FL.US","251","Ins 250 Days","9008","ESE DEPARTMENT","19-20 Active Plan","SCH PSYCHOLOGIST","PSYCHOLOGIST","DUSTIN KATHERINE M","DUSTIKAT000","ANDREWS, SUSAN MICHELLE","SUSAN MICHELLE ANDREWS","7:36","07/01/2019","06/30/2020","INSTRUCTIONAL",38,30.4]
["RAMOSSYL000","S03868","SYLVIA",null,"RAMOS","Sylvia.Ramos@SUMTER.K12.FL.US","256","Ins 198 Days","0051","WEBSTER ELEMENT","19-20 Active Plan","TEACHER  FIRST","GENERAL FUND TEACHER","SHEA MELYNDA BROOKE","SHEA MEL000","RAMOS, SYLVIA","SYLVIA RAMOS","7:36","08/02/2019","06/02/2020","INSTRUCTIONAL",38,30.4]
["NAVE STE000","S03874","STEPHEN","ADAM","NAVE","Stephen.Nave@SUMTER.K12.FL.US","256","Ins 198 Days","0102","WILDWOOD ELEMEN","19-20 Active Plan","TEACHER  PE-E","GENERAL FUND TEACHER","TEMPLE JOHN P","TEMPLJOH000","NAVE, STEPHEN ADAM","STEPHEN ADAM NAVE","7:36","08/02/2019","06/02/2020","INSTRUCTIONAL",38,30.4]
["BISIGSUM000","S03876","SUMMER","NICHOLE","BISIGNANO","Summer.Bisignano@SUMTER.K12.FL.US","151","Adm 250 Days","9001","COUNTY OFFICE","19-20 Active Plan","SPEC  INS/CUR","SPECIALIST INS/CURRICULUM","SHIRLEY RICHARD ALLEN, JR","SHIRLRIC001","BISIGNANO, SUMMER NICHOLE","SUMMER NICHOLE BISIGNANO","8:00","07/01/2019","06/30/2020","ADMINISTRATION",40,32]
["MIRAGSAN000","S03892","SANDRA","E","MIRAGLIA","Sandra.Miraglia@SUMTER.K12.FL.US","256","Ins 198 Days","0102","WILDWOOD ELEMEN","19-20 Active Plan","TEACHER  KG","CLASS SIZE TEACHER","TEMPLE JOHN P","TEMPLJOH000","MIRAGLIA, SANDRA E","SANDRA E MIRAGLIA","7:36","08/02/2019","06/02/2020","INSTRUCTIONAL",38,30.4]
["MORGASHA000","S03906","SHARON","DAWN","MORGAN","Sharon.morgan@sumter.k12.fl.us","370","Non 186 Days","0031","BUSHNELL ELEMEN","19-20 Active Plan","PARAPROFESSIONAL ESE AGES 6-","ESE PARA","GOODWIN KELLY MARGARET","GOODWKEL000","MORGAN, SHARON DAWN","SHARON DAWN MORGAN","7:00","08/12/2019","05/29/2020","CLASSIFIED",35,28]
["MOFFISTE000","S03921","STEPHANIE","KATHERINE","MOFFITT","Stephanie.Moffitt@SUMTER.K12.FL.US","256","Ins 198 Days","0171","SOUTH SUMTER HI","19-20 Active Plan","TEACHER  LANG AR-SH","SAI TEACHER 40060","MCKINNEY CHRISTINA JOHNSON","MCKINCHR001","MOFFITT, STEPHANIE KATHERINE","STEPHANIE KATHERINE MOFFITT","7:36","08/02/2019","06/02/2020","INSTRUCTIONAL",38,30.4]
["WESTESUS000","S04059","SUSANNE","SERENA","WESTERKON","Susanne.Westerkon@sumter.k12.fl.us","256","Ins 198 Days","0031","BUSHNELL ELEMEN","19-20 Active Plan","TEACHER  FOURTH","CLASS SIZE TEACHER","GOODWIN KELLY MARGARET","GOODWKEL000","WESTERKON, SUSANNE SERENA","SUSANNE SERENA WESTERKON","7:36","08/02/2019","06/02/2020","INSTRUCTIONAL",38,30.4]
["ROCKESTE000","S04128","STEPHEN","J","ROCKEY","Stephen.Rockey@Sumter.k12.fl.us","762","212 A Intern","0181","LAKE PANASOFFKE","19-20 Active Plan","ADMIN ASST  SCH","INTERN","WADE NICOLE LYNN","WADE NIC000","ROCKEY, STEPHEN J","STEPHEN J ROCKEY","8:00","07/25/2019","06/12/2020","INTERN",40,32]
["CAMARSTE000","S04144","STEPHANIE","ANNE","CAMARA","Stephanie.Camara@sumter.k12.fl.us","256","Ins 198 Days","0031","BUSHNELL ELEMEN","19-20 Active Plan","TEACHER  FIFTH","CLASS SIZE TEACHER","GOODWIN KELLY MARGARET","GOODWKEL000","CAMARA, STEPHANIE ANNE","STEPHANIE ANNE CAMARA","7:36","08/02/2019","06/02/2020","INSTRUCTIONAL",38,30.4]
["HICKSSHE000","S04174","SHEILA","ELAINE","HICKS","sheila.hicks@sumter.k12.fl.us","357","Non 188 Days","0102","WILDWOOD ELEMEN","19-20 Active Plan","FOOD SER WORKER","FOOD SERVICE","SUBER WILLIAM ERIC","SUBERWIL000","HICKS, SHEILA ELAINE","SHEILA ELAINE HICKS","4:00","08/09/2019","06/01/2020","CLASSIFIED",20,16]
["GEDEISHE000","S04193","SHELBY","LYNN","GEDEIST","Shelby.Gedeist@sumter.k12.fl.us","256","Ins 198 Days","0042","SOUTH SUMTER MI","19-20 Active Plan","TEACHER  MATH-M/J","GENERAL FUND TEACHER","CAMP JOEL S","CAMP JOE000","GEDEIST, SHELBY LYNN","SHELBY LYNN GEDEIST","7:36","08/02/2019","06/02/2020","INSTRUCTIONAL",38,30.4]
["LAMB SHE000","S04261","SHELBY","ANN","LAMB","shelby.lamb@sumter.k12.fl.us","256","Ins 198 Days","0031","BUSHNELL ELEMEN","19-20 Active Plan","TEACHER  SECOND","GENERAL FUND TEACHER","GOODWIN KELLY MARGARET","GOODWKEL000","LAMB, SHELBY ANN","SHELBY ANN LAMB","7:36","08/02/2019","06/02/2020","INSTRUCTIONAL",38,30.4]
["WILSOSAN000","S04309","SANDRA","KAY","WILSON","sandra.wilson@sumter.k12.fl.us","370","Non 186 Days","9004","TRANSPORTATION","19-20 Active Plan","BUS AIDE  EX ST ED","ESE BUS AIDE","FOOTE MICHAEL T","FOOTEMIC000","WILSON, SANDRA KAY","SANDRA KAY WILSON","4:30","11/05/2019","05/29/2020","CLASSIFIED",22.5,18]
["GREENSTE000","S04423","STEPHANIE","SMITH","GREENE","Stephanie.Greene@sumter.k12.fl.us","370","Non 186 Days","0161","WILDWOOD M/H","19-20 Active Plan","PARAPROFESSIONAL  SH","TITLE I CHOICE PARA","GRAYBEAL JERRY DUANE","GRAYBJER000","GREENE, STEPHANIE SMITH","STEPHANIE SMITH GREENE","7:00","08/12/2019","05/29/2020","CLASSIFIED",35,28]
["PERRYSTE000","S04482","STEPHANIE",null,"PERRY","Stephanie.Perry@sumter.k12.fl.us","256","Ins 198 Days","0031","BUSHNELL ELEMEN","19-20 Active Plan","SPEC  INS/CUR","SAI/IDEA CURRICULUM","GOODWIN KELLY MARGARET","GOODWKEL000","PERRY, STEPHANIE","STEPHANIE PERRY","7:36","08/02/2019","06/02/2020","INSTRUCTIONAL",38,30.4]
["HEROLSAM000","S04536","SAMANTHA","BLAKE","HEROLD","Samantha.Herold@Sumter.k12.fl.us","256","Ins 198 Days","0042","SOUTH SUMTER MI","19-20 Active Plan","TEACHER  MATH-M/J","GENERAL FUND TEACHER","CAMP JOEL S","CAMP JOE000","HEROLD, SAMANTHA BLAKE","SAMANTHA BLAKE HEROLD","7:36","08/02/2019","06/02/2020","INSTRUCTIONAL",38,30.4]
["GREENSCO000","S04572","SCOTT","MAURICE","GREEN","scott.green@sumter.k12.fl.us","357","Non 188 Days","0171","SOUTH SUMTER HI","19-20 Active Plan","FOOD SER WORKER","FOOD SERVICE","SUBER WILLIAM ERIC","SUBERWIL000","GREEN JR, SCOTT MAURICE","SCOTT MAURICE GREEN JR","7:00","08/09/2019","06/01/2020","CLASSIFIED",35,28]
["RIVERSHA000","S04612","SHAMIR","B","RIVERS","Shamir.Rivers@sumter.k12.fl.us","357","Non 188 Days","0161","WILDWOOD M/H","19-20 Active Plan","FOOD SER WORKER","FOOD SERVICE","SUBER WILLIAM ERIC","SUBERWIL000","RIVERS, SHAMIR B","SHAMIR B RIVERS","7:00","08/09/2019","06/01/2020","CLASSIFIED",35,28]
["DAVIESTE000","S04767","STEPHANIE","LYNN","DAVIES","Stephanie.Davies@sumter.k12.fl.us","372","Non 220A Days","0191","ADULT EDUCATION","19-20 Active Plan","DATA ENT OP  ATT/SW","TECHNICIAN ADULT EDUCATION","FERGUSON CASEY LOREN","FERGUCAS000","DAVIES, STEPHANIE LYNN","STEPHANIE LYNN DAVIES","7:00","07/12/2019","06/12/2020","CLASSIFIED",35,28]
["ISHEESUZ000","S04794","SUZANNE","MILLER","ISHEE","Suzanne.Ishee@sumter.k12.fl.us","256","Ins 198 Days","0042","SOUTH SUMTER MI","19-20 Active Plan","TEACHER  SOC ST-M/J","GENERAL FUND TEACHER","CAMP JOEL S","CAMP JOE000","ISHEE, SUZANNE MILLER","SUZANNE MILLER ISHEE","7:36","08/02/2019","06/02/2020","INSTRUCTIONAL",38,30.4]
["WALLASEA000","S04800","SEAN","ADAM","WALLACE","Sean.Wallace@sumter.k12.fl.us","256","Ins 198 Days","0161","WILDWOOD M/H","19-20 Active Plan","TEACHER  MUSIC-SH","GENERAL FUND TEACHER","GRAYBEAL JERRY DUANE","GRAYBJER000","WALLACE, SEAN ADAM","SEAN ADAM WALLACE","7:36","08/02/2019","06/02/2020","INSTRUCTIONAL",38,30.4]
["HOLTZSUM000","S04821","SUMMER",null,"HOLTZHOWER","summer.holtzhower@sumter.k12.fl.us","256","Ins 198 Days","0161","WILDWOOD M/H","19-20 Active Plan","TEACHER  CTE OR/EXP","GENERAL FUND TEACHER","GRAYBEAL JERRY DUANE","GRAYBJER000","HOLTZHOWER, SUMMER","SUMMER HOLTZHOWER","7:36","08/02/2019","06/02/2020","INSTRUCTIONAL",38,30.4]
["HELMSSID000","S04840","SIDNEY","MORGAN","HELMS","sidney.helms@sumter.k12.fl.us","256","Ins 198 Days","0181","LAKE PANASOFFKE","19-20 Active Plan","TEACHER  FIRST","CLASS SIZE TEACHER","WADE NICOLE LYNN","WADE NIC000","HELMS, SIDNEY MORGAN","SIDNEY MORGAN HELMS","7:36","08/02/2019","06/02/2020","INSTRUCTIONAL",{"$f":"+R770*24*5","v":38},{"$f":"+R770*24*4","v":30.4}]
["STOKESTA000","S04994","STACIE","ANN","STOKES","Stacie.Stokes@sumter.k12.fl.us","351","Non 250 Days","9006","TECHNOLOGY DEPT","19-20 Active Plan","SEC  IT","SECRETARY TECHNOLOGY","TRICK DAVID E","TRICKDAV000","STOKES, STACIE ANN","STACIE ANN STOKES","8:00","07/01/2019","06/30/2020","CLASSIFIED",40,32]
["ALISASHA000","S04999","SHANNON","LEIGH","ALISANDRELLI","shannon.alisandrelli@sumter.k12.fl.us","256","Ins 198 Days","0042","SOUTH SUMTER MI","19-20 Active Plan","TEACHER  LANG AR-M/J","GENERAL FUND TEACHER","CAMP JOEL S","CAMP JOE000","ALISANDRELLI, SHANNON LEIGH","SHANNON LEIGH ALISANDRELLI","7:36","08/02/2019","06/02/2020","INSTRUCTIONAL",38,30.4]
["HOUSESAM000","S05076","SAMANTHA","MARIE","HOUSEHOLDER","samantha.householder@sumter.k12.fl.us","358","Non 186 Days","9004","TRANSPORTATION","19-20 Active Plan","BUS DRIVER","BUS DRIVER","FOOTE MICHAEL T","FOOTEMIC000","HOUSEHOLDER, SAMANTHA MARIE","SAMANTHA MARIE HOUSEHOLDER","5:15","08/12/2019","05/29/2020","CLASSIFIED",26.25,21]
["BURBASHE000","S05108","SHELLY","LYNN","BURBAGE","shelly.burbage@sumter.k12.fl.us","357","Non 188 Days","0181","LAKE PANASOFFKE","19-20 Active Plan","FOOD SER WORKER","FOOD SERVICE","SUBER WILLIAM ERIC","SUBERWIL000","BURBAGE, SHELLY LYNN","SHELLY LYNN BURBAGE","6:00","08/09/2019","06/01/2020","CLASSIFIED",30,24]
["KIGERSHE000","S05162","SHEILA","M","KIGER","sheila.kiger@sumter.k12.fl.us","256","Ins 198 Days","0161","WILDWOOD M/H","19-20 Active Plan","TEACHER  VE","ESE TEACHER","GRAYBEAL JERRY DUANE","GRAYBJER000","KIGER, SHEILA M","SHEILA M KIGER","7:36","08/02/2019","06/02/2020","INSTRUCTIONAL",38,30.4]
["JOHNSSAF000","S05202","SAFONYA","LAVERNE","JOHNSON","safonya.johnson@sumter.k12.fl.us","358","Non 186 Days","9004","TRANSPORTATION","19-20 Active Plan","BUS DRIVER","BUS DRIVER","FOOTE MICHAEL T","FOOTEMIC000","JOHNSON, SAFONYA LAVERNE","SAFONYA LAVERNE JOHNSON","4:00","03/16/2020","05/29/2020","CLASSIFIED",20,16]
["HART SHE000","S05206","SHEWANDA","LAFAYE","HART","shewanda.hart@sumter.k12.fl.us","355","Non 200 Days","0042","SOUTH SUMTER MI","19-20 Active Plan","CLERK  SCH","CLERK SCHOOL","CAMP JOEL S","CAMP JOE000","HART, SHEWANDA LAFAYE","SHEWANDA LAFAYE HART","7:00","11/07/2019","06/04/2020","CLASSIFIED",35,28]
["GARROSUS000","S05253","SUSAN","MARIE","GARROW","susan.garrow@sumter.k12.fl.us","256","Ins 198 Days","0051","WEBSTER ELEMENT","19-20 Active Plan","TEACHER  SECOND","GENERAL FUND TEACHER","SHEA MELYNDA BROOKE","SHEA MEL000","GARROW, SUSAN MARIE","SUSAN MARIE GARROW","7:36","08/02/2019","06/02/2020","INSTRUCTIONAL",38,30.4]
["BOONESTA000","S05277","STACIE",null,"BOONE","stacie.boone@sumter.k12.fl.us","354","Non 206 Days","0171","SOUTH SUMTER HI","19-20 Active Plan","CLERK  GUIDANCE","CLERK GUIDANCE","MCKINNEY CHRISTINA JOHNSON","MCKINCHR001","BOONE, STACIE","STACIE BOONE","7:00","08/02/2019","06/09/2020","CLASSIFIED",35,28]
["SIMS SUZ001","S05278","SUZANNE","MARGARET","SIMS","suzanne.sims@sumter.k12.fl.us","370","Non 186 Days","0181","LAKE PANASOFFKE","19-20 Active Plan","PARAPROFESSIONAL ESE AGES 6-","ESE PARA","WADE NICOLE LYNN","WADE NIC000","SIMS, SUZANNE MARGARET","SUZANNE MARGARET SIMS","7:00","08/12/2019","05/29/2020","CLASSIFIED",35,28]
["PERKISUS001","S05292","SUSAN","NOBLE","PERKINS","Susan.Perkins@SUMTER.K12.FL.US","256","Ins 198 Days","0161","WILDWOOD M/H","19-20 Active Plan","TEACHER  TECH ED","GENERAL FUND TEACHER","GRAYBEAL JERRY DUANE","GRAYBJER000","PERKINS, SUSAN NOBLE","SUSAN NOBLE PERKINS","7:36","08/02/2019","06/02/2020","INSTRUCTIONAL",38,30.4]
["KELM SUS000","S05307","SUSAN","LYNN","KELM","susan.kelm@sumter.k12.fl.us","256","Ins 198 Days","0102","WILDWOOD ELEMEN","19-20 Active Plan","TEACHER  FIFTH","CLASS SIZE TEACHER","TEMPLE JOHN P","TEMPLJOH000","KELM, SUSAN LYNN","SUSAN LYNN KELM","7:36","10/21/2019","06/02/2020","INSTRUCTIONAL",38,30.4]
["ROG  SAN000","S05332","SANDARA","LYNN","ROG","sandara.rog@sumter.k12.fl.us","370","Non 186 Days","0031","BUSHNELL ELEMEN","19-20 Active Plan","PARAPROFESSIONAL ESE AGES 6-","ESE PARA","GOODWIN KELLY MARGARET","GOODWKEL000","ROG, SANDARA LYNN","SANDARA LYNN ROG","4:00","08/12/2019","05/29/2020","CLASSIFIED",20,16]
["BETANSER000","S05388","SERGIO","IVAN","BETANCOURT-CRUZ","sergio.betancourt-cruz@sumter.k12.fl.us","256","Ins 198 Days","0171","SOUTH SUMTER HI","19-20 Active Plan","TEACHER  MATH-SH","GENERAL FUND TEACHER","MCKINNEY CHRISTINA JOHNSON","MCKINCHR001","BETANCOURT-CRUZ, SERGIO IVAN","SERGIO IVAN BETANCOURT-CRUZ","7:36","08/02/2019","06/02/2020","INSTRUCTIONAL",38,30.4]
["RAMOSSHE000","S05389","SHEKINA","ERLYNDA","RAMOS","shekina.ramos@sumter.k12.fl.us","256","Ins 198 Days","0042","SOUTH SUMTER MI","19-20 Active Plan","TEACHER  LANG AR-M/J","CLASS SIZE TEACHER","CAMP JOEL S","CAMP JOE000","RAMOS, SHEKINA ERLYNDA","SHEKINA ERLYNDA RAMOS","7:36","02/05/2020","06/02/2020","INSTRUCTIONAL",38,30.4]
["MORRISTE000","S05406","STEPHEN","EDWARD","MORRIS","stephen.morris@sumter.k12.fl.us","256","Ins 198 Days","0161","WILDWOOD M/H","19-20 Active Plan","TEACHER  PE-SH","GENERAL FUND TEACHER","GRAYBEAL JERRY DUANE","GRAYBJER000","MORRIS JR, STEPHEN EDWARD","STEPHEN EDWARD MORRIS JR","7:36","08/02/2019","06/02/2020","INSTRUCTIONAL",38,30.4]
["MOORESHA000","S05418","SHARI","D.","MOORE","shari.moore@sumter.k12.fl.us","256","Ins 198 Days","0161","WILDWOOD M/H","19-20 Active Plan","TEACHER  LANG AR-M/J","GENERAL FUND TEACHER","GRAYBEAL JERRY DUANE","GRAYBJER000","MOORE, SHARI D.","SHARI D. MOORE","7:36","08/02/2019","06/02/2020","INSTRUCTIONAL",38,30.4]
["MILLESYD000","S05439","SYDNEY","MARIE","MILLER","sydney.miller@sumter.k12.fl.us","370","Non 186 Days","0181","LAKE PANASOFFKE","19-20 Active Plan","PARAPROFESSIONAL  ELEM","SAI PARA","WADE NICOLE LYNN","WADE NIC000","MILLER, SYDNEY MARIE","SYDNEY MARIE MILLER","7:00","01/08/2020","05/29/2020","CLASSIFIED",35,28]
["GANT SHE000","S05447","SHEOVAHN","R","GANT","sheovahn.gant@sumter.k12.fl.us","370","Non 186 Days","0031","BUSHNELL ELEMEN","19-20 Active Plan","FOOD SER AIDE","FOOD SERVICE","SUBER WILLIAM ERIC","SUBERWIL000","GANT, SHEOVAHN R","SHEOVAHN R GANT","4:00","08/14/2019","05/29/2020","CLASSIFIED",20,16]
["STABESHE001","S05495","SHEA","VICTORIA","STABER","shea.staber@sumter.k12.fl.us","256","Ins 198 Days","0181","LAKE PANASOFFKE","19-20 Active Plan","SP/LANG PATH","SPEECH/LANGUAGE PATH","WADE NICOLE LYNN","WADE NIC000","STABER, SHEA VICTORIA","SHEA VICTORIA STABER","8:00","01/06/2020","06/02/2020","INSTRUCTIONAL",40,32]
["MANSFTIN000","T00038","TINA","MARIE","MANSFIELD","Tina.Mansfield@SUMTER.K12.FL.US","651","CNU 250 Days","9006","TECHNOLOGY DEPT","19-20 Active Plan","ADMIN ASST IT","COMPUTER NETWORK ASSISTANT","TRICK DAVID E","TRICKDAV000","MANSFIELD, TINA MARIE","TINA MARIE MANSFIELD","8:00","07/01/2019","06/30/2020","NON-INSTRUCT NO BARGAINING UNI",40,32]
["OSBORTIN000","T00319","TINA","L","OSBORNE","Tina.Osborne@SUMTER.K12.FL.US","256","Ins 198 Days","0051","WEBSTER ELEMENT","19-20 Active Plan","TEACHER  KG","CLASS SIZE TEACHER","SHEA MELYNDA BROOKE","SHEA MEL000","OSBORNE, TINA L","TINA L OSBORNE","7:36","08/02/2019","06/02/2020","INSTRUCTIONAL",38,30.4]
["OXENDTRA000","T00660","TRACY","REBECCA","OXENDINE","Tracy.Oxendine@SUMTER.K12.FL.US","264","Ins 208A Days","0031","BUSHNELL ELEMEN","19-20 Active Plan","SP/LANG PATH","SPEECH/LANGUAGE PATH","GOODWIN KELLY MARGARET","GOODWKEL000","OXENDINE, TRACY REBECCA","TRACY REBECCA OXENDINE","8:00","08/02/2019","06/16/2020","INSTRUCTIONAL",40,32]
["TAYLOTRA000","T00837","TRACY","B","TAYLOR","Tracy.Taylor@SUMTER.K12.FL.US","351","Non 250 Days","0031","BUSHNELL ELEMEN","19-20 Active Plan","HEAD CUSTODIAN","CUSTODIAN","GOODWIN KELLY MARGARET","GOODWKEL000","TAYLOR, TRACY B","TRACY B TAYLOR","8:00","07/01/2019","06/30/2020","CLASSIFIED",40,32]
["HARRETIN000","T01113","TINA","RENEE","HARRELL","tina.harrell@sumter.k12.fl.us","370","Non 186 Days","0171","SOUTH SUMTER HI","19-20 Active Plan","PARAPROFESSIONAL ESE AGES 6-","ESE PARA","MCKINNEY CHRISTINA JOHNSON","MCKINCHR001","HARRELL, TINA RENEE","TINA RENEE HARRELL","7:00","08/12/2019","05/29/2020","CLASSIFIED",35,28]
["GOBLETER000","T01515","TERRIE","L","GOBLE","Terrie.Goble@SUMTER.K12.FL.US","371","Non 196 Days","0051","WEBSTER ELEMENT","19-20 Active Plan","PARAPROFESSIONAL  PK","TITLE I/ PRE K LEAD","SHEA MELYNDA BROOKE","SHEA MEL000","GOBLE, TERRIE L","TERRIE L GOBLE","8:00","08/02/2019","06/02/2020","CLASSIFIED",40,32]
["MCMULTEE000","T01592","TEETER","LAMONDE","MCMULLEN","Teeter.Mcmullen@SUMTER.K12.FL.US","151","Adm 250 Days","0191","ADULT EDUCATION","19-20 Active Plan","PRINCIPAL-ADULT ED","PRINCIPAL","SHIRLEY RICHARD ALLEN, JR","SHIRLRIC001","MCMULLEN, TEETER LAMONDE","TEETER LAMONDE MCMULLEN","8:00","10/11/2019","06/30/2020","ADMINISTRATION",40,32]
["SKIPPTAM000","T01889","TAMMY","L","SKIPPER","tammy.skipper@sumter.k12.fl.us","359","Non 191 Days","0042","SOUTH SUMTER MI","19-20 Active Plan","MANAGER  FOOD SER","FOOD SERVICE","SUBER WILLIAM ERIC","SUBERWIL000","SKIPPER, TAMMY L","TAMMY L SKIPPER","8:00","08/07/2019","06/02/2020","CLASSIFIED",40,32]
["SOUTHTER000","T01988","TERESA","LYNN","SOUTHERN","Teresa.Southern@SUMTER.K12.FL.US","370","Non 186 Days","0051","WEBSTER ELEMENT","19-20 Active Plan","LAB ASSISTANT","TITLE I LAB ASSISTANT","SHEA MELYNDA BROOKE","SHEA MEL000","SOUTHERN, TERESA LYNN","TERESA LYNN SOUTHERN","7:24","08/12/2019","05/29/2020","CLASSIFIED",37,29.6]
["HARRITIN000","T02036","TINA","P","HARRIS-PITTS","Tina.Harris-pitts@SUMTER.K12.FL.US","370","Non 186 Days","0031","BUSHNELL ELEMEN","19-20 Active Plan","PARAPROFESSIONAL ESE AGES 6-","ESE PARA","GOODWIN KELLY MARGARET","GOODWKEL000","HARRIS-PITTS, TINA P","TINA P HARRIS-PITTS","7:00","10/14/2019","05/29/2020","CLASSIFIED",35,28]
["GREENTIA000","T02106","TIAMAYA","SHEDRIKA","GREEN","Tiamaya.Green@SUMTER.K12.FL.US","256","Ins 198 Days","0102","WILDWOOD ELEMEN","19-20 Active Plan","TEACHER  FOURTH","CLASS SIZE TEACHER","TEMPLE JOHN P","TEMPLJOH000","GREEN, TIAMAYA SHEDRIKA","TIAMAYA SHEDRIKA GREEN","7:36","10/25/2019","06/02/2020","INSTRUCTIONAL",38,30.4]
["MERRITON000","T02301","TONYA","L","MERRITT","Tonya.Merritt@SUMTER.K12.FL.US","256","Ins 198 Days","0181","LAKE PANASOFFKE","19-20 Active Plan","TEACHER  COMBIN-E","GENERAL FUND TEACHER","WADE NICOLE LYNN","WADE NIC000","MERRITT, TONYA L","TONYA L MERRITT","7:36","08/02/2019","06/02/2020","INSTRUCTIONAL",38,30.4]
["TRUESTRA000","T02434","TRACIE","DAWN","TRUESDALE","Tracie.Truesdale@SUMTER.K12.FL.US","351","Non 250 Days","9006","TECHNOLOGY DEPT","19-20 Active Plan","COMPU NET SPEC  IT","TECHNICIAN COMPUTER NETWORK","TRICK DAVID E","TRICKDAV000","TRUESDALE, TRACIE DAWN","TRACIE DAWN TRUESDALE","8:00","07/01/2019","06/30/2020","CLASSIFIED",40,32]
["TUBERTHE000","T02482","THERESA","A","TUBERVILLE","Theresa.Tuberville@SUMTER.K12.FL.US","357","Non 188 Days","0181","LAKE PANASOFFKE","19-20 Active Plan","FOOD SER WORKER","FOOD SERVICE","SUBER WILLIAM ERIC","SUBERWIL000","TUBERVILLE, THERESA A","THERESA A TUBERVILLE","7:00","08/09/2019","06/01/2020","CLASSIFIED",35,28]
["DELGOTIN000","T02656","TINA","MARIE","DELGORIO","Tina.Delgorio@SUMTER.K12.FL.US","256","Ins 198 Days","0102","WILDWOOD ELEMEN","19-20 Active Plan","TEACHER  KG","GENERAL FUND TEACHER","TEMPLE JOHN P","TEMPLJOH000","DELGORIO, TINA MARIE","TINA MARIE DELGORIO","7:36","08/02/2019","06/02/2020","INSTRUCTIONAL",38,30.4]
["WOODETHE000","T02838","THERESA","M","WOODEND","Theresa.Woodend@SUMTER.K12.FL.US","256","Ins 198 Days","0051","WEBSTER ELEMENT","19-20 Active Plan","TEACHER  VE","ESE TEACHER","SHEA MELYNDA BROOKE","SHEA MEL000","WOODEND, THERESA M","THERESA M WOODEND","7:36","08/02/2019","06/02/2020","INSTRUCTIONAL",38,30.4]
["THOMATIN000","T02978","TINA","MARIE","THOMAS","Tina.Thomas@SUMTER.K12.FL.US","256","Ins 198 Days","0031","BUSHNELL ELEMEN","19-20 Active Plan","TEACHER  VE","ESE TEACHER","GOODWIN KELLY MARGARET","GOODWKEL000","THOMAS, TINA MARIE","TINA MARIE THOMAS","7:36","08/02/2019","06/02/2020","INSTRUCTIONAL",38,30.4]
["OXENDTAN000","T03201","TANYA","CHRISTINE","OXENDINE","Tanya.Oxendine@Sumter.k12.fl.us","370","Non 186 Days","0031","BUSHNELL ELEMEN","19-20 Active Plan","PARAPROFESSIONAL ESE AGES 6-","ESE PARA","GOODWIN KELLY MARGARET","GOODWKEL000","OXENDINE, TANYA CHRISTINE","TANYA CHRISTINE OXENDINE","7:00","08/12/2019","05/29/2020","CLASSIFIED",35,28]
["WARD TIF000","T03259","TIFFANY","ANNETTE","WARD","Tiffany.Ward@SUMTER.K12.FL.US","256","Ins 198 Days","0031","BUSHNELL ELEMEN","19-20 Active Plan","TEACHER  FIFTH","GENERAL FUND TEACHER","GOODWIN KELLY MARGARET","GOODWKEL000","WARD, TIFFANY ANNETTE","TIFFANY ANNETTE WARD","7:36","08/02/2019","06/02/2020","INSTRUCTIONAL",38,30.4]
["WALLETAR000","T03377","TARIN","MARISA","WALLEN","tarin.wallen@sumter.k12.fl.us","256","Ins 198 Days","0042","SOUTH SUMTER MI","19-20 Active Plan","SP/LANG PATH","SPEECH/LANGUAGE PATH","CAMP JOEL S","CAMP JOE000","WALLEN, TARIN MARISA","TARIN MARISA WALLEN","8:00","08/02/2019","06/02/2020","INSTRUCTIONAL",40,32]
["JONESTRA000","T03405","TRACY","RENEE","JONES","Tracy.Jones@SUMTER.K12.FL.US","451","Con 250 Days","0102","WILDWOOD ELEMEN","19-20 Active Plan","SEC  SCH","SECRETARY SCHOOL","TEMPLE JOHN P","TEMPLJOH000","JONES, TRACY RENEE","TRACY RENEE JONES","8:00","07/01/2019","06/30/2020","CONFIDENTIAL/CLASSIFIED",40,32]
["MIMS TER000","T03414","TERRI","L","MIMS","terri.mims@sumter.k12.fl.us","358","Non 186 Days","9004","TRANSPORTATION","19-20 Active Plan","BUS DRIVER","BUS DRIVER","FOOTE MICHAEL T","FOOTEMIC000","MIMS, TERRI L","TERRI L MIMS","4:00","08/12/2019","05/29/2020","CLASSIFIED",20,16]
["STIEFTAB000","T03552","TABITHA","NICOLE","STIEFEL","Tabitha.Stiefel@SUMTER.K12.FL.US","651","CNU 250 Days","9006","TECHNOLOGY DEPT","19-20 Active Plan","ADMIN ASST IT","COMPUTER SERVER ASSISTANT","TRICK DAVID E","TRICKDAV000","STIEFEL, TABITHA NICOLE","TABITHA NICOLE STIEFEL","8:00","07/01/2019","06/30/2020","NON-INSTRUCT NO BARGAINING UNI",40,32]
["KELLYTIM000","T03800","TIMOTHY","E","KELLY","Timothy.Kelly@sumter.k12.fl.us","651","CNU 250 Days","9001","COUNTY OFFICE","19-20 Active Plan","COMPU PROG  IT","COMPUTER PROGRAMMER","HUFF RICHARD BRYAN","HUFF RIC000","KELLY, TIMOTHY E","TIMOTHY E KELLY","8:00","07/01/2019","06/30/2020","NON-INSTRUCT NO BARGAINING UNI",40,32]
["DAVIETRA000","T03834","TRAVIS","L","DAVIES","travis.davies@sumter.k12.fl.us","651","CNU 250 Days","9005","MAINTENANCE CEN","19-20 Active Plan","MANAGER, MAINTENANCE","MAINTENANCE CHIEF","SUBER WILLIAM ERIC","SUBERWIL000","DAVIES, TRAVIS L","TRAVIS L DAVIES","8:00","07/01/2019","06/30/2020","NON-INSTRUCT NO BARGAINING UNI",40,32]
["WOODATER000","T04192","TERRY","D","WOODARD","Terry.Woodard@sumter.k12.fl.us","351","Non 250 Days","9005","MAINTENANCE CEN","19-20 Active Plan","MAIN WK","MAINTENANCE WORKER","SUBER WILLIAM ERIC","SUBERWIL000","WOODARD, TERRY D","TERRY D WOODARD","8:00","11/01/2019","06/30/2020","CLASSIFIED",40,32]
["STONETIM000","T04197","TIMOTHY","A","STONE","Timothy.Stone@sumter.k12.fl.us","351","Non 250 Days","9004","TRANSPORTATION","19-20 Active Plan","MECHANIC","MECHANIC","FOOTE MICHAEL T","FOOTEMIC000","STONE, TIMOTHY A","TIMOTHY A STONE","8:00","07/01/2019","06/30/2020","CLASSIFIED",40,32]
["GANDYTRA000","T04224","TRACY","LOUISE","GANDY","Tracy.Gandy@Sumter.k12.fl.us","256","Ins 198 Days","0102","WILDWOOD ELEMEN","19-20 Active Plan","TEACHER  FOURTH","CLASS SIZE TEACHER","TEMPLE JOHN P","TEMPLJOH000","GANDY, TRACY LOUISE","TRACY LOUISE GANDY","7:36","08/02/2019","06/02/2020","INSTRUCTIONAL",38,30.4]
["CHILDTRA000","T04324","TRAVIS","PRESTON","CHILDS","Travis.Childs@Sumter.k12.fl.us","256","Ins 198 Days","0161","WILDWOOD M/H","19-20 Active Plan","TEACHER  SCIENCE-SH","GENERAL FUND TEACHER","GRAYBEAL JERRY DUANE","GRAYBJER000","CHILDS, TRAVIS PRESTON","TRAVIS PRESTON CHILDS","7:36","08/02/2019","06/02/2020","INSTRUCTIONAL",38,30.4]
["DOUGLTER000","T04335","TERI","LEIGH","DOUGLAS","Teri.Douglas@SUMTER.K12.FL.US","256","Ins 198 Days","0031","BUSHNELL ELEMEN","19-20 Active Plan","TEACHER  SECOND","CLASS SIZE TEACHER","GOODWIN KELLY MARGARET","GOODWKEL000","DOUGLAS, TERI LEIGH","TERI LEIGH DOUGLAS","7:36","08/02/2019","06/02/2020","INSTRUCTIONAL",38,30.4]
["ANDESTHO000","T04370","THOMAS","WALTER","ANDES","THOMAS.ANDES@sumter.k12.fl.us","372","Non 220A Days","9006","TECHNOLOGY DEPT","19-20 Active Plan","TECH  IT","TECHNICIAN TECH SUPPORT","TRICK DAVID E","TRICKDAV000","ANDES II, THOMAS WALTER","THOMAS WALTER ANDES II","8:00","07/12/2019","06/12/2020","CLASSIFIED",40,32]
["YATESTIN000","T04415","TINA","MARIE","YATES","TINA.YATES@SUMTER.K12.FL.US","370","Non 186 Days","0042","SOUTH SUMTER MI","19-20 Active Plan","PARAPROFESSIONAL  M/J","TITLE I CHOICE PARA","CAMP JOEL S","CAMP JOE000","YATES, TINA MARIE","TINA MARIE YATES","7:30","09/04/2019","05/29/2020","CLASSIFIED",37.5,30]
["FERRETAM000","T04439","TAMI","JO","FERRELL","tami.ferrell@sumter.k12.fl.us","355","Non 200 Days","0161","WILDWOOD M/H","19-20 Active Plan","CLERK  SCH","CLERK SCHOOL","GRAYBEAL JERRY DUANE","GRAYBJER000","FERRELL, TAMI JO","TAMI JO FERRELL","7:00","08/01/2019","06/04/2020","CLASSIFIED",35,28]
["KNIGHTAN000","T04596","TANYA","AARON","KNIGHT","tanya.knight@sumter.k12.fl.us","370","Non 186 Days","0171","SOUTH SUMTER HI","19-20 Active Plan","PARAPROFESSIONAL ESE AGES 6-","ESE PARA","MCKINNEY CHRISTINA JOHNSON","MCKINCHR001","KNIGHT, TANYA AARON","TANYA AARON KNIGHT","7:00","08/12/2019","05/29/2020","CLASSIFIED",35,28]
["DEWEYTER000","T04792","TERRI","J","DEWEY","Terri.Dewey@sumter.k12.fl.us","256","Ins 198 Days","0031","BUSHNELL ELEMEN","19-20 Active Plan","TEACHER  KG","GENERAL FUND TEACHER","GOODWIN KELLY MARGARET","GOODWKEL000","DEWEY, TERRI J","TERRI J DEWEY","7:36","08/02/2019","06/02/2020","INSTRUCTIONAL",38,30.4]
["SCROGTAY000","T04825","TAYLOR","NOELLE","SCROGGINS","Taylor.Scroggins@sumter.k12.fl.us","370","Non 186 Days","0181","LAKE PANASOFFKE","19-20 Active Plan","PARAPROFESSIONAL  ELEM","GENERAL FUND PARA","WADE NICOLE LYNN","WADE NIC000","SCROGGINS, TAYLOR NOELLE","TAYLOR NOELLE SCROGGINS","7:00","08/12/2019","05/29/2020","CLASSIFIED",35,28]
["ADAMSTAB000","T04848","TABITHA","JADE","ADAMS","tabitha.adams@sumter.k12.fl.us","370","Non 186 Days","0102","WILDWOOD ELEMEN","19-20 Active Plan","PARAPROFESSIONAL ESE AGES 6-","ESE PARA","TEMPLE JOHN P","TEMPLJOH000","ADAMS, TABITHA JADE","TABITHA JADE ADAMS","7:00","08/12/2019","05/29/2020","CLASSIFIED",35,28]
["KLINETHO000","T04933","THOMAS","E","KLINE","thomas.kline@sumter.k12.fl.us","351","Non 250 Days","0102","WILDWOOD ELEMEN","19-20 Active Plan","CUSTODIAN","CUSTODIAN","TEMPLE JOHN P","TEMPLJOH000","KLINE, THOMAS E","THOMAS E KLINE","8:00","07/01/2019","06/30/2020","CLASSIFIED",40,32]
["TERRYTRI000","T04941","TRINA","LYNN","TERRY","Trina.Terry@sumter.k12.fl.us","451","Con 250 Days","9001","COUNTY OFFICE","19-20 Active Plan","SEC  INS/CUR","SECRETARY INS/CURRICULUM","MOFFITT DEBORAH DEON","MOFFIDEB000","TERRY, TRINA LYNN","TRINA LYNN TERRY","8:00","12/09/2019","06/30/2020","CONFIDENTIAL/CLASSIFIED",40,32]
["STEVETIF000","T05005","TIFFANY","YEVETTE","STEVENS","Tiffany.Stevens@sumter.k12.fl.us","256","Ins 198 Days","9008","ESE DEPARTMENT","19-20 Active Plan","TEACHER VI - Visually Impaired","ESE TEACHER","DUSTIN KATHERINE M","DUSTIKAT000","STEVENS, TIFFANY YEVETTE","TIFFANY YEVETTE STEVENS","7:36","08/02/2019","06/02/2020","INSTRUCTIONAL",38,30.4]
["COCKATRI000","T05095","TRISHA","ANN","COCKAYNE","trisha.cockayne@sumter.k12.fl.us","256","Ins 198 Days","0051","WEBSTER ELEMENT","19-20 Active Plan","TEACHER  FIRST","GENERAL FUND TEACHER","SHEA MELYNDA BROOKE","SHEA MEL000","COCKAYNE, TRISHA ANN","TRISHA ANN COCKAYNE","7:36","08/02/2019","06/02/2020","INSTRUCTIONAL",38,30.4]
["LEWISTAM000","T05122","TAMPRESS","ANN","LEWIS","tampress.lewis@sumter.k12.fl.us","370","Non 186 Days","0102","WILDWOOD ELEMEN","19-20 Active Plan","PARAPROFESSIONAL ESE AGES 6-","ESE PARA","TEMPLE JOHN P","TEMPLJOH000","LEWIS, TAMPRESS ANN","TAMPRESS ANN LEWIS","7:00","08/12/2019","05/29/2020","CLASSIFIED",35,28]
["BROWNTRA000","T05176","TRACEY","DENISE","BROWN","tracey.brown@sumter.k12.fl.us","256","Ins 198 Days","0042","SOUTH SUMTER MI","19-20 Active Plan","TEACHER  SOC ST-M/J","CLASS SIZE TEACHER","CAMP JOEL S","CAMP JOE000","BROWN, TRACEY DENISE","TRACEY DENISE BROWN","7:36","01/21/2020","06/02/2020","INSTRUCTIONAL",38,30.4]
["VANDETER000","T05203","TERRI","L","VANDERSLICE","terri.vanderslice@sumter.k12.fl.us","370","Non 186 Days","0161","WILDWOOD M/H","19-20 Active Plan","PARAPROFESSIONAL ESE AGES 6-","ESE PARA","GRAYBEAL JERRY DUANE","GRAYBJER000","VANDERSLICE, TERRI L","TERRI L VANDERSLICE","7:00","08/12/2019","05/29/2020","CLASSIFIED",{"$f":"+R834*24*5","v":35},{"$f":"+R834*24*4","v":28}]
["WHITETIN000","T05249","TINA","MARIE","WHITE","tina.white@sumter.k12.fl.us","370","Non 186 Days","0102","WILDWOOD ELEMEN","19-20 Active Plan","INTERPRETER","INTERPRETER","TEMPLE JOHN P","TEMPLJOH000","WHITE, TINA MARIE","TINA MARIE WHITE","7:00","08/12/2019","05/29/2020","CLASSIFIED",35,28]
["HEALYTRA000","T05263","TRACI","S","HEALY","traci.healy@sumter.k12.fl.us","256","Ins 198 Days","0042","SOUTH SUMTER MI","19-20 Active Plan","TEACHER  MATH-M/J","CLASS SIZE TEACHER","CAMP JOEL S","CAMP JOE000","HEALY, TRACI S","TRACI S HEALY","7:36","08/02/2019","06/02/2020","INSTRUCTIONAL",38,30.4]
["BROTHTIN000","T05281","TINA","LYNN","BROTHERS","tina.brothers@sumter.k12.fl.us","370","Non 186 Days","0181","LAKE PANASOFFKE","19-20 Active Plan","PARAPROFESSIONAL  PK","IDEA/ PRE K PARA","WADE NICOLE LYNN","WADE NIC000","BROTHERS, TINA LYNN","TINA LYNN BROTHERS","7:00","01/08/2020","05/29/2020","CLASSIFIED",35,28]
["SIWY THE000","T05313","THEODORE","E","SIWY","theodore.siwy@sumter.k12.fl.us","358","Non 186 Days","9004","TRANSPORTATION","19-20 Active Plan","BUS DRIVER","BUS DRIVER","FOOTE MICHAEL T","FOOTEMIC000","SIWY JR, THEODORE E","THEODORE E SIWY JR","5:00","01/13/2020","05/29/2020","CLASSIFIED",25,20]
["ARMSTTAM000","T05330","TAMARA","EPPLEY","ARMSTRONG","tamara.armstrong@sumter.k12.fl.us","370","Non 186 Days","3001","SUMTER PREP","19-20 Active Plan","PARAPROFESSIONAL ESE AGES 6-","ESE PARA","PRESLEY JAMES CHESTER","PRESLJAM000","ARMSTRONG, TAMARA EPPLEY","TAMARA EPPLEY ARMSTRONG","7:00","08/29/2019","05/29/2020","CLASSIFIED",35,28]
["ALLENTEL000","T05355","TELISA","KESECKER","ALLEN",null,"358","Non 186 Days","9004","TRANSPORTATION","19-20 Active Plan","BUS DRIVER","BUS DRIVER","FOOTE MICHAEL T","FOOTEMIC000","ALLEN, TELISA KESECKER","TELISA KESECKER ALLEN","4:45","08/12/2019","04/07/2020","CLASSIFIED",23.75,19]
["LAKE TAY001","T05375","TAYLOR","AMBER","LAKE","taylor.lake@sumter.k12.fl.us","370","Non 186 Days","0181","LAKE PANASOFFKE","19-20 Active Plan","FOOD SER AIDE","FOOD SERVICE","SUBER WILLIAM ERIC","SUBERWIL000","LAKE, TAYLOR AMBER","TAYLOR AMBER LAKE","4:00","08/26/2019","05/29/2020","CLASSIFIED",20,16]
["ALLISTHO001","T05399","THOMAS","R","ALLISON","thomas.allison@sumter.k12.fl.us","256","Ins 198 Days","0171","SOUTH SUMTER HI","19-20 Active Plan","TEACHER  SCIENCE-SH","GENERAL FUND TEACHER","MCKINNEY CHRISTINA JOHNSON","MCKINCHR001","ALLISON JR, THOMAS R","THOMAS R ALLISON JR","7:36","08/02/2019","06/02/2020","INSTRUCTIONAL",38,30.4]
["WINDETAY000","T05424","TAYLOR","LOGAN","WINDER","taylor.winder@sumter.k12.fl.us","256","Ins 198 Days","0171","SOUTH SUMTER HI","19-20 Active Plan","TEACHER  MATH-SH","GENERAL FUND TEACHER","MCKINNEY CHRISTINA JOHNSON","MCKINCHR001","WINDER, TAYLOR LOGAN","TAYLOR LOGAN WINDER","7:36","08/02/2019","06/02/2020","INSTRUCTIONAL",38,30.4]
["MITCHTER000","T05446","TERESA","A","MITCHELL","teresa.mitchell@sumter.k12.fl.us","256","Ins 198 Days","0102","WILDWOOD ELEMEN","19-20 Active Plan","TEACHER  KG","CLASS SIZE TEACHER","TEMPLE JOHN P","TEMPLJOH000","MITCHELL, TERESA A","TERESA A MITCHELL","7:36","11/18/2019","06/02/2020","INSTRUCTIONAL",38,30.4]
["DEAN TER000","T05470","TERRIE","ANN","DEAN","terrie.dean@sumter.k12.fl.us","370","Non 186 Days","0102","WILDWOOD ELEMEN","19-20 Active Plan","PARAPROFESSIONAL ESE AGES 6-","ESE PARA","TEMPLE JOHN P","TEMPLJOH000","DEAN, TERRIE ANN","TERRIE ANN DEAN","7:00","09/30/2019","05/29/2020","CLASSIFIED",35,28]
["SMITHTAM002","T05485","TAMMY","L","SMITH","tammy.smith@SUMTER.K12.FL.US","ADULT","ADULT ED","0191","ADULT EDUCATION",null,null,null,"FERGUSON CASEY LOREN","FERGUCAS000","SMITH, TAMMY L","TAMMY L SMITH",null,null,null,null,0,0]
["TURNETIM000","T05486","TIMOTHY","DALE","TURNER","timothy.turner@sumter.k12.fl.us","256","Ins 198 Days","0161","WILDWOOD M/H","19-20 Active Plan","TEACHER  BUS TECH ED","GENERAL FUND TEACHER","GRAYBEAL JERRY DUANE","GRAYBJER000","TURNER, TIMOTHY DALE","TIMOTHY DALE TURNER","7:36","12/02/2019","06/02/2020","INSTRUCTIONAL",38,30.4]
["MURPHTHO000","T05490","THOMAS","RICHMOND","MURPHY","thomas.murphy@sumter.k12.fl.us","351","Non 250 Days","0102","WILDWOOD ELEMEN","19-20 Active Plan","CUSTODIAN","CUSTODIAN","TEMPLE JOHN P","TEMPLJOH000","MURPHY, THOMAS RICHMOND","THOMAS RICHMOND MURPHY","8:00","12/05/2019","06/30/2020","CLASSIFIED",40,32]
["UKEJEUCH000","U05260","UCHE","PEARL","UKEJE","uche.ukeje@sumter.k12.fl.us","265","Ins 212B Days","0171","SOUTH SUMTER HI","19-20 Active Plan","COUNSELOR-SH","COUNSELOR","MCKINNEY CHRISTINA JOHNSON","MCKINCHR001","UKEJE, UCHE PEARL","UCHE PEARL UKEJE","7:36","07/30/2019","06/17/2020","INSTRUCTIONAL",38,30.4]
["RICKEVER000","V00224","VERDEL","V","RICKER","Verdel.Ricker@SUMTER.K12.FL.US","256","Ins 198 Days","0102","WILDWOOD ELEMEN","19-20 Active Plan","BEHAVIOR SPEC","IDEA/ GF BEHAVIOR SPECIALIST","DUSTIN KATHERINE M","DUSTIKAT000","RICKER, VERDEL V","VERDEL V RICKER","7:36","08/02/2019","06/02/2020","INSTRUCTIONAL",38,30.4]
["FUSSEVIC000","V00802","VICTORIA","MARIE","FUSSELL","Victoria.Fussell@SUMTER.K12.FL.US","370","Non 186 Days","0102","WILDWOOD ELEMEN","19-20 Active Plan","PARAPROFESSIONAL  ELEM","SAI PARA","TEMPLE JOHN P","TEMPLJOH000","FUSSELL, VICTORIA MARIE","VICTORIA MARIE FUSSELL","7:00","08/12/2019","05/29/2020","CLASSIFIED",35,28]
["AUSTIVER000","V01205","VERNELLMA",null,"AUSTIN","Vernellma.Austin@SUMTER.K12.FL.US","256","Ins 198 Days","0031","BUSHNELL ELEMEN","19-20 Active Plan","TEACHER  THIRD","GENERAL FUND TEACHER","GOODWIN KELLY MARGARET","GOODWKEL000","AUSTIN, VERNELLMA","VERNELLMA AUSTIN","7:36","08/02/2019","06/02/2020","INSTRUCTIONAL",38,30.4]
["DEVEAVON000","V01667","VONCIA","JANAY","DEVEAU","Voncia.Deveau@SUMTER.K12.FL.US","256","Ins 198 Days","0102","WILDWOOD ELEMEN","19-20 Active Plan","TEACHER  THIRD","GENERAL FUND TEACHER","TEMPLE JOHN P","TEMPLJOH000","DEVEAU, VONCIA JANAY","VONCIA JANAY DEVEAU","7:36","08/02/2019","06/02/2020","INSTRUCTIONAL",38,30.4]
["SOTO VIR000","V02360","VIRGINIA","MAE","SOTO","virginia.soto@sumter.k12.fl.us","359","Non 191 Days","0102","WILDWOOD ELEMEN","19-20 Active Plan","MANAGER  FOOD SER","FOOD SERVICE","SUBER WILLIAM ERIC","SUBERWIL000","SOTO, VIRGINIA MAE","VIRGINIA MAE SOTO","8:00","08/07/2019","06/02/2020","CLASSIFIED",40,32]
["MAIREVAL000","V02922","VALERY","ANN","MAIRENA","Valery.Mairena@SUMTER.K12.FL.US","256","Ins 198 Days","0042","SOUTH SUMTER MI","19-20 Active Plan","TEACHER READ-M/J","GENERAL FUND TEACHER","CAMP JOEL S","CAMP JOE000","MAIRENA, VALERY ANN","VALERY ANN MAIRENA","7:36","08/02/2019","06/02/2020","INSTRUCTIONAL",38,30.4]
["ARMSTVAL000","V04949","VALERIE",null,"ARMSTRONG","Valerie.Armstrong@sumter.k12.fl.us","256","Ins 198 Days","0161","WILDWOOD M/H","19-20 Active Plan","TEACHER  LANG AR-M/J","GENERAL FUND TEACHER","GRAYBEAL JERRY DUANE","GRAYBJER000","ARMSTRONG, VALERIE","VALERIE ARMSTRONG","7:36","08/02/2019","06/02/2020","INSTRUCTIONAL",38,30.4]
["ROSS VER000","V05015","VERONICA","LORRAINE","ROSS","Veronica.Ross@sumter.k12.fl.us","371","Non 196 Days","0031","BUSHNELL ELEMEN","19-20 Active Plan","PARAPROFESSIONAL  PK","TITLE I/ PRE K LEAD","GOODWIN KELLY MARGARET","GOODWKEL000","ROSS, VERONICA LORRAINE","VERONICA LORRAINE ROSS","8:00","08/02/2019","06/02/2020","CLASSIFIED",40,32]
["BELLAVAR000","V05044","VARTORI","VANTELL","BELLAMY","vartori.bellamy@sumter.k12.fl.us","351","Non 250 Days","0171","SOUTH SUMTER HI","19-20 Active Plan","CUSTODIAN","CUSTODIAN","MCKINNEY CHRISTINA JOHNSON","MCKINCHR001","BELLAMY, VARTORI VANTELL","VARTORI VANTELL BELLAMY","8:00","07/01/2019","06/30/2020","CLASSIFIED",40,32]
["BROWNVIN001","V05229","VINCENT",null,"BROWN","vincent.brown@sumter.k12.fl.us","256","Ins 198 Days","3001","SUMTER PREP","19-20 Active Plan","TEACHER  SOC ST-SH","GENERAL FUND TEACHER","PRESLEY JAMES CHESTER","PRESLJAM000","BROWN, VINCENT","VINCENT BROWN","7:36","08/02/2019","06/02/2020","INSTRUCTIONAL",38,30.4]
["WARREVIC000","V05282","VICTORIA","LEE","WARREN","victoria.warren@sumter.k12.fl.us","370","Non 186 Days","0181","LAKE PANASOFFKE","19-20 Active Plan","PARAPROFESSIONAL ESE AGES 6-","ESE PARA","WADE NICOLE LYNN","WADE NIC000","WARREN, VICTORIA LEE","VICTORIA LEE WARREN","7:00","08/12/2019","05/29/2020","CLASSIFIED",35,28]
["D'HAIVIG000","V05503","VIGIL",null,"D'HAITI","vigil.dhaiti@sumter.k12.fl.us","256","Ins 198 Days","0051","WEBSTER ELEMENT","19-20 Active Plan","TEACHER  FIFTH","CLASS SIZE TEACHER","SHEA MELYNDA BROOKE","SHEA MEL000","D'HAITI, VIGIL","VIGIL D'HAITI","7:36","01/13/2020","06/02/2020","INSTRUCTIONAL",38,30.4]
["TOMBEWAR000","W01443","WARREN","J","TOMBERLIN","Warren.Tomberlin@SUMTER.K12.FL.US","256","Ins 198 Days","0042","SOUTH SUMTER MI","19-20 Active Plan","TEACHER  SOC ST-M/J","GENERAL FUND TEACHER","CAMP JOEL S","CAMP JOE000","TOMBERLIN, WARREN J","WARREN J TOMBERLIN","7:36","08/02/2019","06/02/2020","INSTRUCTIONAL",38,30.4]
["SUBERWIL000","W02371","WILLIAM","ERIC","SUBER","William.Suber@SUMTER.K12.FL.US","151","Adm 250 Days","9001","COUNTY OFFICE","19-20 Active Plan","DIR FACIL","DIRECTOR FACILITIES","SMITH DEBORAH WALTERS","SMITHDEB000","SUBER, WILLIAM ERIC","WILLIAM ERIC SUBER","8:00","07/01/2019","06/30/2020","ADMINISTRATION",40,32]
["STEVEWEN000","W02646","WENDY","LEE","STEVENS","Wendy.Stevens@SUMTER.K12.FL.US","370","Non 186 Days","0031","BUSHNELL ELEMEN","19-20 Active Plan","PARAPROFESSIONAL ESE AGES 6-","ESE PARA","GOODWIN KELLY MARGARET","GOODWKEL000","STEVENS, WENDY LEE","WENDY LEE STEVENS","7:00","08/12/2019","05/29/2020","CLASSIFIED",35,28]
["SOVERWEN000","W03234","WENDI","ELIZABETH","SOVERCOOL","Wendi.Sovercool@Sumter.k12.fl.us","256","Ins 198 Days","0181","LAKE PANASOFFKE","19-20 Active Plan","TEACHER  COMBIN-E","GENERAL FUND TEACHER","WADE NICOLE LYNN","WADE NIC000","SOVERCOOL, WENDI ELIZABETH","WENDI ELIZABETH SOVERCOOL","7:36","08/02/2019","06/02/2020","INSTRUCTIONAL",38,30.4]
["DANIEWES000","W03613","WESTAH","CHRISTIAN","DANIELS","Westah.Daniels@SUMTER.K12.FL.US","253","Ins 218 Days","0181","LAKE PANASOFFKE","19-20 Active Plan","STAFFING SPEC","STAFFING SPECIALIST","WADE NICOLE LYNN","WADE NIC000","DANIELS, WESTAH CHRISTIAN","WESTAH CHRISTIAN DANIELS","8:00","07/19/2019","06/16/2020","INSTRUCTIONAL",40,32]
["GOBLEWIL000","W03664","WILLIAM","GREGORY","GOBLE","William.Goble@Sumter.k12.fl.us","351","Non 250 Days","9005","MAINTENANCE CEN","19-20 Active Plan","MAIN WK","MAINTENANCE WORKER","SUBER WILLIAM ERIC","SUBERWIL000","GOBLE, WILLIAM GREGORY","WILLIAM GREGORY GOBLE","8:00","07/01/2019","06/30/2020","CLASSIFIED",40,32]
["OVITTWEN000","W03855","WENDY","LEE","OVITT","Wendy.Ovitt@sumter.k12.fl.us","357","Non 188 Days","0171","SOUTH SUMTER HI","19-20 Active Plan","FOOD SER WORKER","FOOD SERVICE","SUBER WILLIAM ERIC","SUBERWIL000","OVITT, WENDY LEE","WENDY LEE OVITT","7:00","08/09/2019","06/01/2020","CLASSIFIED",35,28]
["FIELDWAL000","W04153","WALTER","BURTON","FIELD","Walter.Field@sumter.k12.fl.us","351","Non 250 Days","0042","SOUTH SUMTER MI","19-20 Active Plan","HEAD CUSTODIAN","CUSTODIAN","CAMP JOEL S","CAMP JOE000","FIELD, WALTER BURTON","WALTER BURTON FIELD","8:00","07/01/2019","06/30/2020","CLASSIFIED",40,32]
["WILSOWIL000","W04173","WILLIAM","JEFFERY","WILSON","william.wilson@sumter.k12.fl.us","358","Non 186 Days","9004","TRANSPORTATION","19-20 Active Plan","BUS DRIVER","BUS DRIVER","FOOTE MICHAEL T","FOOTEMIC000","WILSON, WILLIAM JEFFERY","WILLIAM JEFFERY WILSON","4:00","08/12/2019","05/29/2020","CLASSIFIED",20,16]
["URIBEWIL000","W04683","WILSON","A","URIBE","Wilson.Uribe@sumter.k12.fl.us","358","Non 186 Days","9004","TRANSPORTATION","19-20 Active Plan","BUS DRIVER","BUS DRIVER","FOOTE MICHAEL T","FOOTEMIC000","URIBE, WILSON A","WILSON A URIBE","5:00","08/12/2019","05/29/2020","CLASSIFIED",25,20]
["VAN EWEN000","W04997","WENDY","ANN","VAN ERT","Wendy.VanErt@sumter.k12.fl.us","256","Ins 198 Days","0102","WILDWOOD ELEMEN","19-20 Active Plan","TEACHER  SECOND","GENERAL FUND TEACHER","TEMPLE JOHN P","TEMPLJOH000","VAN ERT, WENDY ANN","WENDY ANN VAN ERT","7:36","08/02/2019","06/02/2020","INSTRUCTIONAL",38,30.4]
["FERREWAR001","W05489","WARREN","WILLIAM","FERRELL","warren.ferrell@sumter.k12.fl.us","351","Non 250 Days","0161","WILDWOOD M/H","19-20 Active Plan","CUSTODIAN","CUSTODIAN","GRAYBEAL JERRY DUANE","GRAYBJER000","FERRELL, WARREN WILLIAM","WARREN WILLIAM FERRELL","6:00","12/04/2019","06/30/2020","CLASSIFIED",30,24]
["PRESLYOL000","Y04303","YOLANDA","FELICIA","PRESLEY","Yolanda.Presley@Sumter.k12.fl.us","256","Ins 198 Days","3001","SUMTER PREP","19-20 Active Plan","TEACHER  VE","ESE TEACHER","PRESLEY JAMES CHESTER","PRESLJAM000","PRESLEY, YOLANDA FELICIA","YOLANDA FELICIA PRESLEY","7:36","08/02/2019","06/02/2020","INSTRUCTIONAL",38,30.4]
["HAMPTYVO000","Y04838","YVONNE","MARIE","HAMPTON","yvonne.hampton@sumter.k12.fl.us","358","Non 186 Days","9004","TRANSPORTATION","19-20 Active Plan","BUS DRIVER","BUS DRIVER","FOOTE MICHAEL T","FOOTEMIC000","HAMPTON, YVONNE MARIE","YVONNE MARIE HAMPTON","4:00","11/12/2019","05/29/2020","CLASSIFIED",20,16]
["SALINYOL000","Y05319","YOLANDA",null,"SALINAS","yolanda.salinas@sumter.k12.fl.us","357","Non 188 Days","0042","SOUTH SUMTER MI","19-20 Active Plan","FOOD SER WORKER","FOOD SERVICE","SUBER WILLIAM ERIC","SUBERWIL000","SALINAS, YOLANDA","YOLANDA SALINAS","8:00","10/01/2019","06/01/2020","CLASSIFIED",40,32]
["REINHYAS000","Y05411","YASMINE","YVONNE","REINHARD","yasmine.reinhard@sumter.k12.fl.us","256","Ins 198 Days","9001","COUNTY OFFICE","19-20 Active Plan","SCH PSYCHOLOGIST","PSYCHOLOGIST","GOODSON EILEEN H","GOODSEIL000","REINHARD, YASMINE YVONNE","YASMINE YVONNE REINHARD","7:36","08/02/2019","06/02/2020","INSTRUCTIONAL",38,30.4]
["DAMAVZAL000","Z05246","ZALEH","MOTAMED","DAMAVANDI","zaleh.damavandi@sumter.k12.fl.us","256","Ins 198 Days","0161","WILDWOOD M/H","19-20 Active Plan","TEACHER  LANG AR-M/J","SAI TEACHER 40060","GRAYBEAL JERRY DUANE","GRAYBJER000","DAMAVANDI, ZALEH MOTAMED","ZALEH MOTAMED DAMAVANDI","7:36","08/02/2019","06/02/2020","INSTRUCTIONAL",38,30.4]
[null,"P00000","Dora",null,"Pleasant","dora.pleasant@iem.com",null,null,null,"SLR&R",null,"Tester","Tester","Montz Christian",null,"Pleasant, Dora","Pleasant, Dora","8:00","10/01/2019",null,null,{"$f":"+R879*24*5","v":40},{"$f":"+R879*24*4","v":32}]